Workbook

Sheet Interject_LastPulledValues (hidden)
A1: Interject_LastPulledValues_BalanceRange | K1: Interject_LastPulledValues_DescriptionRange | P1: Interject_LastPulledValues_LastChangeGUID
A2: KeyValue | B2: FullAccount | C2: Period | D2: Year | E2: Source | F2: Company | G2: Currency | H2: Version | I2: Balance | K2: KeyValue | L2: SegmentValue | M2: SegmentNumber | N2: Description | P2: Interject_LastPulledValues_PreviousLastChangeGUID

Sheet Total Depreciation Summary
A1: Depreciation & Average Investment Summary
A2: Waste Connections of WA
A4: Assets Through 7/31/2021 | J4: New Asset Adds from FAR (8/1/2021 and Beyond) | S4: Proforma Adds | AB4: Combined Summary - This Section to Proforma
F5: Beginning | G5: Ending | H5: Average | O5: Beginning | P5: Ending | Q5: Average | X5: Beginning | Y5: Ending | Z5: Average | AG5: Beginning | AH5: Ending | AI5: Average
A6: Equipment | B6: Cost | C6: Salvage | D6: Depr | E6: Test Year | F6: Accum Depr | G6: Accum Depr | H6: Investment | J6: Equipment | K6: Cost | L6: Salvage | M6: Depr | N6: Test Year | O6: Accum Depr | P6: Accum Depr | Q6: Investment | S6: Equipment | T6: Cost | U6: Salvage | V6: Depr | W6: Test Year | X6: Accum Depr | Y6: Accum Depr | Z6: Investment | AB6: Equipment | AC6: Cost | AD6: Salvage | AE6: Depr | AF6: Test Year | AG6: Accum Depr | AH6: Accum Depr | AI6: Investment
D7: Cost | E7: Depr | F7: 4/1/2021 | G7: 2022-03-31 | H7: =G7 -> 2022-03-31 | M7: Cost | N7: Depr | O7: =$F$7 -> 4/1/2021 | P7: =$G$7 -> 2022-03-31 | Q7: =P7 -> 2022-03-31 | V7: Cost | W7: Depr | AE7: Cost | AF7: Depr
A8: Trucks | J8: Trucks | S8: Trucks | AB8: Trucks
A9: Garbage Trucks - Regulated Only | B9: =+'Total Trucks - Salvage Value'!N57 -> 4768310.643 | C9: =B9-D9 -> 0 | D9: =+'Total Trucks - Salvage Value'!O57 -> 4768310.643 | E9: =+'Total Trucks - Salvage Value'!R57 -> 155561.3093 | F9: =+'Total Trucks - Salvage Value'!S57 -> 3614683.527 | G9: =+'Total Trucks - Salvage Value'!T57 -> 3770244.836 | H9: =+'Total Trucks - Salvage Value'!U57 -> 998065.8069 | J9: Garbage Trucks - Regulated Only | K9: =IFERROR(VLOOKUP($J9,'FAR Dep Summary'!$A$26:$F$43,2,FALSE),0) -> 19128.33 | L9: =K9-M9 -> 0 | M9: =K9 -> 19128.33 | N9: =IFERROR(VLOOKUP($J9,'FAR Dep Summary'!$A$26:$F$43,3,FALSE),0) -> 6376.11 | O9: =IFERROR(VLOOKUP($J9,'FAR Dep Summary'!$A$26:$F$43,4,FALSE),0) -> 0 | P9: =IFERROR(VLOOKUP($J9,'FAR Dep Summary'!$A$26:$F$43,5,FALSE),0) -> 6376.11 | Q9: =IFERROR(VLOOKUP($J9,'FAR Dep Summary'!$A$26:$F$43,6,FALSE),0) -> 12752.22 | S9: Garbage Trucks - Regulated Only | T9: =IFERROR(VLOOKUP($S9,'2022 Budgeted Capital'!$D$54:$I$72,2,FALSE),0) -> 1631372 | U9: =T9-V9 -> 0 | V9: =T9 -> 1631372 | W9: =IFERROR(VLOOKUP($S9,'2022 Budgeted Capital'!$D$54:$I$72,4,FALSE),0) -> 163137.2 | X9: 0 | Y9: =IFERROR(VLOOKUP($S9,'2022 Budgeted Capital'!$D$54:$I$72,5,FALSE),0) -> 163137.2 | Z9: =IFERROR(VLOOKUP($S9,'2022 Budgeted Capital'!$D$54:$I$72,6,FALSE),0) -> 1468234.8 | AB9: Garbage Trucks - Regulated Only | AC9: =B9+K9+T9 -> 6418810.973 | AD9: =C9+L9+U9 -> 0 | AE9: 6418810.973 | AF9: 325074.6193 | AG9: 3614683.527 | AH9: 3939758.146 | AI9: 2479052.827
A11: Garbage Trucks - Non-Regulated Only | B11: =+'Total Trucks - Salvage Value'!N99 -> 5479943.59 | C11: =B11-D11 -> 457716.746 | D11: =+'Total Trucks - Salvage Value'!O99 -> 5022226.844 | E11: =+'Total Trucks - Salvage Value'!R99 -> 333883.7263 | F11: =+'Total Trucks - Salvage Value'!S99 -> 2185573.137 | G11: =+'Total Trucks - Salvage Value'!T99 -> 2519456.863 | H11: =+'Total Trucks - Salvage Value'!U99 -> 2960486.727 | J11: Garbage Trucks - Non-Regulated Only | K11: =IFERROR(VLOOKUP($J11,'FAR Dep Summary'!$A$26:$F$43,2,FALSE),0) -> 383566.47 | L11: =K11-M11 -> 0 | M11: =K11 -> 383566.47 | N11: =IFERROR(VLOOKUP($J11,'FAR Dep Summary'!$A$26:$F$43,3,FALSE),0) -> 49067.80875 | O11: =IFERROR(VLOOKUP($J11,'FAR Dep Summary'!$A$26:$F$43,4,FALSE),0) -> 0 | P11: =IFERROR(VLOOKUP($J11,'FAR Dep Summary'!$A$26:$F$43,5,FALSE),0) -> 49067.80875 | Q11: =IFERROR(VLOOKUP($J11,'FAR Dep Summary'!$A$26:$F$43,6,FALSE),0) -> 334498.6613 | S11: Garbage Trucks - Non-Regulated Only | T11: =IFERROR(VLOOKUP($S11,'2022 Budgeted Capital'!$D$54:$I$72,2,FALSE),0) -> 865280 | U11: =T11-V11 -> 0 | V11: =T11 -> 865280 | W11: =IFERROR(VLOOKUP($S11,'2022 Budgeted Capital'!$D$54:$I$72,4,FALSE),0) -> 86528 | X11: 0 | Y11: =IFERROR(VLOOKUP($S11,'2022 Budgeted Capital'!$D$54:$I$72,5,FALSE),0) -> 86528 | Z11: =IFERROR(VLOOKUP($S11,'2022 Budgeted Capital'!$D$54:$I$72,6,FALSE),0) -> 778752 | AB11: Garbage Trucks - Non-Regulated Only | AC11: =B11+K11+T11 -> 6728790.06 | AD11: =C11+L11+U11 -> 457716.746 | AE11: =D11+M11+V11 -> 6271073.314 | AF11: =E11+N11+W11 -> 469479.5351 | AG11: =F11+O11+X11 -> 2185573.137 | AH11: =G11+P11+Y11 -> 2655052.672 | AI11: =H11+Q11+Z11 -> 4073737.388
A13: Garbage Trucks - Shared | B13: =+'Total Trucks - Salvage Value'!N142 -> 5306466.78 | C13: =B13-D13 -> 744.71 | D13: =+'Total Trucks - Salvage Value'!O142 -> 5305722.07 | E13: =+'Total Trucks - Salvage Value'!R142 -> 390761.5843 | F13: =+'Total Trucks - Salvage Value'!S142 -> 2784906.305 | G13: =+'Total Trucks - Salvage Value'!T142 -> 3175667.889 | H13: =+'Total Trucks - Salvage Value'!U142 -> 2130054.18 | J13: Garbage Trucks - Shared | K13: =IFERROR(VLOOKUP($J13,'FAR Dep Summary'!$A$26:$F$43,2,FALSE),0) -> 0 | L13: =K13-M13 -> 0 | M13: =K13 -> 0 | N13: =IFERROR(VLOOKUP($J13,'FAR Dep Summary'!$A$26:$F$43,3,FALSE),0) -> 0 | O13: =IFERROR(VLOOKUP($J13,'FAR Dep Summary'!$A$26:$F$43,4,FALSE),0) -> 0 | P13: =IFERROR(VLOOKUP($J13,'FAR Dep Summary'!$A$26:$F$43,5,FALSE),0) -> 0 | Q13: =IFERROR(VLOOKUP($J13,'FAR Dep Summary'!$A$26:$F$43,6,FALSE),0) -> 0 | S13: Garbage Trucks - Shared | T13: =IFERROR(VLOOKUP($S13,'2022 Budgeted Capital'!$D$54:$I$72,2,FALSE),0) -> 423744 | U13: =T13-V13 -> 0 | V13: =T13 -> 423744 | W13: =IFERROR(VLOOKUP($S13,'2022 Budgeted Capital'!$D$54:$I$72,4,FALSE),0) -> 42374.4 | X13: 0 | Y13: =IFERROR(VLOOKUP($S13,'2022 Budgeted Capital'!$D$54:$I$72,5,FALSE),0) -> 42374.4 | Z13: =IFERROR(VLOOKUP($S13,'2022 Budgeted Capital'!$D$54:$I$72,6,FALSE),0) -> 381369.6 | AB13: Garbage Trucks - Shared | AC13: =B13+K13+T13 -> 5730210.78 | AD13: =C13+L13+U13 -> 744.71 | AE13: =D13+M13+V13 -> 5729466.07 | AF13: =E13+N13+W13 -> 433135.9843 | AG13: =F13+O13+X13 -> 2784906.305 | AH13: =G13+P13+Y13 -> 3218042.289 | AI13: =H13+Q13+Z13 -> 2511423.78
A15: Electric Trucks | B15: =+'Total Trucks - Salvage Value'!N149 -> 84735.63 | C15: =B15-D15 -> 0 | D15: =+'Total Trucks - Salvage Value'!O149 -> 84735.63 | E15: =+'Total Trucks - Salvage Value'!R149 -> 8473.563 | F15: =+'Total Trucks - Salvage Value'!S149 -> 0 | G15: =+'Total Trucks - Salvage Value'!T149 -> 8473.563 | H15: =+'Total Trucks - Salvage Value'!U149 -> 76262.067 | J15: Electric Trucks | K15: =IFERROR(VLOOKUP($J15,'FAR Dep Summary'!$A$26:$F$43,2,FALSE),0) -> 0 | L15: =K15-M15 -> 0 | M15: =K15 -> 0 | N15: =IFERROR(VLOOKUP($J15,'FAR Dep Summary'!$A$26:$F$43,3,FALSE),0) -> 0 | O15: =IFERROR(VLOOKUP($J15,'FAR Dep Summary'!$A$26:$F$43,4,FALSE),0) -> 0 | P15: =IFERROR(VLOOKUP($J15,'FAR Dep Summary'!$A$26:$F$43,5,FALSE),0) -> 0 | Q15: =IFERROR(VLOOKUP($J15,'FAR Dep Summary'!$A$26:$F$43,6,FALSE),0) -> 0 | S15: Electric Trucks | T15: =IFERROR(VLOOKUP($S15,'2022 Budgeted Capital'!$D$54:$I$72,2,FALSE),0) -> 0 | U15: =T15-V15 -> 0 | V15: =T15 -> 0 | W15: =IFERROR(VLOOKUP($S15,'2022 Budgeted Capital'!$D$54:$I$72,4,FALSE),0) -> 0 | X15: 0 | Y15: =IFERROR(VLOOKUP($S15,'2022 Budgeted Capital'!$D$54:$I$72,5,FALSE),0) -> 0 | Z15: =IFERROR(VLOOKUP($S15,'2022 Budgeted Capital'!$D$54:$I$72,6,FALSE),0) -> 0 | AB15: Electric Trucks | AC15: =B15+K15+T15 -> 84735.63 | AD15: =C15+L15+U15 -> 0 | AE15: =D15+M15+V15 -> 84735.63 | AF15: =E15+N15+W15 -> 8473.563 | AG15: =F15+O15+X15 -> 0 | AH15: =G15+P15+Y15 -> 8473.563 | AI15: =H15+Q15+Z15 -> 76262.067
A17: Roll-off Trucks | B17: =+'Total Trucks - Salvage Value'!N195 -> 4786518.662 | C17: =B17-D17 -> 0 | D17: =+'Total Trucks - Salvage Value'!O195 -> 4786518.662 | E17: =+'Total Trucks - Salvage Value'!R195 -> 306631.135 | F17: =+'Total Trucks - Salvage Value'!S195 -> 2546571.369 | G17: =+'Total Trucks - Salvage Value'!T195 -> 2853202.504 | H17: =+'Total Trucks - Salvage Value'!U195 -> 1933316.158 | J17: Roll-off Trucks | K17: =IFERROR(VLOOKUP($J17,'FAR Dep Summary'!$A$26:$F$43,2,FALSE),0) -> 27548.84 | L17: =K17-M17 -> 0 | M17: =K17 -> 27548.84 | N17: =IFERROR(VLOOKUP($J17,'FAR Dep Summary'!$A$26:$F$43,3,FALSE),0) -> 9182.946667 | O17: =IFERROR(VLOOKUP($J17,'FAR Dep Summary'!$A$26:$F$43,4,FALSE),0) -> 0 | P17: =IFERROR(VLOOKUP($J17,'FAR Dep Summary'!$A$26:$F$43,5,FALSE),0) -> 9182.946667 | Q17: =IFERROR(VLOOKUP($J17,'FAR Dep Summary'!$A$26:$F$43,6,FALSE),0) -> 18365.89333 | S17: Roll-off Trucks | T17: =IFERROR(VLOOKUP($S17,'2022 Budgeted Capital'!$D$54:$I$72,2,FALSE),0) -> 624934 | U17: =T17-V17 -> 0 | V17: =T17 -> 624934 | W17: =IFERROR(VLOOKUP($S17,'2022 Budgeted Capital'!$D$54:$I$72,4,FALSE),0) -> 62493.4 | X17: 0 | Y17: =IFERROR(VLOOKUP($S17,'2022 Budgeted Capital'!$D$54:$I$72,5,FALSE),0) -> 62493.4 | Z17: =IFERROR(VLOOKUP($S17,'2022 Budgeted Capital'!$D$54:$I$72,6,FALSE),0) -> 562440.6 | AB17: Roll-off Trucks | AC17: =B17+K17+T17 -> 5439001.502 | AD17: =C17+L17+U17 -> 0 | AE17: =D17+M17+V17 -> 5439001.502 | AF17: =E17+N17+W17 -> 378307.4817 | AG17: =F17+O17+X17 -> 2546571.369 | AH17: =G17+P17+Y17 -> 2924878.85 | AI17: =H17+Q17+Z17 -> 2514122.651
A19: Recycle Trucks | B19: =+'Total Trucks - Salvage Value'!N256 -> 12064943.25 | C19: =B19-D19 -> 1442033.118 | D19: =+'Total Trucks - Salvage Value'!O256 -> 10622910.13 | E19: =+'Total Trucks - Salvage Value'!R256 -> 492149.735 | F19: =+'Total Trucks - Salvage Value'!S256 -> 6966192.744 | G19: =+'Total Trucks - Salvage Value'!T256 -> 7458342.479 | H19: =+'Total Trucks - Salvage Value'!U256 -> 4606600.77 | J19: Recycle Trucks | K19: =IFERROR(VLOOKUP($J19,'FAR Dep Summary'!$A$26:$F$43,2,FALSE),0) -> 470917.74 | L19: =K19-M19 -> 0 | M19: =K19 -> 470917.74 | N19: =IFERROR(VLOOKUP($J19,'FAR Dep Summary'!$A$26:$F$43,3,FALSE),0) -> 47532.648 | O19: =IFERROR(VLOOKUP($J19,'FAR Dep Summary'!$A$26:$F$43,4,FALSE),0) -> 4750 | P19: =IFERROR(VLOOKUP($J19,'FAR Dep Summary'!$A$26:$F$43,5,FALSE),0) -> 52282.648 | Q19: =IFERROR(VLOOKUP($J19,'FAR Dep Summary'!$A$26:$F$43,6,FALSE),0) -> 418635.092 | S19: Recycle Trucks | T19: =IFERROR(VLOOKUP($S19,'2022 Budgeted Capital'!$D$54:$I$72,2,FALSE),0) -> 3300925 | U19: =T19-V19 -> 0 | V19: =T19 -> 3300925 | W19: =IFERROR(VLOOKUP($S19,'2022 Budgeted Capital'!$D$54:$I$72,4,FALSE),0) -> 330092.5 | X19: 0 | Y19: =IFERROR(VLOOKUP($S19,'2022 Budgeted Capital'!$D$54:$I$72,5,FALSE),0) -> 330092.5 | Z19: =IFERROR(VLOOKUP($S19,'2022 Budgeted Capital'!$D$54:$I$72,6,FALSE),0) -> 2970832.5 | AB19: Recycle Trucks | AC19: =B19+K19+T19 -> 15836785.99 | AD19: =C19+L19+U19 -> 1442033.118 | AE19: =D19+M19+V19 -> 14394752.87 | AF19: =E19+N19+W19 -> 869774.883 | AG19: =F19+O19+X19 -> 6970942.744 | AH19: =G19+P19+Y19 -> 7840717.627 | AI19: =H19+Q19+Z19 -> 7996068.362
A21: Yard Debris Trucks | B21: =+'Total Trucks - Salvage Value'!N272 -> 2115245.61 | C21: =B21-D21 -> 383447.436 | D21: =+'Total Trucks - Salvage Value'!O272 -> 1731798.174 | E21: =+'Total Trucks - Salvage Value'!R272 -> 17895.11 | F21: =+'Total Trucks - Salvage Value'!S272 -> 1570742.184 | G21: =+'Total Trucks - Salvage Value'!T272 -> 1588637.294 | H21: =+'Total Trucks - Salvage Value'!U272 -> 526608.316 | J21: Yard Debris Trucks | K21: =IFERROR(VLOOKUP($J21,'FAR Dep Summary'!$A$26:$F$43,2,FALSE),0) -> 0 | L21: =K21-M21 -> 0 | M21: =K21 -> 0 | N21: =IFERROR(VLOOKUP($J21,'FAR Dep Summary'!$A$26:$F$43,3,FALSE),0) -> 0 | O21: =IFERROR(VLOOKUP($J21,'FAR Dep Summary'!$A$26:$F$43,4,FALSE),0) -> 0 | P21: =IFERROR(VLOOKUP($J21,'FAR Dep Summary'!$A$26:$F$43,5,FALSE),0) -> 0 | Q21: =IFERROR(VLOOKUP($J21,'FAR Dep Summary'!$A$26:$F$43,6,FALSE),0) -> 0 | S21: Yard Debris Trucks | T21: =IFERROR(VLOOKUP($S21,'2022 Budgeted Capital'!$D$54:$I$72,2,FALSE),0) -> 431683 | U21: =T21-V21 -> 0 | V21: =T21 -> 431683 | W21: =IFERROR(VLOOKUP($S21,'2022 Budgeted Capital'!$D$54:$I$72,4,FALSE),0) -> 43168.3 | X21: 0 | Y21: =IFERROR(VLOOKUP($S21,'2022 Budgeted Capital'!$D$54:$I$72,5,FALSE),0) -> 43168.3 | Z21: =IFERROR(VLOOKUP($S21,'2022 Budgeted Capital'!$D$54:$I$72,6,FALSE),0) -> 388514.7 | AB21: Yard Debris Trucks | AC21: =B21+K21+T21 -> 2546928.61 | AD21: =C21+L21+U21 -> 383447.436 | AE21: =D21+M21+V21 -> 2163481.174 | AF21: =E21+N21+W21 -> 61063.41 | AG21: =F21+O21+X21 -> 1570742.184 | AH21: =G21+P21+Y21 -> 1631805.594 | AI21: =H21+Q21+Z21 -> 915123.016
A23: Shredding Trucks | B23: =+'Total Trucks - Salvage Value'!N281 -> 551960.2557 | C23: =B23-D23 -> 83399.2962 | D23: =+'Total Trucks - Salvage Value'!O281 -> 468560.9595 | E23: =+'Total Trucks - Salvage Value'!R281 -> 29707.719 | F23: =+'Total Trucks - Salvage Value'!S281 -> 260606.9265 | G23: =+'Total Trucks - Salvage Value'!T281 -> 290314.6455 | H23: =+'Total Trucks - Salvage Value'!U281 -> 261645.6102 | J23: Shredding Trucks | K23: =IFERROR(VLOOKUP($J23,'FAR Dep Summary'!$A$26:$F$43,2,FALSE),0) -> 0 | L23: =K23-M23 -> 0 | M23: =K23 -> 0 | N23: =IFERROR(VLOOKUP($J23,'FAR Dep Summary'!$A$26:$F$43,3,FALSE),0) -> 0 | O23: =IFERROR(VLOOKUP($J23,'FAR Dep Summary'!$A$26:$F$43,4,FALSE),0) -> 0 | P23: =IFERROR(VLOOKUP($J23,'FAR Dep Summary'!$A$26:$F$43,5,FALSE),0) -> 0 | Q23: =IFERROR(VLOOKUP($J23,'FAR Dep Summary'!$A$26:$F$43,6,FALSE),0) -> 0 | S23: Shredding Trucks | T23: =IFERROR(VLOOKUP($S23,'2022 Budgeted Capital'!$D$54:$I$72,2,FALSE),0) -> 0 | U23: =T23-V23 -> 0 | V23: =T23 -> 0 | W23: =IFERROR(VLOOKUP($S23,'2022 Budgeted Capital'!$D$54:$I$72,4,FALSE),0) -> 0 | X23: 0 | Y23: =IFERROR(VLOOKUP($S23,'2022 Budgeted Capital'!$D$54:$I$72,5,FALSE),0) -> 0 | Z23: =IFERROR(VLOOKUP($S23,'2022 Budgeted Capital'!$D$54:$I$72,6,FALSE),0) -> 0 | AB23: Shredding Trucks | AC23: =B23+K23+T23 -> 551960.2557 | AD23: =C23+L23+U23 -> 83399.2962 | AE23: =D23+M23+V23 -> 468560.9595 | AF23: =E23+N23+W23 -> 29707.719 | AG23: =F23+O23+X23 -> 260606.9265 | AH23: =G23+P23+Y23 -> 290314.6455 | AI23: =H23+Q23+Z23 -> 261645.6102
A25: Container Delivery Trucks | B25: =+'Total Trucks - Salvage Value'!N308 -> 1117498.2 | C25: =B25-D25 -> 0 | D25: =+'Total Trucks - Salvage Value'!O308 -> 1117498.2 | E25: =+'Total Trucks - Salvage Value'!R308 -> 86862.24467 | F25: =+'Total Trucks - Salvage Value'!S308 -> 506461.15 | G25: =+'Total Trucks - Salvage Value'!T308 -> 593323.3947 | H25: =+'Total Trucks - Salvage Value'!U308 -> 524174.8053 | J25: Container Delivery Trucks | K25: =IFERROR(VLOOKUP($J25,'FAR Dep Summary'!$A$26:$F$43,2,FALSE),0) -> 0 | L25: =K25-M25 -> 0 | M25: =K25 -> 0 | N25: =IFERROR(VLOOKUP($J25,'FAR Dep Summary'!$A$26:$F$43,3,FALSE),0) -> 0 | O25: =IFERROR(VLOOKUP($J25,'FAR Dep Summary'!$A$26:$F$43,4,FALSE),0) -> 0 | P25: =IFERROR(VLOOKUP($J25,'FAR Dep Summary'!$A$26:$F$43,5,FALSE),0) -> 0 | Q25: =IFERROR(VLOOKUP($J25,'FAR Dep Summary'!$A$26:$F$43,6,FALSE),0) -> 0 | S25: Container Delivery Trucks | T25: =IFERROR(VLOOKUP($S25,'2022 Budgeted Capital'!$D$54:$I$72,2,FALSE),0) -> 182953 | U25: =T25-V25 -> 0 | V25: =T25 -> 182953 | W25: =IFERROR(VLOOKUP($S25,'2022 Budgeted Capital'!$D$54:$I$72,4,FALSE),0) -> 18295.3 | X25: 0 | Y25: =IFERROR(VLOOKUP($S25,'2022 Budgeted Capital'!$D$54:$I$72,5,FALSE),0) -> 18295.3 | Z25: =IFERROR(VLOOKUP($S25,'2022 Budgeted Capital'!$D$54:$I$72,6,FALSE),0) -> 164657.7 | AB25: Container Delivery Trucks | AC25: =B25+K25+T25 -> 1300451.2 | AD25: =C25+L25+U25 -> 0 | AE25: =D25+M25+V25 -> 1300451.2 | AF25: =E25+N25+W25 -> 105157.5447 | AG25: =F25+O25+X25 -> 506461.15 | AH25: =G25+P25+Y25 -> 611618.6947 | AI25: =H25+Q25+Z25 -> 688832.5053
A27: Total Trucks | B27: =SUM(B9:B26) -> 36275622.62 | C27: 2367341.306 | D27: 33908281.31 | E27: 1821926.127 | F27: 20435737.34 | G27: 22257663.47 | H27: 14017214.44 | J27: Total Trucks | K27: =SUM(K9:K26) -> 901161.38 | L27: 0 | M27: 901161.38 | N27: 112159.5134 | O27: 4750 | P27: 116909.5134 | Q27: 784251.8666 | S27: Total Trucks | T27: =SUM(T9:T26) -> 7460891 | U27: 0 | V27: 7460891 | W27: 746089.1 | X27: 0 | Y27: 746089.1 | Z27: 6714801.9 | AB27: Total Trucks | AC27: =SUM(AC9:AC26) -> 44637675 | AD27: 2367341.306 | AE27: 42270333.69 | AF27: 2680174.74 | AG27: 20440487.34 | AH27: 23120662.08 | AI27: 21516268.21
A28: Check | B28: =B27-'Total Trucks - Salvage Value'!N310 -> 0 | D28: =D27-'Total Trucks - Salvage Value'!O310 -> 0 | E28: =E27-'Total Trucks - Salvage Value'!R310 -> 0 | F28: =F27-'Total Trucks - Salvage Value'!S310 -> 0 | G28: =G27-'Total Trucks - Salvage Value'!T310 -> 0 | H28: =H27-'Total Trucks - Salvage Value'!U310 -> 0 | I28: + | R28: + | AA28: =
A29: Containers: | J29: Containers: | S29: Containers: | AB29: Containers:
A30: Garbage Carts (non-reg) | B30: =+'Total Cont, DB'!K811 -> 2561568.17 | C30: =B30-D30 -> 0 | D30: =+'Total Cont, DB'!L811 -> 2561568.17 | E30: =+'Total Cont, DB'!O811 -> 141127.9481 | F30: =+'Total Cont, DB'!P811 -> 1883051.277 | G30: =+'Total Cont, DB'!Q811 -> 2024179.225 | H30: =+'Total Cont, DB'!R811 -> 537388.9448 | J30: Garbage Carts (non-reg) | K30: =IFERROR(VLOOKUP($J30,'FAR Dep Summary'!$A$26:$F$43,2,FALSE),0) -> 151646.42 | L30: =K30-M30 -> 0 | M30: =K30 -> 151646.42 | N30: =IFERROR(VLOOKUP($J30,'FAR Dep Summary'!$A$26:$F$43,3,FALSE),0) -> 21663.77429 | O30: =IFERROR(VLOOKUP($J30,'FAR Dep Summary'!$A$26:$F$43,4,FALSE),0) -> 0 | P30: =IFERROR(VLOOKUP($J30,'FAR Dep Summary'!$A$26:$F$43,5,FALSE),0) -> 21663.77429 | Q30: =IFERROR(VLOOKUP($J30,'FAR Dep Summary'!$A$26:$F$43,6,FALSE),0) -> 129982.6457 | S30: Garbage Carts (non-reg) | T30: =IFERROR(VLOOKUP($S30,'2022 Budgeted Capital'!$D$54:$I$72,2,FALSE),0) -> 117946 | U30: =T30-V30 -> 0 | V30: =T30 -> 117946 | W30: =IFERROR(VLOOKUP($S30,'2022 Budgeted Capital'!$D$54:$I$72,4,FALSE),0) -> 16849.42857 | X30: 0 | Y30: =IFERROR(VLOOKUP($S30,'2022 Budgeted Capital'!$D$54:$I$72,5,FALSE),0) -> 16849.42857 | Z30: =IFERROR(VLOOKUP($S30,'2022 Budgeted Capital'!$D$54:$I$72,6,FALSE),0) -> 101096.5714 | AB30: Garbage Carts (non-reg) | AC30: =B30+K30+T30 -> 2831160.59 | AD30: =C30+L30+U30 -> 0 | AE30: =D30+M30+V30 -> 2831160.59 | AF30: =E30+N30+W30 -> 179641.151 | AG30: =F30+O30+X30 -> 1883051.277 | AH30: =G30+P30+Y30 -> 2062692.428 | AI30: =H30+Q30+Z30 -> 768468.1619
A32: Garbage Carts (Reg only) | B32: =+'Total Cont, DB'!K813 -> 0 | C32: =B32-D32 -> 0 | D32: =+'Total Cont, DB'!L813 -> 0 | E32: =+'Total Cont, DB'!O813 -> 0 | F32: =+'Total Cont, DB'!P813 -> 0 | G32: =+'Total Cont, DB'!Q813 -> 0 | H32: =+'Total Cont, DB'!R813 -> 0 | J32: Garbage Carts (Reg only) | K32: =IFERROR(VLOOKUP($J32,'FAR Dep Summary'!$A$26:$F$43,2,FALSE),0) -> 0 | L32: =K32-M32 -> 0 | M32: =K32 -> 0 | N32: =IFERROR(VLOOKUP($J32,'FAR Dep Summary'!$A$26:$F$43,3,FALSE),0) -> 0 | O32: =IFERROR(VLOOKUP($J32,'FAR Dep Summary'!$A$26:$F$43,4,FALSE),0) -> 0 | P32: =IFERROR(VLOOKUP($J32,'FAR Dep Summary'!$A$26:$F$43,5,FALSE),0) -> 0 | Q32: =IFERROR(VLOOKUP($J32,'FAR Dep Summary'!$A$26:$F$43,6,FALSE),0) -> 0 | S32: Garbage Carts (Reg only) | T32: =IFERROR(VLOOKUP($S32,'2022 Budgeted Capital'!$D$54:$I$72,2,FALSE),0) -> 1425132 | U32: =T32-V32 -> 0 | V32: =T32 -> 1425132 | W32: =IFERROR(VLOOKUP($S32,'2022 Budgeted Capital'!$D$54:$I$72,4,FALSE),0) -> 203590.2857 | X32: 0 | Y32: =IFERROR(VLOOKUP($S32,'2022 Budgeted Capital'!$D$54:$I$72,5,FALSE),0) -> 203590.2857 | Z32: =IFERROR(VLOOKUP($S32,'2022 Budgeted Capital'!$D$54:$I$72,6,FALSE),0) -> 1221541.714 | AB32: Garbage Carts (Reg only) | AC32: =B32+K32+T32 -> 1425132 | AD32: =C32+L32+U32 -> 0 | AE32: =D32+M32+V32 -> 1425132 | AF32: =E32+N32+W32 -> 203590.2857 | AG32: =F32+O32+X32 -> 0 | AH32: =G32+P32+Y32 -> 203590.2857 | AI32: =H32+Q32+Z32 -> 1221541.714
A34: Recycle Carts (non-reg) | B34: =+'Total Cont, DB'!K1085 -> 5893747.624 | C34: =B34-D34 -> 0 | D34: =+'Total Cont, DB'!L1085 -> 5893747.624 | E34: =+'Total Cont, DB'!O1085 -> 348362.1097 | F34: =+'Total Cont, DB'!P1085 -> 4517479.054 | G34: =+'Total Cont, DB'!Q1085 -> 4865841.164 | H34: =+'Total Cont, DB'!R1085 -> 1027906.461 | J34: Recycle Carts (non-reg) | K34: =IFERROR(VLOOKUP($J34,'FAR Dep Summary'!$A$26:$F$43,2,FALSE),0) -> 728371.81 | L34: =K34-M34 -> 0 | M34: =K34 -> 728371.81 | N34: =IFERROR(VLOOKUP($J34,'FAR Dep Summary'!$A$26:$F$43,3,FALSE),0) -> 112922.8991 | O34: =IFERROR(VLOOKUP($J34,'FAR Dep Summary'!$A$26:$F$43,4,FALSE),0) -> 0 | P34: =IFERROR(VLOOKUP($J34,'FAR Dep Summary'!$A$26:$F$43,5,FALSE),0) -> 112922.8991 | Q34: =IFERROR(VLOOKUP($J34,'FAR Dep Summary'!$A$26:$F$43,6,FALSE),0) -> 615448.9109 | S34: Recycle Carts (non-reg) | T34: =IFERROR(VLOOKUP($S34,'2022 Budgeted Capital'!$D$54:$I$72,2,FALSE),0) -> 1621906 | U34: =T34-V34 -> 0 | V34: =T34 -> 1621906 | W34: =IFERROR(VLOOKUP($S34,'2022 Budgeted Capital'!$D$54:$I$72,4,FALSE),0) -> 231700.8571 | X34: 0 | Y34: =IFERROR(VLOOKUP($S34,'2022 Budgeted Capital'!$D$54:$I$72,5,FALSE),0) -> 231700.8571 | Z34: =IFERROR(VLOOKUP($S34,'2022 Budgeted Capital'!$D$54:$I$72,6,FALSE),0) -> 1390205.143 | AB34: Recycle Carts (non-reg) | AC34: =B34+K34+T34 -> 8244025.434 | AD34: =C34+L34+U34 -> 0 | AE34: =D34+M34+V34 -> 8244025.434 | AF34: =E34+N34+W34 -> 692985.866 | AG34: =F34+O34+X34 -> 4517479.054 | AH34: =G34+P34+Y34 -> 5210464.92 | AI34: =H34+Q34+Z34 -> 3033560.514
A36: Yard Debris Carts (non-reg) | B36: =+'Total Cont, DB'!K1248 -> 3642623.334 | C36: =B36-D36 -> 0 | D36: =+'Total Cont, DB'!L1248 -> 3642623.334 | E36: =+'Total Cont, DB'!O1248 -> 186671.7643 | F36: =+'Total Cont, DB'!P1248 -> 2915760.337 | G36: =+'Total Cont, DB'!Q1248 -> 3102432.101 | H36: =+'Total Cont, DB'!R1248 -> 540191.2329 | J36: Yard Debris Carts (non-reg) | K36: =IFERROR(VLOOKUP($J36,'FAR Dep Summary'!$A$26:$F$43,2,FALSE),0) -> 213621.95 | L36: =K36-M36 -> 0 | M36: =K36 -> 213621.95 | N36: =IFERROR(VLOOKUP($J36,'FAR Dep Summary'!$A$26:$F$43,3,FALSE),0) -> 30517.42143 | O36: =IFERROR(VLOOKUP($J36,'FAR Dep Summary'!$A$26:$F$43,4,FALSE),0) -> 0 | P36: =IFERROR(VLOOKUP($J36,'FAR Dep Summary'!$A$26:$F$43,5,FALSE),0) -> 30517.42143 | Q36: =IFERROR(VLOOKUP($J36,'FAR Dep Summary'!$A$26:$F$43,6,FALSE),0) -> 183104.5286 | S36: Yard Debris Carts (non-reg) | T36: =IFERROR(VLOOKUP($S36,'2022 Budgeted Capital'!$D$54:$I$72,2,FALSE),0) -> 200698 | U36: =T36-V36 -> 0 | V36: =T36 -> 200698 | W36: =IFERROR(VLOOKUP($S36,'2022 Budgeted Capital'!$D$54:$I$72,4,FALSE),0) -> 28671.14286 | X36: 0 | Y36: =IFERROR(VLOOKUP($S36,'2022 Budgeted Capital'!$D$54:$I$72,5,FALSE),0) -> 28671.14286 | Z36: =IFERROR(VLOOKUP($S36,'2022 Budgeted Capital'!$D$54:$I$72,6,FALSE),0) -> 172026.8571 | AB36: Yard Debris Carts (non-reg) | AC36: =B36+K36+T36 -> 4056943.284 | AD36: =C36+L36+U36 -> 0 | AE36: =D36+M36+V36 -> 4056943.284 | AF36: =E36+N36+W36 -> 245860.3286 | AG36: =F36+O36+X36 -> 2915760.337 | AH36: =G36+P36+Y36 -> 3161620.666 | AI36: =H36+Q36+Z36 -> 895322.6186
A38: Organics Carts (non-reg) | B38: =+'Total Cont, DB'!K1271 -> 549969.69 | C38: =B38-D38 -> 0 | D38: =+'Total Cont, DB'!L1271 -> 549969.69 | E38: =+'Total Cont, DB'!O1271 -> 101607.8443 | F38: =+'Total Cont, DB'!P1271 -> 180906.0257 | G38: =+'Total Cont, DB'!Q1271 -> 282513.87 | H38: =+'Total Cont, DB'!R1271 -> 267455.82 | J38: Organics Carts (non-reg) | K38: =IFERROR(VLOOKUP($J38,'FAR Dep Summary'!$A$26:$F$43,2,FALSE),0) -> 24252.05 | L38: =K38-M38 -> 0 | M38: =K38 -> 24252.05 | N38: =IFERROR(VLOOKUP($J38,'FAR Dep Summary'!$A$26:$F$43,3,FALSE),0) -> 3464.578571 | O38: =IFERROR(VLOOKUP($J38,'FAR Dep Summary'!$A$26:$F$43,4,FALSE),0) -> 0 | P38: =IFERROR(VLOOKUP($J38,'FAR Dep Summary'!$A$26:$F$43,5,FALSE),0) -> 3464.578571 | Q38: =IFERROR(VLOOKUP($J38,'FAR Dep Summary'!$A$26:$F$43,6,FALSE),0) -> 20787.47143 | S38: Organics Carts (non-reg) | T38: =IFERROR(VLOOKUP($S38,'2022 Budgeted Capital'!$D$54:$I$72,2,FALSE),0) -> 0 | U38: =T38-V38 -> 0 | V38: =T38 -> 0 | W38: =IFERROR(VLOOKUP($S38,'2022 Budgeted Capital'!$D$54:$I$72,4,FALSE),0) -> 0 | X38: 0 | Y38: =IFERROR(VLOOKUP($S38,'2022 Budgeted Capital'!$D$54:$I$72,5,FALSE),0) -> 0 | Z38: =IFERROR(VLOOKUP($S38,'2022 Budgeted Capital'!$D$54:$I$72,6,FALSE),0) -> 0 | AB38: Organics Carts (non-reg) | AC38: =B38+K38+T38 -> 574221.74 | AD38: =C38+L38+U38 -> 0 | AE38: =D38+M38+V38 -> 574221.74 | AF38: =E38+N38+W38 -> 105072.4229 | AG38: =F38+O38+X38 -> 180906.0257 | AH38: =G38+P38+Y38 -> 285978.4486 | AI38: =H38+Q38+Z38 -> 288243.2914
A40: Recycle Container (non-reg) | B40: =+'Total Cont, DB'!K1312 -> 235158.47 | C40: =B40-D40 -> 0 | D40: =+'Total Cont, DB'!L1312 -> 235158.47 | E40: =+'Total Cont, DB'!O1312 -> 16006.85167 | F40: =+'Total Cont, DB'!P1312 -> 106432.4567 | G40: =+'Total Cont, DB'!Q1312 -> 122439.3083 | H40: =+'Total Cont, DB'!R1312 -> 112719.1617 | J40: Recycle Container (non-reg) | K40: =IFERROR(VLOOKUP($J40,'FAR Dep Summary'!$A$26:$F$43,2,FALSE),0) -> 21072.96 | L40: =K40-M40 -> 0 | M40: =K40 -> 21072.96 | N40: =IFERROR(VLOOKUP($J40,'FAR Dep Summary'!$A$26:$F$43,3,FALSE),0) -> 1756.08 | O40: =IFERROR(VLOOKUP($J40,'FAR Dep Summary'!$A$26:$F$43,4,FALSE),0) -> 0 | P40: =IFERROR(VLOOKUP($J40,'FAR Dep Summary'!$A$26:$F$43,5,FALSE),0) -> 1756.08 | Q40: =IFERROR(VLOOKUP($J40,'FAR Dep Summary'!$A$26:$F$43,6,FALSE),0) -> 19316.88 | S40: Recycle Container (non-reg) | T40: =IFERROR(VLOOKUP($S40,'2022 Budgeted Capital'!$D$54:$I$72,2,FALSE),0) -> 0 | U40: =T40-V40 -> 0 | V40: =T40 -> 0 | W40: =IFERROR(VLOOKUP($S40,'2022 Budgeted Capital'!$D$54:$I$72,4,FALSE),0) -> 0 | X40: 0 | Y40: =IFERROR(VLOOKUP($S40,'2022 Budgeted Capital'!$D$54:$I$72,5,FALSE),0) -> 0 | Z40: =IFERROR(VLOOKUP($S40,'2022 Budgeted Capital'!$D$54:$I$72,6,FALSE),0) -> 0 | AB40: Recycle Container (non-reg) | AC40: =B40+K40+T40 -> 256231.43 | AD40: =C40+L40+U40 -> 0 | AE40: =D40+M40+V40 -> 256231.43 | AF40: =E40+N40+W40 -> 17762.93167 | AG40: =F40+O40+X40 -> 106432.4567 | AH40: =G40+P40+Y40 -> 124195.3883 | AI40: =H40+Q40+Z40 -> 132036.0417
A42: Garbage Container (shared) | B42: ='Total Cont, DB'!K394 -> 2747045.59 | C42: =B42-D42 -> 0 | D42: ='Total Cont, DB'!L394 -> 2747045.59 | E42: ='Total Cont, DB'!O394 -> 98439.43318 | F42: ='Total Cont, DB'!P394 -> 1980779.344 | G42: ='Total Cont, DB'!Q394 -> 2079218.777 | H42: ='Total Cont, DB'!R394 -> 667826.8125 | J42: Garbage Container (shared) | K42: =IFERROR(VLOOKUP($J42,'FAR Dep Summary'!$A$26:$F$43,2,FALSE),0) -> 61472.93 | L42: =K42-M42 -> 0 | M42: =K42 -> 61472.93 | N42: =IFERROR(VLOOKUP($J42,'FAR Dep Summary'!$A$26:$F$43,3,FALSE),0) -> 5388.749524 | O42: =IFERROR(VLOOKUP($J42,'FAR Dep Summary'!$A$26:$F$43,4,FALSE),0) -> 0 | P42: =IFERROR(VLOOKUP($J42,'FAR Dep Summary'!$A$26:$F$43,5,FALSE),0) -> 5388.749524 | Q42: =IFERROR(VLOOKUP($J42,'FAR Dep Summary'!$A$26:$F$43,6,FALSE),0) -> 56084.18048 | S42: Garbage Container (shared) | T42: =IFERROR(VLOOKUP($S42,'2022 Budgeted Capital'!$D$54:$I$72,2,FALSE),0) -> 120998 | U42: =T42-V42 -> 0 | V42: =T42 -> 120998 | W42: =IFERROR(VLOOKUP($S42,'2022 Budgeted Capital'!$D$54:$I$72,4,FALSE),0) -> 10083.16667 | X42: 0 | Y42: =IFERROR(VLOOKUP($S42,'2022 Budgeted Capital'!$D$54:$I$72,5,FALSE),0) -> 10083.16667 | Z42: =IFERROR(VLOOKUP($S42,'2022 Budgeted Capital'!$D$54:$I$72,6,FALSE),0) -> 110914.8333 | AB42: Garbage Container (shared) | AC42: =B42+K42+T42 -> 2929516.52 | AD42: =C42+L42+U42 -> 0 | AE42: =D42+M42+V42 -> 2929516.52 | AF42: =E42+N42+W42 -> 113911.3494 | AG42: =F42+O42+X42 -> 1980779.344 | AH42: =G42+P42+Y42 -> 2094690.694 | AI42: =H42+Q42+Z42 -> 834825.8263
A44: Drop Boxes (shared) | B44: ='Total Cont, DB'!K664 -> 4320882.99 | C44: =B44-D44 -> 0 | D44: ='Total Cont, DB'!L664 -> 4320882.99 | E44: ='Total Cont, DB'!O664 -> 173531.9708 | F44: ='Total Cont, DB'!P664 -> 2821970.028 | G44: ='Total Cont, DB'!Q664 -> 2995501.999 | H44: ='Total Cont, DB'!R664 -> 1325380.991 | J44: Drop Boxes (shared) | K44: =IFERROR(VLOOKUP($J44,'FAR Dep Summary'!$A$26:$F$43,2,FALSE),0) -> 812953.6 | L44: =K44-M44 -> 0 | M44: =K44 -> 812953.6 | N44: =IFERROR(VLOOKUP($J44,'FAR Dep Summary'!$A$26:$F$43,3,FALSE),0) -> 65194.66833 | O44: =IFERROR(VLOOKUP($J44,'FAR Dep Summary'!$A$26:$F$43,4,FALSE),0) -> 30617.58 | P44: =IFERROR(VLOOKUP($J44,'FAR Dep Summary'!$A$26:$F$43,5,FALSE),0) -> 95812.24833 | Q44: =IFERROR(VLOOKUP($J44,'FAR Dep Summary'!$A$26:$F$43,6,FALSE),0) -> 717141.3517 | S44: Drop Boxes (shared) | T44: =IFERROR(VLOOKUP($S44,'2022 Budgeted Capital'!$D$54:$I$72,2,FALSE),0) -> 664707 | U44: =T44-V44 -> 0 | V44: =T44 -> 664707 | W44: =IFERROR(VLOOKUP($S44,'2022 Budgeted Capital'!$D$54:$I$72,4,FALSE),0) -> 55392.25 | X44: 0 | Y44: =IFERROR(VLOOKUP($S44,'2022 Budgeted Capital'!$D$54:$I$72,5,FALSE),0) -> 55392.25 | Z44: =IFERROR(VLOOKUP($S44,'2022 Budgeted Capital'!$D$54:$I$72,6,FALSE),0) -> 609314.75 | AB44: Drop Boxes (shared) | AC44: =B44+K44+T44 -> 5798543.59 | AD44: =C44+L44+U44 -> 0 | AE44: =D44+M44+V44 -> 5798543.59 | AF44: =E44+N44+W44 -> 294118.8892 | AG44: =F44+O44+X44 -> 2852587.608 | AH44: =G44+P44+Y44 -> 3146706.498 | AI44: =H44+Q44+Z44 -> 2651837.093
A46: Shred (non-reg) | B46: =+'Total Cont, DB'!K1323 -> 38694.92 | C46: =B46-D46 -> 0 | D46: =+'Total Cont, DB'!L1323 -> 38694.92 | E46: =+'Total Cont, DB'!O1323 -> 4040.134286 | F46: =+'Total Cont, DB'!P1323 -> 27875.30571 | G46: =+'Total Cont, DB'!Q1323 -> 31915.44 | H46: =+'Total Cont, DB'!R1323 -> 6779.48 | J46: Shred (non-reg) | K46: =IFERROR(VLOOKUP($J46,'FAR Dep Summary'!$A$26:$F$43,2,FALSE),0) -> 0 | L46: =K46-M46 -> 0 | M46: =K46 -> 0 | N46: =IFERROR(VLOOKUP($J46,'FAR Dep Summary'!$A$26:$F$43,3,FALSE),0) -> 0 | O46: =IFERROR(VLOOKUP($J46,'FAR Dep Summary'!$A$26:$F$43,4,FALSE),0) -> 0 | P46: =IFERROR(VLOOKUP($J46,'FAR Dep Summary'!$A$26:$F$43,5,FALSE),0) -> 0 | Q46: =IFERROR(VLOOKUP($J46,'FAR Dep Summary'!$A$26:$F$43,6,FALSE),0) -> 0 | S46: Shred (non-reg) | T46: =IFERROR(VLOOKUP($S46,'2022 Budgeted Capital'!$D$54:$I$72,2,FALSE),0) -> 0 | U46: =T46-V46 -> 0 | V46: =T46 -> 0 | W46: =IFERROR(VLOOKUP($S46,'2022 Budgeted Capital'!$D$54:$I$72,4,FALSE),0) -> 0 | X46: 0 | Y46: =IFERROR(VLOOKUP($S46,'2022 Budgeted Capital'!$D$54:$I$72,5,FALSE),0) -> 0 | Z46: =IFERROR(VLOOKUP($S46,'2022 Budgeted Capital'!$D$54:$I$72,6,FALSE),0) -> 0 | AB46: Shred (non-reg) | AC46: =B46+K46+T46 -> 38694.92 | AD46: =C46+L46+U46 -> 0 | AE46: =D46+M46+V46 -> 38694.92 | AF46: =E46+N46+W46 -> 4040.134286 | AG46: =F46+O46+X46 -> 27875.30571 | AH46: =G46+P46+Y46 -> 31915.44 | AI46: =H46+Q46+Z46 -> 6779.48
A48: Total Cont, Carts,Totes | B48: =SUM(B30:B47) -> 19989690.79 | C48: 0 | D48: 19989690.79 | E48: 1069788.056 | F48: 14434253.83 | G48: 15504041.89 | H48: 4485648.903 | J48: Total Cont, Carts,Totes | K48: =SUM(K30:K47) -> 2013391.72 | L48: 0 | M48: 2013391.72 | N48: 240908.1713 | O48: 30617.58 | P48: 271525.7513 | Q48: 1741865.969 | S48: Total Cont, Carts,Totes | T48: =SUM(T30:T47) -> 4151387 | U48: 0 | V48: 4151387 | W48: 546287.131 | X48: 0 | Y48: 546287.131 | Z48: 3605099.869 | AB48: Total Cont, Carts,Totes | AC48: =SUM(AC30:AC47) -> 26154469.51 | AD48: 0 | AE48: 26154469.51 | AF48: 1856983.359 | AG48: 14464871.41 | AH48: 16321854.77 | AI48: 9832614.741
A49: Check | B49: =B48-'Total Cont, DB'!K1325 -> 0 | E49: =E48-'Total Cont, DB'!O1325 -> 0 | F49: =F48-'Total Cont, DB'!P1325 -> 0 | G49: =G48-'Total Cont, DB'!Q1325 -> 0 | H49: =H48-'Total Cont, DB'!R1325 -> 0
A50: Shared Service Equipment | B50: =+'TotalServ, Shop - Salvage Value'!L34 -> 326007.4371 | C50: =B50-D50 -> 0 | D50: =+'TotalServ, Shop - Salvage Value'!M34 -> 326007.4371 | E50: =+'TotalServ, Shop - Salvage Value'!P34 -> 23336.96833 | F50: =+'TotalServ, Shop - Salvage Value'!Q34 -> 213860.6171 | G50: =+'TotalServ, Shop - Salvage Value'!R34 -> 237197.5854 | H50: =+'TotalServ, Shop - Salvage Value'!S34 -> 88809.85167 | J50: Shared Service Equipment | K50: =IFERROR(VLOOKUP($J50,'FAR Dep Summary'!$A$26:$F$43,2,FALSE),0) -> 66581.27 | L50: =K50-M50 -> 0 | M50: =K50 -> 66581.27 | N50: =IFERROR(VLOOKUP($J50,'FAR Dep Summary'!$A$26:$F$43,3,FALSE),0) -> 5138.470333 | O50: =IFERROR(VLOOKUP($J50,'FAR Dep Summary'!$A$26:$F$43,4,FALSE),0) -> 55599.78333 | P50: =IFERROR(VLOOKUP($J50,'FAR Dep Summary'!$A$26:$F$43,5,FALSE),0) -> 60738.25367 | Q50: =IFERROR(VLOOKUP($J50,'FAR Dep Summary'!$A$26:$F$43,6,FALSE),0) -> 5843.016333 | S50: Shared Service Equipment | T50: =IFERROR(VLOOKUP($S50,'2022 Budgeted Capital'!$D$54:$I$72,2,FALSE),0) -> 92732 | U50: =T50-V50 -> 0 | V50: =T50 -> 92732 | W50: =IFERROR(VLOOKUP($S50,'2022 Budgeted Capital'!$D$54:$I$72,4,FALSE),0) -> 18546.4 | X50: 0 | Y50: =IFERROR(VLOOKUP($S50,'2022 Budgeted Capital'!$D$54:$I$72,5,FALSE),0) -> 18546.4 | Z50: =IFERROR(VLOOKUP($S50,'2022 Budgeted Capital'!$D$54:$I$72,6,FALSE),0) -> 74185.6 | AB50: Shared Service Equipment | AC50: =B50+K50+T50 -> 485320.7071 | AD50: =C50+L50+U50 -> 0 | AE50: =D50+M50+V50 -> 485320.7071 | AF50: =E50+N50+W50 -> 47021.83867 | AG50: =F50+O50+X50 -> 269460.4004 | AH50: =G50+P50+Y50 -> 316482.2391 | AI50: =H50+Q50+Z50 -> 168838.468
A52: Non-Regulated Service Equip | B52: =+'TotalServ, Shop - Salvage Value'!L44 -> 69511.99 | C52: =B52-D52 -> 4950 | D52: =+'TotalServ, Shop - Salvage Value'!M44 -> 64561.99 | E52: =+'TotalServ, Shop - Salvage Value'!P44 -> 0 | F52: =+'TotalServ, Shop - Salvage Value'!Q44 -> 69511.99 | G52: =+'TotalServ, Shop - Salvage Value'!R44 -> 69511.99 | H52: =+'TotalServ, Shop - Salvage Value'!S44 -> 0 | J52: Non-Regulated Service Equip | K52: =IFERROR(VLOOKUP($J52,'FAR Dep Summary'!$A$26:$F$43,2,FALSE),0) -> 0 | L52: =K52-M52 -> 0 | M52: =K52 -> 0 | N52: =IFERROR(VLOOKUP($J52,'FAR Dep Summary'!$A$26:$F$43,3,FALSE),0) -> 0 | O52: =IFERROR(VLOOKUP($J52,'FAR Dep Summary'!$A$26:$F$43,4,FALSE),0) -> 0 | P52: =IFERROR(VLOOKUP($J52,'FAR Dep Summary'!$A$26:$F$43,5,FALSE),0) -> 0 | Q52: =IFERROR(VLOOKUP($J52,'FAR Dep Summary'!$A$26:$F$43,6,FALSE),0) -> 0 | S52: Non-Regulated Service Equip | T52: =IFERROR(VLOOKUP($S52,'2022 Budgeted Capital'!$D$54:$I$72,2,FALSE),0) -> 0 | U52: =T52-V52 -> 0 | V52: =T52 -> 0 | W52: =IFERROR(VLOOKUP($S52,'2022 Budgeted Capital'!$D$54:$I$72,4,FALSE),0) -> 0 | X52: 0 | Y52: =IFERROR(VLOOKUP($S52,'2022 Budgeted Capital'!$D$54:$I$72,5,FALSE),0) -> 0 | Z52: =IFERROR(VLOOKUP($S52,'2022 Budgeted Capital'!$D$54:$I$72,6,FALSE),0) -> 0 | AB52: Non-Regulated Service Equip | AC52: =B52+K52+T52 -> 69511.99 | AD52: =C52+L52+U52 -> 4950 | AE52: =D52+M52+V52 -> 64561.99 | AF52: =E52+N52+W52 -> 0 | AG52: =F52+O52+X52 -> 69511.99 | AH52: =G52+P52+Y52 -> 69511.99 | AI52: =H52+Q52+Z52 -> 0
A54: Shared Shop Equipment | B54: =+'TotalServ, Shop - Salvage Value'!L93 -> 509375.6837 | C54: =B54-D54 -> 0 | D54: =+'TotalServ, Shop - Salvage Value'!M93 -> 509375.6837 | E54: =+'TotalServ, Shop - Salvage Value'!P93 -> 29799.282 | F54: =+'TotalServ, Shop - Salvage Value'!Q93 -> 408862.5544 | G54: =+'TotalServ, Shop - Salvage Value'!R93 -> 438661.8364 | H54: =+'TotalServ, Shop - Salvage Value'!S93 -> 70713.84733 | J54: Shared Shop Equipment | K54: =IFERROR(VLOOKUP($J54,'FAR Dep Summary'!$A$26:$F$43,2,FALSE),0) -> -40234.13 | L54: =K54-M54 -> 0 | M54: =K54 -> -40234.13 | N54: =IFERROR(VLOOKUP($J54,'FAR Dep Summary'!$A$26:$F$43,3,FALSE),0) -> -3525.554333 | O54: =IFERROR(VLOOKUP($J54,'FAR Dep Summary'!$A$26:$F$43,4,FALSE),0) -> 0 | P54: =IFERROR(VLOOKUP($J54,'FAR Dep Summary'!$A$26:$F$43,5,FALSE),0) -> -3525.554333 | Q54: =IFERROR(VLOOKUP($J54,'FAR Dep Summary'!$A$26:$F$43,6,FALSE),0) -> -36708.57567 | S54: Shared Shop Equipment | T54: =IFERROR(VLOOKUP($S54,'2022 Budgeted Capital'!$D$54:$I$72,2,FALSE),0) -> 1341 | U54: =T54-V54 -> 0 | V54: =T54 -> 1341 | W54: =IFERROR(VLOOKUP($S54,'2022 Budgeted Capital'!$D$54:$I$72,4,FALSE),0) -> 447 | X54: 0 | Y54: =IFERROR(VLOOKUP($S54,'2022 Budgeted Capital'!$D$54:$I$72,5,FALSE),0) -> 447 | Z54: =IFERROR(VLOOKUP($S54,'2022 Budgeted Capital'!$D$54:$I$72,6,FALSE),0) -> 894 | AB54: Shared Shop Equipment | AC54: =B54+K54+T54 -> 470482.5537 | AD54: =C54+L54+U54 -> 0 | AE54: =D54+M54+V54 -> 470482.5537 | AF54: =E54+N54+W54 -> 26720.72767 | AG54: =F54+O54+X54 -> 408862.5544 | AH54: =G54+P54+Y54 -> 435583.282 | AI54: =H54+Q54+Z54 -> 34899.27167
A56: CNG Station | B56: =+'TotalServ, Shop - Salvage Value'!L96 -> 140715.52 | D56: =+'TotalServ, Shop - Salvage Value'!M96 -> 140715.52 | E56: =+'TotalServ, Shop - Salvage Value'!P96 -> 7035.776 | F56: =+'TotalServ, Shop - Salvage Value'!Q96 -> 56286.208 | G56: =+'TotalServ, Shop - Salvage Value'!R96 -> 63321.984 | H56: =+'TotalServ, Shop - Salvage Value'!S96 -> 77393.536 | J56: CNG Station | K56: =IFERROR(VLOOKUP($J56,'FAR Dep Summary'!$A$26:$F$43,2,FALSE),0) -> 0 | L56: =K56-M56 -> 0 | M56: =K56 -> 0 | N56: =IFERROR(VLOOKUP($J56,'FAR Dep Summary'!$A$26:$F$43,3,FALSE),0) -> 0 | O56: =IFERROR(VLOOKUP($J56,'FAR Dep Summary'!$A$26:$F$43,4,FALSE),0) -> 0 | P56: =IFERROR(VLOOKUP($J56,'FAR Dep Summary'!$A$26:$F$43,5,FALSE),0) -> 0 | Q56: =IFERROR(VLOOKUP($J56,'FAR Dep Summary'!$A$26:$F$43,6,FALSE),0) -> 0 | S56: CNG Station | T56: =IFERROR(VLOOKUP($S56,'2022 Budgeted Capital'!$D$54:$I$72,2,FALSE),0) -> 0 | U56: =T56-V56 -> 0 | V56: =T56 -> 0 | W56: =IFERROR(VLOOKUP($S56,'2022 Budgeted Capital'!$D$54:$I$72,4,FALSE),0) -> 0 | X56: 0 | Y56: =IFERROR(VLOOKUP($S56,'2022 Budgeted Capital'!$D$54:$I$72,5,FALSE),0) -> 0 | Z56: =IFERROR(VLOOKUP($S56,'2022 Budgeted Capital'!$D$54:$I$72,6,FALSE),0) -> 0 | AB56: CNG Station | AC56: =B56+K56+T56 -> 140715.52 | AD56: =C56+L56+U56 -> 0 | AE56: =D56+M56+V56 -> 140715.52 | AF56: =E56+N56+W56 -> 7035.776 | AG56: =F56+O56+X56 -> 56286.208 | AH56: =G56+P56+Y56 -> 63321.984 | AI56: =H56+Q56+Z56 -> 77393.536
A58: Office Equipment | B58: =+'Total Office'!K20 -> 23301.51 | C58: =B58-D58 -> 0 | D58: =+'Total Office'!L20 -> 23301.51 | E58: =+'Total Office'!O20 -> 1930.111 | F58: =+'Total Office'!P20 -> 7860.622 | G58: =+'Total Office'!Q20 -> 9790.733 | H58: =+'Total Office'!R20 -> 13510.777 | J58: Office Equipment | K58: =IFERROR(VLOOKUP($J58,'FAR Dep Summary'!$A$26:$F$43,2,FALSE),0) -> 0 | L58: =K58-M58 -> 0 | M58: =K58 -> 0 | N58: =IFERROR(VLOOKUP($J58,'FAR Dep Summary'!$A$26:$F$43,3,FALSE),0) -> 0 | O58: =IFERROR(VLOOKUP($J58,'FAR Dep Summary'!$A$26:$F$43,4,FALSE),0) -> 0 | P58: =IFERROR(VLOOKUP($J58,'FAR Dep Summary'!$A$26:$F$43,5,FALSE),0) -> 0 | Q58: =IFERROR(VLOOKUP($J58,'FAR Dep Summary'!$A$26:$F$43,6,FALSE),0) -> 0 | S58: Office Equipment | T58: =IFERROR(VLOOKUP($S58,'2022 Budgeted Capital'!$D$54:$I$72,2,FALSE),0) -> 0 | U58: =T58-V58 -> 0 | V58: =T58 -> 0 | W58: =IFERROR(VLOOKUP($S58,'2022 Budgeted Capital'!$D$54:$I$72,4,FALSE),0) -> 0 | X58: 0 | Y58: =IFERROR(VLOOKUP($S58,'2022 Budgeted Capital'!$D$54:$I$72,5,FALSE),0) -> 0 | Z58: =IFERROR(VLOOKUP($S58,'2022 Budgeted Capital'!$D$54:$I$72,6,FALSE),0) -> 0 | AB58: Office Equipment | AC58: =B58+K58+T58 -> 23301.51 | AD58: =C58+L58+U58 -> 0 | AE58: =D58+M58+V58 -> 23301.51 | AF58: =E58+N58+W58 -> 1930.111 | AG58: =F58+O58+X58 -> 7860.622 | AH58: =G58+P58+Y58 -> 9790.733 | AI58: =H58+Q58+Z58 -> 13510.777
A60: Shared Office Equipment | B60: =+'Total Office'!K40 -> 37795.56 | C60: =B60-D60 -> 0 | D60: =+'Total Office'!L40 -> 37795.56 | E60: =+'Total Office'!O40 -> 8541.014333 | F60: =+'Total Office'!P40 -> 12703.12267 | G60: =+'Total Office'!Q40 -> 21244.137 | H60: =+'Total Office'!R40 -> 16551.423 | J60: Shared Office Equipment | K60: =IFERROR(VLOOKUP($J60,'FAR Dep Summary'!$A$26:$F$43,2,FALSE),0) -> 37869.16 | L60: =K60-M60 -> 0 | M60: =K60 -> 37869.16 | N60: =IFERROR(VLOOKUP($J60,'FAR Dep Summary'!$A$26:$F$43,3,FALSE),0) -> 12623.05333 | O60: =IFERROR(VLOOKUP($J60,'FAR Dep Summary'!$A$26:$F$43,4,FALSE),0) -> 8759.136667 | P60: =IFERROR(VLOOKUP($J60,'FAR Dep Summary'!$A$26:$F$43,5,FALSE),0) -> 21382.19 | Q60: =IFERROR(VLOOKUP($J60,'FAR Dep Summary'!$A$26:$F$43,6,FALSE),0) -> 16486.97 | S60: Shared Office Equipment | T60: =IFERROR(VLOOKUP($S60,'2022 Budgeted Capital'!$D$54:$I$72,2,FALSE),0) -> 6587 | U60: =T60-V60 -> 0 | V60: =T60 -> 6587 | W60: =IFERROR(VLOOKUP($S60,'2022 Budgeted Capital'!$D$54:$I$72,4,FALSE),0) -> 2195.666667 | X60: 0 | Y60: =IFERROR(VLOOKUP($S60,'2022 Budgeted Capital'!$D$54:$I$72,5,FALSE),0) -> 2195.666667 | Z60: =IFERROR(VLOOKUP($S60,'2022 Budgeted Capital'!$D$54:$I$72,6,FALSE),0) -> 4391.333333 | AB60: Shared Office Equipment | AC60: =B60+K60+T60 -> 82251.72 | AD60: =C60+L60+U60 -> 0 | AE60: =D60+M60+V60 -> 82251.72 | AF60: =E60+N60+W60 -> 23359.73433 | AG60: =F60+O60+X60 -> 21462.25933 | AH60: =G60+P60+Y60 -> 44821.99367 | AI60: =H60+Q60+Z60 -> 37429.72633
A62: Non-Regulated Office Equipment | B62: =+'Total Office'!K43 -> 1732.58 | C62: =B62-D62 -> 0 | D62: =+'Total Office'!L43 -> 1732.58 | E62: =+'Total Office'!O43 -> 433.145 | F62: =+'Total Office'!P43 -> 1155.053333 | G62: =+'Total Office'!Q43 -> 1588.198333 | H62: =+'Total Office'!R43 -> 144.3816667 | J62: Non-Regulated Office Equipment | K62: =IFERROR(VLOOKUP($J62,'FAR Dep Summary'!$A$26:$F$43,2,FALSE),0) -> 1427.98 | L62: =K62-M62 -> 0 | M62: =K62 -> 1427.98 | N62: =IFERROR(VLOOKUP($J62,'FAR Dep Summary'!$A$26:$F$43,3,FALSE),0) -> 475.9933333 | O62: =IFERROR(VLOOKUP($J62,'FAR Dep Summary'!$A$26:$F$43,4,FALSE),0) -> 0 | P62: =IFERROR(VLOOKUP($J62,'FAR Dep Summary'!$A$26:$F$43,5,FALSE),0) -> 475.9933333 | Q62: =IFERROR(VLOOKUP($J62,'FAR Dep Summary'!$A$26:$F$43,6,FALSE),0) -> 951.9866667 | S62: Non-Regulated Office Equipment | T62: =IFERROR(VLOOKUP($S62,'2022 Budgeted Capital'!$D$54:$I$72,2,FALSE),0) -> 0 | U62: =T62-V62 -> 0 | V62: =T62 -> 0 | W62: =IFERROR(VLOOKUP($S62,'2022 Budgeted Capital'!$D$54:$I$72,4,FALSE),0) -> 0 | X62: 0 | Y62: =IFERROR(VLOOKUP($S62,'2022 Budgeted Capital'!$D$54:$I$72,5,FALSE),0) -> 0 | Z62: =IFERROR(VLOOKUP($S62,'2022 Budgeted Capital'!$D$54:$I$72,6,FALSE),0) -> 0 | AB62: Non-Regulated Office Equipment | AC62: =B62+K62+T62 -> 3160.56 | AD62: =C62+L62+U62 -> 0 | AE62: =D62+M62+V62 -> 3160.56 | AF62: =E62+N62+W62 -> 909.1383333 | AG62: =F62+O62+X62 -> 1155.053333 | AH62: =G62+P62+Y62 -> 2064.191667 | AI62: =H62+Q62+Z62 -> 1096.368333
A64: Shared Leasehold/Property Imprv | B64: =+Leasehold!K95+Leasehold!K42 -> 2273585.957 | C64: =B64-D64 -> 0 | D64: =+Leasehold!L42+Leasehold!L95 -> 2273585.957 | E64: =Leasehold!O42+Leasehold!O95 -> 31677.47907 | F64: =Leasehold!P42+Leasehold!P95 -> 2172853.864 | G64: =Leasehold!Q42+Leasehold!Q95 -> 2204531.343 | H64: =Leasehold!R42+Leasehold!R95 -> 69054.61387 | J64: Shared Leasehold/Property Imprv | K64: =IFERROR(VLOOKUP($J64,'FAR Dep Summary'!$A$26:$F$43,2,FALSE),0) -> 7371.2 | L64: =K64-M64 -> 0 | M64: =K64 -> 7371.2 | N64: =IFERROR(VLOOKUP($J64,'FAR Dep Summary'!$A$26:$F$43,3,FALSE),0) -> 1474.24 | O64: =IFERROR(VLOOKUP($J64,'FAR Dep Summary'!$A$26:$F$43,4,FALSE),0) -> 0 | P64: =IFERROR(VLOOKUP($J64,'FAR Dep Summary'!$A$26:$F$43,5,FALSE),0) -> 1474.24 | Q64: =IFERROR(VLOOKUP($J64,'FAR Dep Summary'!$A$26:$F$43,6,FALSE),0) -> 5896.96 | S64: Shared Leasehold/Property Imprv | T64: =IFERROR(VLOOKUP($S64,'2022 Budgeted Capital'!$D$54:$I$72,2,FALSE),0) -> 0 | U64: =T64-V64 -> 0 | V64: =T64 -> 0 | W64: =IFERROR(VLOOKUP($S64,'2022 Budgeted Capital'!$D$54:$I$72,4,FALSE),0) -> 0 | X64: 0 | Y64: =IFERROR(VLOOKUP($S64,'2022 Budgeted Capital'!$D$54:$I$72,5,FALSE),0) -> 0 | Z64: =IFERROR(VLOOKUP($S64,'2022 Budgeted Capital'!$D$54:$I$72,6,FALSE),0) -> 0 | AB64: Shared Leasehold/Property Imprv | AC64: =B64+K64+T64 -> 2280957.157 | AD64: =C64+L64+U64 -> 0 | AE64: =D64+M64+V64 -> 2280957.157 | AF64: =E64+N64+W64 -> 33151.71907 | AG64: =F64+O64+X64 -> 2172853.864 | AH64: =G64+P64+Y64 -> 2206005.583 | AI64: =H64+Q64+Z64 -> 74951.57387
A66: Buildings | B66: =Leasehold!K102 -> 873043.4823 | C66: =B66-D66 -> 0 | D66: =Leasehold!L102 -> 873043.4823 | E66: =Leasehold!O102 -> 43652.17411 | F66: =Leasehold!P102 -> 305565.2188 | G66: =Leasehold!Q102 -> 349217.3929 | H66: =Leasehold!R102 -> 523826.0894 | J66: Buildings | K66: =IFERROR(VLOOKUP($J66,'FAR Dep Summary'!$A$26:$F$43,2,FALSE),0) -> 0 | L66: =K66-M66 -> 0 | M66: =K66 -> 0 | N66: =IFERROR(VLOOKUP($J66,'FAR Dep Summary'!$A$26:$F$43,3,FALSE),0) -> 0 | O66: =IFERROR(VLOOKUP($J66,'FAR Dep Summary'!$A$26:$F$43,4,FALSE),0) -> 0 | P66: =IFERROR(VLOOKUP($J66,'FAR Dep Summary'!$A$26:$F$43,5,FALSE),0) -> 0 | Q66: =IFERROR(VLOOKUP($J66,'FAR Dep Summary'!$A$26:$F$43,6,FALSE),0) -> 0 | S66: Buildings | T66: =IFERROR(VLOOKUP($S66,'2022 Budgeted Capital'!$D$54:$I$72,2,FALSE),0) -> 0 | U66: =T66-V66 -> 0 | V66: =T66 -> 0 | W66: =IFERROR(VLOOKUP($S66,'2022 Budgeted Capital'!$D$54:$I$72,4,FALSE),0) -> 0 | X66: 0 | Y66: =IFERROR(VLOOKUP($S66,'2022 Budgeted Capital'!$D$54:$I$72,5,FALSE),0) -> 0 | Z66: =IFERROR(VLOOKUP($S66,'2022 Budgeted Capital'!$D$54:$I$72,6,FALSE),0) -> 0 | AB66: Buildings | AC66: =B66+K66+T66 -> 873043.4823 | AD66: =C66+L66+U66 -> 0 | AE66: =D66+M66+V66 -> 873043.4823 | AF66: =E66+N66+W66 -> 43652.17411 | AG66: =F66+O66+X66 -> 305565.2188 | AH66: =G66+P66+Y66 -> 349217.3929 | AI66: =H66+Q66+Z66 -> 523826.0894
A68: Land | B68: =Leasehold!K105+Leasehold!K106 -> 3173713.298 | H68: =B68 -> 3173713.298 | J68: Land | K68: =IFERROR(VLOOKUP($J68,'FAR Dep Summary'!$A$26:$F$43,2,FALSE),0) -> 100000 | N68: =IFERROR(VLOOKUP($J68,'FAR Dep Summary'!$A$26:$F$43,3,FALSE),0) -> 0 | O68: 0 | P68: 0 | Q68: =IFERROR(VLOOKUP($J68,'FAR Dep Summary'!$A$26:$F$43,6,FALSE),0) -> 100000 | S68: Land | T68: =IFERROR(VLOOKUP($S68,'2022 Budgeted Capital'!$D$54:$I$72,2,FALSE),0) -> 0 | U68: =T68-V68 -> 0 | V68: =T68 -> 0 | W68: =IFERROR(VLOOKUP($S68,'2022 Budgeted Capital'!$D$54:$I$72,4,FALSE),0) -> 0 | X68: 0 | Y68: =IFERROR(VLOOKUP($S68,'2022 Budgeted Capital'!$D$54:$I$72,5,FALSE),0) -> 0 | Z68: =IFERROR(VLOOKUP($S68,'2022 Budgeted Capital'!$D$54:$I$72,6,FALSE),0) -> 0 | AB68: Land | AC68: =B68+K68+T68 -> 3273713.298 | AD68: =C68+L68+U68 -> 0 | AE68: =D68+M68+V68 -> 0 | AF68: =E68+N68+W68 -> 0 | AG68: =F68+O68+X68 -> 0 | AH68: =G68+P68+Y68 -> 0 | AI68: =H68+Q68+Z68 -> 3273713.298
A70: Total Equipment | B70: =B27+B48+B50+B54+B58+B64+B68+B66+B60+B52+B56+B62 -> 63694096.43 | C70: 2372291.306 | D70: 58148091.82 | E70: 3038120.133 | F70: 38118650.42 | G70: 41156770.55 | H70: 22536581.16 | J70: Total Equipment | K70: =K27+K48+K50+K54+K58+K64+K68+K66+K60+K52+K56+K62 -> 3087568.58 | L70: 0 | M70: 2987568.58 | N70: 369253.8874 | O70: 99726.5 | P70: 468980.3874 | Q70: 2618588.193 | S70: Total Equipment | T70: =T27+T48+T50+T54+T58+T64+T68+T66+T60+T52+T56+T62 -> 11712938 | U70: 0 | V70: 11712938 | W70: 1313565.298 | X70: 0 | Y70: 1313565.298 | Z70: 10399372.7 | AB70: Total Equipment | AC70: =AC27+AC48+AC50+AC54+AC58+AC64+AC68+AC66+AC60+AC52+AC56+AC62 -> 78494603.01 | AD70: 2372291.306 | AE70: 72848598.4 | AF70: 4720939.318 | AG70: 38218376.92 | AH70: 42939316.24 | AI70: 35554542.06
J71: Check | K71: =K70-'FAR Dep Summary'!B44 -> 0 | N71: =N70-'FAR Dep Summary'!C44 -> 0 | O71: =O70-'FAR Dep Summary'!D44 -> 0 | P71: =P70-'FAR Dep Summary'!E44 -> 0 | Q71: =Q70-'FAR Dep Summary'!F44 -> 0 | S71: Check | T71: =T70-'2022 Budgeted Capital'!E74 -> 0 | W71: =W70-'2022 Budgeted Capital'!G74 -> 0 | Y71: =Y70-'2022 Budgeted Capital'!H74 -> 0 | Z71: =Z70-'2022 Budgeted Capital'!I74 -> 0 | AB71: Check | AC71: =AC70-B70-K70-T70 -> 0 | AD71: 0 | AE71: 0 | AF71: 0 | AG71: -1.455191523e-11 | AH71: 0 | AI71: 0
B72: 68826341.64 | C72: 3088184.856 | D72: 62564443.48 | E72: 3038120.133 | F72: 43503519.56 | G72: 46541639.69 | H72: 22283957.23
E73: =E70-E72 -> 0 | F73: =F70-F72 -> -5384869.14 | G73: =G70-G72 -> -5384869.14 | H73: =H70-H72 -> 252623.9297
A79: Leichner Land/Building Breakout:
A80: (Values below taken from 2014 Property Tax Assesment): | D80: ..\Clark County Land Map April 2015.pdf
A82: Parcel # | B82: Building Value | C82: Land Value | D82: Total
A83: 199859000 | B83: 189500 | C83: 864800 | D83: =B83+C83 -> 1054300
A84: 199860000 | B84: 0 | C84: 312200 | D84: =B84+C84 -> 312200
A85: 199846000 | B85: 557300 | C85: 406200 | D85: =B85+C85 -> 963500
B86: =SUM(B83:B85) -> 746800 | C86: =SUM(C83:C85) -> 1583200 | D86: =B86+C86 -> 2330000
B87: =B86/D86 -> 0.3205150215 | C87: =C86/D86 -> 0.6794849785 | D87: =B87+C87 -> 1
A89: Purchase Price | B89: =D89*B87 -> 873043.4823 | C89: =D89*C87 -> 1850833.478 | D89: =2706422.06+12954.9+4500 -> 2723876.96 | E89: FAR #'s: 118173,119937,120277
A98: UTC Group Tracking
A100: Updated Through | B100: Updated By | C100: FAR $ | D100: UTC Sched $ | E100: Difference
A102: 1/1/2011 -3/31/2011 | B102: HL | C102: =226464.44+890.67 -> 227355.11
A103: 2011 UTC/FAR Additions | D103: 55212.29
A104: 12/2010 UTC - 1/2011 FAS | D104: =171252.49+890.67 -> 172143.16
C105: =SUM(C102:C104) -> 227355.11 | D105: =SUM(D103:D104) -> 227355.45 | E105: =C105-D105 -> -0.34
A107: 12/1/2010 - 3/31/2011 | B107: HL | C107: =1740243+890.67 -> 1741133.67 | D107: =1740243.43+890.67 -> 1741134.1 | E107: =C107-D107 -> -0.4299999999
A109: 4/1/2011 - 9/30/2011 | B109: HL | C109: 27112 | D109: 27112 | E109: =C109-D109 -> 0
A111: 10/1/2011 - 11/30/2011 | B111: HL | C111: 455047.82 | D111: =441129.82+1312.67 -> 442442.49 | E111: =C111-D111 -> 12605.33 | F111: ($13,918) Recycling Containers Listed on 2010 schedule.
A112: Transfers & Disposals updated thru 11/30/2011. | F112: $1,312.67 Sales Tax on #615 - 12/31 CAPEX.
A114: 12/1/2011 - 12/31/2011 | B114: HL | C114: 885.4 | D114: ='Total Office'!#REF! ->  | E114: =C114-D114 -> 
A117: 1/1/2012 - 6/30/2012 | B117: HL | C117: 241047.2 | D117: 241047.2 | E117: =C117-D117 -> 0
A118: in 2012 $90,061.85 in additional sales tax was also added to a variety of assets (mostly trucks) as a result of a DOR audit that uncovered we had under-paid sales tax on some assets. The tax was added directly to the asset.
A120: 6/30/2012-9/30/2012 | B120: HL | C120: 1323957.01 | D120: 1323957.01 | E120: =C120-D120 -> 0
A122: 10/1/2012 - 12/31/2012 | B122: HL | C122: 119924.81 | D122: 119924.81 | E122: =C122-D122 -> 0
A124: 1/1/2013 - 8/31/2013 | B124: HL | C124: 1662925.89 | D124: 1662926.32 | E124: =C124-D124 -> -0.4299999999 | F124: 1830458 | G124: =C124-F124 -> -167532.11
A126: 9/1/2013-12/31/2013 | B126: HL | C126: 1266548 | D126: 1266548.01 | E126: =C126-D126 -> -0.01000000001
C127: =SUM(C124:C126) -> 2929473.89 | F127: 3075075 | G127: =C127-F127 -> -145601.11
A129: 1/1/2014-7/31/2014 | B129: HG | C129: 7018748.82 | D129: 7018749 | E129: =C129-D129 -> -0.1799999997
A131: 1/1/2015-7/31/2015 | B131: HG | C131: =1821189+977 -> 1822166 | D131: =1821189+977 -> 1822166 | E131: =C131-D131 -> 0
A132: 8/1/2015 - 12/31/2015 | B132: HG | C132: =2019347.4-10653.33 -> 2008694.07 | D132: 2019347.4 | E132: =C132-D132 -> -10653.33 | F132: Asset #129566 - tax not on FAR @ 12/31 yet.
C133: =SUM(C131:C132) -> 3830860.07 | D133: =SUM(D131:D132) -> 3841513.4 | E133: =C133-D133 -> -10653.33
A135: 01/01/2016 - 10/31/2016 | B135: BJT | C135: 3444102.02 | D135: =+'Reg Trks-Orig'!O6+'Total Cont, DB'!K7+'Reg Serv, Shop -Orig'!M7+'Total Office'!K6+1633936.79 -> 3517344.874 | E135: =C135-D135 -> -73242.85411 | F135: 1,799,511.90 Reg & 1,633,936.79 Non-Reg.
A137: 11/01/2016 - 12/31/2016 | B137: BJT | C137: 501676.56 | D137: =+SUM('Reg Trks-Orig'!O58:O59,'Total Cont, DB'!K274:K279,'Total Cont, DB'!K536:K537,'Reg Serv, Shop -Orig'!M25:M26,'[4]Non-Reg Trks'!$P$22,'[4]Non-Reg Trks'!$P$42,'[4]Non-Reg Cont, DB'!$M$609:$M$611) -> 476579.48 | E137: =C137-D137 -> 25097.08
A139: 01/01/2017-08/31/2017 | B139: LAW | C139: 3556362.96 | D139: =+SUM('Total Cont, DB'!K330:K334,'Total Cont, DB'!K550:K551,'Total Cont, DB'!K605:K621,'Total Cont, DB'!K773:K781,'Total Cont, DB'!K1014:K1024,'Total Cont, DB'!K1214:K1219,'Total Cont, DB'!K1298:K1300,'Total Cont, DB'!K1320)+SUM('Total Office'!#REF!,'Total Office'!#REF!)+Leasehold!K90+SUM('Total Trucks - Salvage Value'!N205:N205,'Total Trucks - Salvage Value'!N44:N268,'Total Trucks - Salvage Value'!N293:N294,'Total Trucks - Salvage Value'!N120:N122,'Total Trucks - Salvage Value'!N174,'Total Trucks - Salvage Value'!N237:N239)+SUM('TotalServ, Shop - Salvage Value'!L39:L40,'TotalServ, Shop - Salvage Value'!L83) ->  | E139: =C139-D139 -> 
A141: 09/01/2017-09/30/2017 | B141: LAW | C141: 483098.4 | D141: =+SUM('Total Cont, DB'!K335:K341,'Total Cont, DB'!K622,'Total Cont, DB'!K1025:K1031,'Total Cont, DB'!K1220:K1224,'Total Cont, DB'!K1301:K1302)+SUM('Total Trucks - Salvage Value'!N123,'Total Trucks - Salvage Value'!N175,'Total Trucks - Salvage Value'!N405)+'Total Cont, DB'!K782 -> 482027.34 | E141: =C141-D141 -> 1071.06
A143: 10/1/2017-12/31/2017 | B143: LAW | C143: 1027143.47 | D143: 1027143.97 | E143: =C143-D143 -> -0.5 | F143: imm
A145: 1/1/2018-12/31/2018 | B145: LAW | C145: =4097364.65+105587.28 -> 4202951.93 | D145: =+SUM('Total Trucks - Salvage Value'!N49:N49,'Total Trucks - Salvage Value'!N78:N78,'Total Trucks - Salvage Value'!N125:N130,'Total Trucks - Salvage Value'!N178:N181,'Total Trucks - Salvage Value'!N241:N245,'Total Trucks - Salvage Value'!N279,'Total Trucks - Salvage Value'!N295:N297,'Total Cont, DB'!K1303,'Total Cont, DB'!K1225:K1233,'Total Cont, DB'!K1033:K1045,'Total Cont, DB'!K783:K788,'Total Cont, DB'!K624:K630,'Total Cont, DB'!K547,'Total Cont, DB'!K343:K354,'TotalServ, Shop - Salvage Value'!L30,'TotalServ, Shop - Salvage Value'!L84,'Total Office'!K13:K16,Leasehold!K91:K92) -> 4188242.47 | E145: =C145-D145 -> 14709.46 | F145: imm
A147: 1/1/2019-8/31/19 | B147: LAW | C147: 1272855.88 | D147: =+SUM('Total Trucks - Salvage Value'!N51,'Total Trucks - Salvage Value'!N298,'Total Cont, DB'!K355:K369,'Total Cont, DB'!K631:K636,'Total Cont, DB'!K789:K1237,'Total Cont, DB'!K1046:K1056,'Total Cont, DB'!K1234:K1237,'Total Cont, DB'!K1321)+SUM('Total Office'!K17,'Total Office'!K23,Leasehold!K93) -> 19482717.64 | E147: =C147-D147 -> -18209861.76
A149: 9/1/2019-12/31/2019 | B149: LAW | C149: 4466776.19 | D149: =+SUM('Total Trucks - Salvage Value'!N79:N83,'Total Trucks - Salvage Value'!N132:N138,'Total Trucks - Salvage Value'!N183:N188,'Total Trucks - Salvage Value'!N246:N249,'Total Trucks - Salvage Value'!N84:N85,'Total Trucks - Salvage Value'!N299:N302,'Total Cont, DB'!K370:K376,'Total Cont, DB'!K791:K793,'Total Cont, DB'!K1057:K1061,'Total Cont, DB'!K1238:K1239,'Total Cont, DB'!K1251:K1254,'TotalServ, Shop - Salvage Value'!L41,'TotalServ, Shop - Salvage Value'!L86:L87,'Total Office'!K24:K27,'Total Office'!K43,Leasehold!K39:K40) -> 4471993.48 | E149: =C149-D149 -> -5217.29 | F149: This is for a radio that was entered twice in error
A151: 1/1/2020-7/31/2020 | B151: LAW | C151: 2717493.71 | D151: =+SUM('Total Trucks - Salvage Value'!N87:N88,'Total Trucks - Salvage Value'!N139,'Total Trucks - Salvage Value'!N189:N191,'Total Trucks - Salvage Value'!N250:N251,'Total Trucks - Salvage Value'!N86,'Total Trucks - Salvage Value'!N303,'Total Cont, DB'!K377:K382,'Total Cont, DB'!K637,'Total Cont, DB'!K794:K799,'Total Cont, DB'!K1062:K1069,'Total Cont, DB'!K1240:K1241,'Total Cont, DB'!K1255:K1258,'Total Cont, DB'!K1304:K1305,'TotalServ, Shop - Salvage Value'!L86,'TotalServ, Shop - Salvage Value'!L88,'Total Office'!K28:K34) -> 2595872.03 | E151: =C151-D151 -> 121621.68 | F151: 58858.91 | G151: From Prior Period (added in child account to parent)
A153: 8/1/2020-12/31/2020 | B153: JTH | C153: 1798400.59 | D153: =+SUM('Total Trucks - Salvage Value'!N52,'Total Trucks - Salvage Value'!N89:N90,'Total Trucks - Salvage Value'!N140,'Total Trucks - Salvage Value'!N192:N193,'Total Trucks - Salvage Value'!N305:N306,'Total Cont, DB'!K383:K384,'Total Cont, DB'!K638:K641,'Total Cont, DB'!K800:K805,'Total Cont, DB'!K1070:K1077,'Total Cont, DB'!K1242:K1243,'Total Cont, DB'!K1259:K1260,'Total Cont, DB'!K1306:K1310,'TotalServ, Shop - Salvage Value'!L31,'TotalServ, Shop - Salvage Value'!L89,'Total Office'!L35:L38) -> 1798470.43 | E153: =D153-C153 -> 69.84
A155: 01/01/2021 - 07/31/21 | B155: AML | C155: =[5]Assets!$N$7 -> 3952588.93 | D155: ='Total Trucks - Salvage Value'!D6 -> 0 | E155: =C155-D155 -> 3952588.93

Sheet 4.2022 FAR
B1: Location | C1: AssetID | D1: ParentChild | E1: Description | F1: SystemNo | H1: MFGSerialNum | I1: LicensePlate | J1: ModelYear | K1: VendorMfg | L1: BodyManuf | M1: InsuranceCategory | N1: InServiceDate | O1: AcquisitionDate | P1: PONumber | Q1: EstimatedLife | R1: AssetGL | S1: AcqValue | T1: AccumulatedGL | U1: CurrentLifeToDate | W1: CurrentYearToDate | X1: ExpenseGL | Y1: CurrentPeriodDepr | Z1: AcqType | AA1: FormerCompany | AB1: InvoiceNum | AC1: CompAsstNo | AD1: Book | AE1: ActivityCd | AF1: DeprMethod | AG1: BegLsDeprDate | AH1: LongName | AI1: Sequence | AJ1: BegLifeToDate
V2: =S2-U2 -> 0
B3: =_xll.ReportRange("FARReport",A14:AJ2428,A1:AJ1,A2:AJ2,_xll.Param($C$9,$C$10,C12,$M$9,$M$10,$M$11,$S$9,M12,$Y$10,$Y$9,S10,S11,CELL("address",$E$6)),TRUE,FALSE) -> OK!: ReportRange Formula OK [jAction{}] | L3: Default Month : | M3: =MONTH(NOW()) -> 5 | S3: =_xll.ReportDrill([6]ProjDepr!D3,,_xll.PairGroup(_xll.Pair('4.2022 FAR'!C9,[6]ProjDepr!D19),_xll.Pair("C:B",[6]ProjDepr!D20),_xll.Pair("C:C",[6]ProjDepr!D21),_xll.Pair("C:V",[6]ProjDepr!D22)),"Projected Depr") -> OK!: ReportDrill 'Projected Depr' Formula OK [jAction{}] | Y3: =_xll.jFreezePanes(A14,A5) -> > jFreezePanes is ready. | AB3: =_xll.jFocus(C9) -> > jFocus is ready.
L4: Default Year : | M4: =IF(M3=12,YEAR(NOW()),YEAR(NOW())) -> 2022 | S4: reportdrill(Invoice!C2,,pairgroup(pair("C:C",Invoice!E8),pair("",Invoice!E7,"N")),"Drill To Invoices by FAS# (Exc CIP)") | U4: =_xll.ReportDrill([6]Invoice!$C$2,,_xll.PairGroup(_xll.Pair("C:P",[6]Invoice!$E$7),_xll.Pair("",[6]Invoice!$E$8,"N"),_xll.Pair("",[6]Invoice!$E$9,"n")),"Drill To All Invoices by PO#") -> OK!: ReportDrill 'Drill To All Invoices by PO#' Formula OK [jAction{}] | X4: =_xll.ReportDrill([6]Invoice!$C$2,,_xll.PairGroup(_xll.Pair("C:P",[6]Invoice!$E$7),_xll.Pair("",[6]Invoice!$E$8,"N"),_xll.Pair("C:Z",[6]Invoice!$E$9,"n")),"Drill to Invoice by PO# and Invoice #") -> OK!: ReportDrill 'Drill to Invoice by PO# and Invoice #' Formula OK [jAction{}]
B5: Fixed Asset Register | H5: Asset Count: | I5: =COUNT(C14:C2428) -> 2414 | O5: Check | AK5: 7 | AL5: Effective Rate Month
B6: Data Last Updated in this Pull: | E6: May 4 2022 9:20PM | M6: Previously Added | N6: =SUM(S63:S136) -> 2017028.24 | O6: =N6-'12.2021 FAR'!T7 -> 0 | AK6: 2021 | AL6: First Year
M7: Adds since 12.31.21 | N7: =SUM(S14:S62) -> 1070540.34 | AK7: 2022 | AL7: Second year
M8: Total 8/1/21 And Beyond Adds | N8: =SUM(N6:N7) -> 3087568.58 | AK8: =AK7+(AK5/12) -> 2022.583333 | AL8: Rate Effective Year
B9: Period: | C9: 2022-04 | F9: Ctrl + Shift + J | L9: VIN: | O9: (Contains the string) | R9: Parent/Child: | T9: (Leave blank for all) | X9: Service Date To:
B10: District: | C10: 2010 | E10: (F9 Aware) | L10: Description: | O10: (Contains the string) | R10: Asset Acct: | X10: Service Date From:
L11: PO Number: | O11: (Contains the string) | R11: Exp Acct:
B12: Asset #: | L12: Ins Category: | O12: (Not setup yet) | R12: Depreciated %: | T12: (Not setup yet)
B13: District | C13: Asset # | D13: Parent/ Child | E13: Descr | F13: Container Count | G13: 0 | H13: MFG Serial# | I13: License Plate | J13: Model Year | K13: Vendor/Mfg | L13: Body Mfg | M13: Ins Category | N13: In Service Date | O13: Acq Date | P13: CER # | Q13: Useful Life | R13: Asset Account | S13: Cost | T13: Accum Account | U13: Accum Life to Date | V13: NBV | W13: Accum YTD | X13: Expense Account | Y13: Current Depr | Z13: Acq Type | AA13: Former Company | AB13: Invoice # | AC13: Company Asset # | AD13: Book | AE13: Activity Cd | AF13: Depr Meth | AG13: Beg Date | AH13: Dbase | AI13: Seq | AJ13: Beg Depr | AK13: Truck # | AL13: Equipment Type per Field | AM13: Equipment Type for Lookup | AN13: Month | AO13: YearPIS | AP13: Year Fully Dep | AQ13: Year/Mo Fully Dep | AR13: Monthly Dep | AS13: Annual Dep | AT13: Test Year Dep | AU13: BOY Accum | AV13: EOY Accum | AW13: EOY Average Investment | AX13: Pre 8/1/21 Add?
B14: 2010 | C14: 278651 | D14: P | E14: HP ProBook 440 Serial # : 5CD1411JNP; 5CD1411JT6; 5CD1411JV7 | F14: 3 | J14: 0 | K14: CDW DIR #2010 | N14: 2022-04-15 | O14: 2022-04-15 | P14: 2010-22-0056-1 | Q14: 300 | R14: 14110 | S14: 3628.7 | T14: 14116 | U14: 0 | V14: =S14-U14 -> 3628.7 | W14: 0 | X14: 70260 | Y14: 0 | Z14: P | AB14: W084244 | AD14: Internal | AE14: A | AF14: SL | AH14: WCNX | AI14: 0 | AJ14: 0 | AL14: =IFERROR(VLOOKUP(C14,'12.2021 FAR'!$C$14:$AM$87,36,FALSE),VLOOKUP(C14,'[7]Asset Addition Form'!$B$8:$J$88,9,FALSE)) ->  | AM14: Shared Office Equipment | AN14: =MONTH($N14) -> 4 | AO14: =YEAR($N14) -> 2022 | AP14: =$AO14+($Q14/100) -> 2025 | AQ14: =$AP14+($AN14/12) -> 2025.333333 | AR14: =IFERROR($S14/($Q14/100)/12,0) -> 100.7972222 | AS14: =$AR14*12 -> 1209.566667 | AT14: =IF($AQ14<=$AK$8,0,IF($AP14>$AK$7,$AS14,($AR14*$AN14))) -> 1209.566667 | AU14: =IF($AT14=0,$S14,IF($AK$6-AO14<1,0,(($AK$6-$AO14)*AS14))) -> 0 | AV14: =IF($AU14=0,$AT14,($AU14+$AT14)) -> 1209.566667 | AW14: =$S14-$AV14 -> 2419.133333 | AX14: No
B15: 2010 | C15: 278650 | D15: P | E15: Anker docking station for laptop - no SN on Amazon order | F15: 1 | J15: 0 | K15: AMZN MKTP US 1O8D437L1 | N15: 2022-04-15 | O15: 2022-04-15 | P15: 2010-22-0056-1 | Q15: 300 | R15: 14110 | S15: 302.7 | T15: 14116 | U15: 0 | V15: 302.7 | W15: 0 | X15: 70260 | Y15: 0 | Z15: P | AB15: 2311425 | AD15: Internal | AE15: A | AF15: SL | AH15: WCNX | AI15: 0 | AJ15: 0 | AL15: =IFERROR(VLOOKUP(C15,'12.2021 FAR'!$C$14:$AM$87,36,FALSE),VLOOKUP(C15,'[7]Asset Addition Form'!$B$8:$J$88,9,FALSE)) ->  | AM15: Shared Office Equipment | AN15: 4 | AO15: 2022 | AP15: 2025 | AQ15: 2025.333333 | AR15: 8.408333333 | AS15: 100.9 | AT15: 100.9 | AU15: =IF($AT15=0,$S15,IF($AK$6-AO15<1,0,(($AK$6-$AO15)*AS15))) -> 0 | AV15: 100.9 | AW15: 201.8 | AX15: No
B16: 2010 | C16: 278649 | D16: P | E16: Anker Docking Station For new Laptop - NO SN on Amazon Order | F16: 1 | J16: 0 | K16: AMZN MKTP US 1A7XL3KP2 AM | N16: 2022-04-15 | O16: 2022-04-15 | P16: 2010-22-0056-1 | Q16: 300 | R16: 14110 | S16: 303.79 | T16: 14116 | U16: 0 | V16: 303.79 | W16: 0 | X16: 70260 | Y16: 0 | Z16: P | AB16: 3328263 | AD16: Internal | AE16: A | AF16: SL | AH16: WCNX | AI16: 0 | AJ16: 0 | AL16: =IFERROR(VLOOKUP(C16,'12.2021 FAR'!$C$14:$AM$87,36,FALSE),VLOOKUP(C16,'[7]Asset Addition Form'!$B$8:$J$88,9,FALSE)) ->  | AM16: Shared Office Equipment | AN16: 4 | AO16: 2022 | AP16: 2025 | AQ16: 2025.333333 | AR16: 8.438611111 | AS16: 101.2633333 | AT16: 101.2633333 | AU16: 0 | AV16: 101.2633333 | AW16: 202.5266667 | AX16: No
B17: 2010 | C17: 278648 | D17: P | E17: Anker Docking station for new laptop - NO SN on Amazon Order | F17: 1 | J17: 0 | K17: AMZN MKTP US 1A6XW2KW2 | N17: 2022-04-15 | O17: 2022-04-15 | P17: 2010-22-0056-1 | Q17: 300 | R17: 14110 | S17: 302.7 | T17: 14116 | U17: 0 | V17: 302.7 | W17: 0 | X17: 70260 | Y17: 0 | Z17: P | AB17: 274602 | AD17: Internal | AE17: A | AF17: SL | AH17: WCNX | AI17: 0 | AJ17: 0 | AL17: =IFERROR(VLOOKUP(C17,'12.2021 FAR'!$C$14:$AM$87,36,FALSE),VLOOKUP(C17,'[7]Asset Addition Form'!$B$8:$J$88,9,FALSE)) ->  | AM17: Shared Office Equipment | AN17: 4 | AO17: 2022 | AP17: 2025 | AQ17: 2025.333333 | AR17: 8.408333333 | AS17: 100.9 | AT17: 100.9 | AU17: 0 | AV17: 100.9 | AW17: 201.8 | AX17: No
B18: 2010 | C18: 278617 | D18: P | E18: 40yd ro lidded drop boxes | F18: 2 | J18: 0 | K18: WASTEQUIP MAYFAB | M18: 40 YD RO Box | N18: 2022-02-22 | O18: 2022-02-22 | P18: 2010-22-0046-3 | Q18: 1200 | R18: 14050 | S18: 22259 | T18: 14056 | U18: 0 | V18: 22259 | W18: 0 | X18: 54260 | Y18: 0 | Z18: P | AB18: 20inv000091322 | AD18: Internal | AE18: A | AF18: SL | AH18: WCNX | AI18: 0 | AJ18: 0 | AL18: =IFERROR(VLOOKUP(C18,'12.2021 FAR'!$C$14:$AM$87,36,FALSE),VLOOKUP(C18,'[7]Asset Addition Form'!$B$8:$J$88,9,FALSE)) ->  | AM18: Drop Boxes (shared) | AN18: 2 | AO18: 2022 | AP18: 2034 | AQ18: 2034.166667 | AR18: 154.5763889 | AS18: 1854.916667 | AT18: 1854.916667 | AU18: 0 | AV18: 1854.916667 | AW18: 20404.08333 | AX18: No
B19: 2010 | C19: 278616 | D19: P | E19: 4YD GARBAGE CONTAINERS | F19: 14 | J19: 0 | K19: WASTEQUIP MAYFAB | M19: 4 YD FEL Container | N19: 2022-04-13 | O19: 2022-04-13 | P19: 2010-22-0046-2 | Q19: 1200 | R19: 14050 | S19: 13838.53 | T19: 14056 | U19: 0 | V19: 13838.53 | W19: 0 | X19: 54260 | Y19: 0 | Z19: P | AB19: 20INV000119416 | AD19: Internal | AE19: A | AF19: SL | AH19: WCNX | AI19: 0 | AJ19: 0 | AL19: =IFERROR(VLOOKUP(C19,'12.2021 FAR'!$C$14:$AM$87,36,FALSE),VLOOKUP(C19,'[7]Asset Addition Form'!$B$8:$J$88,9,FALSE)) ->  | AM19: Garbage Container (shared) | AN19: 4 | AO19: 2022 | AP19: 2034 | AQ19: 2034.333333 | AR19: 96.10090278 | AS19: 1153.210833 | AT19: 1153.210833 | AU19: 0 | AV19: 1153.210833 | AW19: 12685.31917 | AX19: No
B20: 2010 | C20: 278615 | D20: P | E20: 4YD FEL GARBAGE CONTAINERS | F20: 14 | J20: 0 | K20: WASTEQUIP MAYFAB | M20: 4 YD FEL Container | N20: 2022-04-13 | O20: 2022-04-13 | P20: 2010-22-0046-2 | Q20: 1200 | R20: 14050 | S20: 12854.05 | T20: 14056 | U20: 0 | V20: 12854.05 | W20: 0 | X20: 54260 | Y20: 0 | Z20: P | AB20: 20INV000120788 | AD20: Internal | AE20: A | AF20: SL | AH20: WCNX | AI20: 0 | AJ20: 0 | AL20: =IFERROR(VLOOKUP(C20,'12.2021 FAR'!$C$14:$AM$87,36,FALSE),VLOOKUP(C20,'[7]Asset Addition Form'!$B$8:$J$88,9,FALSE)) ->  | AM20: Garbage Container (shared) | AN20: 4 | AO20: 2022 | AP20: 2034 | AQ20: 2034.333333 | AR20: 89.26423611 | AS20: 1071.170833 | AT20: 1071.170833 | AU20: 0 | AV20: 1071.170833 | AW20: 11782.87917 | AX20: No
B21: 2010 | C21: 278614 | D21: P | E21: 20YD LIDDED DROP BOXES | F21: 2 | J21: 0 | K21: WASTEQUIP MAYFAB | M21: 20 YD RO Box | N21: 2022-03-16 | O21: 2022-03-16 | P21: 2010-22-0045-2 | Q21: 1200 | R21: 14050 | S21: 18345.92 | T21: 14056 | U21: 0 | V21: 18345.92 | W21: 0 | X21: 54260 | Y21: 0 | Z21: P | AB21: 20INV0001000018 | AD21: Internal | AE21: A | AF21: SL | AH21: WCNX | AI21: 0 | AJ21: 0 | AL21: =IFERROR(VLOOKUP(C21,'12.2021 FAR'!$C$14:$AM$87,36,FALSE),VLOOKUP(C21,'[7]Asset Addition Form'!$B$8:$J$88,9,FALSE)) ->  | AM21: Drop Boxes (shared) | AN21: 3 | AO21: 2022 | AP21: 2034 | AQ21: 2034.25 | AR21: 127.4022222 | AS21: 1528.826667 | AT21: 1528.826667 | AU21: 0 | AV21: 1528.826667 | AW21: 16817.09333 | AX21: No
B22: 2010 | C22: 278613 | D22: P | E22: 30yd lidded drop boxes | F22: 2 | J22: 0 | K22: WASTEQUIP MAYFAB | M22: 30 YD RO Box | N22: 2022-03-05 | O22: 2022-03-05 | P22: 2010-22-0045-2 | Q22: 1200 | R22: 14050 | S22: 20250.68 | T22: 14056 | U22: 0 | V22: 20250.68 | W22: 0 | X22: 54260 | Y22: 0 | Z22: P | AB22: 20inv000099428 | AD22: Internal | AE22: A | AF22: SL | AH22: WCNX | AI22: 0 | AJ22: 0 | AL22: =IFERROR(VLOOKUP(C22,'12.2021 FAR'!$C$14:$AM$87,36,FALSE),VLOOKUP(C22,'[7]Asset Addition Form'!$B$8:$J$88,9,FALSE)) ->  | AM22: Drop Boxes (shared) | AN22: 3 | AO22: 2022 | AP22: 2034 | AQ22: 2034.25 | AR22: 140.6297222 | AS22: 1687.556667 | AT22: 1687.556667 | AU22: 0 | AV22: 1687.556667 | AW22: 18563.12333 | AX22: No
B23: 2010 | C23: 278612 | D23: P | E23: 20yd lidded drop boxes | F23: 2 | J23: 0 | K23: WASTEQUIP MAYFAB | M23: 20 YD RO Box | N23: 2022-03-16 | O23: 2022-03-16 | P23: 2010-22-0045-2 | Q23: 1200 | R23: 14050 | S23: 18345.92 | T23: 14056 | U23: 0 | V23: 18345.92 | W23: 0 | X23: 54260 | Y23: 0 | Z23: P | AB23: 20inv000100986 | AD23: Internal | AE23: A | AF23: SL | AH23: WCNX | AI23: 0 | AJ23: 0 | AL23: =IFERROR(VLOOKUP(C23,'12.2021 FAR'!$C$14:$AM$87,36,FALSE),VLOOKUP(C23,'[7]Asset Addition Form'!$B$8:$J$88,9,FALSE)) ->  | AM23: Drop Boxes (shared) | AN23: 3 | AO23: 2022 | AP23: 2034 | AQ23: 2034.25 | AR23: 127.4022222 | AS23: 1528.826667 | AT23: 1528.826667 | AU23: 0 | AV23: 1528.826667 | AW23: 16817.09333 | AX23: No
B24: 2010 | C24: 278605 | D24: P | E24: 65gal yard debris carts | F24: 936 | J24: 0 | K24: REHRIG PACIFIC COMPANY | M24: Non-Container Audit | N24: 2022-03-22 | O24: 2022-03-22 | P24: 2010-22-0047-1 | Q24: 700 | R24: 14050 | S24: 56843.23 | T24: 14056 | U24: 0 | V24: 56843.23 | W24: 0 | X24: 54260 | Y24: 0 | Z24: P | AB24: 50230861 | AD24: Internal | AE24: A | AF24: SL | AH24: WCNX | AI24: 0 | AJ24: 0 | AL24: =IFERROR(VLOOKUP(C24,'12.2021 FAR'!$C$14:$AM$87,36,FALSE),VLOOKUP(C24,'[7]Asset Addition Form'!$B$8:$J$88,9,FALSE)) ->  | AM24: Yard Debris Carts (non-reg) | AN24: 3 | AO24: 2022 | AP24: 2029 | AQ24: 2029.25 | AR24: 676.705119 | AS24: 8120.461429 | AT24: 8120.461429 | AU24: 0 | AV24: 8120.461429 | AW24: 48722.76857 | AX24: No
B25: 2010 | C25: 278604 | D25: P | E25: 32GAL COV GARBAGE CARTS | F25: 1404 | J25: 0 | K25: WASTEQUIP MAYFAB | M25: Non-Container Audit | N25: 2022-01-24 | O25: 2022-01-24 | P25: 2010-22-0042-1 | Q25: 700 | R25: 14050 | S25: 75673.13 | T25: 14056 | U25: 0 | V25: 75673.13 | W25: 0 | X25: 54260 | Y25: 0 | Z25: P | AB25: 20INV000062142 | AD25: Internal | AE25: A | AF25: SL | AH25: WCNX | AI25: 0 | AJ25: 0 | AL25: =IFERROR(VLOOKUP(C25,'12.2021 FAR'!$C$14:$AM$87,36,FALSE),VLOOKUP(C25,'[7]Asset Addition Form'!$B$8:$J$88,9,FALSE)) ->  | AM25: Garbage Carts (non-reg) | AN25: 1 | AO25: 2022 | AP25: 2029 | AQ25: 2029.083333 | AR25: 900.8705952 | AS25: 10810.44714 | AT25: 10810.44714 | AU25: 0 | AV25: 10810.44714 | AW25: 64862.68286 | AX25: No
B26: 2010 | C26: 278535 | E26: Drive Cam - New Ford F150 Pickup parent not in fas yet | J26: 0 | K26: Lytx | M26: Non-Rolling Stock | N26: 2022-04-15 | O26: 2022-04-15 | P26: 2010-22-0024-1 | Q26: 500 | R26: 14040 | S26: 338.21 | T26: 14046 | U26: 0 | V26: 338.21 | W26: 0 | X26: 51260 | Y26: 0 | Z26: P | AB26: 5479935 | AD26: Internal | AE26: A | AF26: SL | AH26: WCNX | AI26: 0 | AJ26: 0 | AL26: =IFERROR(VLOOKUP(C26,'12.2021 FAR'!$C$14:$AM$87,36,FALSE),VLOOKUP(C26,'[7]Asset Addition Form'!$B$8:$J$88,9,FALSE)) ->  | AM26: Shared Service Equipment | AN26: 4 | AO26: 2022 | AP26: 2027 | AQ26: 2027.333333 | AR26: 5.636833333 | AS26: 67.642 | AT26: 67.642 | AU26: 0 | AV26: 67.642 | AW26: 270.568 | AX26: No
B27: 2010 | C27: 277987 | D27: P | E27: 65gal COV recycle carts | F27: 816 | J27: 0 | K27: SIERRA CONTAINER GROUP LL | M27: Non-Container Audit | N27: 2022-04-18 | O27: 2022-04-18 | P27: 2010-22-0055-1 | Q27: 700 | R27: 14050 | S27: 50593.53 | T27: 14056 | U27: 0 | V27: 50593.53 | W27: 0 | X27: 54260 | Y27: 0 | Z27: P | AB27: 4882 | AD27: Internal | AE27: A | AF27: SL | AH27: WCNX | AI27: 0 | AJ27: 0 | AL27: =IFERROR(VLOOKUP(C27,'12.2021 FAR'!$C$14:$AM$87,36,FALSE),VLOOKUP(C27,'[7]Asset Addition Form'!$B$8:$J$88,9,FALSE)) ->  | AM27: Recycle Carts (non-reg) | AN27: 4 | AO27: 2022 | AP27: 2029 | AQ27: 2029.333333 | AR27: 602.3039286 | AS27: 7227.647143 | AT27: 7227.647143 | AU27: 0 | AV27: 7227.647143 | AW27: 43365.88286 | AX27: No
B28: 2010 | C28: 276861 | D28: P | E28: 95gal Washougal garbage carts | F28: 351 | J28: 0 | K28: SIERRA CONTAINER GROUP LL | M28: Non-Container Audit | N28: 2022-03-28 | O28: 2022-03-28 | P28: 2010-22-0048-1 | Q28: 700 | R28: 14050 | S28: 24890.05 | T28: 14056 | U28: 0 | V28: 24890.05 | W28: 0 | X28: 54260 | Y28: 0 | Z28: P | AB28: 4815 | AD28: Internal | AE28: A | AF28: SL | AH28: WCNX | AI28: 0 | AJ28: 0 | AL28: =IFERROR(VLOOKUP(C28,'12.2021 FAR'!$C$14:$AM$87,36,FALSE),VLOOKUP(C28,'[7]Asset Addition Form'!$B$8:$J$88,9,FALSE)) ->  | AM28: Garbage Carts (non-reg) | AN28: 3 | AO28: 2022 | AP28: 2029 | AQ28: 2029.25 | AR28: 296.310119 | AS28: 3555.721429 | AT28: 3555.721429 | AU28: 0 | AV28: 3555.721429 | AW28: 21334.32857 | AX28: No
B29: 2010 | C29: 276849 | D29: P | E29: 45gal Washougal garbage carts | F29: 380 | J29: 0 | K29: SIERRA CONTAINER GROUP LL | M29: Non-Container Audit | N29: 2022-03-28 | O29: 2022-03-28 | P29: 2010-22-0048-1 | Q29: 700 | R29: 14050 | S29: 22384.6 | T29: 14056 | U29: 0 | V29: 22384.6 | W29: 0 | X29: 54260 | Y29: 0 | Z29: P | AB29: 4815 | AD29: Internal | AE29: A | AF29: SL | AH29: WCNX | AI29: 0 | AJ29: 0 | AL29: =IFERROR(VLOOKUP(C29,'12.2021 FAR'!$C$14:$AM$87,36,FALSE),VLOOKUP(C29,'[7]Asset Addition Form'!$B$8:$J$88,9,FALSE)) ->  | AM29: Garbage Carts (non-reg) | AN29: 3 | AO29: 2022 | AP29: 2029 | AQ29: 2029.25 | AR29: 266.4833333 | AS29: 3197.8 | AT29: 3197.8 | AU29: 0 | AV29: 3197.8 | AW29: 19186.8 | AX29: No
B30: 2010 | C30: 276518 | D30: P | E30: HP Workstation SN: MXL2013T8R | F30: 1 | J30: 0 | K30: CDW DIR #2010 | N30: 2022-03-03 | O30: 2022-03-03 | P30: 2010-22-0053-1 | Q30: 300 | R30: 14110 | S30: 1463.37 | T30: 14116 | U30: 40.65 | V30: 1422.72 | W30: 40.65 | X30: 70260 | Y30: 40.65 | Z30: P | AB30: S991520 | AD30: Internal | AE30: A | AF30: SL | AH30: WCNX | AI30: 0 | AJ30: 0 | AL30: =IFERROR(VLOOKUP(C30,'12.2021 FAR'!$C$14:$AM$87,36,FALSE),VLOOKUP(C30,'[7]Asset Addition Form'!$B$8:$J$88,9,FALSE)) -> Office Shared Equipment | AM30: Shared Office Equipment | AN30: 3 | AO30: 2022 | AP30: 2025 | AQ30: 2025.25 | AR30: 40.64916667 | AS30: 487.79 | AT30: 487.79 | AU30: 0 | AV30: 487.79 | AW30: 975.58 | AX30: No
B31: 2010 | C31: 276502 | D31: P | E31: 40yd lidded drop boxes | F31: 4 | J31: 0 | K31: WASTEQUIP MAYFAB | M31: 40 YD RO Box | N31: 2022-03-10 | O31: 2022-03-10 | P31: 2010-22-0045-2 | Q31: 1200 | R31: 14050 | S31: 44518 | T31: 14056 | U31: 309.15 | V31: 44208.85 | W31: 309.15 | X31: 54260 | Y31: 309.15 | Z31: P | AB31: 20inv000097808 | AD31: Internal | AE31: A | AF31: SL | AH31: WCNX | AI31: 0 | AJ31: 0 | AL31: =IFERROR(VLOOKUP(C31,'12.2021 FAR'!$C$14:$AM$87,36,FALSE),VLOOKUP(C31,'[7]Asset Addition Form'!$B$8:$J$88,9,FALSE)) -> RO | AM31: Drop Boxes (shared) | AN31: 3 | AO31: 2022 | AP31: 2034 | AQ31: 2034.25 | AR31: 309.1527778 | AS31: 3709.833333 | AT31: 3709.833333 | AU31: 0 | AV31: 3709.833333 | AW31: 40808.16667 | AX31: No
B32: 2010 | C32: 276047 | D32: P | E32: HP ProBook 640 SN: 5CD146FJ15 | F32: 1 | J32: 0 | K32: CDW DIR #2010 | N32: 2022-02-28 | O32: 2022-02-28 | P32: 2010-22-0052-1 | Q32: 300 | R32: 14110 | S32: 1340.95 | T32: 14116 | U32: 37.25 | V32: 1303.7 | W32: 37.25 | X32: 70260 | Y32: 37.25 | Z32: P | AB32: S784362 | AD32: Internal | AE32: A | AF32: SL | AH32: WCNX | AI32: 0 | AJ32: 0 | AL32: =IFERROR(VLOOKUP(C32,'12.2021 FAR'!$C$14:$AM$87,36,FALSE),VLOOKUP(C32,'[7]Asset Addition Form'!$B$8:$J$88,9,FALSE)) -> Office Shared Equipment | AM32: Shared Office Equipment | AN32: 2 | AO32: 2022 | AP32: 2025 | AQ32: 2025.166667 | AR32: 37.24861111 | AS32: 446.9833333 | AT32: 446.9833333 | AU32: 0 | AV32: 446.9833333 | AW32: 893.9666667 | AX32: No
B33: 2010 | C33: 275976 | D33: P | E33: 40yd lidded drop boxes | F33: 2 | J33: 0 | K33: WASTEQUIP MAYFAB | M33: 40 YD RO Box | N33: 2022-02-22 | O33: 2022-02-22 | P33: 2010-22-0046-3 | Q33: 1200 | R33: 14050 | S33: 22259 | T33: 14056 | U33: 154.58 | V33: 22104.42 | W33: 154.58 | X33: 54260 | Y33: 154.58 | Z33: P | AB33: 20inv000091320 | AD33: Internal | AE33: A | AF33: SL | AH33: WCNX | AI33: 0 | AJ33: 0 | AL33: =IFERROR(VLOOKUP(C33,'12.2021 FAR'!$C$14:$AM$87,36,FALSE),VLOOKUP(C33,'[7]Asset Addition Form'!$B$8:$J$88,9,FALSE)) -> RO | AM33: Drop Boxes (shared) | AN33: 2 | AO33: 2022 | AP33: 2034 | AQ33: 2034.166667 | AR33: 154.5763889 | AS33: 1854.916667 | AT33: 1854.916667 | AU33: 0 | AV33: 1854.916667 | AW33: 20404.08333 | AX33: No
B34: 2010 | C34: 275975 | D34: P | E34: 40yd lidded drop boxes | F34: 2 | J34: 0 | K34: WASTEQUIP MAYFAB | M34: 40 YD RO Box | N34: 2022-02-28 | O34: 2022-02-28 | P34: 2010-22-0046-3 | Q34: 1200 | R34: 14050 | S34: 22259 | T34: 14056 | U34: 154.58 | V34: 22104.42 | W34: 154.58 | X34: 54260 | Y34: 154.58 | Z34: P | AB34: 20inv000093028 | AD34: Internal | AE34: A | AF34: SL | AH34: WCNX | AI34: 0 | AJ34: 0 | AL34: =IFERROR(VLOOKUP(C34,'12.2021 FAR'!$C$14:$AM$87,36,FALSE),VLOOKUP(C34,'[7]Asset Addition Form'!$B$8:$J$88,9,FALSE)) -> RO | AM34: Drop Boxes (shared) | AN34: 2 | AO34: 2022 | AP34: 2034 | AQ34: 2034.166667 | AR34: 154.5763889 | AS34: 1854.916667 | AT34: 1854.916667 | AU34: 0 | AV34: 1854.916667 | AW34: 20404.08333 | AX34: No
B35: 2010 | C35: 275974 | D35: P | E35: 30yd lidded drop box | F35: 1 | J35: 0 | K35: WASTEQUIP MAYFAB | M35: 30 YD RO Box | N35: 2022-02-22 | O35: 2022-02-22 | P35: 2010-22-0046-3 | Q35: 1200 | R35: 14050 | S35: 10317 | T35: 14056 | U35: 71.65 | V35: 10245.35 | W35: 71.65 | X35: 54260 | Y35: 71.65 | Z35: P | AB35: 20inv000088870 | AD35: Internal | AE35: A | AF35: SL | AH35: WCNX | AI35: 0 | AJ35: 0 | AL35: =IFERROR(VLOOKUP(C35,'12.2021 FAR'!$C$14:$AM$87,36,FALSE),VLOOKUP(C35,'[7]Asset Addition Form'!$B$8:$J$88,9,FALSE)) -> RO | AM35: Drop Boxes (shared) | AN35: 2 | AO35: 2022 | AP35: 2034 | AQ35: 2034.166667 | AR35: 71.64583333 | AS35: 859.75 | AT35: 859.75 | AU35: 0 | AV35: 859.75 | AW35: 9457.25 | AX35: No
B36: 2010 | C36: 275973 | D36: P | E36: 40yd lidded drop boxes | F36: 2 | J36: 0 | K36: WASTEQUIP MAYFAB | M36: 40 YD RO Box | N36: 2022-03-05 | O36: 2022-03-05 | P36: 2010-22-0045-2 | Q36: 1200 | R36: 14050 | S36: 22259 | T36: 14056 | U36: 154.58 | V36: 22104.42 | W36: 154.58 | X36: 54260 | Y36: 154.58 | Z36: P | AB36: 20inv000097814 | AD36: Internal | AE36: A | AF36: SL | AH36: WCNX | AI36: 0 | AJ36: 0 | AL36: =IFERROR(VLOOKUP(C36,'12.2021 FAR'!$C$14:$AM$87,36,FALSE),VLOOKUP(C36,'[7]Asset Addition Form'!$B$8:$J$88,9,FALSE)) -> RO | AM36: Drop Boxes (shared) | AN36: 3 | AO36: 2022 | AP36: 2034 | AQ36: 2034.25 | AR36: 154.5763889 | AS36: 1854.916667 | AT36: 1854.916667 | AU36: 0 | AV36: 1854.916667 | AW36: 20404.08333 | AX36: No
B37: 2010 | C37: 275972 | D37: P | E37: 40yd drop boxes | F37: 4 | J37: 0 | K37: WASTEQUIP MAYFAB | M37: 40 YD RO Box | N37: 2022-03-01 | O37: 2022-03-01 | P37: 2010-22-0045-2 | Q37: 1200 | R37: 14050 | S37: 32878 | T37: 14056 | U37: 228.32 | V37: 32649.68 | W37: 228.32 | X37: 54260 | Y37: 228.32 | Z37: P | AB37: 20inv000097812 | AD37: Internal | AE37: A | AF37: SL | AH37: WCNX | AI37: 0 | AJ37: 0 | AL37: =IFERROR(VLOOKUP(C37,'12.2021 FAR'!$C$14:$AM$87,36,FALSE),VLOOKUP(C37,'[7]Asset Addition Form'!$B$8:$J$88,9,FALSE)) -> RO | AM37: Drop Boxes (shared) | AN37: 3 | AO37: 2022 | AP37: 2034 | AQ37: 2034.25 | AR37: 228.3194444 | AS37: 2739.833333 | AT37: 2739.833333 | AU37: 0 | AV37: 2739.833333 | AW37: 30138.16667 | AX37: No
B38: 2010 | C38: 275971 | D38: P | E38: 40yd drop boxes | F38: 2 | J38: 0 | K38: WASTEQUIP MAYFAB | M38: 40 YD RO Box | N38: 2022-03-01 | O38: 2022-03-01 | P38: 2010-22-0045-2 | Q38: 1200 | R38: 14050 | S38: 16439 | T38: 14056 | U38: 114.16 | V38: 16324.84 | W38: 114.16 | X38: 54260 | Y38: 114.16 | Z38: P | AB38: 20inv000097810 | AD38: Internal | AE38: A | AF38: SL | AH38: WCNX | AI38: 0 | AJ38: 0 | AL38: =IFERROR(VLOOKUP(C38,'12.2021 FAR'!$C$14:$AM$87,36,FALSE),VLOOKUP(C38,'[7]Asset Addition Form'!$B$8:$J$88,9,FALSE)) -> RO | AM38: Drop Boxes (shared) | AN38: 3 | AO38: 2022 | AP38: 2034 | AQ38: 2034.25 | AR38: 114.1597222 | AS38: 1369.916667 | AT38: 1369.916667 | AU38: 0 | AV38: 1369.916667 | AW38: 15069.08333 | AX38: No
B39: 2010 | C39: 275970 | D39: P | E39: 30yd lidded drop boxes | F39: 4 | J39: 0 | K39: WASTEQUIP MAYFAB | M39: 30 YD RO Box | N39: 2022-02-28 | O39: 2022-02-28 | P39: 2010-22-0045-2 | Q39: 1200 | R39: 14050 | S39: 40501.36 | T39: 14056 | U39: 281.26 | V39: 40220.1 | W39: 281.26 | X39: 54260 | Y39: 281.26 | Z39: P | AB39: 20inv000091344 | AD39: Internal | AE39: A | AF39: SL | AH39: WCNX | AI39: 0 | AJ39: 0 | AL39: =IFERROR(VLOOKUP(C39,'12.2021 FAR'!$C$14:$AM$87,36,FALSE),VLOOKUP(C39,'[7]Asset Addition Form'!$B$8:$J$88,9,FALSE)) -> RO | AM39: Drop Boxes (shared) | AN39: 2 | AO39: 2022 | AP39: 2034 | AQ39: 2034.166667 | AR39: 281.2594444 | AS39: 3375.113333 | AT39: 3375.113333 | AU39: 0 | AV39: 3375.113333 | AW39: 37126.24667 | AX39: No
B40: 2010 | C40: 275969 | D40: P | E40: 20yd lidded drop boxes | F40: 2 | J40: 0 | K40: WASTEQUIP MAYFAB | M40: 20 YD RO Box | N40: 2022-03-16 | O40: 2022-03-16 | P40: 2010-22-0045-2 | Q40: 1200 | R40: 14050 | S40: 18345.92 | T40: 14056 | U40: 0 | V40: 18345.92 | W40: 0 | X40: 54260 | Y40: 0 | Z40: P | AB40: 20inv000099430 | AD40: Internal | AE40: A | AF40: SL | AH40: WCNX | AI40: 0 | AJ40: 0 | AL40: =IFERROR(VLOOKUP(C40,'12.2021 FAR'!$C$14:$AM$87,36,FALSE),VLOOKUP(C40,'[7]Asset Addition Form'!$B$8:$J$88,9,FALSE)) -> RO | AM40: Drop Boxes (shared) | AN40: 3 | AO40: 2022 | AP40: 2034 | AQ40: 2034.25 | AR40: 127.4022222 | AS40: 1528.826667 | AT40: 1528.826667 | AU40: 0 | AV40: 1528.826667 | AW40: 16817.09333 | AX40: No
B41: 2010 | C41: 275968 | D41: P | E41: 95gal yard debris carts | F41: 702 | J41: 0 | K41: REHRIG PACIFIC COMPANY | M41: Non-Container Audit | N41: 2022-02-22 | O41: 2022-02-22 | P41: 2010-22-0043-1 | Q41: 700 | R41: 14050 | S41: 46540.8 | T41: 14056 | U41: 554.06 | V41: 45986.74 | W41: 554.06 | X41: 54260 | Y41: 554.06 | Z41: P | AB41: 50224382 | AD41: Internal | AE41: A | AF41: SL | AH41: WCNX | AI41: 0 | AJ41: 0 | AL41: =IFERROR(VLOOKUP(C41,'12.2021 FAR'!$C$14:$AM$87,36,FALSE),VLOOKUP(C41,'[7]Asset Addition Form'!$B$8:$J$88,9,FALSE)) -> Resi Yard Debris | AM41: Yard Debris Carts (non-reg) | AN41: 2 | AO41: 2022 | AP41: 2029 | AQ41: 2029.166667 | AR41: 554.0571429 | AS41: 6648.685714 | AT41: 6648.685714 | AU41: 0 | AV41: 6648.685714 | AW41: 39892.11429 | AX41: No
B42: 2010 | C42: 275967 | D42: P | E42: 95gal COV recycle carts | F42: 351 | J42: 0 | K42: REHRIG PACIFIC COMPANY | M42: Non-Container Audit | N42: 2022-02-22 | O42: 2022-02-22 | P42: 2010-22-0043-1 | Q42: 700 | R42: 14050 | S42: 23955.28 | T42: 14056 | U42: 285.18 | V42: 23670.1 | W42: 285.18 | X42: 54260 | Y42: 285.18 | Z42: P | AB42: 50224518 | AD42: Internal | AE42: A | AF42: SL | AH42: WCNX | AI42: 0 | AJ42: 0 | AL42: =IFERROR(VLOOKUP(C42,'12.2021 FAR'!$C$14:$AM$87,36,FALSE),VLOOKUP(C42,'[7]Asset Addition Form'!$B$8:$J$88,9,FALSE)) -> Resi Recycle | AM42: Recycle Carts (non-reg) | AN42: 2 | AO42: 2022 | AP42: 2029 | AQ42: 2029.166667 | AR42: 285.1819048 | AS42: 3422.182857 | AT42: 3422.182857 | AU42: 0 | AV42: 3422.182857 | AW42: 20533.09714 | AX42: No
B43: 2010 | C43: 275966 | D43: P | E43: 95gal county recycle carts | F43: 351 | J43: 0 | K43: REHRIG PACIFIC COMPANY | M43: Non-Container Audit | N43: 2022-02-22 | O43: 2022-02-22 | P43: 2010-22-0043-1 | Q43: 700 | R43: 14050 | S43: 23955.27 | T43: 14056 | U43: 285.18 | V43: 23670.09 | W43: 285.18 | X43: 54260 | Y43: 285.18 | Z43: P | AB43: 50224518 | AD43: Internal | AE43: A | AF43: SL | AH43: WCNX | AI43: 0 | AJ43: 0 | AL43: =IFERROR(VLOOKUP(C43,'12.2021 FAR'!$C$14:$AM$87,36,FALSE),VLOOKUP(C43,'[7]Asset Addition Form'!$B$8:$J$88,9,FALSE)) -> Resi Recycle | AM43: Recycle Carts (non-reg) | AN43: 2 | AO43: 2022 | AP43: 2029 | AQ43: 2029.166667 | AR43: 285.1817857 | AS43: 3422.181429 | AT43: 3422.181429 | AU43: 0 | AV43: 3422.181429 | AW43: 20533.08857 | AX43: No
B44: 2010 | C44: 274596 | D44: P | E44: 95gal COV recycle carts | F44: 702 | J44: 0 | K44: REHRIG PACIFIC COMPANY | M44: Non-Container Audit | N44: 2022-01-14 | O44: 2022-01-14 | P44: 2010-22-0036-1 | Q44: 700 | R44: 14050 | S44: 48960.68 | T44: 14056 | U44: 1748.6 | V44: 47212.08 | W44: 1748.6 | X44: 54260 | Y44: 582.87 | Z44: P | AB44: 50217434 | AD44: Internal | AE44: A | AF44: SL | AH44: WCNX | AI44: 0 | AJ44: 0 | AL44: =IFERROR(VLOOKUP(C44,'12.2021 FAR'!$C$14:$AM$87,36,FALSE),VLOOKUP(C44,'[7]Asset Addition Form'!$B$8:$J$88,9,FALSE)) -> Resi Recycle | AM44: Recycle Carts (non-reg) | AN44: 1 | AO44: 2022 | AP44: 2029 | AQ44: 2029.083333 | AR44: 582.8652381 | AS44: 6994.382857 | AT44: 6994.382857 | AU44: 0 | AV44: 6994.382857 | AW44: 41966.29714 | AX44: No
B45: 2010 | C45: 274595 | D45: P | E45: 95gal county recycle carts | F45: 702 | J45: 0 | K45: REHRIG PACIFIC COMPANY | M45: Non-Container Audit | N45: 2022-01-14 | O45: 2022-01-14 | P45: 2010-22-0036-1 | Q45: 700 | R45: 14050 | S45: 48960.68 | T45: 14056 | U45: 1748.6 | V45: 47212.08 | W45: 1748.6 | X45: 54260 | Y45: 582.87 | Z45: P | AB45: 50217434 | AD45: Internal | AE45: A | AF45: SL | AH45: WCNX | AI45: 0 | AJ45: 0 | AL45: =IFERROR(VLOOKUP(C45,'12.2021 FAR'!$C$14:$AM$87,36,FALSE),VLOOKUP(C45,'[7]Asset Addition Form'!$B$8:$J$88,9,FALSE)) -> Resi Recycle | AM45: Recycle Carts (non-reg) | AN45: 1 | AO45: 2022 | AP45: 2029 | AQ45: 2029.083333 | AR45: 582.8652381 | AS45: 6994.382857 | AT45: 6994.382857 | AU45: 0 | AV45: 6994.382857 | AW45: 41966.29714 | AX45: No
B46: 2010 | C46: 274592 | D46: P | E46: 65gal ridgefield garbage carts | F46: 468 | J46: 0 | K46: REHRIG PACIFIC COMPANY | M46: Non-Container Audit | N46: 2022-01-24 | O46: 2022-01-24 | P46: 2010-22-0036-1 | Q46: 700 | R46: 14050 | S46: 28698.64 | T46: 14056 | U46: 683.3 | V46: 28015.34 | W46: 683.3 | X46: 54260 | Y46: 341.65 | Z46: P | AB46: 50220002 | AD46: Internal | AE46: A | AF46: SL | AH46: WCNX | AI46: 0 | AJ46: 0 | AL46: =IFERROR(VLOOKUP(C46,'12.2021 FAR'!$C$14:$AM$87,36,FALSE),VLOOKUP(C46,'[7]Asset Addition Form'!$B$8:$J$88,9,FALSE)) -> Resi MSW | AM46: Garbage Carts (non-reg) | AN46: 1 | AO46: 2022 | AP46: 2029 | AQ46: 2029.083333 | AR46: 341.6504762 | AS46: 4099.805714 | AT46: 4099.805714 | AU46: 0 | AV46: 4099.805714 | AW46: 24598.83429 | AX46: No
B47: 2010 | C47: 274591 | D47: P | E47: 65gal county recycle carts | F47: 936 | J47: 0 | K47: REHRIG PACIFIC COMPANY | M47: Non-Container Audit | N47: 2022-01-20 | O47: 2022-01-20 | P47: 2010-22-0036-1 | Q47: 700 | R47: 14050 | S47: 59223.6 | T47: 14056 | U47: 1410.09 | V47: 57813.51 | W47: 1410.09 | X47: 54260 | Y47: 705.05 | Z47: P | AB47: 50218331 | AD47: Internal | AE47: A | AF47: SL | AH47: WCNX | AI47: 0 | AJ47: 0 | AL47: =IFERROR(VLOOKUP(C47,'12.2021 FAR'!$C$14:$AM$87,36,FALSE),VLOOKUP(C47,'[7]Asset Addition Form'!$B$8:$J$88,9,FALSE)) -> Resi Recycle | AM47: Recycle Carts (non-reg) | AN47: 1 | AO47: 2022 | AP47: 2029 | AQ47: 2029.083333 | AR47: 705.0428571 | AS47: 8460.514286 | AT47: 8460.514286 | AU47: 0 | AV47: 8460.514286 | AW47: 50763.08571 | AX47: No
B48: 2010 | C48: 274590 | D48: P | E48: 65gal county recycle carts | F48: 468 | J48: 0 | K48: REHRIG PACIFIC COMPANY | M48: Non-Container Audit | N48: 2022-01-24 | O48: 2022-01-24 | P48: 2010-22-0036-1 | Q48: 700 | R48: 14050 | S48: 29611.8 | T48: 14056 | U48: 705.04 | V48: 28906.76 | W48: 705.04 | X48: 54260 | Y48: 352.52 | Z48: P | AB48: 50220002 | AD48: Internal | AE48: A | AF48: SL | AH48: WCNX | AI48: 0 | AJ48: 0 | AL48: =IFERROR(VLOOKUP(C48,'12.2021 FAR'!$C$14:$AM$87,36,FALSE),VLOOKUP(C48,'[7]Asset Addition Form'!$B$8:$J$88,9,FALSE)) -> Resi Recycle | AM48: Recycle Carts (non-reg) | AN48: 1 | AO48: 2022 | AP48: 2029 | AQ48: 2029.083333 | AR48: 352.5214286 | AS48: 4230.257143 | AT48: 4230.257143 | AU48: 0 | AV48: 4230.257143 | AW48: 25381.54286 | AX48: No
B49: 2010 | C49: 274589 | D49: P | E49: 40yd open top drop boxes | F49: 2 | J49: 0 | K49: WASTEQUIP MAYFAB | M49: 40 YD RO Box | N49: 2022-02-22 | O49: 2022-02-22 | P49: 2010-22-0046-3 | Q49: 1200 | R49: 14050 | S49: 16438.4 | T49: 14056 | U49: 114.16 | V49: 16324.24 | W49: 114.16 | X49: 54260 | Y49: 114.16 | Z49: P | AB49: 20inv000086190 | AD49: Internal | AE49: A | AF49: SL | AH49: WCNX | AI49: 0 | AJ49: 0 | AL49: =IFERROR(VLOOKUP(C49,'12.2021 FAR'!$C$14:$AM$87,36,FALSE),VLOOKUP(C49,'[7]Asset Addition Form'!$B$8:$J$88,9,FALSE)) -> RO | AM49: Drop Boxes (shared) | AN49: 2 | AO49: 2022 | AP49: 2034 | AQ49: 2034.166667 | AR49: 114.1555556 | AS49: 1369.866667 | AT49: 1369.866667 | AU49: 0 | AV49: 1369.866667 | AW49: 15068.53333 | AX49: No
B50: 2010 | C50: 274588 | D50: P | E50: 40yd open top drop box | F50: 1 | J50: 0 | K50: WASTEQUIP MAYFAB | M50: 40 YD RO Box | N50: 2022-02-22 | O50: 2022-02-22 | P50: 2010-22-0046-3 | Q50: 1200 | R50: 14050 | S50: 8219.2 | T50: 14056 | U50: 57.08 | V50: 8162.12 | W50: 57.08 | X50: 54260 | Y50: 57.08 | Z50: P | AB50: 20inv000086182 | AD50: Internal | AE50: A | AF50: SL | AH50: WCNX | AI50: 0 | AJ50: 0 | AL50: =IFERROR(VLOOKUP(C50,'12.2021 FAR'!$C$14:$AM$87,36,FALSE),VLOOKUP(C50,'[7]Asset Addition Form'!$B$8:$J$88,9,FALSE)) -> RO | AM50: Drop Boxes (shared) | AN50: 2 | AO50: 2022 | AP50: 2034 | AQ50: 2034.166667 | AR50: 57.07777778 | AS50: 684.9333333 | AT50: 684.9333333 | AU50: 0 | AV50: 684.9333333 | AW50: 7534.266667 | AX50: No
B51: 2010 | C51: 274586 | D51: P | E51: 30yd open top drop boxes | F51: 2 | J51: 0 | K51: WASTEQUIP MAYFAB | M51: 30 YD RO Box | N51: 2022-02-15 | O51: 2022-02-15 | P51: 2010-22-0046-3 | Q51: 1200 | R51: 14050 | S51: 14430.68 | T51: 14056 | U51: 200.43 | V51: 14230.25 | W51: 200.43 | X51: 54260 | Y51: 100.22 | Z51: P | AB51: 20inv000084946 | AD51: Internal | AE51: A | AF51: SL | AH51: WCNX | AI51: 0 | AJ51: 0 | AL51: =IFERROR(VLOOKUP(C51,'12.2021 FAR'!$C$14:$AM$87,36,FALSE),VLOOKUP(C51,'[7]Asset Addition Form'!$B$8:$J$88,9,FALSE)) -> RO | AM51: Drop Boxes (shared) | AN51: 2 | AO51: 2022 | AP51: 2034 | AQ51: 2034.166667 | AR51: 100.2130556 | AS51: 1202.556667 | AT51: 1202.556667 | AU51: 0 | AV51: 1202.556667 | AW51: 13228.12333 | AX51: No
B52: 2010 | C52: 274585 | D52: P | E52: 30yd open top drop box | F52: 1 | J52: 0 | K52: WASTEQUIP MAYFAB | M52: 30 YD RO Box | N52: 2022-02-22 | O52: 2022-02-22 | P52: 2010-22-0046-3 | Q52: 1200 | R52: 14050 | S52: 7215.34 | T52: 14056 | U52: 50.11 | V52: 7165.23 | W52: 50.11 | X52: 54260 | Y52: 50.11 | Z52: P | AB52: 20inv000086182 | AD52: Internal | AE52: A | AF52: SL | AH52: WCNX | AI52: 0 | AJ52: 0 | AL52: =IFERROR(VLOOKUP(C52,'12.2021 FAR'!$C$14:$AM$87,36,FALSE),VLOOKUP(C52,'[7]Asset Addition Form'!$B$8:$J$88,9,FALSE)) -> RO | AM52: Drop Boxes (shared) | AN52: 2 | AO52: 2022 | AP52: 2034 | AQ52: 2034.166667 | AR52: 50.10652778 | AS52: 601.2783333 | AT52: 601.2783333 | AU52: 0 | AV52: 601.2783333 | AW52: 6614.061667 | AX52: No
B53: 2010 | C53: 274584 | D53: P | E53: 30yd lidded drop boxes | F53: 2 | J53: 0 | K53: WASTEQUIP MAYFAB | M53: 30 YD RO Box | N53: 2022-02-15 | O53: 2022-02-15 | P53: 2010-22-0046-3 | Q53: 1200 | R53: 14050 | S53: 19839 | T53: 14056 | U53: 275.54 | V53: 19563.46 | W53: 275.54 | X53: 54260 | Y53: 137.77 | Z53: P | AB53: 20inv000084948 | AD53: Internal | AE53: A | AF53: SL | AH53: WCNX | AI53: 0 | AJ53: 0 | AL53: =IFERROR(VLOOKUP(C53,'12.2021 FAR'!$C$14:$AM$87,36,FALSE),VLOOKUP(C53,'[7]Asset Addition Form'!$B$8:$J$88,9,FALSE)) -> RO | AM53: Drop Boxes (shared) | AN53: 2 | AO53: 2022 | AP53: 2034 | AQ53: 2034.166667 | AR53: 137.7708333 | AS53: 1653.25 | AT53: 1653.25 | AU53: 0 | AV53: 1653.25 | AW53: 18185.75 | AX53: No
B54: 2010 | C54: 274583 | D54: P | E54: 14gal glass bins | F54: 6000 | J54: 0 | K54: REHRIG PACIFIC COMPANY | M54: Non-Container Audit | N54: 2022-02-21 | O54: 2022-02-21 | P54: 2010-22-0044-1 | Q54: 500 | R54: 14050 | S54: 61582.04 | T54: 14056 | U54: 1026.37 | V54: 60555.67 | W54: 1026.37 | X54: 54260 | Y54: 1026.37 | Z54: P | AB54: 50224942 | AD54: Internal | AE54: A | AF54: SL | AH54: WCNX | AI54: 0 | AJ54: 0 | AL54: =IFERROR(VLOOKUP(C54,'12.2021 FAR'!$C$14:$AM$87,36,FALSE),VLOOKUP(C54,'[7]Asset Addition Form'!$B$8:$J$88,9,FALSE)) -> Resi Recycle | AM54: Recycle Carts (non-reg) | AN54: 2 | AO54: 2022 | AP54: 2027 | AQ54: 2027.166667 | AR54: 1026.367333 | AS54: 12316.408 | AT54: 12316.408 | AU54: 0 | AV54: 12316.408 | AW54: 49265.632 | AX54: No
B55: 2010 | C55: 274421 | D55: 89980 | E55: Engine Replacement for Retriever Truck 6 yd | J55: 0 | K55: Peterson | M55: Non-Rolling Stock | N55: 2022-02-15 | O55: 2022-02-15 | P55: 2010-22-0039-1 | Q55: 300 | R55: 14040 | S55: 27548.84 | T55: 14046 | U55: 1530.49 | V55: 26018.35 | W55: 1530.49 | X55: 51260 | Y55: 765.24 | Z55: P | AB55: 407446P | AD55: Internal | AE55: A | AF55: SL | AH55: WCNX | AI55: 0 | AJ55: 0 | AL55: =IFERROR(VLOOKUP(C55,'12.2021 FAR'!$C$14:$AM$87,36,FALSE),VLOOKUP(C55,'[7]Asset Addition Form'!$B$8:$J$88,9,FALSE)) -> RO | AM55: Roll-off Trucks | AN55: 2 | AO55: 2022 | AP55: 2025 | AQ55: 2025.166667 | AR55: 765.2455556 | AS55: 9182.946667 | AT55: 9182.946667 | AU55: 0 | AV55: 9182.946667 | AW55: 18365.89333 | AX55: No
B56: 2010 | C56: 274420 | D56: 89705 | E56: Engine Replacement | J56: 0 | K56: Peterson | M56: Non-Rolling Stock | N56: 2022-02-15 | O56: 2022-02-15 | P56: 2010-22-0038-1 | Q56: 300 | R56: 14040 | S56: 19128.33 | T56: 14046 | U56: 1062.69 | V56: 18065.64 | W56: 1062.69 | X56: 51260 | Y56: 531.35 | Z56: P | AB56: 406329P | AD56: Internal | AE56: A | AF56: SL | AH56: WCNX | AI56: 0 | AJ56: 0 | AK56: 675 | AL56: =IFERROR(VLOOKUP(C56,'12.2021 FAR'!$C$14:$AM$87,36,FALSE),VLOOKUP(C56,'[7]Asset Addition Form'!$B$8:$J$88,9,FALSE)) -> Resi MSW | AM56: Garbage Trucks - Regulated Only | AN56: 2 | AO56: 2022 | AP56: 2025 | AQ56: 2025.166667 | AR56: 531.3425 | AS56: 6376.11 | AT56: 6376.11 | AU56: 0 | AV56: 6376.11 | AW56: 12752.22 | AX56: No
B57: 2010 | C57: 273306 | D57: P | E57: 95gal organics carts | F57: 351 | J57: 0 | K57: REHRIG PACIFIC COMPANY | M57: Non-Container Audit | N57: 2022-01-02 | O57: 2022-01-02 | P57: 2010-21-0070-1 | Q57: 700 | R57: 14050 | S57: 24252.05 | T57: 14056 | U57: 866.15 | V57: 23385.9 | W57: 866.15 | X57: 54260 | Y57: 288.72 | Z57: P | AB57: 50213821 | AD57: Internal | AE57: A | AF57: SL | AH57: WCNX | AI57: 0 | AJ57: 0 | AL57: =IFERROR(VLOOKUP(C57,'12.2021 FAR'!$C$14:$AM$87,36,FALSE),VLOOKUP(C57,'[7]Asset Addition Form'!$B$8:$J$88,9,FALSE)) -> Resi Yard Debris | AM57: Yard Debris Carts (non-reg) | AN57: 1 | AO57: 2022 | AP57: 2029 | AQ57: 2029.083333 | AR57: 288.714881 | AS57: 3464.578571 | AT57: 3464.578571 | AU57: 0 | AV57: 3464.578571 | AW57: 20787.47143 | AX57: No
B58: 2010 | C58: 273305 | D58: P | E58: 95gal county recycle carts | F58: 351 | J58: 0 | K58: REHRIG PACIFIC COMPANY | M58: Non-Container Audit | N58: 2022-01-02 | O58: 2022-01-02 | P58: 2010-21-0070-1 | Q58: 700 | R58: 14050 | S58: 24252.05 | T58: 14056 | U58: 866.15 | V58: 23385.9 | W58: 866.15 | X58: 54260 | Y58: 288.72 | Z58: P | AB58: 50213821 | AD58: Internal | AE58: A | AF58: SL | AH58: WCNX | AI58: 0 | AJ58: 0 | AL58: =IFERROR(VLOOKUP(C58,'12.2021 FAR'!$C$14:$AM$87,36,FALSE),VLOOKUP(C58,'[7]Asset Addition Form'!$B$8:$J$88,9,FALSE)) -> Resi Recycle | AM58: Recycle Carts (non-reg) | AN58: 1 | AO58: 2022 | AP58: 2029 | AQ58: 2029.083333 | AR58: 288.714881 | AS58: 3464.578571 | AT58: 3464.578571 | AU58: 0 | AV58: 3464.578571 | AW58: 20787.47143 | AX58: No
B59: 2010 | C59: 273292 | D59: P | E59: 20gal inserts | F59: 200 | J59: 0 | K59: REHRIG PACIFIC COMPANY | M59: Non-Container Audit | N59: 2022-01-02 | O59: 2022-01-02 | P59: 2010-21-0067-3 | Q59: 700 | R59: 14050 | S59: 4468.89 | T59: 14056 | U59: 159.6 | V59: 4309.29 | W59: 159.6 | X59: 54260 | Y59: 53.2 | Z59: P | AB59: 50213821 | AD59: Internal | AE59: A | AF59: SL | AH59: WCNX | AI59: 0 | AJ59: 0 | AL59: =IFERROR(VLOOKUP(C59,'12.2021 FAR'!$C$14:$AM$87,36,FALSE),VLOOKUP(C59,'[7]Asset Addition Form'!$B$8:$J$88,9,FALSE)) -> Resi MSW | AM59: Garbage Container (shared) | AN59: 1 | AO59: 2022 | AP59: 2029 | AQ59: 2029.083333 | AR59: 53.20107143 | AS59: 638.4128571 | AT59: 638.4128571 | AU59: 0 | AV59: 638.4128571 | AW59: 3830.477143 | AX59: No
B60: 2010 | C60: 273195 | D60: 248105 | E60: Rebate for Electrick Truck | J60: 0 | K60: Clark Public Utilities | N60: 2022-01-02 | O60: 2022-01-02 | P60: 2010-21-0032-1 | Q60: 1000 | R60: 14010 | S60: -42367.81 | T60: 14016 | U60: -1059.2 | V60: -41308.61 | W60: -1059.2 | X60: 57260 | Y60: -353.07 | Z60: P | AB60: 550950 | AD60: Internal | AE60: A | AF60: SL | AH60: WCNX | AI60: 0 | AJ60: 0 | AL60: =IFERROR(VLOOKUP(C60,'12.2021 FAR'!$C$14:$AM$87,36,FALSE),VLOOKUP(C60,'[7]Asset Addition Form'!$B$8:$J$88,9,FALSE)) -> Shop Shared Equipment | AM60: Shared Shop Equipment | AN60: 1 | AO60: 2022 | AP60: 2032 | AQ60: 2032.083333 | AR60: -353.0650833 | AS60: -4236.781 | AT60: -4236.781 | AU60: 0 | AV60: -4236.781 | AW60: -38131.029 | AX60: No
B61: 2010 | C61: 272637 | D61: 263906 | E61: Insite Pro for Shop Laptop | F61: 1 | J61: 0 | K61: CUMMINS NORTHWEST LLC | N61: 2022-01-02 | O61: 2022-01-02 | P61: 2010-21-0061-2 | Q61: 300 | R61: 14110 | S61: 834.68 | T61: 14116 | U61: 69.56 | V61: 765.12 | W61: 69.56 | X61: 70260 | Y61: 23.19 | Z61: P | AB61: 07-30003 | AD61: Internal | AE61: A | AF61: SL | AH61: WCNX | AI61: 0 | AJ61: 0 | AL61: =IFERROR(VLOOKUP(C61,'12.2021 FAR'!$C$14:$AM$87,36,FALSE),VLOOKUP(C61,'[7]Asset Addition Form'!$B$8:$J$88,9,FALSE)) -> Shop Shared Equipment | AM61: Shared Shop Equipment | AN61: 1 | AO61: 2022 | AP61: 2025 | AQ61: 2025.083333 | AR61: 23.18555556 | AS61: 278.2266667 | AT61: 278.2266667 | AU61: 0 | AV61: 278.2266667 | AW61: 556.4533333 | AX61: No
B62: 2010 | C62: 272398 | D62: P | E62: HP ProBook Serial # : 5CD142JX01 | F62: 1 | J62: 0 | N62: 2022-01-02 | O62: 2022-01-02 | P62: 2010-21-0073 | Q62: 300 | R62: 14110 | S62: 1056.56 | T62: 14116 | U62: 88.05 | V62: 968.51 | W62: 88.05 | X62: 70260 | Y62: 29.35 | Z62: P | AD62: Internal | AE62: A | AF62: SL | AH62: WCNX | AI62: 0 | AJ62: 0 | AL62: =IFERROR(VLOOKUP(C62,'12.2021 FAR'!$C$14:$AM$87,36,FALSE),VLOOKUP(C62,'[7]Asset Addition Form'!$B$8:$J$88,9,FALSE)) -> Office Shared Equipment | AM62: Shared Office Equipment | AN62: 1 | AO62: 2022 | AP62: 2025 | AQ62: 2025.083333 | AR62: 29.34888889 | AS62: 352.1866667 | AT62: 352.1866667 | AU62: 0 | AV62: 352.1866667 | AW62: 704.3733333 | AX62: No
B63: 2010 | C63: 271468 | D63: 271469 | E63: Anker 575 USB-C Docking Station for new laptop | F63: 1 | J63: 0 | K63: AMZN MKTP US 3S6LG9WU3 | N63: 2021-12-09 | O63: 2021-12-09 | P63: 2010-21-0073-1 | Q63: 300 | R63: 14110 | S63: 271.24 | T63: 14116 | U63: 30.14 | V63: 241.1 | W63: 22.6 | X63: 70260 | Y63: 7.53 | Z63: P | AB63: 3823404 | AD63: Internal | AE63: A | AF63: SL | AH63: WCNX | AI63: 0 | AJ63: 0 | AL63: =IFERROR(VLOOKUP(C63,'12.2021 FAR'!$C$14:$AM$87,36,FALSE),VLOOKUP(C63,'[7]Asset Addition Form'!$B$8:$J$88,9,FALSE)) -> Shared Service Equipment | AM63: =VLOOKUP(C63,'12.2021 FAR'!$C$14:$AM$194,37,FALSE) -> Shared Service Equipment | AN63: 12 | AO63: 2021 | AP63: 2024 | AQ63: 2025 | AR63: 7.534444444 | AS63: 90.41333333 | AT63: 90.41333333 | AU63: 0 | AV63: 90.41333333 | AW63: 180.8266667 | AX63: No
B64: 2010 | C64: 271467 | D64: P | E64: new computer for Recycle Team Serial # : 5CD142GM71 | F64: 1 | J64: 0 | K64: CDW DIR #2010 | N64: 2021-12-07 | O64: 2021-12-07 | P64: 2010-21-0072-1 | Q64: 300 | R64: 14110 | S64: 1427.98 | T64: 14116 | U64: 158.67 | V64: 1269.31 | W64: 119 | X64: 70260 | Y64: 39.67 | Z64: P | AB64: P444776 | AD64: Internal | AE64: A | AF64: SL | AH64: WCNX | AI64: 0 | AJ64: 0 | AL64: =IFERROR(VLOOKUP(C64,'12.2021 FAR'!$C$14:$AM$87,36,FALSE),VLOOKUP(C64,'[7]Asset Addition Form'!$B$8:$J$88,9,FALSE)) -> Non-Regulated Office Equipment | AM64: =VLOOKUP(C64,'12.2021 FAR'!$C$14:$AM$194,37,FALSE) -> Non-Regulated Office Equipment | AN64: 12 | AO64: 2021 | AP64: 2024 | AQ64: 2025 | AR64: 39.66611111 | AS64: 475.9933333 | AT64: 475.9933333 | AU64: 0 | AV64: 475.9933333 | AW64: 951.9866667 | AX64: No
B65: 2010 | C65: 271466 | D65: 263906 | E65: PACCAR Software | F65: 1 | J65: 0 | K65: PACCAR | N65: 2021-10-05 | O65: 2021-10-05 | P65: 2010-21-0061-2 | Q65: 300 | R65: 14110 | S65: 1299 | T65: 14116 | U65: 216.5 | V65: 1082.5 | W65: 108.25 | X65: 70260 | Y65: 36.08 | Z65: P | AB65: 3025112766 | AD65: Internal | AE65: A | AF65: SL | AH65: WCNX | AI65: 0 | AJ65: 0 | AL65: =IFERROR(VLOOKUP(C65,'12.2021 FAR'!$C$14:$AM$87,36,FALSE),VLOOKUP(C65,'[7]Asset Addition Form'!$B$8:$J$88,9,FALSE)) -> Shared Shop Equipment | AM65: =VLOOKUP(C65,'12.2021 FAR'!$C$14:$AM$194,37,FALSE) -> Shared Shop Equipment | AN65: 10 | AO65: 2021 | AP65: 2024 | AQ65: 2024.833333 | AR65: 36.08333333 | AS65: 433 | AT65: 433 | AU65: 0 | AV65: 433 | AW65: 866 | AX65: No
B66: 2010 | C66: 271375 | D66: P | E66: 3yd FEL recycle containers | F66: 25 | J66: 0 | K66: WASTEQUIP MAYFAB | M66: 3 YD FEL Container | N66: 2021-12-21 | O66: 2021-12-21 | P66: 2010-21-0065-1 | Q66: 1200 | R66: 14050 | S66: 21072.96 | T66: 14056 | U66: 439.02 | V66: 20633.94 | W66: 439.02 | X66: 54260 | Y66: 146.34 | Z66: P | AB66: 20inv000052010 | AD66: Internal | AE66: A | AF66: SL | AH66: WCNX | AI66: 0 | AJ66: 0 | AL66: =IFERROR(VLOOKUP(C66,'12.2021 FAR'!$C$14:$AM$87,36,FALSE),VLOOKUP(C66,'[7]Asset Addition Form'!$B$8:$J$88,9,FALSE)) -> Recycle Container (non-reg) | AM66: =VLOOKUP(C66,'12.2021 FAR'!$C$14:$AM$194,37,FALSE) -> Recycle Container (non-reg) | AN66: 12 | AO66: 2021 | AP66: 2033 | AQ66: 2034 | AR66: 146.34 | AS66: 1756.08 | AT66: 1756.08 | AU66: 0 | AV66: 1756.08 | AW66: 19316.88 | AX66: No
B67: 2010 | C67: 271374 | D67: P | E67: 3yd FEL garbage containers | F67: 24 | J67: 0 | K67: WASTEQUIP MAYFAB | M67: 3 YD FEL Container | N67: 2021-12-21 | O67: 2021-12-21 | P67: 2010-21-0065-1 | Q67: 1200 | R67: 14050 | S67: 18927.29 | T67: 14056 | U67: 394.32 | V67: 18532.97 | W67: 394.32 | X67: 54260 | Y67: 131.44 | Z67: P | AB67: 20inv000052010 | AD67: Internal | AE67: A | AF67: SL | AH67: WCNX | AI67: 0 | AJ67: 0 | AL67: =IFERROR(VLOOKUP(C67,'12.2021 FAR'!$C$14:$AM$87,36,FALSE),VLOOKUP(C67,'[7]Asset Addition Form'!$B$8:$J$88,9,FALSE)) -> Garbage Container (shared) | AM67: =VLOOKUP(C67,'12.2021 FAR'!$C$14:$AM$194,37,FALSE) -> Garbage Container (shared) | AN67: 12 | AO67: 2021 | AP67: 2033 | AQ67: 2034 | AR67: 131.4395139 | AS67: 1577.274167 | AT67: 1577.274167 | AU67: 0 | AV67: 1577.274167 | AW67: 17350.01583 | AX67: No
B68: 2010 | C68: 271319 | D68: P | E68: 35gal county recycle carts | F68: 1260 | J68: 0 | K68: REHRIG PACIFIC COMPANY | M68: Non-Container Audit | N68: 2021-12-20 | O68: 2021-12-20 | P68: 2010-21-0070-1 | Q68: 700 | R68: 14050 | S68: 63918.28 | T68: 14056 | U68: 2282.8 | V68: 61635.48 | W68: 2282.8 | X68: 54260 | Y68: 760.94 | Z68: P | AB68: 50211952 | AD68: Internal | AE68: A | AF68: SL | AH68: WCNX | AI68: 0 | AJ68: 0 | AL68: =IFERROR(VLOOKUP(C68,'12.2021 FAR'!$C$14:$AM$87,36,FALSE),VLOOKUP(C68,'[7]Asset Addition Form'!$B$8:$J$88,9,FALSE)) -> Recycle Carts (non-reg) | AM68: =VLOOKUP(C68,'12.2021 FAR'!$C$14:$AM$194,37,FALSE) -> Recycle Carts (non-reg) | AN68: 12 | AO68: 2021 | AP68: 2028 | AQ68: 2029 | AR68: 760.9319048 | AS68: 9131.182857 | AT68: 9131.182857 | AU68: 0 | AV68: 9131.182857 | AW68: 54787.09714 | AX68: No
B69: 2010 | C69: 271318 | D69: P | E69: 95gal yard debris carts | F69: 702 | J69: 0 | K69: REHRIG PACIFIC COMPANY | M69: Non-Container Audit | N69: 2021-12-02 | O69: 2021-12-02 | P69: 2010-21-0067-2 | Q69: 700 | R69: 14050 | S69: 47134.36 | T69: 14056 | U69: 2244.49 | V69: 44889.87 | W69: 1683.37 | X69: 54260 | Y69: 561.12 | Z69: P | AB69: 50209535 | AD69: Internal | AE69: A | AF69: SL | AH69: WCNX | AI69: 0 | AJ69: 0 | AL69: =IFERROR(VLOOKUP(C69,'12.2021 FAR'!$C$14:$AM$87,36,FALSE),VLOOKUP(C69,'[7]Asset Addition Form'!$B$8:$J$88,9,FALSE)) -> Yard Debris Carts (non-reg) | AM69: =VLOOKUP(C69,'12.2021 FAR'!$C$14:$AM$194,37,FALSE) -> Yard Debris Carts (non-reg) | AN69: 12 | AO69: 2021 | AP69: 2028 | AQ69: 2029 | AR69: 561.1233333 | AS69: 6733.48 | AT69: 6733.48 | AU69: 0 | AV69: 6733.48 | AW69: 40400.88 | AX69: No
B70: 2010 | C70: 271313 | D70: P | E70: Recycle Plus Bins (14X14)-White Metal Bins | F70: 540 | J70: 0 | K70: McShane Welding & Metal P | M70: Non-Container Audit | N70: 2021-11-30 | O70: 2021-11-30 | P70: 2010-21-0071-1 | Q70: 500 | R70: 14050 | S70: 35731.89 | T70: 14056 | U70: 2382.13 | V70: 33349.76 | W70: 1786.6 | X70: 54260 | Y70: 595.54 | Z70: P | AB70: 135167 | AD70: Internal | AE70: A | AF70: SL | AH70: WCNX | AI70: 0 | AJ70: 0 | AL70: =IFERROR(VLOOKUP(C70,'12.2021 FAR'!$C$14:$AM$87,36,FALSE),VLOOKUP(C70,'[7]Asset Addition Form'!$B$8:$J$88,9,FALSE)) -> Recycle Carts (non-reg) | AM70: =VLOOKUP(C70,'12.2021 FAR'!$C$14:$AM$194,37,FALSE) -> Recycle Carts (non-reg) | AN70: 11 | AO70: 2021 | AP70: 2026 | AQ70: 2026.916667 | AR70: 595.5315 | AS70: 7146.378 | AT70: 7146.378 | AU70: 0 | AV70: 7146.378 | AW70: 28585.512 | AX70: No
B71: 2010 | C71: 270318 | D71: 240359 | E71: 25 Mount Chargers for RouteTablets at Vancouver | J71: 0 | K71: PROCLIPUSA | N71: 2020-10-06 | O71: 2020-10-06 | P71: 1010-20-0033-2 | Q71: 100 | R71: 14110 | S71: 4013.57 | T71: 14116 | U71: 4013.57 | V71: 0 | W71: 0 | X71: 70260 | Y71: 0 | Z71: P | AB71: SI1175618 | AD71: Internal | AE71: A | AF71: SL | AG71: 2021-11-30 | AH71: WCNX | AI71: 0 | AJ71: 4013.57 | AL71: =IFERROR(VLOOKUP(C71,'12.2021 FAR'!$C$14:$AM$87,36,FALSE),VLOOKUP(C71,'[7]Asset Addition Form'!$B$8:$J$88,9,FALSE)) -> Shared Service Equipment | AM71: =VLOOKUP(C71,'12.2021 FAR'!$C$14:$AM$194,37,FALSE) -> Shared Service Equipment | AN71: 10 | AO71: 2020 | AP71: 2021 | AQ71: 2021.833333 | AR71: 334.4641667 | AS71: 4013.57 | AT71: 0 | AU71: 4013.57 | AV71: 4013.57 | AW71: 0 | AX71: No
B72: 2010 | C72: 270317 | D72: P | E72: 70 Samsung Active Pro Tablets for 2010 | J72: 0 | K72: COMPLETE TABLET SOLUTIONS | N72: 2020-04-15 | O72: 2020-04-15 | P72: 1010-20-0033-1 | Q72: 100 | R72: 14110 | S72: 47891.2 | T72: 14116 | U72: 47891.2 | V72: 0 | W72: 0 | X72: 70260 | Y72: 0 | Z72: P | AB72: 13279 | AD72: Internal | AE72: A | AF72: SL | AG72: 2021-11-30 | AH72: WCNX | AI72: 0 | AJ72: 47891.2 | AL72: =IFERROR(VLOOKUP(C72,'12.2021 FAR'!$C$14:$AM$87,36,FALSE),VLOOKUP(C72,'[7]Asset Addition Form'!$B$8:$J$88,9,FALSE)) -> Shared Service Equipment | AM72: =VLOOKUP(C72,'12.2021 FAR'!$C$14:$AM$194,37,FALSE) -> Shared Service Equipment | AN72: 4 | AO72: 2020 | AP72: 2021 | AQ72: 2021.333333 | AR72: 3990.933333 | AS72: 47891.2 | AT72: 0 | AU72: 47891.2 | AV72: 47891.2 | AW72: 0 | AX72: No
B73: 2010 | C73: 270316 | D73: P | E73: 70 RouteTablet Mounts for 2010 | J73: 0 | K73: PROCLIPUSA | N73: 2020-04-25 | O73: 2020-04-25 | P73: 1010-20-0033-2 | Q73: 300 | R73: 14110 | S73: 11085.04 | T73: 14116 | U73: 7082.1 | V73: 4002.94 | W73: 923.75 | X73: 70260 | Y73: 307.91 | Z73: P | AB73: SI-1171596 | AD73: Internal | AE73: A | AF73: SL | AG73: 2021-11-30 | AH73: WCNX | AI73: 0 | AJ73: 5850.43 | AL73: =IFERROR(VLOOKUP(C73,'12.2021 FAR'!$C$14:$AM$87,36,FALSE),VLOOKUP(C73,'[7]Asset Addition Form'!$B$8:$J$88,9,FALSE)) -> Shared Service Equipment | AM73: =VLOOKUP(C73,'12.2021 FAR'!$C$14:$AM$194,37,FALSE) -> Shared Service Equipment | AN73: 4 | AO73: 2020 | AP73: 2023 | AQ73: 2023.333333 | AR73: 307.9177778 | AS73: 3695.013333 | AT73: 3695.013333 | AU73: 3695.013333 | AV73: 7390.026667 | AW73: 3695.013333 | AX73: No
B74: 2010 | C74: 270315 | D74: P | E74: 100 Chromebooks sent to Vancouver WA for Covid-19 | J74: 0 | K74: CDW DIR #XDS7054 | N74: 2020-03-15 | O74: 2020-03-15 | P74: 1010-20-0034-1 | Q74: 300 | R74: 14110 | S74: 26277.41 | T74: 14116 | U74: 18248.21 | V74: 8029.2 | W74: 2189.79 | X74: 70260 | Y74: 729.93 | Z74: P | AB74: XDS7054 | AD74: Internal | AE74: A | AF74: SL | AG74: 2021-11-30 | AH74: WCNX | AI74: 0 | AJ74: 15328.49 | AL74: =IFERROR(VLOOKUP(C74,'12.2021 FAR'!$C$14:$AM$87,36,FALSE),VLOOKUP(C74,'[7]Asset Addition Form'!$B$8:$J$88,9,FALSE)) -> Shared Office Equipment | AM74: =VLOOKUP(C74,'12.2021 FAR'!$C$14:$AM$194,37,FALSE) -> Shared Office Equipment | AN74: 3 | AO74: 2020 | AP74: 2023 | AQ74: 2023.25 | AR74: 729.9280556 | AS74: 8759.136667 | AT74: 8759.136667 | AU74: 8759.136667 | AV74: 17518.27333 | AW74: 8759.136667 | AX74: No
B75: 2010 | C75: 265975 | D75: P | E75: 65gal yard debris carts | F75: 648 | J75: 0 | K75: REHRIG PACIFIC COMPANY | M75: Non-Container Audit | N75: 2021-11-08 | O75: 2021-11-08 | P75: 2010-21-0067-1 | Q75: 700 | R75: 14050 | S75: 38851.51 | T75: 14056 | U75: 2312.6 | V75: 36538.91 | W75: 1387.56 | X75: 54260 | Y75: 462.52 | Z75: P | AB75: 50204756 | AD75: Internal | AE75: A | AF75: SL | AH75: WCNX | AI75: 0 | AJ75: 0 | AL75: =IFERROR(VLOOKUP(C75,'12.2021 FAR'!$C$14:$AM$87,36,FALSE),VLOOKUP(C75,'[7]Asset Addition Form'!$B$8:$J$88,9,FALSE)) -> Yard Debris Carts (non-reg) | AM75: =VLOOKUP(C75,'12.2021 FAR'!$C$14:$AM$194,37,FALSE) -> Yard Debris Carts (non-reg) | AN75: 11 | AO75: 2021 | AP75: 2028 | AQ75: 2028.916667 | AR75: 462.5179762 | AS75: 5550.215714 | AT75: 5550.215714 | AU75: 0 | AV75: 5550.215714 | AW75: 33301.29429 | AX75: No
B76: 2010 | C76: 265766 | D76: P | E76: HP PROBOOK S/N 5CD1421C57 | F76: 1 | J76: 0 | K76: CDW DIR #2010 | N76: 2021-10-29 | O76: 2021-10-29 | P76: 2010-21-0068-1 | Q76: 300 | R76: 14110 | S76: 1370.35 | T76: 14116 | U76: 190.33 | V76: 1180.02 | W76: 114.2 | X76: 70260 | Y76: 38.07 | Z76: P | AB76: M890611 | AD76: Internal | AE76: A | AF76: SL | AH76: WCNX | AI76: 0 | AJ76: 0 | AL76: =IFERROR(VLOOKUP(C76,'12.2021 FAR'!$C$14:$AM$87,36,FALSE),VLOOKUP(C76,'[7]Asset Addition Form'!$B$8:$J$88,9,FALSE)) -> Shared Office Equipment | AM76: =VLOOKUP(C76,'12.2021 FAR'!$C$14:$AM$194,37,FALSE) -> Shared Office Equipment | AN76: 10 | AO76: 2021 | AP76: 2024 | AQ76: 2024.833333 | AR76: 38.06527778 | AS76: 456.7833333 | AT76: 456.7833333 | AU76: 0 | AV76: 456.7833333 | AW76: 913.5666667 | AX76: No
B77: 2010 | C77: 265765 | D77: P | E77: Docking station S/N: AH5KNK0B36200257 | F77: 1 | J77: 0 | K77: AMZN MKTP US 7L5Z92C03 | N77: 2021-10-29 | O77: 2021-10-29 | P77: 2010-21-0068-1 | Q77: 300 | R77: 14110 | S77: 271.24 | T77: 14116 | U77: 37.67 | V77: 233.57 | W77: 22.6 | X77: 70260 | Y77: 7.53 | Z77: P | AB77: 11-7281015-0128234 | AD77: Internal | AE77: A | AF77: SL | AH77: WCNX | AI77: 0 | AJ77: 0 | AL77: =IFERROR(VLOOKUP(C77,'12.2021 FAR'!$C$14:$AM$87,36,FALSE),VLOOKUP(C77,'[7]Asset Addition Form'!$B$8:$J$88,9,FALSE)) -> Shared Office Equipment | AM77: =VLOOKUP(C77,'12.2021 FAR'!$C$14:$AM$194,37,FALSE) -> Shared Office Equipment | AN77: 10 | AO77: 2021 | AP77: 2024 | AQ77: 2024.833333 | AR77: 7.534444444 | AS77: 90.41333333 | AT77: 90.41333333 | AU77: 0 | AV77: 90.41333333 | AW77: 180.8266667 | AX77: No
B78: 2010 | C78: 265733 | D78: P | E78: 40yd RO drop boxes | F78: 2 | J78: 0 | K78: WASTEQUIP MAYFAB | M78: 40 YD RO Box | N78: 2021-10-27 | O78: 2021-10-27 | P78: 2010-21-0060-1 | Q78: 1200 | R78: 14050 | S78: 16418 | T78: 14056 | U78: 570.07 | V78: =S78-U78 -> 15847.93 | W78: 342.04 | X78: 54260 | Y78: 114.01 | Z78: P | AB78: 20inv000031168 | AD78: Internal | AE78: A | AF78: SL | AH78: WCNX | AI78: 0 | AJ78: 0 | AL78: =IFERROR(VLOOKUP(C78,'12.2021 FAR'!$C$14:$AM$87,36,FALSE),VLOOKUP(C78,'[7]Asset Addition Form'!$B$8:$J$88,9,FALSE)) -> Drop Boxes (shared) | AM78: =VLOOKUP(C78,'12.2021 FAR'!$C$14:$AM$194,37,FALSE) -> Drop Boxes (shared) | AN78: =MONTH($N78) -> 10 | AO78: =YEAR($N78) -> 2021 | AP78: =$AO78+($Q78/100) -> 2033 | AQ78: =$AP78+($AN78/12) -> 2033.833333 | AR78: =IFERROR($S78/($Q78/100)/12,0) -> 114.0138889 | AS78: =$AR78*12 -> 1368.166667 | AT78: =IF($AQ78<=$AK$8,0,IF($AP78>$AK$7,$AS78,($AR78*$AN78))) -> 1368.166667 | AU78: 0 | AV78: =IF($AU78=0,$AT78,($AU78+$AT78)) -> 1368.166667 | AW78: =$S78-$AV78 -> 15049.83333 | AX78: No
B79: 2010 | C79: 265732 | D79: P | E79: 40yd RO drop boxes | F79: 2 | J79: 0 | K79: WASTEQUIP MAYFAB | M79: 40 YD RO Box | N79: 2021-10-28 | O79: 2021-10-28 | P79: 2010-21-0060-1 | Q79: 1200 | R79: 14050 | S79: 16418 | T79: 14056 | U79: 570.07 | V79: 15847.93 | W79: 342.04 | X79: 54260 | Y79: 114.01 | Z79: P | AB79: 20inv000031438 | AD79: Internal | AE79: A | AF79: SL | AH79: WCNX | AI79: 0 | AJ79: 0 | AL79: =IFERROR(VLOOKUP(C79,'12.2021 FAR'!$C$14:$AM$87,36,FALSE),VLOOKUP(C79,'[7]Asset Addition Form'!$B$8:$J$88,9,FALSE)) -> Drop Boxes (shared) | AM79: =VLOOKUP(C79,'12.2021 FAR'!$C$14:$AM$194,37,FALSE) -> Drop Boxes (shared) | AN79: 10 | AO79: 2021 | AP79: 2033 | AQ79: 2033.833333 | AR79: 114.0138889 | AS79: 1368.166667 | AT79: 1368.166667 | AU79: =IF($AT79=0,$S79,IF($AK$6-AO79<1,0,(($AK$6-$AO79)*AS79))) -> 0 | AV79: 1368.166667 | AW79: 15049.83333 | AX79: No
B80: 2010 | C80: 265731 | D80: P | E80: 40yd RO drop boxes | F80: 4 | J80: 0 | K80: WASTEQUIP MAYFAB | M80: 40 YD RO Box | N80: 2021-10-25 | O80: 2021-10-25 | P80: 2010-21-0060-1 | Q80: 1200 | R80: 14050 | S80: 32416 | T80: 14056 | U80: 1125.55 | V80: 31290.45 | W80: 675.33 | X80: 54260 | Y80: 225.11 | Z80: P | AB80: 20inv000030770 | AD80: Internal | AE80: A | AF80: SL | AH80: WCNX | AI80: 0 | AJ80: 0 | AL80: =IFERROR(VLOOKUP(C80,'12.2021 FAR'!$C$14:$AM$87,36,FALSE),VLOOKUP(C80,'[7]Asset Addition Form'!$B$8:$J$88,9,FALSE)) -> Drop Boxes (shared) | AM80: =VLOOKUP(C80,'12.2021 FAR'!$C$14:$AM$194,37,FALSE) -> Drop Boxes (shared) | AN80: 10 | AO80: 2021 | AP80: 2033 | AQ80: 2033.833333 | AR80: 225.1111111 | AS80: 2701.333333 | AT80: 2701.333333 | AU80: 0 | AV80: 2701.333333 | AW80: 29714.66667 | AX80: No
B81: 2010 | C81: 265730 | D81: P | E81: 30yd RO drop boxes | F81: 2 | J81: 0 | K81: WASTEQUIP MAYFAB | M81: 30 YD RO Box | N81: 2021-10-25 | O81: 2021-10-25 | P81: 2010-21-0060-1 | Q81: 1200 | R81: 14050 | S81: 14810.9 | T81: 14056 | U81: 514.27 | V81: 14296.63 | W81: 308.56 | X81: 54260 | Y81: 102.85 | Z81: P | AB81: 20inv000030770 | AD81: Internal | AE81: A | AF81: SL | AH81: WCNX | AI81: 0 | AJ81: 0 | AL81: =IFERROR(VLOOKUP(C81,'12.2021 FAR'!$C$14:$AM$87,36,FALSE),VLOOKUP(C81,'[7]Asset Addition Form'!$B$8:$J$88,9,FALSE)) -> Drop Boxes (shared) | AM81: =VLOOKUP(C81,'12.2021 FAR'!$C$14:$AM$194,37,FALSE) -> Drop Boxes (shared) | AN81: 10 | AO81: 2021 | AP81: 2033 | AQ81: 2033.833333 | AR81: 102.8534722 | AS81: 1234.241667 | AT81: 1234.241667 | AU81: 0 | AV81: 1234.241667 | AW81: 13576.65833 | AX81: No
B82: 2010 | C82: 265729 | D82: P | E82: 30YD RO DROP BOXES | F82: 4 | J82: 0 | K82: WASTEQUIP MAYFAB | M82: 30 YD RO Box | N82: 2021-10-21 | O82: 2021-10-21 | P82: 2010-21-0060-1 | Q82: 1200 | R82: 14050 | S82: 28781.8 | T82: 14056 | U82: 999.37 | V82: 27782.43 | W82: 599.62 | X82: 54260 | Y82: 199.87 | Z82: P | AB82: 20INV000030362 | AD82: Internal | AE82: A | AF82: SL | AH82: WCNX | AI82: 0 | AJ82: 0 | AL82: =IFERROR(VLOOKUP(C82,'12.2021 FAR'!$C$14:$AM$87,36,FALSE),VLOOKUP(C82,'[7]Asset Addition Form'!$B$8:$J$88,9,FALSE)) -> Drop Boxes (shared) | AM82: =VLOOKUP(C82,'12.2021 FAR'!$C$14:$AM$194,37,FALSE) -> Drop Boxes (shared) | AN82: 10 | AO82: 2021 | AP82: 2033 | AQ82: 2033.833333 | AR82: 199.8736111 | AS82: 2398.483333 | AT82: 2398.483333 | AU82: 0 | AV82: 2398.483333 | AW82: 26383.31667 | AX82: No
B83: 2010 | C83: 265728 | D83: P | E83: 30YD RO DROP BOXES | F83: 2 | J83: 0 | K83: WASTEQUIP MAYFAB | M83: 30 YD RO Box | N83: 2021-10-20 | O83: 2021-10-20 | P83: 2010-21-0060-1 | Q83: 1200 | R83: 14050 | S83: 14390.9 | T83: 14056 | U83: 499.68 | V83: 13891.22 | W83: 299.81 | X83: 54260 | Y83: 99.94 | Z83: P | AB83: 20INV000029966 | AD83: Internal | AE83: A | AF83: SL | AH83: WCNX | AI83: 0 | AJ83: 0 | AL83: =IFERROR(VLOOKUP(C83,'12.2021 FAR'!$C$14:$AM$87,36,FALSE),VLOOKUP(C83,'[7]Asset Addition Form'!$B$8:$J$88,9,FALSE)) -> Drop Boxes (shared) | AM83: =VLOOKUP(C83,'12.2021 FAR'!$C$14:$AM$194,37,FALSE) -> Drop Boxes (shared) | AN83: 10 | AO83: 2021 | AP83: 2033 | AQ83: 2033.833333 | AR83: 99.93680556 | AS83: 1199.241667 | AT83: 1199.241667 | AU83: 0 | AV83: 1199.241667 | AW83: 13191.65833 | AX83: No
B84: 2010 | C84: 264019 | D84: P | E84: 95gal organic carts | F84: 351 | J84: 0 | K84: REHRIG PACIFIC COMPANY | M84: Non-Container Audit | N84: 2021-10-22 | O84: 2021-10-22 | P84: 2010-21-0064-1 | Q84: 700 | R84: 14050 | S84: 24252.05 | T84: 14056 | U84: 1443.58 | V84: 22808.47 | W84: 866.15 | X84: 54260 | Y84: 288.72 | Z84: P | AB84: 50200900 | AD84: Internal | AE84: A | AF84: SL | AH84: WCNX | AI84: 0 | AJ84: 0 | AL84: =IFERROR(VLOOKUP(C84,'12.2021 FAR'!$C$14:$AM$87,36,FALSE),VLOOKUP(C84,'[7]Asset Addition Form'!$B$8:$J$88,9,FALSE)) -> Organics Carts (non-reg) | AM84: =VLOOKUP(C84,'12.2021 FAR'!$C$14:$AM$194,37,FALSE) -> Organics Carts (non-reg) | AN84: 10 | AO84: 2021 | AP84: 2028 | AQ84: 2028.833333 | AR84: 288.714881 | AS84: 3464.578571 | AT84: 3464.578571 | AU84: 0 | AV84: 3464.578571 | AW84: 20787.47143 | AX84: No
B85: 2010 | C85: 264018 | D85: P | E85: 95gal county recycle carts | F85: 351 | J85: 0 | K85: REHRIG PACIFIC COMPANY | M85: Non-Container Audit | N85: 2021-10-22 | O85: 2021-10-22 | P85: 2010-21-0064-1 | Q85: 700 | R85: 14050 | S85: 24252.05 | T85: 14056 | U85: 1443.58 | V85: 22808.47 | W85: 866.15 | X85: 54260 | Y85: 288.72 | Z85: P | AB85: 50200900 | AD85: Internal | AE85: A | AF85: SL | AH85: WCNX | AI85: 0 | AJ85: 0 | AL85: =IFERROR(VLOOKUP(C85,'12.2021 FAR'!$C$14:$AM$87,36,FALSE),VLOOKUP(C85,'[7]Asset Addition Form'!$B$8:$J$88,9,FALSE)) -> Recycle Carts (non-reg) | AM85: =VLOOKUP(C85,'12.2021 FAR'!$C$14:$AM$194,37,FALSE) -> Recycle Carts (non-reg) | AN85: 10 | AO85: 2021 | AP85: 2028 | AQ85: 2028.833333 | AR85: 288.714881 | AS85: 3464.578571 | AT85: 3464.578571 | AU85: 0 | AV85: 3464.578571 | AW85: 20787.47143 | AX85: No
B86: 2010 | C86: 263907 | D86: 263906 | E86: TOUGHBOOK New Subscription | F86: 1 | J86: 0 | K86: NOREGON SYSTEMS INC | N86: 2021-08-30 | O86: 2021-08-30 | P86: 2010-21-0061-2 | Q86: 300 | R86: 14110 | S86: 1233.62 | T86: 14116 | U86: 239.87 | V86: 993.75 | W86: 102.8 | X86: 70260 | Y86: 34.26 | Z86: P | AB86: INV00096180 | AD86: Internal | AE86: A | AF86: SL | AH86: WCNX | AI86: 0 | AJ86: 0 | AL86: =IFERROR(VLOOKUP(C86,'12.2021 FAR'!$C$14:$AM$87,36,FALSE),VLOOKUP(C86,'[7]Asset Addition Form'!$B$8:$J$88,9,FALSE)) -> Shared Service Equipment | AM86: =VLOOKUP(C86,'12.2021 FAR'!$C$14:$AM$194,37,FALSE) -> Shared Service Equipment | AN86: 8 | AO86: 2021 | AP86: 2024 | AQ86: 2024.666667 | AR86: 34.26722222 | AS86: 411.2066667 | AT86: 411.2066667 | AU86: 0 | AV86: 411.2066667 | AW86: 822.4133333 | AX86: No
B87: 2010 | C87: 263906 | D87: P | E87: NOREGON Panasonic Toughbook FZ-55 I5-8365U | F87: 1 | J87: 0 | K87: NOREGON SYSTEMS INC | N87: 2021-08-30 | O87: 2021-08-30 | P87: 2010-21-0061-1 | Q87: 200 | R87: 14110 | S87: 1748.39 | T87: 14116 | U87: 509.95 | V87: 1238.44 | W87: 218.55 | X87: 70260 | Y87: 72.85 | Z87: P | AB87: INV00096180 | AD87: Internal | AE87: A | AF87: SL | AH87: WCNX | AI87: 0 | AJ87: 0 | AL87: =IFERROR(VLOOKUP(C87,'12.2021 FAR'!$C$14:$AM$87,36,FALSE),VLOOKUP(C87,'[7]Asset Addition Form'!$B$8:$J$88,9,FALSE)) -> Shared Service Equipment | AM87: =VLOOKUP(C87,'12.2021 FAR'!$C$14:$AM$194,37,FALSE) -> Shared Service Equipment | AN87: 8 | AO87: 2021 | AP87: 2023 | AQ87: 2023.666667 | AR87: 72.84958333 | AS87: 874.195 | AT87: 874.195 | AU87: 0 | AV87: 874.195 | AW87: 874.195 | AX87: No
B88: 2010 | C88: 263879 | D88: P | E88: Land Purchase- 94th Location | J88: 0 | K88: CLARK COUNTY DEPARTMENT O | N88: 2021-10-31 | O88: 2021-10-31 | P88: 2010-21-0021-1 | Q88: 0 | R88: 14000 | S88: 100000 | T88: 14016 | U88: 0 | V88: 100000 | W88: 0 | X88: 57260 | Y88: 0 | Z88: P | AB88: Land Purchase- 94th | AD88: Internal | AE88: A | AF88: NO | AH88: WCNX | AI88: 0 | AJ88: 0 | AL88: =IFERROR(VLOOKUP(C88,'12.2021 FAR'!$C$14:$AM$87,36,FALSE),VLOOKUP(C88,'[7]Asset Addition Form'!$B$8:$J$88,9,FALSE)) -> Land | AM88: =VLOOKUP(C88,'12.2021 FAR'!$C$14:$AM$194,37,FALSE) -> Land | AN88: 10 | AO88: 2021 | AP88: 2021 | AQ88: 2021.833333 | AR88: 0 | AS88: 0 | AT88: 0 | AU88: 0 | AV88: 0 | AW88: 100000 | AX88: No
B89: 2010 | C89: 263789 | D89: P | E89: 30 YD lidded RO Boxes | F89: 2 | J89: 0 | K89: WASTEQUIP MAYFAB | M89: 30 YD RO Box | N89: 2021-08-02 | O89: 2021-08-02 | P89: 2010-21-0038-1 | Q89: 1200 | R89: 14050 | S89: 16708 | T89: 14056 | U89: 928.22 | V89: 15779.78 | W89: 348.08 | X89: 54260 | Y89: 116.02 | Z89: P | AB89: 20inv000020564 | AD89: Internal | AE89: A | AF89: SL | AH89: WCNX | AI89: 0 | AJ89: 0 | AL89: =IFERROR(VLOOKUP(C89,'12.2021 FAR'!$C$14:$AM$87,36,FALSE),VLOOKUP(C89,'[7]Asset Addition Form'!$B$8:$J$88,9,FALSE)) -> Drop Boxes (shared) | AM89: =VLOOKUP(C89,'12.2021 FAR'!$C$14:$AM$194,37,FALSE) -> Drop Boxes (shared) | AN89: 8 | AO89: 2021 | AP89: 2033 | AQ89: 2033.666667 | AR89: 116.0277778 | AS89: 1392.333333 | AT89: 1392.333333 | AU89: 0 | AV89: 1392.333333 | AW89: 15315.66667 | AX89: No
B90: 2010 | C90: 263786 | D90: P | E90: 20 YD RO Boxes | F90: 4 | J90: 0 | K90: WASTEQUIP MAYFAB | M90: 20 YD RO Box | N90: 2021-09-17 | O90: 2021-09-17 | P90: 2010-21-0060-1 | Q90: 1200 | R90: 14050 | S90: 24960 | T90: 14056 | U90: 1040 | V90: 23920 | W90: 520 | X90: 54260 | Y90: 173.33 | Z90: P | AB90: 20inv000025234 | AD90: Internal | AE90: A | AF90: SL | AH90: WCNX | AI90: 0 | AJ90: 0 | AL90: =IFERROR(VLOOKUP(C90,'12.2021 FAR'!$C$14:$AM$87,36,FALSE),VLOOKUP(C90,'[7]Asset Addition Form'!$B$8:$J$88,9,FALSE)) -> Drop Boxes (shared) | AM90: =VLOOKUP(C90,'12.2021 FAR'!$C$14:$AM$194,37,FALSE) -> Drop Boxes (shared) | AN90: 9 | AO90: 2021 | AP90: 2033 | AQ90: 2033.75 | AR90: 173.3333333 | AS90: 2080 | AT90: 2080 | AU90: 0 | AV90: 2080 | AW90: 22880 | AX90: No
B91: 2010 | C91: 262765 | D91: 257713 | E91: Signage for new truck 742 | J91: 0 | M91: Non-Rolling Stock | N91: 2021-08-30 | O91: 2021-08-30 | P91: 2010-21-0023 | Q91: 1000 | R91: 14040 | S91: 453.6 | T91: 14046 | U91: 26.46 | V91: 427.14 | W91: 11.34 | X91: 51260 | Y91: 3.78 | Z91: P | AD91: Internal | AE91: A | AF91: SL | AH91: WCNX | AI91: 0 | AJ91: 0 | AK91: 742 | AL91: =IFERROR(VLOOKUP(C91,'12.2021 FAR'!$C$14:$AM$87,36,FALSE),VLOOKUP(C91,'[7]Asset Addition Form'!$B$8:$J$88,9,FALSE)) -> Recycle Trucks | AM91: =VLOOKUP(C91,'12.2021 FAR'!$C$14:$AM$194,37,FALSE) -> Recycle Trucks | AN91: 8 | AO91: 2021 | AP91: 2031 | AQ91: 2031.666667 | AR91: 3.78 | AS91: 45.36 | AT91: 45.36 | AU91: 0 | AV91: 45.36 | AW91: 408.24 | AX91: No
B92: 2010 | C92: 261070 | D92: 261069 | E92: docking station - no SN listed | F92: 1 | J92: 0 | K92: AMZN MKTP US 2G66O97I2 | N92: 2021-09-21 | O92: 2021-09-21 | P92: 2010-21-0066-1 | Q92: 300 | R92: 14110 | S92: 260.33 | T92: 14116 | U92: 43.4 | V92: 216.93 | W92: 21.7 | X92: 70260 | Y92: 7.24 | Z92: P | AB92: 8718632 | AD92: Internal | AE92: A | AF92: SL | AH92: WCNX | AI92: 0 | AJ92: 0 | AL92: =IFERROR(VLOOKUP(C92,'12.2021 FAR'!$C$14:$AM$87,36,FALSE),VLOOKUP(C92,'[7]Asset Addition Form'!$B$8:$J$88,9,FALSE)) -> Shared Office Equipment | AM92: =VLOOKUP(C92,'12.2021 FAR'!$C$14:$AM$194,37,FALSE) -> Shared Office Equipment | AN92: 9 | AO92: 2021 | AP92: 2024 | AQ92: 2024.75 | AR92: 7.231388889 | AS92: 86.77666667 | AT92: 86.77666667 | AU92: 0 | AV92: 86.77666667 | AW92: 173.5533333 | AX92: No
B93: 2010 | C93: 261069 | D93: P | E93: HP ProBook SN 5CD1326KLW | F93: 1 | J93: 0 | K93: CDW DIR #2010 | N93: 2021-09-21 | O93: 2021-09-21 | P93: 2010-21-0066-1 | Q93: 300 | R93: 14110 | S93: 1291.06 | T93: 14116 | U93: 215.18 | V93: 1075.88 | W93: 107.59 | X93: 70260 | Y93: 35.86 | Z93: P | AB93: L038074 | AD93: Internal | AE93: A | AF93: SL | AH93: WCNX | AI93: 0 | AJ93: 0 | AL93: =IFERROR(VLOOKUP(C93,'12.2021 FAR'!$C$14:$AM$87,36,FALSE),VLOOKUP(C93,'[7]Asset Addition Form'!$B$8:$J$88,9,FALSE)) -> Shared Office Equipment | AM93: =VLOOKUP(C93,'12.2021 FAR'!$C$14:$AM$194,37,FALSE) -> Shared Office Equipment | AN93: 9 | AO93: 2021 | AP93: 2024 | AQ93: 2024.75 | AR93: 35.86277778 | AS93: 430.3533333 | AT93: 430.3533333 | AU93: 0 | AV93: 430.3533333 | AW93: 860.7066667 | AX93: No
B94: 2010 | C94: 261035 | D94: P | E94: Recycle Plus Bins(14x14) - White Metal Bins | F94: 540 | J94: 0 | K94: McShane Welding & Metal P | M94: Non-Container Audit | N94: 2021-08-16 | O94: 2021-08-16 | P94: 2010-21-0063-1 | Q94: 700 | R94: 14050 | S94: 34962.25 | T94: 14056 | U94: 2913.52 | V94: 32048.73 | W94: 1248.65 | X94: 54260 | Y94: 416.21 | Z94: P | AB94: 133550 | AD94: Internal | AE94: A | AF94: SL | AH94: WCNX | AI94: 0 | AJ94: 0 | AL94: =IFERROR(VLOOKUP(C94,'12.2021 FAR'!$C$14:$AM$87,36,FALSE),VLOOKUP(C94,'[7]Asset Addition Form'!$B$8:$J$88,9,FALSE)) -> Recycle Carts (non-reg) | AM94: =VLOOKUP(C94,'12.2021 FAR'!$C$14:$AM$194,37,FALSE) -> Recycle Carts (non-reg) | AN94: 8 | AO94: 2021 | AP94: 2028 | AQ94: 2028.666667 | AR94: 416.2172619 | AS94: 4994.607143 | AT94: 4994.607143 | AU94: 0 | AV94: 4994.607143 | AW94: 29967.64286 | AX94: No
B95: 2010 | C95: 260995 | D95: P | E95: 20yd RO drop boxes | F95: 4 | J95: 0 | K95: WASTEQUIP MAYFAB | M95: 20 YD RO Box | N95: 2021-09-17 | O95: 2021-09-17 | P95: 2010-21-0060-1 | Q95: 1200 | R95: 14050 | S95: 24960 | T95: 14056 | U95: 1040 | V95: 23920 | W95: 520 | X95: 54260 | Y95: 173.33 | Z95: P | AB95: 20inv000025082 | AD95: Internal | AE95: A | AF95: SL | AH95: WCNX | AI95: 0 | AJ95: 0 | AL95: =IFERROR(VLOOKUP(C95,'12.2021 FAR'!$C$14:$AM$87,36,FALSE),VLOOKUP(C95,'[7]Asset Addition Form'!$B$8:$J$88,9,FALSE)) -> Drop Boxes (shared) | AM95: =VLOOKUP(C95,'12.2021 FAR'!$C$14:$AM$194,37,FALSE) -> Drop Boxes (shared) | AN95: 9 | AO95: 2021 | AP95: 2033 | AQ95: 2033.75 | AR95: 173.3333333 | AS95: 2080 | AT95: 2080 | AU95: 0 | AV95: 2080 | AW95: 22880 | AX95: No
B96: 2010 | C96: 260954 | D96: 260783 | E96: signage for new automated truck 835 | J96: 0 | K96: NORTH AMERICAN DECAL INC. | M96: Non-Rolling Stock | N96: 2021-09-07 | O96: 2021-09-07 | P96: 2010-21-0013-1 | Q96: 800 | R96: 14040 | S96: 1027.19 | T96: 14046 | U96: 74.9 | V96: 952.29 | W96: 32.1 | X96: 51260 | Y96: 10.7 | Z96: P | AB96: 429539 | AD96: Internal | AE96: A | AF96: SL | AH96: WCNX | AI96: 0 | AJ96: 0 | AK96: 835 | AL96: =IFERROR(VLOOKUP(C96,'12.2021 FAR'!$C$14:$AM$87,36,FALSE),VLOOKUP(C96,'[7]Asset Addition Form'!$B$8:$J$88,9,FALSE)) -> MSW in Contract Cities | AM96: Garbage Trucks - Non-Regulated Only | AN96: 9 | AO96: 2021 | AP96: 2029 | AQ96: 2029.75 | AR96: 10.69989583 | AS96: 128.39875 | AT96: 128.39875 | AU96: 0 | AV96: 128.39875 | AW96: 898.79125 | AX96: No
B97: 2010 | C97: 260783 | D97: P | E97: 2020 Peterbilt ASL Truck | H97: 3BPDLK0X5LF109660 | J97: 2020 | M97: Automated Sideload | N97: 2021-09-07 | O97: 2021-09-07 | P97: 2010-21-0013 | Q97: 800 | R97: 14040 | S97: 367579.28 | T97: 14046 | U97: 26802.65 | V97: 340776.63 | W97: 11486.85 | X97: 51260 | Y97: 3828.95 | Z97: P | AD97: Internal | AE97: A | AF97: SL | AH97: WCNX | AI97: 0 | AJ97: 0 | AK97: 835 | AL97: =IFERROR(VLOOKUP(C97,'12.2021 FAR'!$C$14:$AM$87,36,FALSE),VLOOKUP(C97,'[7]Asset Addition Form'!$B$8:$J$88,9,FALSE)) -> MSW in Contract Cities | AM97: Garbage Trucks - Non-Regulated Only | AN97: 9 | AO97: 2021 | AP97: 2029 | AQ97: 2029.75 | AR97: 3828.950833 | AS97: 45947.41 | AT97: 45947.41 | AU97: 0 | AV97: 45947.41 | AW97: 321631.87 | AX97: No
B98: 2010 | C98: 260596 | D98: P | E98: Electric Truck Charging Station - ABB Terra DC Wallbox 3PH | F98: 1 | J98: 0 | K98: THE LION ELECTRIC CO | N98: 2021-01-29 | O98: 2021-01-29 | P98: 2010-21-0062-1 | Q98: 500 | R98: 14070 | S98: 14960 | T98: 14076 | U98: 3490.67 | V98: 11469.33 | W98: 748 | X98: 51260 | Y98: 249.33 | Z98: P | AB98: IN-008949 | AD98: Internal | AE98: A | AF98: SL | AH98: WCNX | AI98: 0 | AJ98: 0 | AK98: 742 | AL98: =IFERROR(VLOOKUP(C98,'12.2021 FAR'!$C$14:$AM$87,36,FALSE),VLOOKUP(C98,'[7]Asset Addition Form'!$B$8:$J$88,9,FALSE)) -> COV Garbage | AM98: Garbage Trucks - Non-Regulated Only | AN98: 1 | AO98: 2021 | AP98: 2026 | AQ98: 2026.083333 | AR98: 249.3333333 | AS98: 2992 | AT98: 2992 | AU98: 0 | AV98: 2992 | AW98: 11968 | AX98: No
B99: 2010 | C99: 260197 | D99: 257713 | E99: body wrap for new recycle truck #742 | J99: 0 | M99: Non-Rolling Stock | N99: 2021-08-30 | O99: 2021-08-30 | P99: 2010-21-0023 | Q99: 1000 | R99: 14040 | S99: 1355 | T99: 14046 | U99: 79.05 | V99: 1275.95 | W99: 33.88 | X99: 51260 | Y99: 11.3 | Z99: P | AD99: Internal | AE99: A | AF99: SL | AH99: WCNX | AI99: 0 | AJ99: 0 | AK99: 742 | AL99: =IFERROR(VLOOKUP(C99,'12.2021 FAR'!$C$14:$AM$87,36,FALSE),VLOOKUP(C99,'[7]Asset Addition Form'!$B$8:$J$88,9,FALSE)) -> Recycle Trucks | AM99: =VLOOKUP(C99,'12.2021 FAR'!$C$14:$AM$194,37,FALSE) -> Recycle Trucks | AN99: 8 | AO99: 2021 | AP99: 2031 | AQ99: 2031.666667 | AR99: 11.29166667 | AS99: 135.5 | AT99: 135.5 | AU99: 0 | AV99: 135.5 | AW99: 1219.5 | AX99: No
B100: 2010 | C100: 259582 | D100: P | E100: 95 Gallon EG Blue Recycle Carts | F100: 702 | J100: 0 | K100: Rehrig Pacific Company | M100: Non-Container Audit | N100: 2021-08-30 | O100: 2021-08-30 | P100: 2010-21-0058-1 | Q100: 700 | R100: 14050 | S100: 45688.52 | T100: 14056 | U100: 3807.37 | V100: 41881.15 | W100: 1631.73 | X100: 54260 | Y100: 543.91 | Z100: P | AB100: 50187461 | AD100: Internal | AE100: A | AF100: SL | AH100: WCNX | AI100: 0 | AJ100: 0 | AL100: =IFERROR(VLOOKUP(C100,'12.2021 FAR'!$C$14:$AM$87,36,FALSE),VLOOKUP(C100,'[7]Asset Addition Form'!$B$8:$J$88,9,FALSE)) -> Recycle Carts (non-reg) | AM100: =VLOOKUP(C100,'12.2021 FAR'!$C$14:$AM$194,37,FALSE) -> Recycle Carts (non-reg) | AN100: 8 | AO100: 2021 | AP100: 2028 | AQ100: 2028.666667 | AR100: 543.9109524 | AS100: 6526.931429 | AT100: 6526.931429 | AU100: 0 | AV100: 6526.931429 | AW100: 39161.58857 | AX100: No
B101: 2010 | C101: 259581 | D101: P | E101: 40yd RO lidded drop boxes | F101: 1 | J101: 0 | K101: WASTEQUIP MAYFAB | M101: 40 YD RO Box | N101: 2021-08-03 | O101: 2021-08-03 | P101: 2010-21-0040-1 | Q101: 1200 | R101: 14050 | S101: 16406 | T101: 14056 | U101: 911.44 | V101: 15494.56 | W101: 341.79 | X101: 54260 | Y101: 113.93 | Z101: P | AB101: 20inv000021910 | AD101: Internal | AE101: A | AF101: SL | AH101: WCNX | AI101: 0 | AJ101: 0 | AL101: =IFERROR(VLOOKUP(C101,'12.2021 FAR'!$C$14:$AM$87,36,FALSE),VLOOKUP(C101,'[7]Asset Addition Form'!$B$8:$J$88,9,FALSE)) -> Drop Boxes (shared) | AM101: =VLOOKUP(C101,'12.2021 FAR'!$C$14:$AM$194,37,FALSE) -> Drop Boxes (shared) | AN101: 8 | AO101: 2021 | AP101: 2033 | AQ101: 2033.666667 | AR101: 113.9305556 | AS101: 1367.166667 | AT101: 1367.166667 | AU101: 0 | AV101: 1367.166667 | AW101: 15038.83333 | AX101: No
B102: 2010 | C102: 259580 | D102: P | E102: 40yd RO lidded drop boxes | F102: 1 | J102: 0 | K102: WASTEQUIP MAYFAB | M102: 40 YD RO Box | N102: 2021-08-03 | O102: 2021-08-03 | P102: 2010-21-0040-1 | Q102: 1200 | R102: 14050 | S102: 3354 | T102: 14056 | U102: 186.33 | V102: 3167.67 | W102: 69.88 | X102: 54260 | Y102: 23.3 | Z102: P | AB102: 20inv000021910 | AD102: Internal | AE102: A | AF102: SL | AH102: WCNX | AI102: 0 | AJ102: 0 | AL102: =IFERROR(VLOOKUP(C102,'12.2021 FAR'!$C$14:$AM$87,36,FALSE),VLOOKUP(C102,'[7]Asset Addition Form'!$B$8:$J$88,9,FALSE)) -> Drop Boxes (shared) | AM102: =VLOOKUP(C102,'12.2021 FAR'!$C$14:$AM$194,37,FALSE) -> Drop Boxes (shared) | AN102: 8 | AO102: 2021 | AP102: 2033 | AQ102: 2033.666667 | AR102: 23.29166667 | AS102: 279.5 | AT102: 279.5 | AU102: 0 | AV102: 279.5 | AW102: 3074.5 | AX102: No
B103: 2010 | C103: 259579 | D103: P | E103: 40yd RO lidded drop boxes | F103: 1 | J103: 0 | K103: WASTEQUIP MAYFAB | M103: 40 YD RO Box | N103: 2021-08-09 | O103: 2021-08-09 | P103: 2010-21-0040-1 | Q103: 1200 | R103: 14050 | S103: 15244 | T103: 14056 | U103: 846.89 | V103: 14397.11 | W103: 317.58 | X103: 54260 | Y103: 105.86 | Z103: P | AB103: 20inv000022302 | AD103: Internal | AE103: A | AF103: SL | AH103: WCNX | AI103: 0 | AJ103: 0 | AL103: =IFERROR(VLOOKUP(C103,'12.2021 FAR'!$C$14:$AM$87,36,FALSE),VLOOKUP(C103,'[7]Asset Addition Form'!$B$8:$J$88,9,FALSE)) -> Drop Boxes (shared) | AM103: =VLOOKUP(C103,'12.2021 FAR'!$C$14:$AM$194,37,FALSE) -> Drop Boxes (shared) | AN103: 8 | AO103: 2021 | AP103: 2033 | AQ103: 2033.666667 | AR103: 105.8611111 | AS103: 1270.333333 | AT103: 1270.333333 | AU103: 0 | AV103: 1270.333333 | AW103: 13973.66667 | AX103: No
B104: 2010 | C104: 259578 | D104: P | E104: 40yd RO lidded drop boxes | F104: 1 | J104: 0 | K104: WASTEQUIP MAYFAB | M104: 40 YD RO Box | N104: 2021-08-09 | O104: 2021-08-09 | P104: 2010-21-0040-1 | Q104: 1200 | R104: 14050 | S104: 4516 | T104: 14056 | U104: 250.89 | V104: 4265.11 | W104: 94.08 | X104: 54260 | Y104: 31.36 | Z104: P | AB104: 20inv000022302 | AD104: Internal | AE104: A | AF104: SL | AH104: WCNX | AI104: 0 | AJ104: 0 | AL104: =IFERROR(VLOOKUP(C104,'12.2021 FAR'!$C$14:$AM$87,36,FALSE),VLOOKUP(C104,'[7]Asset Addition Form'!$B$8:$J$88,9,FALSE)) -> Drop Boxes (shared) | AM104: =VLOOKUP(C104,'12.2021 FAR'!$C$14:$AM$194,37,FALSE) -> Drop Boxes (shared) | AN104: 8 | AO104: 2021 | AP104: 2033 | AQ104: 2033.666667 | AR104: 31.36111111 | AS104: 376.3333333 | AT104: 376.3333333 | AU104: 0 | AV104: 376.3333333 | AW104: 4139.666667 | AX104: No
B105: 2010 | C105: 259577 | D105: P | E105: 40yd lidded RO boxes | F105: 2 | J105: 0 | K105: WASTEQUIP MAYFAB | M105: 40 YD RO Box | N105: 2021-08-06 | O105: 2021-08-06 | P105: 2010-21-0040-1 | Q105: 1200 | R105: 14050 | S105: 19760 | T105: 14056 | U105: 1097.78 | V105: 18662.22 | W105: 411.67 | X105: 54260 | Y105: 137.22 | Z105: P | AB105: 20inv000022304 | AD105: Internal | AE105: A | AF105: SL | AH105: WCNX | AI105: 0 | AJ105: 0 | AL105: =IFERROR(VLOOKUP(C105,'12.2021 FAR'!$C$14:$AM$87,36,FALSE),VLOOKUP(C105,'[7]Asset Addition Form'!$B$8:$J$88,9,FALSE)) -> Drop Boxes (shared) | AM105: =VLOOKUP(C105,'12.2021 FAR'!$C$14:$AM$194,37,FALSE) -> Drop Boxes (shared) | AN105: 8 | AO105: 2021 | AP105: 2033 | AQ105: 2033.666667 | AR105: 137.2222222 | AS105: 1646.666667 | AT105: 1646.666667 | AU105: 0 | AV105: 1646.666667 | AW105: 18113.33333 | AX105: No
B106: 2010 | C106: 259576 | D106: P | E106: 4 yd FEL slant garbage containers | F106: 12 | J106: 0 | K106: WASTEQUIP MAYFAB | M106: 4 YD FEL Container | N106: 2021-08-23 | O106: 2021-08-23 | P106: 2010-21-0037-3 | Q106: 1200 | R106: 14050 | S106: 11384.17 | T106: 14056 | U106: 553.4 | V106: 10830.77 | W106: 237.17 | X106: 54260 | Y106: 79.06 | Z106: P | AB106: 20INV000021130 | AD106: Internal | AE106: A | AF106: SL | AH106: WCNX | AI106: 0 | AJ106: 0 | AL106: =IFERROR(VLOOKUP(C106,'12.2021 FAR'!$C$14:$AM$87,36,FALSE),VLOOKUP(C106,'[7]Asset Addition Form'!$B$8:$J$88,9,FALSE)) -> Garbage Container (shared) | AM106: =VLOOKUP(C106,'12.2021 FAR'!$C$14:$AM$194,37,FALSE) -> Garbage Container (shared) | AN106: 8 | AO106: 2021 | AP106: 2033 | AQ106: 2033.666667 | AR106: 79.05673611 | AS106: 948.6808333 | AT106: 948.6808333 | AU106: 0 | AV106: 948.6808333 | AW106: 10435.48917 | AX106: No
B107: 2010 | C107: 259406 | D107: P | E107: 95gal county recycle carts | F107: 54 | J107: 0 | K107: REHRIG PACIFIC COMPANY | M107: Non-Container Audit | N107: 2021-07-06 | O107: 2021-07-06 | P107: 2010-21-0056-1 | Q107: 700 | R107: 14050 | S107: 4000 | T107: 14056 | U107: 428.58 | V107: 3571.42 | W107: 142.86 | X107: 54260 | Y107: 47.62 | Z107: P | AB107: 50179891 | AD107: Internal | AE107: A | AF107: SL | AH107: WCNX | AI107: 0 | AJ107: 0 | AL107: =IFERROR(VLOOKUP(C107,'12.2021 FAR'!$C$14:$AM$87,36,FALSE),VLOOKUP(C107,'[7]Asset Addition Form'!$B$8:$J$88,9,FALSE)) -> Recycle Carts (non-reg) | AM107: =VLOOKUP(C107,'12.2021 FAR'!$C$14:$AM$194,37,FALSE) -> Recycle Carts (non-reg) | AN107: 7 | AO107: 2021 | AP107: 2028 | AQ107: 2028.583333 | AR107: 47.61904762 | AS107: 571.4285714 | AT107: 571.4285714 | AU107: 0 | AV107: 571.4285714 | AW107: 3428.571429 | AX107: No
B108: 2010 | C108: 259405 | D108: P | E108: 95gal county recycle carts | F108: 135 | J108: 0 | K108: REHRIG PACIFIC COMPANY | M108: Non-Container Audit | N108: 2021-07-06 | O108: 2021-07-06 | P108: 2010-21-0056-1 | Q108: 700 | R108: 14050 | S108: 8317 | T108: 14056 | U108: 891.11 | V108: 7425.89 | W108: 297.04 | X108: 54260 | Y108: 99.02 | Z108: P | AB108: 50179891 | AD108: Internal | AE108: A | AF108: SL | AH108: WCNX | AI108: 0 | AJ108: 0 | AL108: =IFERROR(VLOOKUP(C108,'12.2021 FAR'!$C$14:$AM$87,36,FALSE),VLOOKUP(C108,'[7]Asset Addition Form'!$B$8:$J$88,9,FALSE)) -> Recycle Carts (non-reg) | AM108: =VLOOKUP(C108,'12.2021 FAR'!$C$14:$AM$194,37,FALSE) -> Recycle Carts (non-reg) | AN108: 7 | AO108: 2021 | AP108: 2028 | AQ108: 2028.583333 | AR108: 99.01190476 | AS108: 1188.142857 | AT108: 1188.142857 | AU108: 0 | AV108: 1188.142857 | AW108: 7128.857143 | AX108: No
B109: 2010 | C109: 259404 | D109: P | E109: 95gal county recycle carts | F109: 342 | J109: 0 | K109: REHRIG PACIFIC COMPANY | M109: Non-Container Audit | N109: 2021-07-06 | O109: 2021-07-06 | P109: 2010-21-0056-1 | Q109: 700 | R109: 14050 | S109: 20999.61 | T109: 14056 | U109: 2249.96 | V109: 18749.65 | W109: 749.99 | X109: 54260 | Y109: 250 | Z109: P | AB109: 50179891 | AD109: Internal | AE109: A | AF109: SL | AH109: WCNX | AI109: 0 | AJ109: 0 | AL109: =IFERROR(VLOOKUP(C109,'12.2021 FAR'!$C$14:$AM$87,36,FALSE),VLOOKUP(C109,'[7]Asset Addition Form'!$B$8:$J$88,9,FALSE)) -> Recycle Carts (non-reg) | AM109: =VLOOKUP(C109,'12.2021 FAR'!$C$14:$AM$194,37,FALSE) -> Recycle Carts (non-reg) | AN109: 7 | AO109: 2021 | AP109: 2028 | AQ109: 2028.583333 | AR109: 249.9953571 | AS109: 2999.944286 | AT109: 2999.944286 | AU109: 0 | AV109: 2999.944286 | AW109: 17999.66571 | AX109: No
B110: 2010 | C110: 259403 | D110: P | E110: 95gal county recycle carts | F110: 171 | J110: 0 | K110: REHRIG PACIFIC COMPANY | M110: Non-Container Audit | N110: 2021-07-06 | O110: 2021-07-06 | P110: 2010-21-0056-1 | Q110: 700 | R110: 14050 | S110: 10500 | T110: 14056 | U110: 1125 | V110: 9375 | W110: 375 | X110: 54260 | Y110: 125 | Z110: P | AB110: 50179891 | AD110: Internal | AE110: A | AF110: SL | AH110: WCNX | AI110: 0 | AJ110: 0 | AL110: =IFERROR(VLOOKUP(C110,'12.2021 FAR'!$C$14:$AM$87,36,FALSE),VLOOKUP(C110,'[7]Asset Addition Form'!$B$8:$J$88,9,FALSE)) -> Recycle Carts (non-reg) | AM110: =VLOOKUP(C110,'12.2021 FAR'!$C$14:$AM$194,37,FALSE) -> Recycle Carts (non-reg) | AN110: 7 | AO110: 2021 | AP110: 2028 | AQ110: 2028.583333 | AR110: 125 | AS110: 1500 | AT110: 1500 | AU110: 0 | AV110: 1500 | AW110: 9000 | AX110: No
B111: 2010 | C111: 259390 | D111: P | E111: 65gal county recycle carts | F111: 194 | J111: 0 | K111: REHRIG PACIFIC COMPANY | M111: Non-Container Audit | N111: 2021-07-06 | O111: 2021-07-06 | P111: 2010-21-0056-1 | Q111: 700 | R111: 14050 | S111: 10000 | T111: 14056 | U111: 1071.43 | V111: 8928.57 | W111: 357.14 | X111: 54260 | Y111: 119.04 | Z111: P | AB111: 50179891 | AD111: Internal | AE111: A | AF111: SL | AH111: WCNX | AI111: 0 | AJ111: 0 | AL111: =IFERROR(VLOOKUP(C111,'12.2021 FAR'!$C$14:$AM$87,36,FALSE),VLOOKUP(C111,'[7]Asset Addition Form'!$B$8:$J$88,9,FALSE)) -> Recycle Carts (non-reg) | AM111: =VLOOKUP(C111,'12.2021 FAR'!$C$14:$AM$194,37,FALSE) -> Recycle Carts (non-reg) | AN111: 7 | AO111: 2021 | AP111: 2028 | AQ111: 2028.583333 | AR111: 119.047619 | AS111: 1428.571429 | AT111: 1428.571429 | AU111: 0 | AV111: 1428.571429 | AW111: 8571.428571 | AX111: No
B112: 2010 | C112: 259389 | D112: P | E112: 65gal county recycle carts | F112: 371 | J112: 0 | K112: REHRIG PACIFIC COMPANY | M112: Non-Container Audit | N112: 2021-07-06 | O112: 2021-07-06 | P112: 2010-21-0056-1 | Q112: 700 | R112: 14050 | S112: 20500 | T112: 14056 | U112: 2196.43 | V112: 18303.57 | W112: 732.14 | X112: 54260 | Y112: 244.04 | Z112: P | AB112: 50179891 | AD112: Internal | AE112: A | AF112: SL | AH112: WCNX | AI112: 0 | AJ112: 0 | AL112: =IFERROR(VLOOKUP(C112,'12.2021 FAR'!$C$14:$AM$87,36,FALSE),VLOOKUP(C112,'[7]Asset Addition Form'!$B$8:$J$88,9,FALSE)) -> Recycle Carts (non-reg) | AM112: =VLOOKUP(C112,'12.2021 FAR'!$C$14:$AM$194,37,FALSE) -> Recycle Carts (non-reg) | AN112: 7 | AO112: 2021 | AP112: 2028 | AQ112: 2028.583333 | AR112: 244.047619 | AS112: 2928.571429 | AT112: 2928.571429 | AU112: 0 | AV112: 2928.571429 | AW112: 17571.42857 | AX112: No
B113: 2010 | C113: 259388 | D113: P | E113: 65gal county recycle carts | F113: 371 | J113: 0 | K113: REHRIG PACIFIC COMPANY | M113: Non-Container Audit | N113: 2021-07-06 | O113: 2021-07-06 | P113: 2010-21-0056-1 | Q113: 700 | R113: 14050 | S113: 20500 | T113: 14056 | U113: 2196.43 | V113: 18303.57 | W113: 732.14 | X113: 54260 | Y113: 244.04 | Z113: P | AB113: 50179891 | AD113: Internal | AE113: A | AF113: SL | AH113: WCNX | AI113: 0 | AJ113: 0 | AL113: =IFERROR(VLOOKUP(C113,'12.2021 FAR'!$C$14:$AM$87,36,FALSE),VLOOKUP(C113,'[7]Asset Addition Form'!$B$8:$J$88,9,FALSE)) -> Recycle Carts (non-reg) | AM113: =VLOOKUP(C113,'12.2021 FAR'!$C$14:$AM$194,37,FALSE) -> Recycle Carts (non-reg) | AN113: 7 | AO113: 2021 | AP113: 2028 | AQ113: 2028.583333 | AR113: 244.047619 | AS113: 2928.571429 | AT113: 2928.571429 | AU113: 0 | AV113: 2928.571429 | AW113: 17571.42857 | AX113: No
B114: 2010 | C114: 259381 | D114: P | E114: 40yd lidded RO boxes | F114: 2 | J114: 0 | K114: WASTEQUIP MAYFAB | M114: 40 YD RO Box | N114: 2021-08-02 | O114: 2021-08-02 | P114: 2010-21-0038-1 | Q114: 1200 | R114: 14050 | S114: 18316 | T114: 14056 | U114: 1017.55 | V114: 17298.45 | W114: 381.58 | X114: 54260 | Y114: 127.19 | Z114: P | AB114: 20inv000021872 | AD114: Internal | AE114: A | AF114: SL | AH114: WCNX | AI114: 0 | AJ114: 0 | AL114: =IFERROR(VLOOKUP(C114,'12.2021 FAR'!$C$14:$AM$87,36,FALSE),VLOOKUP(C114,'[7]Asset Addition Form'!$B$8:$J$88,9,FALSE)) -> Drop Boxes (shared) | AM114: =VLOOKUP(C114,'12.2021 FAR'!$C$14:$AM$194,37,FALSE) -> Drop Boxes (shared) | AN114: 8 | AO114: 2021 | AP114: 2033 | AQ114: 2033.666667 | AR114: 127.1944444 | AS114: 1526.333333 | AT114: 1526.333333 | AU114: 0 | AV114: 1526.333333 | AW114: 16789.66667 | AX114: No
B115: 2010 | C115: 259380 | D115: P | E115: 40yd lidded RO boxes | F115: 2 | J115: 0 | K115: WASTEQUIP MAYFAB | M115: 40 YD RO Box | N115: 2021-07-30 | O115: 2021-07-30 | P115: 2010-21-0038-1 | Q115: 1200 | R115: 14050 | S115: 18316 | T115: 14056 | U115: 1017.55 | V115: 17298.45 | W115: 381.58 | X115: 54260 | Y115: 127.19 | Z115: P | AB115: 20inv000021608 | AD115: Internal | AE115: A | AF115: SL | AH115: WCNX | AI115: 0 | AJ115: 0 | AL115: =IFERROR(VLOOKUP(C115,'12.2021 FAR'!$C$14:$AM$87,36,FALSE),VLOOKUP(C115,'[7]Asset Addition Form'!$B$8:$J$88,9,FALSE)) -> Drop Boxes (shared) | AM115: =VLOOKUP(C115,'12.2021 FAR'!$C$14:$AM$194,37,FALSE) -> Drop Boxes (shared) | AN115: 7 | AO115: 2021 | AP115: 2033 | AQ115: 2033.583333 | AR115: 127.1944444 | AS115: 1526.333333 | AT115: 1526.333333 | AU115: 0 | AV115: 1526.333333 | AW115: 16789.66667 | AX115: No
B116: 2010 | C116: 259379 | D116: P | E116: 40yd lidded RO box | F116: 2 | J116: 0 | K116: WASTEQUIP MAYFAB | M116: 40 YD RO Box | N116: 2021-07-31 | O116: 2021-07-31 | P116: 2010-21-0038-1 | Q116: 1200 | R116: 14050 | S116: 18316 | T116: 14056 | U116: 1017.55 | V116: 17298.45 | W116: 381.58 | X116: 54260 | Y116: 127.19 | Z116: P | AB116: 20inv000021798 | AD116: Internal | AE116: A | AF116: SL | AH116: WCNX | AI116: 0 | AJ116: 0 | AL116: =IFERROR(VLOOKUP(C116,'12.2021 FAR'!$C$14:$AM$87,36,FALSE),VLOOKUP(C116,'[7]Asset Addition Form'!$B$8:$J$88,9,FALSE)) -> Drop Boxes (shared) | AM116: =VLOOKUP(C116,'12.2021 FAR'!$C$14:$AM$194,37,FALSE) -> Drop Boxes (shared) | AN116: 7 | AO116: 2021 | AP116: 2033 | AQ116: 2033.583333 | AR116: 127.1944444 | AS116: 1526.333333 | AT116: 1526.333333 | AU116: 0 | AV116: 1526.333333 | AW116: 16789.66667 | AX116: No
B117: 2010 | C117: 259372 | D117: P | E117: 30yd lidded RO boxes | F117: 2 | J117: 0 | K117: WASTEQUIP MAYFAB | M117: 30 YD RO Box | N117: 2021-07-29 | O117: 2021-07-29 | P117: 2010-21-0040-1 | Q117: 1200 | R117: 14050 | S117: 17930 | T117: 14056 | U117: 996.11 | V117: 16933.89 | W117: 373.54 | X117: 54260 | Y117: 124.51 | Z117: P | AB117: 20inv000021484 | AD117: Internal | AE117: A | AF117: SL | AH117: WCNX | AI117: 0 | AJ117: 0 | AL117: =IFERROR(VLOOKUP(C117,'12.2021 FAR'!$C$14:$AM$87,36,FALSE),VLOOKUP(C117,'[7]Asset Addition Form'!$B$8:$J$88,9,FALSE)) -> Drop Boxes (shared) | AM117: =VLOOKUP(C117,'12.2021 FAR'!$C$14:$AM$194,37,FALSE) -> Drop Boxes (shared) | AN117: 7 | AO117: 2021 | AP117: 2033 | AQ117: 2033.583333 | AR117: 124.5138889 | AS117: 1494.166667 | AT117: 1494.166667 | AU117: 0 | AV117: 1494.166667 | AW117: 16435.83333 | AX117: No
B118: 2010 | C118: 259371 | D118: P | E118: 30yd lidded RO boxes | F118: 2 | J118: 0 | K118: WASTEQUIP MAYFAB | M118: 30 YD RO Box | N118: 2021-07-28 | O118: 2021-07-28 | P118: 2010-21-0040-1 | Q118: 1200 | R118: 14050 | S118: 17930 | T118: 14056 | U118: 996.11 | V118: 16933.89 | W118: 373.54 | X118: 54260 | Y118: 124.51 | Z118: P | AB118: 20inv000021412 | AD118: Internal | AE118: A | AF118: SL | AH118: WCNX | AI118: 0 | AJ118: 0 | AL118: =IFERROR(VLOOKUP(C118,'12.2021 FAR'!$C$14:$AM$87,36,FALSE),VLOOKUP(C118,'[7]Asset Addition Form'!$B$8:$J$88,9,FALSE)) -> Drop Boxes (shared) | AM118: =VLOOKUP(C118,'12.2021 FAR'!$C$14:$AM$194,37,FALSE) -> Drop Boxes (shared) | AN118: 7 | AO118: 2021 | AP118: 2033 | AQ118: 2033.583333 | AR118: 124.5138889 | AS118: 1494.166667 | AT118: 1494.166667 | AU118: 0 | AV118: 1494.166667 | AW118: 16435.83333 | AX118: No
B119: 2010 | C119: 259370 | D119: P | E119: 30yd lidded RO boxes | F119: 2 | J119: 0 | K119: WASTEQUIP MAYFAB | M119: 30 YD RO Box | N119: 2021-07-29 | O119: 2021-07-29 | P119: 2010-21-0040-1 | Q119: 1200 | R119: 14050 | S119: 17930 | T119: 14056 | U119: 996.11 | V119: 16933.89 | W119: 373.54 | X119: 54260 | Y119: 124.51 | Z119: P | AB119: 20inv000021502 | AD119: Internal | AE119: A | AF119: SL | AH119: WCNX | AI119: 0 | AJ119: 0 | AL119: =IFERROR(VLOOKUP(C119,'12.2021 FAR'!$C$14:$AM$87,36,FALSE),VLOOKUP(C119,'[7]Asset Addition Form'!$B$8:$J$88,9,FALSE)) -> Drop Boxes (shared) | AM119: =VLOOKUP(C119,'12.2021 FAR'!$C$14:$AM$194,37,FALSE) -> Drop Boxes (shared) | AN119: 7 | AO119: 2021 | AP119: 2033 | AQ119: 2033.583333 | AR119: 124.5138889 | AS119: 1494.166667 | AT119: 1494.166667 | AU119: 0 | AV119: 1494.166667 | AW119: 16435.83333 | AX119: No
B120: 2010 | C120: 259367 | D120: P | E120: 20yd RO boxes | F120: 2 | J120: 0 | K120: WASTEQUIP MAYFAB | M120: 20 YD RO Box | N120: 2021-07-27 | O120: 2021-07-27 | P120: 2010-21-0040-1 | Q120: 1200 | R120: 14050 | S120: 11410 | T120: 14056 | U120: 633.89 | V120: 10776.11 | W120: 237.71 | X120: 54260 | Y120: 79.24 | Z120: P | AB120: 20inv000021262 | AD120: Internal | AE120: A | AF120: SL | AH120: WCNX | AI120: 0 | AJ120: 0 | AL120: =IFERROR(VLOOKUP(C120,'12.2021 FAR'!$C$14:$AM$87,36,FALSE),VLOOKUP(C120,'[7]Asset Addition Form'!$B$8:$J$88,9,FALSE)) -> Drop Boxes (shared) | AM120: =VLOOKUP(C120,'12.2021 FAR'!$C$14:$AM$194,37,FALSE) -> Drop Boxes (shared) | AN120: 7 | AO120: 2021 | AP120: 2033 | AQ120: 2033.583333 | AR120: 79.23611111 | AS120: 950.8333333 | AT120: 950.8333333 | AU120: 0 | AV120: 950.8333333 | AW120: 10459.16667 | AX120: No
B121: 2010 | C121: 259366 | D121: P | E121: 20yd RO boxes | F121: 2 | J121: 0 | K121: WASTEQUIP MAYFAB | M121: 20 YD RO Box | N121: 2021-07-27 | O121: 2021-07-27 | P121: 2010-21-0040-1 | Q121: 1200 | R121: 14050 | S121: 11410 | T121: 14056 | U121: 633.89 | V121: 10776.11 | W121: 237.71 | X121: 54260 | Y121: 79.24 | Z121: P | AB121: 20inv000021252 | AD121: Internal | AE121: A | AF121: SL | AH121: WCNX | AI121: 0 | AJ121: 0 | AL121: =IFERROR(VLOOKUP(C121,'12.2021 FAR'!$C$14:$AM$87,36,FALSE),VLOOKUP(C121,'[7]Asset Addition Form'!$B$8:$J$88,9,FALSE)) -> Drop Boxes (shared) | AM121: =VLOOKUP(C121,'12.2021 FAR'!$C$14:$AM$194,37,FALSE) -> Drop Boxes (shared) | AN121: 7 | AO121: 2021 | AP121: 2033 | AQ121: 2033.583333 | AR121: 79.23611111 | AS121: 950.8333333 | AT121: 950.8333333 | AU121: 0 | AV121: 950.8333333 | AW121: 10459.16667 | AX121: No
B122: 2010 | C122: 259365 | D122: P | E122: 20yd RO boxes | F122: 2 | J122: 0 | K122: WASTEQUIP MAYFAB | M122: 20 YD RO Box | N122: 2021-07-26 | O122: 2021-07-26 | P122: 2010-21-0040-1 | Q122: 1200 | R122: 14050 | S122: 11410 | T122: 14056 | U122: 633.89 | V122: 10776.11 | W122: 237.71 | X122: 54260 | Y122: 79.24 | Z122: P | AB122: 20inv000021154 | AD122: Internal | AE122: A | AF122: SL | AH122: WCNX | AI122: 0 | AJ122: 0 | AL122: =IFERROR(VLOOKUP(C122,'12.2021 FAR'!$C$14:$AM$87,36,FALSE),VLOOKUP(C122,'[7]Asset Addition Form'!$B$8:$J$88,9,FALSE)) -> Drop Boxes (shared) | AM122: =VLOOKUP(C122,'12.2021 FAR'!$C$14:$AM$194,37,FALSE) -> Drop Boxes (shared) | AN122: 7 | AO122: 2021 | AP122: 2033 | AQ122: 2033.583333 | AR122: 79.23611111 | AS122: 950.8333333 | AT122: 950.8333333 | AU122: 0 | AV122: 950.8333333 | AW122: 10459.16667 | AX122: No
B123: 2010 | C123: 259364 | D123: P | E123: 20yd lidded RO boxes | F123: 2 | J123: 0 | K123: WASTEQUIP MAYFAB | M123: 20 YD RO Box | N123: 2021-07-22 | O123: 2021-07-22 | P123: 2010-21-0038-1 | Q123: 1200 | R123: 14050 | S123: 15104 | T123: 14056 | U123: 839.12 | V123: 14264.88 | W123: 314.67 | X123: 54260 | Y123: 104.89 | Z123: P | AB123: 20inv000020936 | AD123: Internal | AE123: A | AF123: SL | AH123: WCNX | AI123: 0 | AJ123: 0 | AL123: =IFERROR(VLOOKUP(C123,'12.2021 FAR'!$C$14:$AM$87,36,FALSE),VLOOKUP(C123,'[7]Asset Addition Form'!$B$8:$J$88,9,FALSE)) -> Drop Boxes (shared) | AM123: =VLOOKUP(C123,'12.2021 FAR'!$C$14:$AM$194,37,FALSE) -> Drop Boxes (shared) | AN123: 7 | AO123: 2021 | AP123: 2033 | AQ123: 2033.583333 | AR123: 104.8888889 | AS123: 1258.666667 | AT123: 1258.666667 | AU123: 0 | AV123: 1258.666667 | AW123: 13845.33333 | AX123: No
B124: 2010 | C124: 259361 | D124: P | E124: 14gal Glass Recycle bins | F124: 6000 | J124: 0 | K124: REHRIG PACIFIC COMPANY | M124: Non-Container Audit | N124: 2021-08-13 | O124: 2021-08-13 | P124: 2010-21-0059-1 | Q124: 500 | R124: 14050 | S124: 57907.28 | T124: 14056 | U124: 7720.97 | V124: 50186.31 | W124: 2895.37 | X124: 54260 | Y124: 965.13 | Z124: P | AB124: 50187459 | AD124: Internal | AE124: A | AF124: SL | AH124: WCNX | AI124: 0 | AJ124: 0 | AL124: =IFERROR(VLOOKUP(C124,'12.2021 FAR'!$C$14:$AM$87,36,FALSE),VLOOKUP(C124,'[7]Asset Addition Form'!$B$8:$J$88,9,FALSE)) -> Recycle Carts (non-reg) | AM124: =VLOOKUP(C124,'12.2021 FAR'!$C$14:$AM$194,37,FALSE) -> Recycle Carts (non-reg) | AN124: 8 | AO124: 2021 | AP124: 2026 | AQ124: 2026.666667 | AR124: 965.1213333 | AS124: 11581.456 | AT124: 11581.456 | AU124: 0 | AV124: 11581.456 | AW124: 46325.824 | AX124: No
B125: 2010 | C125: 259354 | D125: 256080 | E125: signage for new recycle truck #741 | J125: 2021 | K125: NORTH AMERICAN DECAL INC. | M125: Non-Rolling Stock | N125: 2021-07-06 | O125: 2021-07-06 | P125: 2010-21-0006-1 | Q125: 1000 | R125: 14040 | S125: 526.05 | T125: 14046 | U125: 39.45 | V125: 486.6 | W125: 13.15 | X125: 51260 | Y125: 4.38 | Z125: P | AB125: 429143 | AD125: Internal | AE125: A | AF125: SL | AH125: WCNX | AI125: 0 | AJ125: 0 | AK125: 741 | AL125: =IFERROR(VLOOKUP(C125,'12.2021 FAR'!$C$14:$AM$87,36,FALSE),VLOOKUP(C125,'[7]Asset Addition Form'!$B$8:$J$88,9,FALSE)) -> Recycle Trucks | AM125: =VLOOKUP(C125,'12.2021 FAR'!$C$14:$AM$194,37,FALSE) -> Recycle Trucks | AN125: 7 | AO125: 2021 | AP125: 2031 | AQ125: 2031.583333 | AR125: 4.38375 | AS125: 52.605 | AT125: 52.605 | AU125: 0 | AV125: 52.605 | AW125: 473.445 | AX125: No
B126: 2010 | C126: 259057 | D126: 256080 | E126: Fire Suppresion | J126: 0 | M126: Non-Rolling Stock | N126: 2021-07-16 | O126: 2021-07-16 | P126: 2010-21-0006 | Q126: 300 | R126: 14040 | S126: 629.82 | T126: 14046 | U126: 139.97 | V126: 489.85 | W126: 52.49 | X126: 51260 | Y126: 17.5 | Z126: P | AD126: Internal | AE126: A | AF126: SL | AH126: WCNX | AI126: 0 | AJ126: 0 | AK126: 741 | AL126: =IFERROR(VLOOKUP(C126,'12.2021 FAR'!$C$14:$AM$87,36,FALSE),VLOOKUP(C126,'[7]Asset Addition Form'!$B$8:$J$88,9,FALSE)) -> Recycle Trucks | AM126: =VLOOKUP(C126,'12.2021 FAR'!$C$14:$AM$194,37,FALSE) -> Recycle Trucks | AN126: 7 | AO126: 2021 | AP126: 2024 | AQ126: 2024.583333 | AR126: 17.495 | AS126: 209.94 | AT126: 209.94 | AU126: 0 | AV126: 209.94 | AW126: 419.88 | AX126: No
B127: 2010 | C127: 259056 | D127: 256080 | E127: Body Wrap | J127: 0 | M127: Non-Rolling Stock | N127: 2021-07-16 | O127: 2021-07-16 | P127: 2010-21-0006 | Q127: 1000 | R127: 14040 | S127: 1355 | T127: 14046 | U127: 90.34 | V127: 1264.66 | W127: 33.88 | X127: 51260 | Y127: 11.3 | Z127: P | AD127: Internal | AE127: A | AF127: SL | AH127: WCNX | AI127: 0 | AJ127: 0 | AK127: 741 | AL127: =IFERROR(VLOOKUP(C127,'12.2021 FAR'!$C$14:$AM$87,36,FALSE),VLOOKUP(C127,'[7]Asset Addition Form'!$B$8:$J$88,9,FALSE)) -> Recycle Trucks | AM127: =VLOOKUP(C127,'12.2021 FAR'!$C$14:$AM$194,37,FALSE) -> Recycle Trucks | AN127: 7 | AO127: 2021 | AP127: 2031 | AQ127: 2031.583333 | AR127: 11.29166667 | AS127: 135.5 | AT127: 135.5 | AU127: 0 | AV127: 135.5 | AW127: 1219.5 | AX127: No
B128: 2010 | C128: 258608 | D128: 241638 | E128: Deposit for truck ID 8473 | J128: 2020 | M128: Non-Rolling Stock | N128: 2020-10-26 | O128: 2020-10-26 | P128: 2010-20-0039 | Q128: 1000 | R128: 14040 | S128: 47500 | T128: 14046 | U128: 6729.17 | V128: 40770.83 | W128: 1187.5 | X128: 51260 | Y128: 395.83 | Z128: P | AD128: Internal | AE128: A | AF128: SL | AG128: 2021-07-31 | AH128: WCNX | AI128: 0 | AJ128: 3562.5 | AK128: 742 | AL128: =IFERROR(VLOOKUP(C128,'12.2021 FAR'!$C$14:$AM$87,36,FALSE),VLOOKUP(C128,'[7]Asset Addition Form'!$B$8:$J$88,9,FALSE)) -> Recycle Trucks | AM128: =VLOOKUP(C128,'12.2021 FAR'!$C$14:$AM$194,37,FALSE) -> Recycle Trucks | AN128: 10 | AO128: 2020 | AP128: 2030 | AQ128: 2030.833333 | AR128: 395.8333333 | AS128: 4750 | AT128: 4750 | AU128: 4750 | AV128: 9500 | AW128: 38000 | AX128: No
B129: 2010 | C129: 258543 | D129: 256078 | E129: Fire Suppresion | J129: 0 | M129: Non-Rolling Stock | N129: 2021-07-06 | O129: 2021-07-06 | P129: 2010-21-0005 | Q129: 300 | R129: 14040 | S129: 629.82 | T129: 14046 | U129: 157.46 | V129: 472.36 | W129: 52.49 | X129: 51260 | Y129: 17.5 | Z129: P | AD129: Internal | AE129: A | AF129: SL | AH129: WCNX | AI129: 0 | AJ129: 0 | AK129: 740 | AL129: =IFERROR(VLOOKUP(C129,'12.2021 FAR'!$C$14:$AM$87,36,FALSE),VLOOKUP(C129,'[7]Asset Addition Form'!$B$8:$J$88,9,FALSE)) -> Recycle Trucks | AM129: =VLOOKUP(C129,'12.2021 FAR'!$C$14:$AM$194,37,FALSE) -> Recycle Trucks | AN129: 7 | AO129: 2021 | AP129: 2024 | AQ129: 2024.583333 | AR129: 17.495 | AS129: 209.94 | AT129: 209.94 | AU129: 0 | AV129: 209.94 | AW129: 419.88 | AX129: No
B130: 2010 | C130: 258542 | D130: 256078 | E130: Body Wrap | J130: 0 | M130: Non-Rolling Stock | N130: 2021-07-06 | O130: 2021-07-06 | P130: 2010-21-0005 | Q130: 1000 | R130: 14040 | S130: 1355 | T130: 14046 | U130: 101.63 | V130: 1253.37 | W130: 33.88 | X130: 51260 | Y130: 11.3 | Z130: P | AD130: Internal | AE130: A | AF130: SL | AH130: WCNX | AI130: 0 | AJ130: 0 | AK130: 740 | AL130: =IFERROR(VLOOKUP(C130,'12.2021 FAR'!$C$14:$AM$87,36,FALSE),VLOOKUP(C130,'[7]Asset Addition Form'!$B$8:$J$88,9,FALSE)) -> Recycle Trucks | AM130: =VLOOKUP(C130,'12.2021 FAR'!$C$14:$AM$194,37,FALSE) -> Recycle Trucks | AN130: 7 | AO130: 2021 | AP130: 2031 | AQ130: 2031.583333 | AR130: 11.29166667 | AS130: 135.5 | AT130: 135.5 | AU130: 0 | AV130: 135.5 | AW130: 1219.5 | AX130: No
B131: 2010 | C131: 258541 | D131: 256079 | E131: fire suppression system for new recycle truck | J131: 0 | M131: Non-Rolling Stock | N131: 2021-07-06 | O131: 2021-07-06 | P131: 2010-21-0004 | Q131: 300 | R131: 14040 | S131: 629.82 | T131: 14046 | U131: 157.46 | V131: 472.36 | W131: 52.49 | X131: 51260 | Y131: 17.5 | Z131: P | AD131: Internal | AE131: A | AF131: SL | AH131: WCNX | AI131: 0 | AJ131: 0 | AK131: 739 | AL131: =IFERROR(VLOOKUP(C131,'12.2021 FAR'!$C$14:$AM$87,36,FALSE),VLOOKUP(C131,'[7]Asset Addition Form'!$B$8:$J$88,9,FALSE)) -> Recycle Trucks | AM131: =VLOOKUP(C131,'12.2021 FAR'!$C$14:$AM$194,37,FALSE) -> Recycle Trucks | AN131: 7 | AO131: 2021 | AP131: 2024 | AQ131: 2024.583333 | AR131: 17.495 | AS131: 209.94 | AT131: 209.94 | AU131: 0 | AV131: 209.94 | AW131: 419.88 | AX131: No
B132: 2010 | C132: 257713 | D132: P | E132: 2021 Peterbilt Recycle Truck | H132: 3BPDLK0X7MF111332 | J132: 2021 | M132: Recycle Truck | N132: 2021-08-30 | O132: 2021-08-30 | P132: 2010-21-0023 | Q132: 1000 | R132: 14040 | S132: 416483.63 | T132: 14046 | U132: 24294.88 | V132: 392188.75 | W132: 10412.09 | X132: 51260 | Y132: 3470.7 | Z132: P | AD132: Internal | AE132: A | AF132: SL | AH132: WCNX | AI132: 0 | AJ132: 0 | AK132: 742 | AL132: =IFERROR(VLOOKUP(C132,'12.2021 FAR'!$C$14:$AM$87,36,FALSE),VLOOKUP(C132,'[7]Asset Addition Form'!$B$8:$J$88,9,FALSE)) -> Recycle Trucks | AM132: =VLOOKUP(C132,'12.2021 FAR'!$C$14:$AM$194,37,FALSE) -> Recycle Trucks | AN132: 8 | AO132: 2021 | AP132: 2031 | AQ132: 2031.666667 | AR132: 3470.696917 | AS132: 41648.363 | AT132: 41648.363 | AU132: 0 | AV132: 41648.363 | AW132: 374835.267 | AX132: No
B133: 2010 | C133: 257538 | D133: 253993 | E133: Security Cameras-Replacing cameras | F133: 0 | J133: 0 | K133: NW SECURITY AND CONSTRUCT | N133: 2021-06-01 | O133: 2021-06-01 | P133: 2010-21-0034-1 | Q133: 500 | R133: 14070 | S133: 7371.2 | T133: 14076 | U133: 1228.53 | V133: 6142.67 | W133: 368.56 | X133: 51260 | Y133: 122.85 | Z133: P | AB133: 4698 | AD133: Internal | AE133: A | AF133: SL | AH133: WCNX | AI133: 0 | AJ133: 0 | AL133: =IFERROR(VLOOKUP(C133,'12.2021 FAR'!$C$14:$AM$87,36,FALSE),VLOOKUP(C133,'[7]Asset Addition Form'!$B$8:$J$88,9,FALSE)) -> Shared Leasehold/Property Imprv | AM133: =VLOOKUP(C133,'12.2021 FAR'!$C$14:$AM$194,37,FALSE) -> Shared Leasehold/Property Imprv | AN133: 6 | AO133: 2021 | AP133: 2026 | AQ133: 2026.5 | AR133: 122.8533333 | AS133: 1474.24 | AT133: 1474.24 | AU133: 0 | AV133: 1474.24 | AW133: 5896.96 | AX133: No
B134: 2010 | C134: 256570 | D134: P | E134: 30yd Rolloff Containers & 2 Lids WV | F134: 4 | H134: 0 | J134: 0 | K134: WASTEQUIP WASHINGTON | M134: 30 YD RO Box | N134: 2007-10-02 | O134: 2007-10-02 | P134: 07-2051-417 | Q134: 1200 | R134: 14050 | S134: 24416.42 | T134: 14056 | U134: 24416.42 | V134: 0 | W134: 0 | X134: 54260 | Y134: 0 | Z134: P | AB134: 37110887 | AD134: Internal | AE134: A | AF134: SL | AG134: 2021-07-31 | AH134: WCNX | AI134: 0 | AJ134: 24416.42 | AL134: =IFERROR(VLOOKUP(C134,'12.2021 FAR'!$C$14:$AM$87,36,FALSE),VLOOKUP(C134,'[7]Asset Addition Form'!$B$8:$J$88,9,FALSE)) -> Drop Boxes (shared) | AM134: =VLOOKUP(C134,'12.2021 FAR'!$C$14:$AM$194,37,FALSE) -> Drop Boxes (shared) | AN134: 10 | AO134: 2007 | AP134: 2019 | AQ134: 2019.833333 | AR134: 169.5584722 | AS134: 2034.701667 | AT134: 0 | AU134: 24416.42 | AV134: 24416.42 | AW134: 0 | AX134: No
B135: 2010 | C135: 256569 | D135: P | E135: 30 Yd Drop Boxes w/ Lids (WV) | F135: 1 | J135: 0 | K135: Cascade Container | M135: 30 YD RO Box | N135: 2003-12-31 | O135: 2003-12-31 | P135: 03-2051-021 | Q135: 1200 | R135: 14050 | S135: 4819.46 | T135: 14056 | U135: 4819.46 | V135: 0 | W135: 0 | X135: 54260 | Y135: 0 | Z135: P | AB135: 2301189 | AD135: Internal | AE135: A | AF135: SL | AG135: 2021-07-31 | AH135: WCNX | AI135: 0 | AJ135: 4819.46 | AL135: =IFERROR(VLOOKUP(C135,'12.2021 FAR'!$C$14:$AM$87,36,FALSE),VLOOKUP(C135,'[7]Asset Addition Form'!$B$8:$J$88,9,FALSE)) -> Drop Boxes (shared) | AM135: =VLOOKUP(C135,'12.2021 FAR'!$C$14:$AM$194,37,FALSE) -> Drop Boxes (shared) | AN135: 12 | AO135: 2003 | AP135: 2015 | AQ135: 2016 | AR135: 33.46847222 | AS135: 401.6216667 | AT135: 0 | AU135: 4819.46 | AV135: 4819.46 | AW135: 0 | AX135: No
B136: 2010 | C136: 256568 | D136: P | E136: 30 YD Roll Off Containers | F136: 1 | J136: 0 | M136: 30 YD RO Box | N136: 1999-03-01 | O136: 1999-03-01 | Q136: 1200 | R136: 14050 | S136: 1381.7 | T136: 14056 | U136: 1381.7 | V136: 0 | W136: 0 | X136: 54260 | Y136: 0 | Z136: A | AA136: CRC | AD136: Internal | AE136: A | AF136: SL | AG136: 2021-07-31 | AH136: WCNX | AI136: 0 | AJ136: 1381.7 | AL136: =IFERROR(VLOOKUP(C136,'12.2021 FAR'!$C$14:$AM$87,36,FALSE),VLOOKUP(C136,'[7]Asset Addition Form'!$B$8:$J$88,9,FALSE)) -> Drop Boxes (shared) | AM136: =VLOOKUP(C136,'12.2021 FAR'!$C$14:$AM$194,37,FALSE) -> Drop Boxes (shared) | AN136: 3 | AO136: 1999 | AP136: 2011 | AQ136: 2011.25 | AR136: 9.595138889 | AS136: 115.1416667 | AT136: 0 | AU136: 1381.7 | AV136: 1381.7 | AW136: 0 | AX136: No
B137: 2010 | C137: 256337 | D137: P | E137: 30yd RO lidded drop boxes | F137: 2 | J137: 0 | K137: WASTEQUIP MAYFAB | M137: 30 YD RO Box | N137: 2021-04-10 | O137: 2021-04-10 | P137: 2010-21-0031-1 | Q137: 1200 | R137: 14050 | S137: 14837.55 | T137: 14056 | U137: 1236.47 | V137: 13601.08 | W137: 309.12 | X137: 54260 | Y137: 103.04 | Z137: P | AB137: 20inv000010598 | AD137: Internal | AE137: A | AF137: SL | AH137: WCNX | AI137: 0 | AJ137: 0
B138: 2010 | C138: 256336 | D138: P | E138: 30yd RO Containers | F138: 2 | J138: 0 | K138: WASTEQUIP MAYFAB | M138: 30 YD RO Box | N138: 2021-07-16 | O138: 2021-07-16 | P138: 2010-21-0038-1 | Q138: 1200 | R138: 14050 | S138: 16708 | T138: 14056 | U138: 928.22 | V138: 15779.78 | W138: 348.08 | X138: 54260 | Y138: 116.02 | Z138: P | AB138: 20inv000020564 | AD138: Internal | AE138: A | AF138: SL | AH138: WCNX | AI138: 0 | AJ138: 0
B139: 2010 | C139: 256335 | D139: P | E139: 30yd RO | F139: 2 | J139: 0 | K139: WASTEQUIP MAYFAB | M139: 30 YD RO Box | N139: 2021-07-15 | O139: 2021-07-15 | P139: 2010-21-0038-1 | Q139: 1200 | R139: 14050 | S139: 16708 | T139: 14056 | U139: 1044.25 | V139: 15663.75 | W139: 348.08 | X139: 54260 | Y139: 116.02 | Z139: P | AB139: 20inv000020436 | AD139: Internal | AE139: A | AF139: SL | AH139: WCNX | AI139: 0 | AJ139: 0
B140: 2010 | C140: 256332 | D140: P | E140: 20yd RO lidded drop boxes | F140: 2 | J140: 0 | K140: WASTEQUIP MAYFAB | M140: 20 YD RO Box | N140: 2021-07-19 | O140: 2021-07-19 | P140: 2010-21-0038-1 | Q140: 1200 | R140: 14050 | S140: 15104 | T140: 14056 | U140: 839.12 | V140: 14264.88 | W140: 314.67 | X140: 54260 | Y140: 104.89 | Z140: P | AB140: 20inv000020666 | AD140: Internal | AE140: A | AF140: SL | AH140: WCNX | AI140: 0 | AJ140: 0
B141: 2010 | C141: 256331 | D141: P | E141: 20yd RO drop boxes | F141: 2 | J141: 0 | K141: WASTEQUIP MAYFAB | M141: 20 YD RO Box | N141: 2021-07-13 | O141: 2021-07-13 | P141: 2010-21-0038-1 | Q141: 1200 | R141: 14050 | S141: 10354 | T141: 14056 | U141: 647.13 | V141: 9706.87 | W141: 215.71 | X141: 54260 | Y141: 71.9 | Z141: P | AB141: 20inv000020258 | AD141: Internal | AE141: A | AF141: SL | AH141: WCNX | AI141: 0 | AJ141: 0
B142: 2010 | C142: 256330 | D142: P | E142: 20yd RO Containers | F142: 2 | J142: 0 | K142: WASTEQUIP MAYFAB | M142: 20 YD RO Box | N142: 2021-07-16 | O142: 2021-07-16 | P142: 2010-21-0038-1 | Q142: 1200 | R142: 14050 | S142: 10354 | T142: 14056 | U142: 575.22 | V142: =S142-U142 -> 9778.78 | W142: 215.71 | X142: 54260 | Y142: 71.9 | Z142: P | AB142: 20inv000020556 | AD142: Internal | AE142: A | AF142: SL | AH142: WCNX | AI142: 0 | AJ142: 0
B143: 2010 | C143: 256329 | D143: P | E143: 20yd RO | F143: 2 | J143: 0 | K143: WASTEQUIP MAYFAB | M143: 20 YD RO Box | N143: 2021-07-13 | O143: 2021-07-13 | P143: 2010-21-0038-1 | Q143: 1200 | R143: 14050 | S143: 15104 | T143: 14056 | U143: 944 | V143: 14160 | W143: 314.67 | X143: 54260 | Y143: 104.89 | Z143: P | AB143: 20inv000020286 | AD143: Internal | AE143: A | AF143: SL | AH143: WCNX | AI143: 0 | AJ143: 0
B144: 2010 | C144: 256328 | D144: P | E144: 20yd RO | F144: 2 | J144: 0 | K144: WASTEQUIP MAYFAB | M144: 20 YD RO Box | N144: 2021-07-14 | O144: 2021-07-14 | P144: 2010-21-0038-1 | Q144: 1200 | R144: 14050 | S144: 10354 | T144: 14056 | U144: 647.13 | V144: 9706.87 | W144: 215.71 | X144: 54260 | Y144: 71.9 | Z144: P | AB144: 20inv000020356 | AD144: Internal | AE144: A | AF144: SL | AH144: WCNX | AI144: 0 | AJ144: 0
B145: 2010 | C145: 256327 | D145: P | E145: 2yd metal gray REL garbage containers | F145: 80 | J145: 0 | K145: WASTEQUIP MAYFAB | M145: 2 YD REL Container | N145: 2021-06-30 | O145: 2021-06-30 | P145: 2010-21-0037-2 | Q145: 1200 | R145: 14050 | S145: 60111.2 | T145: 14056 | U145: 3756.95 | V145: 56354.25 | W145: 1252.32 | X145: 54260 | Y145: 417.44 | Z145: P | AB145: 20inv000019458 | AD145: Internal | AE145: A | AF145: SL | AH145: WCNX | AI145: 0 | AJ145: 0
B146: 2010 | C146: 256324 | D146: P | E146: 1yd gray metal REL garbage containers | F146: 24 | J146: 0 | K146: WASTEQUIP MAYFAB | M146: 1 YD REL Container | N146: 2021-06-25 | O146: 2021-06-25 | P146: 2010-21-0037-1 | Q146: 1200 | R146: 14050 | S146: 15736.94 | T146: 14056 | U146: 983.56 | V146: 14753.38 | W146: 327.85 | X146: 54260 | Y146: 109.28 | Z146: P | AB146: 20inv000019070 | AD146: Internal | AE146: A | AF146: SL | AH146: WCNX | AI146: 0 | AJ146: 0
B147: 2010 | C147: 256080 | D147: P | E147: 2021 Peterbilt Recycle Truck | H147: 3BPDLK0X3MF111330 | J147: 2021 | M147: Recycle Truck | N147: 2021-07-16 | O147: 2021-07-16 | P147: 2010-21-0006 | Q147: 1000 | R147: 14040 | S147: 416975.18 | T147: 14046 | U147: 27798.35 | V147: 389176.83 | W147: 10424.38 | X147: 51260 | Y147: 3474.79 | Z147: P | AD147: Internal | AE147: A | AF147: SL | AH147: WCNX | AI147: 0 | AJ147: 0
B148: 2010 | C148: 256079 | D148: P | E148: 2021 Peterbilt Recycle Truck | H148: 3BPDLK0X7MF111329 | J148: 2021 | M148: Recycle Truck | N148: 2021-06-28 | O148: 2021-06-28 | P148: 2010-21-0004 | Q148: 1000 | R148: 14040 | S148: 417718.75 | T148: 14046 | U148: 31328.91 | V148: 386389.84 | W148: 10442.97 | X148: 51260 | Y148: 3480.99 | Z148: P | AD148: Internal | AE148: A | AF148: SL | AH148: WCNX | AI148: 0 | AJ148: 0
B149: 2010 | C149: 256078 | D149: P | E149: 2021 Peterbilt Recycle Truck | H149: 3BPDLK0X5MF111331 | J149: 2021 | M149: Recycle Truck | N149: 2021-07-06 | O149: 2021-07-06 | P149: 2010-21-0005 | Q149: 1000 | R149: 14040 | S149: 417718.75 | T149: 14046 | U149: 31328.91 | V149: 386389.84 | W149: 10442.97 | X149: 51260 | Y149: 3480.99 | Z149: P | AD149: Internal | AE149: A | AF149: SL | AH149: WCNX | AI149: 0 | AJ149: 0
B150: 2010 | C150: 256012 | D150: 255398 | E150: Licensing Truck#834 VIN#3BPDLK0XMF1096 | J150: 0 | K150: STATE OF WASHINGTON | M150: Non-Rolling Stock | N150: 2021-07-31 | O150: 2021-07-31 | P150: 2010-21-0010-1 | Q150: 1000 | R150: 14040 | S150: 491.5 | T150: 14046 | U150: 32.77 | V150: 458.73 | W150: 12.29 | X150: 51260 | Y150: 4.1 | Z150: P | AB150: WA DOT 07222021 | AD150: Internal | AE150: A | AF150: SL | AH150: WCNX | AI150: 0 | AJ150: 0
B151: 2010 | C151: 256011 | D151: 251921 | E151: 2021 Peterbilt FEL Truck- Body | H151: 3BPDXKEX9MF110177 | J151: 2021 | K151: GENERAL EQUIPMENT COMPANY | M151: Non-Rolling Stock | N151: 2021-04-26 | O151: 2021-04-26 | P151: 2010-21-0002-1 | Q151: 1000 | R151: 14040 | S151: 170290.81 | T151: 14046 | U151: 15609.99 | V151: 154680.82 | W151: 4257.27 | X151: 51260 | Y151: 1419.09 | Z151: P | AB151: 4708 | AD151: Internal | AE151: A | AF151: SL | AH151: WCNX | AI151: 0 | AJ151: 0
B152: 2010 | C152: 255680 | D152: P | E152: Drive Cams | F152: 6 | J152: 0 | N152: 2021-07-01 | O152: 2021-07-01 | P152: 1010-21-0038 | Q152: 500 | R152: 14070 | S152: 3234.3 | T152: 14076 | U152: 485.15 | V152: 2749.15 | W152: 161.72 | X152: 51260 | Y152: 53.91 | Z152: P | AD152: Internal | AE152: A | AF152: SL | AH152: WCNX | AI152: 0 | AJ152: 0
B153: 2010 | C153: 255399 | D153: P | E153: 2021 Peterbilt FEL Truck- Chassis | H153: 3BPDXKEX7MF110176 | J153: 2021 | M153: FEL Truck | N153: 2021-07-31 | O153: 2021-07-31 | P153: 2010-20-0037 | Q153: 1000 | R153: 14040 | S153: 187063.1 | T153: 14046 | U153: 12470.88 | V153: 174592.22 | W153: 4676.58 | X153: 51260 | Y153: 1558.86 | Z153: P | AD153: Internal | AE153: A | AF153: SL | AH153: WCNX | AI153: 0 | AJ153: 0
B154: 2010 | C154: 255398 | D154: P | E154: 2021 Peterbilt ASL Truck- Chassis | H154: 3BPDLK0X5MF109661 | J154: 2021 | M154: Automated Sideload | N154: 2021-07-31 | O154: 2021-07-31 | P154: 2010-20-0040 | Q154: 1000 | R154: 14040 | S154: 175854 | T154: 14046 | U154: 11723.6 | V154: 164130.4 | W154: 4396.35 | X154: 51260 | Y154: 1465.45 | Z154: P | AD154: Internal | AE154: A | AF154: SL | AH154: WCNX | AI154: 0 | AJ154: 0
B155: 2010 | C155: 255397 | D155: 255399 | E155: 2021 Peterbilt FEL Truck-Covid-2010-20-0037- Body | H155: 3BPDXKEX7MF110176 | J155: 2021 | M155: Non-Rolling Stock | N155: 2021-07-31 | O155: 2021-07-31 | P155: 2010-21-0001 | Q155: 1000 | R155: 14040 | S155: 177229.89 | T155: 14046 | U155: 11815.33 | V155: 165414.56 | W155: 4430.75 | X155: 51260 | Y155: 1476.92 | Z155: P | AD155: Internal | AE155: A | AF155: SL | AH155: WCNX | AI155: 0 | AJ155: 0
B156: 2010 | C156: 255396 | D156: 255398 | E156: 2021 Peterbilt ASL Truck-Covid-2010-20-0040- Body | H156: 3BPDLK0X5MF109661 | J156: 2021 | M156: Non-Rolling Stock | N156: 2021-07-31 | O156: 2021-07-31 | P156: 2010-21-0010 | Q156: 1000 | R156: 14040 | S156: 190695.37 | T156: 14046 | U156: 12713.03 | V156: 177982.34 | W156: 4767.39 | X156: 51260 | Y156: 1589.13 | Z156: P | AD156: Internal | AE156: A | AF156: SL | AH156: WCNX | AI156: 0 | AJ156: 0
B157: 2010 | C157: 254899 | D157: 253993 | E157: Instant 802.3af Adapter-Fab Truck Shop Camera System | F157: 7 | J157: 0 | N157: 2021-06-01 | O157: 2021-06-01 | P157: 2010-21-0034-1 | Q157: 500 | R157: 14070 | S157: 144.18 | T157: 14076 | U157: 24.03 | V157: 120.15 | W157: 7.21 | X157: 51260 | Y157: 2.4 | Z157: P | AB157: U667861 | AD157: Internal | AE157: A | AF157: SL | AH157: WCNX | AI157: 0 | AJ157: 0
B158: 2010 | C158: 254887 | D158: P | E158: 95gal yard debris carts | F158: 702 | J158: 0 | K158: REHRIG PACIFIC COMPANY | M158: Non-Container Audit | N158: 2021-06-02 | O158: 2021-06-02 | P158: 2010-21-0039-1 | Q158: 700 | R158: 14050 | S158: 39920.38 | T158: 14056 | U158: 4752.43 | V158: 35167.95 | W158: 1425.73 | X158: 54260 | Y158: 475.24 | Z158: P | AB158: 50173182 | AD158: Internal | AE158: A | AF158: SL | AH158: WCNX | AI158: 0 | AJ158: 0
B159: 2010 | C159: 254886 | D159: P | E159: 95gal organics carts | F159: 255 | J159: 0 | K159: REHRIG PACIFIC COMPANY | M159: Non-Container Audit | N159: 2021-06-03 | O159: 2021-06-03 | P159: 2010-21-0041-1 | Q159: 700 | R159: 14050 | S159: 16084 | T159: 14056 | U159: 1914.76 | V159: 14169.24 | W159: 574.43 | X159: 54260 | Y159: 191.48 | Z159: P | AB159: 50173383 | AD159: Internal | AE159: A | AF159: SL | AH159: WCNX | AI159: 0 | AJ159: 0
B160: 2010 | C160: 254885 | D160: P | E160: 95gal organics carts | F160: 96 | J160: 0 | K160: REHRIG PACIFIC COMPANY | M160: Non-Container Audit | N160: 2021-06-03 | O160: 2021-06-03 | P160: 2010-21-0041-1 | Q160: 700 | R160: 14050 | S160: 5466.61 | T160: 14056 | U160: 650.79 | V160: 4815.82 | W160: 195.24 | X160: 54260 | Y160: 65.08 | Z160: P | AB160: 50173383 | AD160: Internal | AE160: A | AF160: SL | AH160: WCNX | AI160: 0 | AJ160: 0
B161: 2010 | C161: 254884 | D161: P | E161: 95gal county recycle carts | F161: 424 | J161: 0 | K161: REHRIG PACIFIC COMPANY | M161: Non-Container Audit | N161: 2021-06-02 | O161: 2021-06-02 | P161: 2010-21-0039-1 | Q161: 700 | R161: 14050 | S161: 24915.12 | T161: 14056 | U161: 2966.09 | V161: 21949.03 | W161: 889.83 | X161: 54260 | Y161: 296.61 | Z161: P | AB161: 50173182 | AD161: Internal | AE161: A | AF161: SL | AH161: WCNX | AI161: 0 | AJ161: 0
B162: 2010 | C162: 254883 | D162: P | E162: 95gal county recycle carts | F162: 278 | J162: 0 | K162: REHRIG PACIFIC COMPANY | M162: Non-Container Audit | N162: 2021-06-02 | O162: 2021-06-02 | P162: 2010-21-0039-1 | Q162: 700 | R162: 14050 | S162: 16375 | T162: 14056 | U162: 1949.4 | V162: 14425.6 | W162: 584.82 | X162: 54260 | Y162: 194.94 | Z162: P | AB162: 50173182 | AD162: Internal | AE162: A | AF162: SL | AH162: WCNX | AI162: 0 | AJ162: 0
B163: 2010 | C163: 254872 | D163: P | E163: 65gal organics carts | F163: 454 | J163: 0 | K163: REHRIG PACIFIC COMPANY | M163: Non-Container Audit | N163: 2021-06-03 | O163: 2021-06-03 | P163: 2010-21-0041-1 | Q163: 700 | R163: 14050 | S163: 25113 | T163: 14056 | U163: 2989.63 | V163: 22123.37 | W163: 896.89 | X163: 54260 | Y163: 298.96 | Z163: P | AB163: 50173383 | AD163: Internal | AE163: A | AF163: SL | AH163: WCNX | AI163: 0 | AJ163: 0
B164: 2010 | C164: 254871 | D164: P | E164: 65gal organics carts | F164: 14 | J164: 0 | K164: REHRIG PACIFIC COMPANY | M164: Non-Container Audit | N164: 2021-06-03 | O164: 2021-06-03 | P164: 2010-21-0041-1 | Q164: 700 | R164: 14050 | S164: 744.69 | T164: 14056 | U164: 88.66 | V164: 656.03 | W164: 26.6 | X164: 54260 | Y164: 8.87 | Z164: P | AB164: 50173383 | AD164: Internal | AE164: A | AF164: SL | AH164: WCNX | AI164: 0 | AJ164: 0
B165: 2010 | C165: 253993 | D165: P | E165: Security Cameras - Truck Shop | J165: 0 | N165: 2021-06-30 | O165: 2021-06-30 | P165: 2010-21-0034 | Q165: 500 | R165: 14070 | S165: 11486.32 | T165: 14076 | U165: 1722.95 | V165: 9763.37 | W165: 574.32 | X165: 51260 | Y165: 191.44 | Z165: P | AD165: Internal | AE165: A | AF165: SL | AH165: WCNX | AI165: 0 | AJ165: 0
B166: 2010 | C166: 252726 | D166: P | E166: 4yd blue FEL grey garbage containers | F166: 28 | J166: 0 | K166: WASTEQUIP MAYFAB | M166: 4 YD FEL Container | N166: 2021-05-19 | O166: 2021-05-19 | P166: 2010-21-0035-2 | Q166: 1200 | R166: 14050 | S166: 20304.51 | T166: 14056 | U166: 1410.04 | V166: 18894.47 | W166: 423.01 | X166: 54260 | Y166: 141 | Z166: P | AB166: 20inv000016442 | AD166: Internal | AE166: A | AF166: SL | AH166: WCNX | AI166: 0 | AJ166: 0
B167: 2010 | C167: 252725 | D167: P | E167: 4yd blue FEL metal recycle containers | F167: 28 | J167: 0 | K167: WASTEQUIP MAYFAB | M167: 4 YD FEL Container | N167: 2021-05-18 | O167: 2021-05-18 | P167: 2010-21-0035-2 | Q167: 1200 | R167: 14050 | S167: 20903.86 | T167: 14056 | U167: 1451.66 | V167: 19452.2 | W167: 435.5 | X167: 54260 | Y167: 145.17 | Z167: P | AB167: 20inv000016332 | AD167: Internal | AE167: A | AF167: SL | AH167: WCNX | AI167: 0 | AJ167: 0
B168: 2010 | C168: 252724 | D168: P | E168: 40 YD Metal RO Boxes | F168: 2 | J168: 0 | K168: WASTEQUIP MAYFAB | M168: 40 YD RO Box | N168: 2021-04-28 | O168: 2021-04-28 | P168: 2010-21-0035-1 | Q168: 1200 | R168: 14050 | S168: 16924 | T168: 14056 | U168: 1292.8 | V168: 15631.2 | W168: 352.58 | X168: 54260 | Y168: 117.52 | Z168: P | AB168: 20inv000014992 | AD168: Internal | AE168: A | AF168: SL | AH168: WCNX | AI168: 0 | AJ168: 0
B169: 2010 | C169: 252723 | D169: P | E169: 40 YD Metal RO Boxes | F169: 2 | J169: 0 | K169: WASTEQUIP MAYFAB | M169: 40 YD RO Box | N169: 2021-04-28 | O169: 2021-04-28 | P169: 2010-21-0035-1 | Q169: 1200 | R169: 14050 | S169: 16924 | T169: 14056 | U169: 1292.8 | V169: 15631.2 | W169: 352.58 | X169: 54260 | Y169: 117.52 | Z169: P | AB169: 20inv000015122 | AD169: Internal | AE169: A | AF169: SL | AH169: WCNX | AI169: 0 | AJ169: 0
B170: 2010 | C170: 252722 | D170: P | E170: 40 YD Metal RO Boxes | F170: 2 | J170: 0 | K170: WASTEQUIP MAYFAB | M170: 40 YD RO Box | N170: 2021-04-28 | O170: 2021-04-28 | P170: 2010-21-0035-1 | Q170: 1200 | R170: 14050 | S170: 16924 | T170: 14056 | U170: 1292.8 | V170: 15631.2 | W170: 352.58 | X170: 54260 | Y170: 117.52 | Z170: P | AB170: 20inv000015286 | AD170: Internal | AE170: A | AF170: SL | AH170: WCNX | AI170: 0 | AJ170: 0
B171: 2010 | C171: 252721 | D171: P | E171: 40 YD Metal RO Boxes | F171: 2 | J171: 0 | K171: WASTEQUIP MAYFAB | M171: 40 YD RO Box | N171: 2021-04-28 | O171: 2021-04-28 | P171: 2010-21-0035-1 | Q171: 1200 | R171: 14050 | S171: 16924 | T171: 14056 | U171: 1292.8 | V171: 15631.2 | W171: 352.58 | X171: 54260 | Y171: 117.52 | Z171: P | AB171: 20inv000015256 | AD171: Internal | AE171: A | AF171: SL | AH171: WCNX | AI171: 0 | AJ171: 0
B172: 2010 | C172: 252720 | D172: P | E172: 30 YD Metal RO Boxes | F172: 2 | J172: 0 | K172: WASTEQUIP MAYFAB | M172: 30 YD RO Box | N172: 2021-04-26 | O172: 2021-04-26 | P172: 2010-21-0035-1 | Q172: 1200 | R172: 14050 | S172: 15406 | T172: 14056 | U172: 1176.85 | V172: 14229.15 | W172: 320.96 | X172: 54260 | Y172: 106.99 | Z172: P | AB172: 20inv000014402 | AD172: Internal | AE172: A | AF172: SL | AH172: WCNX | AI172: 0 | AJ172: 0
B173: 2010 | C173: 252719 | D173: P | E173: 30 YD Metal RO Boxes | F173: 2 | J173: 0 | K173: WASTEQUIP MAYFAB | M173: 30 YD RO Box | N173: 2021-04-28 | O173: 2021-04-28 | P173: 2010-21-0035-1 | Q173: 1200 | R173: 14050 | S173: 15406 | T173: 14056 | U173: 1176.85 | V173: 14229.15 | W173: 320.96 | X173: 54260 | Y173: 106.99 | Z173: P | AB173: 20inv000014404 | AD173: Internal | AE173: A | AF173: SL | AH173: WCNX | AI173: 0 | AJ173: 0
B174: 2010 | C174: 252718 | D174: P | E174: 30 YD Metal RO Boxes | F174: 2 | J174: 0 | K174: WASTEQUIP MAYFAB | M174: 30 YD RO Box | N174: 2021-04-21 | O174: 2021-04-21 | P174: 2010-21-0035-1 | Q174: 1200 | R174: 14050 | S174: 15406 | T174: 14056 | U174: 1176.85 | V174: 14229.15 | W174: 320.96 | X174: 54260 | Y174: 106.99 | Z174: P | AB174: 20inv000013850 | AD174: Internal | AE174: A | AF174: SL | AH174: WCNX | AI174: 0 | AJ174: 0
B175: 2010 | C175: 252717 | D175: P | E175: 30 YD RO Boxes | F175: 2 | J175: 0 | K175: WASTEQUIP MAYFAB | M175: 30 YD RO Box | N175: 2021-04-19 | O175: 2021-04-19 | P175: 2010-21-0035-1 | Q175: 1200 | R175: 14050 | S175: 15406 | T175: 14056 | U175: 1176.85 | V175: 14229.15 | W175: 320.96 | X175: 54260 | Y175: 106.99 | Z175: P | AB175: 20inv000014148 | AD175: Internal | AE175: A | AF175: SL | AH175: WCNX | AI175: 0 | AJ175: 0
B176: 2010 | C176: 252716 | D176: P | E176: 96gal COV sparkle garbage carts | F176: 636 | J176: 0 | K176: WASTEQUIP TOTER | M176: Non-Container Audit | N176: 2021-04-19 | O176: 2021-04-19 | P176: 2010-21-0027-1 | Q176: 700 | R176: 14050 | S176: 40834.84 | T176: 14056 | U176: 5347.42 | V176: 35487.42 | W176: 1458.39 | X176: 54260 | Y176: 486.13 | Z176: P | AB176: 65738187 | AD176: Internal | AE176: A | AF176: SL | AH176: WCNX | AI176: 0 | AJ176: 0
B177: 2010 | C177: 252715 | D177: P | E177: 96gal COV sparkle garbage carts | F177: 636 | J177: 0 | K177: WASTEQUIP TOTER | M177: Non-Container Audit | N177: 2021-04-16 | O177: 2021-04-16 | P177: 2010-21-0024-1 | Q177: 700 | R177: 14050 | S177: 38928.77 | T177: 14056 | U177: 5097.81 | V177: 33830.96 | W177: 1390.31 | X177: 54260 | Y177: 463.43 | Z177: P | AB177: 65737314 | AD177: Internal | AE177: A | AF177: SL | AH177: WCNX | AI177: 0 | AJ177: 0
B178: 2010 | C178: 251921 | D178: P | E178: 2021 Peterbilt FEL Truck- Chassis | H178: 3BPDXKEX9MF110177 | J178: 2021 | M178: FELTruck | N178: 2021-04-26 | O178: 2021-04-26 | P178: 2010-21-0002 | Q178: 1000 | R178: 14040 | S178: 196974.14 | T178: 14046 | U178: 18055.96 | V178: 178918.18 | W178: 4924.35 | X178: 51260 | Y178: 1641.45 | Z178: P | AD178: Internal | AE178: A | AF178: SL | AH178: WCNX | AI178: 0 | AJ178: 0
B179: 2010 | C179: 251860 | D179: P | E179: 2015 Toyota Sienna Van | H179: 5TDKK3DC8FS618942 | J179: 2015 | K179: REX MOTORS INC | M179: Van | N179: 2021-05-20 | O179: 2021-05-20 | P179: 2010-21-0020-1 | Q179: 400 | R179: 14040 | S179: 15721.68 | T179: 14046 | U179: 3275.36 | V179: 12446.32 | W179: 982.61 | X179: 51260 | Y179: 327.54 | Z179: P | AB179: 0507Used2015ToyotaSienna | AD179: Internal | AE179: A | AF179: SL | AH179: WCNX | AI179: 0 | AJ179: 0
B180: 2010 | C180: 251523 | D180: P | E180: 95gal yard debris carts | F180: 702 | J180: 0 | K180: REHRIG PACIFIC COMPANY | M180: Non-Container Audit | N180: 2021-04-02 | O180: 2021-04-02 | P180: 2010-21-0033-1 | Q180: 700 | R180: 14050 | S180: 33140.16 | T180: 14056 | U180: 4734.31 | V180: 28405.85 | W180: 1183.58 | X180: 54260 | Y180: 394.53 | Z180: P | AB180: 50160574 | AD180: Internal | AE180: A | AF180: SL | AH180: WCNX | AI180: 0 | AJ180: 0
B181: 2010 | C181: 251522 | D181: P | E181: 20yd RO sludge box | F181: 1 | J181: 0 | K181: WASTEQUIP MAYFAB | M181: 20 YD RO Box | N181: 2021-04-10 | O181: 2021-04-10 | P181: 2010-21-0031-1 | Q181: 1200 | R181: 14050 | S181: 6319.55 | T181: 14056 | U181: 526.63 | V181: 5792.92 | W181: 131.66 | X181: 54260 | Y181: 43.89 | Z181: P | AB181: 20inv000012808 | AD181: Internal | AE181: A | AF181: SL | AH181: WCNX | AI181: 0 | AJ181: 0
B182: 2010 | C182: 251521 | D182: P | E182: 4yd plastic FEL garbage containers | F182: 20 | J182: 0 | K182: REHRIG PACIFIC COMPANY | M182: 4 YD FEL/REL/SL Plastic | N182: 2021-03-25 | O182: 2021-03-25 | P182: 2010-21-0030-1 | Q182: 700 | R182: 14050 | S182: 16990.13 | T182: 14056 | U182: 2427.16 | V182: 14562.97 | W182: 606.79 | X182: 54260 | Y182: 202.26 | Z182: P | AB182: 50159379 | AD182: Internal | AE182: A | AF182: SL | AH182: WCNX | AI182: 0 | AJ182: 0
B183: 2010 | C183: 251520 | D183: P | E183: 65gal county recycle carts | F183: 936 | J183: 0 | K183: REHRIG PACIFIC COMPANY | M183: Non-Container Audit | N183: 2021-02-19 | O183: 2021-02-19 | P183: 2010-21-0029-1 | Q183: 700 | R183: 14050 | S183: 40940.08 | T183: 14056 | U183: 6335.97 | V183: 34604.11 | W183: 1462.15 | X183: 54260 | Y183: 487.39 | Z183: P | AB183: 50151389 | AD183: Internal | AE183: A | AF183: SL | AH183: WCNX | AI183: 0 | AJ183: 0
B184: 2010 | C184: 251519 | D184: P | E184: 20gal organic cart inserts | F184: 640 | J184: 0 | K184: WASTEQUIP TOTER | M184: Non-Container Audit | N184: 2021-04-02 | O184: 2021-04-02 | P184: 2010-21-0025-1 | Q184: 700 | R184: 14050 | S184: 20786.46 | T184: 14056 | U184: 2969.5 | V184: 17816.96 | W184: 742.38 | X184: 54260 | Y184: 247.46 | Z184: P | AB184: 65734977 | AD184: Internal | AE184: A | AF184: SL | AH184: WCNX | AI184: 0 | AJ184: 0
B185: 2010 | C185: 251518 | D185: P | E185: 32gal organics carts | F185: 200 | J185: 0 | K185: WASTEQUIP TOTER | M185: Non-Container Audit | N185: 2021-04-02 | O185: 2021-04-02 | P185: 2010-21-0025-1 | Q185: 700 | R185: 14050 | S185: 9701.49 | T185: 14056 | U185: 1385.93 | V185: 8315.56 | W185: 346.48 | X185: 54260 | Y185: 115.49 | Z185: P | AB185: 65734977 | AD185: Internal | AE185: A | AF185: SL | AH185: WCNX | AI185: 0 | AJ185: 0
B186: 2010 | C186: 251517 | D186: P | E186: 96gal organics carts | F186: 312 | J186: 0 | K186: WASTEQUIP TOTER | M186: Non-Container Audit | N186: 2021-04-02 | O186: 2021-04-02 | P186: 2010-21-0025-1 | Q186: 700 | R186: 14050 | S186: 19103.42 | T186: 14056 | U186: 2729.07 | V186: 16374.35 | W186: 682.27 | X186: 54260 | Y186: 227.43 | Z186: P | AB186: 65734977 | AD186: Internal | AE186: A | AF186: SL | AH186: WCNX | AI186: 0 | AJ186: 0
B187: 2010 | C187: 250365 | D187: P | E187: New 2009 International REL (Package Purchase) | F187: 0 | H187: 1HTWCAAN69J141652 | I187: C98841N | J187: 2009 | K187: International 7400 | L187: Heil | M187: REL Truck | N187: 2009-11-01 | O187: 2009-11-01 | P187: 2149-9-0038-1 | Q187: 1000 | R187: 14040 | S187: 143203.55 | T187: 14046 | U187: 143203.55 | V187: 0 | W187: 0 | X187: 51260 | Y187: 0 | Z187: P | AB187: 24044427 | AC187: 33 | AD187: Internal | AE187: A | AF187: SL | AG187: 2021-03-31 | AH187: WCNX | AI187: 0 | AJ187: 143203.55
B188: 2010 | C188: 249929 | D188: P | E188: 2021 Peterbilt ASL Truck - Chassis | H188: 3BPDLK0X0MF109664 | J188: 2021 | M188: Automated Sideload | N188: 2021-03-08 | O188: 2021-03-08 | P188: 2010-20-0033 | Q188: 1000 | R188: 14040 | S188: 183244 | T188: 14046 | U188: 19851.43 | V188: 163392.57 | W188: 4581.1 | X188: 51260 | Y188: 1527.03 | Z188: P | AD188: Internal | AE188: A | AF188: SL | AH188: WCNX | AI188: 0 | AJ188: 0
B189: 2010 | C189: 249928 | D189: 249929 | E189: 2021 Peterbilt ASL Truck - Body | H189: 3BPDLK0X0MF109664 | J189: 2021 | M189: Non-Rolling Stock | N189: 2021-03-08 | O189: 2021-03-08 | P189: 2010-21-0003 | Q189: 1000 | R189: 14040 | S189: 237087.84 | T189: 14046 | U189: 25684.51 | V189: 211403.33 | W189: 5927.2 | X189: 51260 | Y189: 1975.74 | Z189: P | AD189: Internal | AE189: A | AF189: SL | AH189: WCNX | AI189: 0 | AJ189: 0
B190: 2010 | C190: 249541 | D190: P | E190: 64gal COV sparkle garbage carts | F190: 648 | I190: 94-3283464 | J190: 0 | K190: WASTEQUIP TOTER | M190: Non-Container Audit | N190: 2021-03-11 | O190: 2021-03-11 | P190: 2010-21-0027-1 | Q190: 700 | R190: 14050 | S190: 36947.93 | T190: 14056 | U190: 5718.13 | V190: 31229.8 | W190: 1319.57 | X190: 54260 | Y190: 439.86 | Z190: P | AB190: 65731324 | AD190: Internal | AE190: A | AF190: SL | AH190: WCNX | AI190: 0 | AJ190: 0
B191: 2010 | C191: 249540 | D191: P | E191: 40YD LIDDED DROP BOXES | F191: 2 | I191: 94-3283464 | J191: 0 | K191: WASTEQUIP MAYFAB | M191: 40 YD RO Box | N191: 2021-03-06 | O191: 2021-03-06 | P191: 2010-21-0031-1 | Q191: 1200 | R191: 14050 | S191: 16241.55 | T191: 14056 | U191: 1466.26 | V191: 14775.29 | W191: 338.37 | X191: 54260 | Y191: 112.79 | Z191: P | AB191: 20INV000011122 | AD191: Internal | AE191: A | AF191: SL | AH191: WCNX | AI191: 0 | AJ191: 0
B192: 2010 | C192: 249539 | D192: P | E192: 30YD LIDDED DROP BOXES | F192: 2 | I192: 94-3283464 | J192: 0 | K192: WASTEQUIP MAYFAB | M192: 30 YD RO Box | N192: 2021-03-06 | O192: 2021-03-06 | P192: 2010-21-0031-1 | Q192: 1200 | R192: 14050 | S192: 14837.55 | T192: 14056 | U192: 1339.51 | V192: 13498.04 | W192: 309.12 | X192: 54260 | Y192: 103.04 | Z192: P | AB192: 20INV000010812 | AD192: Internal | AE192: A | AF192: SL | AH192: WCNX | AI192: 0 | AJ192: 0
B193: 2010 | C193: 249538 | D193: P | E193: 20yd metal drop boxes | F193: 4 | I193: 94-3283464 | J193: 0 | K193: WASTEQUIP MAYFAB | M193: 20 YD RO Box | N193: 2021-03-04 | O193: 2021-03-04 | P193: 2010-21-0031-1 | Q193: 1200 | R193: 14050 | S193: 18035.1 | T193: 14056 | U193: 1628.17 | V193: 16406.93 | W193: 375.73 | X193: 54260 | Y193: 125.24 | Z193: P | AB193: 20inv000010476 | AD193: Internal | AE193: A | AF193: SL | AH193: WCNX | AI193: 0 | AJ193: 0
B194: 2010 | C194: 249537 | D194: P | E194: 95gal organic carts | F194: 351 | I194: 94-3283464 | J194: 0 | K194: REHRIG PACIFIC COMPANY | M194: Non-Container Audit | N194: 2021-03-09 | O194: 2021-03-09 | P194: 2010-21-0028-1 | Q194: 700 | R194: 14050 | S194: 17254.95 | T194: 14056 | U194: 2670.41 | V194: 14584.54 | W194: 616.25 | X194: 54260 | Y194: 205.42 | Z194: P | AB194: 50154875 | AD194: Internal | AE194: A | AF194: SL | AH194: WCNX | AI194: 0 | AJ194: 0
B195: 2010 | C195: 249536 | D195: P | E195: 35gal organic carts | F195: 540 | I195: 94-3283464 | J195: 0 | K195: REHRIG PACIFIC COMPANY | M195: Non-Container Audit | N195: 2021-03-09 | O195: 2021-03-09 | P195: 2010-21-0028-1 | Q195: 700 | R195: 14050 | S195: 20692.48 | T195: 14056 | U195: 3202.41 | V195: 17490.07 | W195: 739.02 | X195: 54260 | Y195: 246.34 | Z195: P | AB195: 50155448 | AD195: Internal | AE195: A | AF195: SL | AH195: WCNX | AI195: 0 | AJ195: 0
B196: 2010 | C196: 249535 | D196: P | E196: 95gal yard debris carts | F196: 702 | I196: 94-3283464 | J196: 0 | K196: REHRIG PACIFIC COMPANY | M196: Non-Container Audit | N196: 2021-02-19 | O196: 2021-02-19 | P196: 2010-21-0029-1 | Q196: 700 | R196: 14050 | S196: 33140.16 | T196: 14056 | U196: 5128.84 | V196: 28011.32 | W196: 1183.58 | X196: 54260 | Y196: 394.53 | Z196: P | AB196: 50152617 | AD196: Internal | AE196: A | AF196: SL | AH196: WCNX | AI196: 0 | AJ196: 0
B197: 2010 | C197: 249416 | D197: P | E197: 6 YD RO Box | F197: 9 | I197: 94-3283464 | J197: 0 | K197: WASTEQUIP MAYFAB | M197: 6 YD FEL/REL/SL Metal | N197: 2021-03-10 | O197: 2021-03-10 | P197: 2010-21-0031-1 | Q197: 1200 | R197: 14050 | S197: 11983.13 | T197: 14056 | U197: 1081.81 | V197: 10901.32 | W197: 249.65 | X197: 54260 | Y197: 83.22 | Z197: P | AB197: 20inv000011524 | AD197: Internal | AE197: A | AF197: SL | AH197: WCNX | AI197: 0 | AJ197: 0
B198: 2010 | C198: 249415 | D198: P | E198: 40yd drop boxes | F198: 2 | I198: 94-3283464 | J198: 0 | K198: WASTEQUIP MAYFAB | M198: 40 YD RO Box | N198: 2021-03-06 | O198: 2021-03-06 | P198: 2010-21-0031-1 | Q198: 1200 | R198: 14050 | S198: 16487.1 | T198: 14056 | U198: 1488.42 | V198: 14998.68 | W198: 343.48 | X198: 54260 | Y198: 114.49 | Z198: P | AB198: 20inv000011460 | AD198: Internal | AE198: A | AF198: SL | AH198: WCNX | AI198: 0 | AJ198: 0
B199: 2010 | C199: 249414 | D199: P | E199: 4 YD RO Box | F199: 11 | I199: 94-3283464 | J199: 0 | K199: WASTEQUIP MAYFAB | M199: 4 YD FEL/REL/SL Metal | N199: 2021-03-08 | O199: 2021-03-08 | P199: 2010-21-0031-1 | Q199: 1200 | R199: 14050 | S199: 11804.76 | T199: 14056 | U199: 1065.71 | V199: 10739.05 | W199: 245.93 | X199: 54260 | Y199: 81.97 | Z199: P | AB199: 20inv000011460 | AD199: Internal | AE199: A | AF199: SL | AH199: WCNX | AI199: 0 | AJ199: 0
B200: 2010 | C200: 249413 | D200: P | E200: 4 YD FEL Plastic Containers | F200: 20 | I200: 94-3283464 | J200: 0 | K200: REHRIG PACIFIC COMPANY | M200: 4 YD FEL/REL/SL Plastic | N200: 2021-03-18 | O200: 2021-03-18 | P200: 2010-21-0030-1 | Q200: 700 | R200: 14050 | S200: 17489.47 | T200: 14056 | U200: 2498.5 | V200: 14990.97 | W200: 624.63 | X200: 54260 | Y200: 208.21 | Z200: P | AB200: 50157622 | AD200: Internal | AE200: A | AF200: SL | AH200: WCNX | AI200: 0 | AJ200: 0
... 2227 more rows

Sheet 12.2021 FAR
B1: Location | C1: AssetID | D1: ParentChild | E1: Description | F1: SystemNo | H1: MFGSerialNum | I1: LicensePlate | J1: ModelYear | K1: VendorMfg | L1: BodyManuf | M1: InsuranceCategory | N1: InServiceDate | O1: AcquisitionDate | P1: PONumber | Q1: EstimatedLife | R1: AssetGL | S1: AcqValue | T1: AccumulatedGL | U1: CurrentLifeToDate | W1: CurrentYearToDate | X1: ExpenseGL | Y1: CurrentPeriodDepr | Z1: AcqType | AA1: FormerCompany | AB1: InvoiceNum | AC1: CompAsstNo | AD1: Book | AE1: ActivityCd | AF1: DeprMethod | AG1: BegLsDeprDate | AH1: LongName | AI1: Sequence | AJ1: BegLifeToDate
V2: =S2-U2 -> 0
B3: =_xll.ReportRange("FARReport",A14:AJ2380,A1:AJ1,A2:AJ2,_xll.Param($C$9,$C$10,C12,$M$9,$M$10,$M$11,$S$9,M12,$Y$10,$Y$9,S10,S11,CELL("address",$E$6)),TRUE,FALSE) -> OK!: ReportRange Formula OK [jAction{}] | L3: Default Month : | M3: =MONTH(NOW()) -> 5 | S3: =_xll.ReportDrill(#REF!,,_xll.PairGroup(_xll.Pair('12.2021 FAR'!C9,#REF!),_xll.Pair("C:B",#REF!),_xll.Pair("C:C",#REF!),_xll.Pair("C:V",#REF!)),"Projected Depr") -> OK!: ReportDrill 'Projected Depr' Formula OK [jAction{}] | Y3: =_xll.jFreezePanes(A14,A5) -> > jFreezePanes is ready. | AB3: =_xll.jFocus(C9) -> > jFocus is ready.
L4: Default Year : | M4: =IF(M3=12,YEAR(NOW()),YEAR(NOW())) -> 2022 | S4: reportdrill(Invoice!C2,,pairgroup(pair("C:C",Invoice!E8),pair("",Invoice!E7,"N")),"Drill To Invoices by FAS# (Exc CIP)") | U4: =_xll.ReportDrill(#REF!,,_xll.PairGroup(_xll.Pair("C:P",#REF!),_xll.Pair("",#REF!,"N"),_xll.Pair("",#REF!,"n")),"Drill To All Invoices by PO#") -> OK!: ReportDrill 'Drill To All Invoices by PO#' Formula OK [jAction{}] | X4: =_xll.ReportDrill(#REF!,,_xll.PairGroup(_xll.Pair("C:P",#REF!),_xll.Pair("",#REF!,"N"),_xll.Pair("C:Z",#REF!,"n")),"Drill to Invoice by PO# and Invoice #") -> OK!: ReportDrill 'Drill to Invoice by PO# and Invoice #' Formula OK [jAction{}]
B5: Fixed Asset Register | H5: Asset Count: | I5: =COUNT(C14:C2380) -> 2366 | U5: Check | AK5: 12 | AL5: Effective Rate Month
B6: Data Last Updated in this Pull: | E6: Jan 18 2022 2:08PM | S6: Previously Added | T6: =SUM($S$88:$S$137,$S$139:$S$156,$S$159:$S$161) -> 3952588.93 | U6: =T6-[5]Assets!$N$7 -> 0 | AK6: 2021 | AL6: First Year
S7: Adds since 7.31.21 | T7: =SUM($S$14:$S$87) -> 2017028.24 | AK7: 2021 | AL7: Second year
AK8: =AK7+(AK5/12) -> 2022 | AL8: Rate Effective Year
B9: Period: | C9: 2021-12 | F9: Ctrl + Shift + J | L9: VIN: | O9: (Contains the string) | R9: Parent/Child: | T9: (Leave blank for all) | X9: Service Date To:
B10: District: | C10: 2010 | E10: (F9 Aware) | L10: Description: | O10: (Contains the string) | R10: Asset Acct: | X10: Service Date From: | AT10: =S17/12 -> 1756.08
L11: PO Number: | O11: (Contains the string) | R11: Exp Acct:
B12: Asset #: | L12: Ins Category: | O12: (Not setup yet) | R12: Depreciated %: | T12: (Not setup yet)
B13: District | C13: Asset # | D13: Parent/ Child | E13: Descr | F13: Container Count | G13: Blank | H13: MFG Serial# | I13: License Plate | J13: Model Year | K13: Vendor/Mfg | L13: Body Mfg | M13: Ins Category | N13: In Service Date | O13: Acq Date | P13: CER # | Q13: Useful Life | R13: Asset Account | S13: Cost | T13: Accum Account | U13: Accum Life to Date | V13: NBV | W13: Accum YTD | X13: Expense Account | Y13: Current Depr | Z13: Acq Type | AA13: Former Company | AB13: Invoice # | AC13: Company Asset # | AD13: Book | AE13: Activity Cd | AF13: Depr Meth | AG13: Beg Date | AH13: Dbase | AI13: Seq | AJ13: Beg Depr | AK13: Truck # | AL13: Equipment Type per Field | AM13: Equipment Type for Lookup | AN13: Month | AO13: YearPIS | AP13: Year Fully Dep | AQ13: Year/Mo Fully Dep | AR13: Monthly Dep | AS13: Annual Dep | AT13: Test Year Dep | AU13: BOY Accum | AV13: EOY Accum | AW13: EOY Average Investment | AX13: Pre 8/1/21 Add?
B14: 2010 | C14: 271468 | D14: P | E14: Anker 575 USB-C Docking Station for new laptop | F14: 1 | J14: 0 | K14: AMZN MKTP US 3S6LG9WU3 | N14: 2021-12-09 | O14: 2021-12-09 | P14: 2010-21-0073-1 | Q14: 300 | R14: 14110 | S14: 271.24 | T14: 14116 | U14: 7.54 | V14: =S14-U14 -> 263.7 | W14: 7.54 | X14: 70260 | Y14: 7.54 | Z14: P | AB14: 3823404 | AD14: Internal | AE14: A | AF14: SL | AH14: WCNX | AI14: 0 | AJ14: 0 | AL14: =VLOOKUP(C14,'[8]12.2021 FAR'!C$14:AL$87,36,FALSE) -> Shared Service Equipment | AM14: Shared Service Equipment | AN14: =MONTH($N14) -> 12 | AO14: =YEAR($N14) -> 2021 | AP14: =$AO14+($Q14/100) -> 2024 | AQ14: =$AP14+($AN14/12) -> 2025 | AR14: =IFERROR($S14/($Q14/100)/12,0) -> 7.534444444 | AS14: =$AR14*12 -> 90.41333333 | AT14: =IF($AQ14<=$AK$8,0,IF($AP14>$AK$7,$AS14,($AR14*$AN14))) -> 90.41333333 | AU14: =IF($AT14=0,$S14,IF($AK$6-AO14<1,0,(($AK$6-$AO14)*AS14))) -> 0 | AV14: =IF($AU14=0,$AT14,($AU14+$AT14)) -> 90.41333333 | AW14: =$S14-$AV14 -> 180.8266667 | AX14: No
B15: 2010 | C15: 271467 | D15: P | E15: new computer for Recycle Team Serial # : 5CD142GM71 | F15: 1 | J15: 0 | K15: CDW DIR #2010 | N15: 2021-12-07 | O15: 2021-12-07 | P15: 2010-21-0072-1 | Q15: 300 | R15: 14110 | S15: 1427.98 | T15: 14116 | U15: 39.67 | V15: 1388.31 | W15: 39.67 | X15: 70260 | Y15: 39.67 | Z15: P | AB15: P444776 | AD15: Internal | AE15: A | AF15: SL | AH15: WCNX | AI15: 0 | AJ15: 0 | AL15: =VLOOKUP(C15,'[8]12.2021 FAR'!C$14:AL$87,36,FALSE) -> Non-Regulated Office Equipment | AM15: Non-Regulated Office Equipment | AN15: 12 | AO15: 2021 | AP15: 2024 | AQ15: 2025 | AR15: 39.66611111 | AS15: 475.9933333 | AT15: 475.9933333 | AU15: 0 | AV15: 475.9933333 | AW15: 951.9866667 | AX15: No
B16: 2010 | C16: 271466 | D16: 263906 | E16: PACCAR Software | F16: 1 | J16: 0 | K16: PACCAR | N16: 2021-10-05 | O16: 2021-10-05 | P16: 2010-21-0061-2 | Q16: 300 | R16: 14110 | S16: 1299 | T16: 14116 | U16: 108.25 | V16: 1190.75 | W16: 108.25 | X16: 70260 | Y16: 108.25 | Z16: P | AB16: 3025112766 | AD16: Internal | AE16: A | AF16: SL | AH16: WCNX | AI16: 0 | AJ16: 0 | AL16: =VLOOKUP(C16,'[8]12.2021 FAR'!C$14:AL$87,36,FALSE) -> Shared Shop Equipment | AM16: Shared Shop Equipment | AN16: 10 | AO16: 2021 | AP16: 2024 | AQ16: 2024.833333 | AR16: 36.08333333 | AS16: 433 | AT16: 433 | AU16: 0 | AV16: 433 | AW16: 866 | AX16: No
B17: 2010 | C17: 271375 | D17: P | E17: 3yd FEL recycle containers | F17: 25 | J17: 0 | K17: WASTEQUIP MAYFAB | M17: 3 YD FEL Container | N17: 2021-12-21 | O17: 2021-12-21 | P17: 2010-21-0065-1 | Q17: 1200 | R17: 14050 | S17: 21072.96 | T17: 14056 | U17: 0 | V17: 21072.96 | W17: 0 | X17: 54260 | Y17: 0 | Z17: P | AB17: 20inv000052010 | AD17: Internal | AE17: A | AF17: SL | AH17: WCNX | AI17: 0 | AJ17: 0 | AL17: =VLOOKUP(C17,'[8]12.2021 FAR'!C$14:AL$87,36,FALSE) -> Recycle Container (non-reg) | AM17: Recycle Container (non-reg) | AN17: 12 | AO17: 2021 | AP17: 2033 | AQ17: 2034 | AR17: 146.34 | AS17: 1756.08 | AT17: 1756.08 | AU17: 0 | AV17: 1756.08 | AW17: 19316.88 | AX17: No
B18: 2010 | C18: 271374 | D18: P | E18: 3yd FEL garbage containers | F18: 24 | J18: 0 | K18: WASTEQUIP MAYFAB | M18: 3 YD FEL Container | N18: 2021-12-21 | O18: 2021-12-21 | P18: 2010-21-0065-1 | Q18: 1200 | R18: 14050 | S18: 18927.29 | T18: 14056 | U18: 0 | V18: 18927.29 | W18: 0 | X18: 54260 | Y18: 0 | Z18: P | AB18: 20inv000052010 | AD18: Internal | AE18: A | AF18: SL | AH18: WCNX | AI18: 0 | AJ18: 0 | AL18: =VLOOKUP(C18,'[8]12.2021 FAR'!C$14:AL$87,36,FALSE) -> Garbage Container (shared) | AM18: Garbage Container (shared) | AN18: 12 | AO18: 2021 | AP18: 2033 | AQ18: 2034 | AR18: 131.4395139 | AS18: 1577.274167 | AT18: 1577.274167 | AU18: 0 | AV18: 1577.274167 | AW18: 17350.01583 | AX18: No
B19: 2010 | C19: 271319 | D19: P | E19: 35gal county recycle carts | F19: 1260 | J19: 0 | K19: REHRIG PACIFIC COMPANY | M19: Non-Container Audit | N19: 2021-12-20 | O19: 2021-12-20 | P19: 2010-21-0070-1 | Q19: 700 | R19: 14050 | S19: 63918.28 | T19: 14056 | U19: 0 | V19: 63918.28 | W19: 0 | X19: 54260 | Y19: 0 | Z19: P | AB19: 50211952 | AD19: Internal | AE19: A | AF19: SL | AH19: WCNX | AI19: 0 | AJ19: 0 | AL19: =VLOOKUP(C19,'[8]12.2021 FAR'!C$14:AL$87,36,FALSE) -> Recycle Carts (non-reg) | AM19: Recycle Carts (non-reg) | AN19: 12 | AO19: 2021 | AP19: 2028 | AQ19: 2029 | AR19: 760.9319048 | AS19: 9131.182857 | AT19: 9131.182857 | AU19: 0 | AV19: 9131.182857 | AW19: 54787.09714 | AX19: No
B20: 2010 | C20: 271318 | D20: P | E20: 95gal yard debris carts | F20: 702 | J20: 0 | K20: REHRIG PACIFIC COMPANY | M20: Non-Container Audit | N20: 2021-12-02 | O20: 2021-12-02 | P20: 2010-21-0067-2 | Q20: 700 | R20: 14050 | S20: 47134.36 | T20: 14056 | U20: 561.12 | V20: 46573.24 | W20: 561.12 | X20: 54260 | Y20: 561.12 | Z20: P | AB20: 50209535 | AD20: Internal | AE20: A | AF20: SL | AH20: WCNX | AI20: 0 | AJ20: 0 | AL20: =VLOOKUP(C20,'[8]12.2021 FAR'!C$14:AL$87,36,FALSE) -> Yard Debris Carts (non-reg) | AM20: Yard Debris Carts (non-reg) | AN20: 12 | AO20: 2021 | AP20: 2028 | AQ20: 2029 | AR20: 561.1233333 | AS20: 6733.48 | AT20: 6733.48 | AU20: 0 | AV20: 6733.48 | AW20: 40400.88 | AX20: No
B21: 2010 | C21: 271313 | D21: P | E21: Recycle Plus Bins (14X14)-White Metal Bins | F21: 540 | J21: 0 | K21: McShane Welding & Metal P | M21: Non-Container Audit | N21: 2021-11-30 | O21: 2021-11-30 | P21: 2010-21-0071-1 | Q21: 500 | R21: 14050 | S21: 35731.89 | T21: 14056 | U21: 595.53 | V21: 35136.36 | W21: 595.53 | X21: 54260 | Y21: 595.53 | Z21: P | AB21: 135167 | AD21: Internal | AE21: A | AF21: SL | AH21: WCNX | AI21: 0 | AJ21: 0 | AL21: =VLOOKUP(C21,'[8]12.2021 FAR'!C$14:AL$87,36,FALSE) -> Recycle Carts (non-reg) | AM21: Recycle Carts (non-reg) | AN21: 11 | AO21: 2021 | AP21: 2026 | AQ21: 2026.916667 | AR21: 595.5315 | AS21: 7146.378 | AT21: 7146.378 | AU21: 0 | AV21: 7146.378 | AW21: 28585.512 | AX21: No
B22: 2010 | C22: 270318 | D22: 240359 | E22: 25 Mount Chargers for RouteTablets at Vancouver | J22: 0 | K22: PROCLIPUSA | N22: 2020-10-06 | O22: 2020-10-06 | P22: 1010-20-0033-2 | Q22: 100 | R22: 14110 | S22: 4013.57 | T22: 14116 | U22: 4013.57 | V22: 0 | W22: 0 | X22: 70260 | Y22: 0 | Z22: P | AB22: SI1175618 | AD22: Internal | AE22: A | AF22: SL | AG22: 2021-11-30 | AH22: WCNX | AI22: 0 | AJ22: 4013.57 | AL22: =VLOOKUP(C22,'[8]12.2021 FAR'!C$14:AL$87,36,FALSE) -> Shared Service Equipment | AM22: Shared Service Equipment | AN22: 10 | AO22: 2020 | AP22: 2021 | AQ22: 2021.833333 | AR22: 334.4641667 | AS22: 4013.57 | AT22: 0 | AU22: 4013.57 | AV22: 4013.57 | AW22: 0 | AX22: No
B23: 2010 | C23: 270317 | D23: P | E23: 70 Samsung Active Pro Tablets for 2010 | J23: 0 | K23: COMPLETE TABLET SOLUTIONS | N23: 2020-04-15 | O23: 2020-04-15 | P23: 1010-20-0033-1 | Q23: 100 | R23: 14110 | S23: 47891.2 | T23: 14116 | U23: 47891.2 | V23: 0 | W23: 0 | X23: 70260 | Y23: 0 | Z23: P | AB23: 13279 | AD23: Internal | AE23: A | AF23: SL | AG23: 2021-11-30 | AH23: WCNX | AI23: 0 | AJ23: 47891.2 | AL23: =VLOOKUP(C23,'[8]12.2021 FAR'!C$14:AL$87,36,FALSE) -> Shared Service Equipment | AM23: Shared Service Equipment | AN23: 4 | AO23: 2020 | AP23: 2021 | AQ23: 2021.333333 | AR23: 3990.933333 | AS23: 47891.2 | AT23: 0 | AU23: 47891.2 | AV23: 47891.2 | AW23: 0 | AX23: No
B24: 2010 | C24: 270316 | D24: P | E24: 70 RouteTablet Mounts for 2010 | J24: 0 | K24: PROCLIPUSA | N24: 2020-04-25 | O24: 2020-04-25 | P24: 1010-20-0033-2 | Q24: 300 | R24: 14110 | S24: 11085.04 | T24: 14116 | U24: 6158.35 | V24: 4926.69 | W24: 307.92 | X24: 70260 | Y24: 307.92 | Z24: P | AB24: SI-1171596 | AD24: Internal | AE24: A | AF24: SL | AG24: 2021-11-30 | AH24: WCNX | AI24: 0 | AJ24: 5850.43 | AL24: =VLOOKUP(C24,'[8]12.2021 FAR'!C$14:AL$87,36,FALSE) -> Shared Service Equipment | AM24: Shared Service Equipment | AN24: 4 | AO24: 2020 | AP24: 2023 | AQ24: 2023.333333 | AR24: 307.9177778 | AS24: 3695.013333 | AT24: 3695.013333 | AU24: 3695.013333 | AV24: 7390.026667 | AW24: 3695.013333 | AX24: No
B25: 2010 | C25: 270315 | D25: P | E25: 100 Chromebooks sent to Vancouver WA for Covid-19 | J25: 0 | K25: CDW DIR #XDS7054 | N25: 2020-03-15 | O25: 2020-03-15 | P25: 1010-20-0034-1 | Q25: 300 | R25: 14110 | S25: 26277.41 | T25: 14116 | U25: 16058.42 | V25: 10218.99 | W25: 729.93 | X25: 70260 | Y25: 729.93 | Z25: P | AB25: XDS7054 | AD25: Internal | AE25: A | AF25: SL | AG25: 2021-11-30 | AH25: WCNX | AI25: 0 | AJ25: 15328.49 | AL25: =VLOOKUP(C25,'[8]12.2021 FAR'!C$14:AL$87,36,FALSE) -> Shared Office Equipment | AM25: Shared Office Equipment | AN25: 3 | AO25: 2020 | AP25: 2023 | AQ25: 2023.25 | AR25: 729.9280556 | AS25: 8759.136667 | AT25: 8759.136667 | AU25: 8759.136667 | AV25: 17518.27333 | AW25: 8759.136667 | AX25: No
B26: 2010 | C26: 265975 | D26: P | E26: 65gal yard debris carts | F26: 648 | J26: 0 | K26: REHRIG PACIFIC COMPANY | M26: Non-Container Audit | N26: 2021-11-08 | O26: 2021-11-08 | P26: 2010-21-0067-1 | Q26: 700 | R26: 14050 | S26: 38851.51 | T26: 14056 | U26: 925.04 | V26: 37926.47 | W26: 925.04 | X26: 54260 | Y26: 462.52 | Z26: P | AB26: 50204756 | AD26: Internal | AE26: A | AF26: SL | AH26: WCNX | AI26: 0 | AJ26: 0 | AL26: =VLOOKUP(C26,'[8]12.2021 FAR'!C$14:AL$87,36,FALSE) -> Yard Debris Carts (non-reg) | AM26: Yard Debris Carts (non-reg) | AN26: 11 | AO26: 2021 | AP26: 2028 | AQ26: 2028.916667 | AR26: 462.5179762 | AS26: 5550.215714 | AT26: 5550.215714 | AU26: 0 | AV26: 5550.215714 | AW26: 33301.29429 | AX26: No
B27: 2010 | C27: 265766 | D27: P | E27: HP PROBOOK S/N 5CD1421C57 | F27: 1 | J27: 0 | K27: CDW DIR #2010 | N27: 2021-10-29 | O27: 2021-10-29 | P27: 2010-21-0068-1 | Q27: 300 | R27: 14110 | S27: 1370.35 | T27: 14116 | U27: 76.13 | V27: 1294.22 | W27: 76.13 | X27: 70260 | Y27: 38.06 | Z27: P | AB27: M890611 | AD27: Internal | AE27: A | AF27: SL | AH27: WCNX | AI27: 0 | AJ27: 0 | AL27: =VLOOKUP(C27,'[8]12.2021 FAR'!C$14:AL$87,36,FALSE) -> Shared Office Equipment | AM27: Shared Office Equipment | AN27: 10 | AO27: 2021 | AP27: 2024 | AQ27: 2024.833333 | AR27: 38.06527778 | AS27: 456.7833333 | AT27: 456.7833333 | AU27: 0 | AV27: 456.7833333 | AW27: 913.5666667 | AX27: No
B28: 2010 | C28: 265765 | D28: P | E28: Docking station S/N: AH5KNK0B36200257 | F28: 1 | J28: 0 | K28: AMZN MKTP US 7L5Z92C03 | N28: 2021-10-29 | O28: 2021-10-29 | P28: 2010-21-0068-1 | Q28: 300 | R28: 14110 | S28: 271.24 | T28: 14116 | U28: 15.07 | V28: 256.17 | W28: 15.07 | X28: 70260 | Y28: 7.53 | Z28: P | AB28: 11-7281015-0128234 | AD28: Internal | AE28: A | AF28: SL | AH28: WCNX | AI28: 0 | AJ28: 0 | AL28: =VLOOKUP(C28,'[8]12.2021 FAR'!C$14:AL$87,36,FALSE) -> Shared Office Equipment | AM28: Shared Office Equipment | AN28: 10 | AO28: 2021 | AP28: 2024 | AQ28: 2024.833333 | AR28: 7.534444444 | AS28: 90.41333333 | AT28: 90.41333333 | AU28: 0 | AV28: 90.41333333 | AW28: 180.8266667 | AX28: No
B29: 2010 | C29: 265733 | D29: P | E29: 40yd RO drop boxes | F29: 2 | J29: 0 | K29: WASTEQUIP MAYFAB | M29: 40 YD RO Box | N29: 2021-10-27 | O29: 2021-10-27 | P29: 2010-21-0060-1 | Q29: 1200 | R29: 14050 | S29: 16418 | T29: 14056 | U29: 228.03 | V29: 16189.97 | W29: 228.03 | X29: 54260 | Y29: 114.01 | Z29: P | AB29: 20inv000031168 | AD29: Internal | AE29: A | AF29: SL | AH29: WCNX | AI29: 0 | AJ29: 0 | AL29: =VLOOKUP(C29,'[8]12.2021 FAR'!C$14:AL$87,36,FALSE) -> Drop Boxes (shared) | AM29: Drop Boxes (shared) | AN29: 10 | AO29: 2021 | AP29: 2033 | AQ29: 2033.833333 | AR29: 114.0138889 | AS29: 1368.166667 | AT29: 1368.166667 | AU29: 0 | AV29: 1368.166667 | AW29: 15049.83333 | AX29: No
B30: 2010 | C30: 265732 | D30: P | E30: 40yd RO drop boxes | F30: 2 | J30: 0 | K30: WASTEQUIP MAYFAB | M30: 40 YD RO Box | N30: 2021-10-28 | O30: 2021-10-28 | P30: 2010-21-0060-1 | Q30: 1200 | R30: 14050 | S30: 16418 | T30: 14056 | U30: 228.03 | V30: 16189.97 | W30: 228.03 | X30: 54260 | Y30: 114.01 | Z30: P | AB30: 20inv000031438 | AD30: Internal | AE30: A | AF30: SL | AH30: WCNX | AI30: 0 | AJ30: 0 | AL30: =VLOOKUP(C30,'[8]12.2021 FAR'!C$14:AL$87,36,FALSE) -> Drop Boxes (shared) | AM30: Drop Boxes (shared) | AN30: 10 | AO30: 2021 | AP30: 2033 | AQ30: 2033.833333 | AR30: 114.0138889 | AS30: 1368.166667 | AT30: 1368.166667 | AU30: 0 | AV30: 1368.166667 | AW30: 15049.83333 | AX30: No
B31: 2010 | C31: 265731 | D31: P | E31: 40yd RO drop boxes | F31: 4 | J31: 0 | K31: WASTEQUIP MAYFAB | M31: 40 YD RO Box | N31: 2021-10-25 | O31: 2021-10-25 | P31: 2010-21-0060-1 | Q31: 1200 | R31: 14050 | S31: 32416 | T31: 14056 | U31: 450.22 | V31: 31965.78 | W31: 450.22 | X31: 54260 | Y31: 225.11 | Z31: P | AB31: 20inv000030770 | AD31: Internal | AE31: A | AF31: SL | AH31: WCNX | AI31: 0 | AJ31: 0 | AL31: =VLOOKUP(C31,'[8]12.2021 FAR'!C$14:AL$87,36,FALSE) -> Drop Boxes (shared) | AM31: Drop Boxes (shared) | AN31: 10 | AO31: 2021 | AP31: 2033 | AQ31: 2033.833333 | AR31: 225.1111111 | AS31: 2701.333333 | AT31: 2701.333333 | AU31: 0 | AV31: 2701.333333 | AW31: 29714.66667 | AX31: No
B32: 2010 | C32: 265730 | D32: P | E32: 30yd RO drop boxes | F32: 2 | J32: 0 | K32: WASTEQUIP MAYFAB | M32: 30 YD RO Box | N32: 2021-10-25 | O32: 2021-10-25 | P32: 2010-21-0060-1 | Q32: 1200 | R32: 14050 | S32: 14810.9 | T32: 14056 | U32: 205.71 | V32: 14605.19 | W32: 205.71 | X32: 54260 | Y32: 102.85 | Z32: P | AB32: 20inv000030770 | AD32: Internal | AE32: A | AF32: SL | AH32: WCNX | AI32: 0 | AJ32: 0 | AL32: =VLOOKUP(C32,'[8]12.2021 FAR'!C$14:AL$87,36,FALSE) -> Drop Boxes (shared) | AM32: Drop Boxes (shared) | AN32: 10 | AO32: 2021 | AP32: 2033 | AQ32: 2033.833333 | AR32: 102.8534722 | AS32: 1234.241667 | AT32: 1234.241667 | AU32: 0 | AV32: 1234.241667 | AW32: 13576.65833 | AX32: No
B33: 2010 | C33: 265729 | D33: P | E33: 30YD RO DROP BOXES | F33: 4 | J33: 0 | K33: WASTEQUIP MAYFAB | M33: 30 YD RO Box | N33: 2021-10-21 | O33: 2021-10-21 | P33: 2010-21-0060-1 | Q33: 1200 | R33: 14050 | S33: 28781.8 | T33: 14056 | U33: 399.75 | V33: 28382.05 | W33: 399.75 | X33: 54260 | Y33: 199.87 | Z33: P | AB33: 20INV000030362 | AD33: Internal | AE33: A | AF33: SL | AH33: WCNX | AI33: 0 | AJ33: 0 | AL33: =VLOOKUP(C33,'[8]12.2021 FAR'!C$14:AL$87,36,FALSE) -> Drop Boxes (shared) | AM33: Drop Boxes (shared) | AN33: 10 | AO33: 2021 | AP33: 2033 | AQ33: 2033.833333 | AR33: 199.8736111 | AS33: 2398.483333 | AT33: 2398.483333 | AU33: 0 | AV33: 2398.483333 | AW33: 26383.31667 | AX33: No
B34: 2010 | C34: 265728 | D34: P | E34: 30YD RO DROP BOXES | F34: 2 | J34: 0 | K34: WASTEQUIP MAYFAB | M34: 30 YD RO Box | N34: 2021-10-20 | O34: 2021-10-20 | P34: 2010-21-0060-1 | Q34: 1200 | R34: 14050 | S34: 14390.9 | T34: 14056 | U34: 199.87 | V34: 14191.03 | W34: 199.87 | X34: 54260 | Y34: 99.93 | Z34: P | AB34: 20INV000029966 | AD34: Internal | AE34: A | AF34: SL | AH34: WCNX | AI34: 0 | AJ34: 0 | AL34: =VLOOKUP(C34,'[8]12.2021 FAR'!C$14:AL$87,36,FALSE) -> Drop Boxes (shared) | AM34: Drop Boxes (shared) | AN34: 10 | AO34: 2021 | AP34: 2033 | AQ34: 2033.833333 | AR34: 99.93680556 | AS34: 1199.241667 | AT34: 1199.241667 | AU34: 0 | AV34: 1199.241667 | AW34: 13191.65833 | AX34: No
B35: 2010 | C35: 264019 | D35: P | E35: 95gal organic carts | F35: 351 | J35: 0 | K35: REHRIG PACIFIC COMPANY | M35: Non-Container Audit | N35: 2021-10-22 | O35: 2021-10-22 | P35: 2010-21-0064-1 | Q35: 700 | R35: 14050 | S35: 24252.05 | T35: 14056 | U35: 577.43 | V35: 23674.62 | W35: 577.43 | X35: 54260 | Y35: 288.71 | Z35: P | AB35: 50200900 | AD35: Internal | AE35: A | AF35: SL | AH35: WCNX | AI35: 0 | AJ35: 0 | AL35: =VLOOKUP(C35,'[8]12.2021 FAR'!C$14:AL$87,36,FALSE) -> Organics Carts (non-reg) | AM35: Organics Carts (non-reg) | AN35: 10 | AO35: 2021 | AP35: 2028 | AQ35: 2028.833333 | AR35: 288.714881 | AS35: 3464.578571 | AT35: 3464.578571 | AU35: 0 | AV35: 3464.578571 | AW35: 20787.47143 | AX35: No
B36: 2010 | C36: 264018 | D36: P | E36: 95gal county recycle carts | F36: 351 | J36: 0 | K36: REHRIG PACIFIC COMPANY | M36: Non-Container Audit | N36: 2021-10-22 | O36: 2021-10-22 | P36: 2010-21-0064-1 | Q36: 700 | R36: 14050 | S36: 24252.05 | T36: 14056 | U36: 577.43 | V36: 23674.62 | W36: 577.43 | X36: 54260 | Y36: 288.71 | Z36: P | AB36: 50200900 | AD36: Internal | AE36: A | AF36: SL | AH36: WCNX | AI36: 0 | AJ36: 0 | AL36: =VLOOKUP(C36,'[8]12.2021 FAR'!C$14:AL$87,36,FALSE) -> Recycle Carts (non-reg) | AM36: Recycle Carts (non-reg) | AN36: 10 | AO36: 2021 | AP36: 2028 | AQ36: 2028.833333 | AR36: 288.714881 | AS36: 3464.578571 | AT36: 3464.578571 | AU36: 0 | AV36: 3464.578571 | AW36: 20787.47143 | AX36: No
B37: 2010 | C37: 263907 | D37: 263906 | E37: TOUGHBOOK New Subscription | F37: 1 | J37: 0 | K37: NOREGON SYSTEMS INC | N37: 2021-08-30 | O37: 2021-08-30 | P37: 2010-21-0061-2 | Q37: 300 | R37: 14110 | S37: 1233.62 | T37: 14116 | U37: 137.07 | V37: 1096.55 | W37: 137.07 | X37: 70260 | Y37: 34.27 | Z37: P | AB37: INV00096180 | AD37: Internal | AE37: A | AF37: SL | AH37: WCNX | AI37: 0 | AJ37: 0 | AL37: =VLOOKUP(C37,'[8]12.2021 FAR'!C$14:AL$87,36,FALSE) -> Shared Service Equipment | AM37: Shared Service Equipment | AN37: 8 | AO37: 2021 | AP37: 2024 | AQ37: 2024.666667 | AR37: 34.26722222 | AS37: 411.2066667 | AT37: 411.2066667 | AU37: 0 | AV37: 411.2066667 | AW37: 822.4133333 | AX37: No
B38: 2010 | C38: 263906 | D38: P | E38: NOREGON Panasonic Toughbook FZ-55 I5-8365U | F38: 1 | J38: 0 | K38: NOREGON SYSTEMS INC | N38: 2021-08-30 | O38: 2021-08-30 | P38: 2010-21-0061-1 | Q38: 200 | R38: 14110 | S38: 1748.39 | T38: 14116 | U38: 291.4 | V38: 1456.99 | W38: 291.4 | X38: 70260 | Y38: 72.85 | Z38: P | AB38: INV00096180 | AD38: Internal | AE38: A | AF38: SL | AH38: WCNX | AI38: 0 | AJ38: 0 | AL38: =VLOOKUP(C38,'[8]12.2021 FAR'!C$14:AL$87,36,FALSE) -> Shared Service Equipment | AM38: Shared Service Equipment | AN38: 8 | AO38: 2021 | AP38: 2023 | AQ38: 2023.666667 | AR38: 72.84958333 | AS38: 874.195 | AT38: 874.195 | AU38: 0 | AV38: 874.195 | AW38: 874.195 | AX38: No
B39: 2010 | C39: 263879 | D39: P | E39: Land Purchase- 94th Location | J39: 0 | K39: CLARK COUNTY DEPARTMENT O | N39: 2021-10-31 | O39: 2021-10-31 | P39: 2010-21-0021-1 | Q39: 0 | R39: 14000 | S39: 100000 | T39: 14016 | U39: 0 | V39: 100000 | W39: 0 | X39: 57260 | Y39: 0 | Z39: P | AB39: Land Purchase- 94th | AD39: Internal | AE39: A | AF39: NO | AH39: WCNX | AI39: 0 | AJ39: 0 | AL39: =VLOOKUP(C39,'[8]12.2021 FAR'!C$14:AL$87,36,FALSE) -> Land | AM39: Land | AN39: 10 | AO39: 2021 | AP39: 2021 | AQ39: 2021.833333 | AW39: 100000 | AX39: No
B40: 2010 | C40: 263789 | D40: P | E40: 30 YD lidded RO Boxes | F40: 2 | J40: 0 | K40: WASTEQUIP MAYFAB | M40: 30 YD RO Box | N40: 2021-08-02 | O40: 2021-08-02 | P40: 2010-21-0038-1 | Q40: 1200 | R40: 14050 | S40: 16708 | T40: 14056 | U40: 580.14 | V40: 16127.86 | W40: 580.14 | X40: 54260 | Y40: 116.03 | Z40: P | AB40: 20inv000020564 | AD40: Internal | AE40: A | AF40: SL | AH40: WCNX | AI40: 0 | AJ40: 0 | AL40: =VLOOKUP(C40,'[8]12.2021 FAR'!C$14:AL$87,36,FALSE) -> Drop Boxes (shared) | AM40: Drop Boxes (shared) | AN40: 8 | AO40: 2021 | AP40: 2033 | AQ40: 2033.666667 | AR40: 116.0277778 | AS40: 1392.333333 | AT40: =IF($AQ40<=$AK$8,0,IF($AP40>$AK$7,$AS40,($AR40*$AN40))) -> 1392.333333 | AU40: =IF($AT40=0,$S40,IF($AK$6-AO40<1,0,(($AK$6-$AO40)*AS40))) -> 0 | AV40: 1392.333333 | AW40: 15315.66667 | AX40: No
B41: 2010 | C41: 263786 | D41: P | E41: 20 YD RO Boxes | F41: 4 | J41: 0 | K41: WASTEQUIP MAYFAB | M41: 20 YD RO Box | N41: 2021-09-17 | O41: 2021-09-17 | P41: 2010-21-0060-1 | Q41: 1200 | R41: 14050 | S41: 24960 | T41: 14056 | U41: 520 | V41: 24440 | W41: 520 | X41: 54260 | Y41: 173.33 | Z41: P | AB41: 20inv000025234 | AD41: Internal | AE41: A | AF41: SL | AH41: WCNX | AI41: 0 | AJ41: 0 | AL41: =VLOOKUP(C41,'[8]12.2021 FAR'!C$14:AL$87,36,FALSE) -> Drop Boxes (shared) | AM41: Drop Boxes (shared) | AN41: 9 | AO41: 2021 | AP41: 2033 | AQ41: 2033.75 | AR41: 173.3333333 | AS41: 2080 | AT41: 2080 | AU41: 0 | AV41: 2080 | AW41: 22880 | AX41: No
B42: 2010 | C42: 262765 | D42: 257713 | E42: Signage for new truck 742 | J42: 0 | M42: Non-Rolling Stock | N42: 2021-08-30 | O42: 2021-08-30 | P42: 2010-21-0023 | Q42: 1000 | R42: 14040 | S42: 453.6 | T42: 14046 | U42: 15.12 | V42: 438.48 | W42: 15.12 | X42: 51260 | Y42: 3.78 | Z42: P | AD42: Internal | AE42: A | AF42: SL | AH42: WCNX | AI42: 0 | AJ42: 0 | AK42: 742 | AL42: =VLOOKUP(C42,'[8]12.2021 FAR'!C$14:AL$87,36,FALSE) -> Recycle Trucks | AM42: Recycle Trucks | AN42: 8 | AO42: 2021 | AP42: 2031 | AQ42: 2031.666667 | AR42: 3.78 | AS42: 45.36 | AT42: 45.36 | AU42: 0 | AV42: 45.36 | AW42: 408.24 | AX42: No
B43: 2010 | C43: 261070 | D43: 261069 | E43: docking station - no SN listed | F43: 1 | J43: 0 | K43: AMZN MKTP US 2G66O97I2 | N43: 2021-09-21 | O43: 2021-09-21 | P43: 2010-21-0066-1 | Q43: 300 | R43: 14110 | S43: 260.33 | T43: 14116 | U43: 21.7 | V43: 238.63 | W43: 21.7 | X43: 70260 | Y43: 7.23 | Z43: P | AB43: 8718632 | AD43: Internal | AE43: A | AF43: SL | AH43: WCNX | AI43: 0 | AJ43: 0 | AL43: =VLOOKUP(C43,'[8]12.2021 FAR'!C$14:AL$87,36,FALSE) -> Shared Office Equipment | AM43: Shared Office Equipment | AN43: 9 | AO43: 2021 | AP43: 2024 | AQ43: 2024.75 | AR43: 7.231388889 | AS43: 86.77666667 | AT43: 86.77666667 | AU43: 0 | AV43: 86.77666667 | AW43: 173.5533333 | AX43: No
B44: 2010 | C44: 261069 | D44: P | E44: HP ProBook SN 5CD1326KLW | F44: 1 | J44: 0 | K44: CDW DIR #2010 | N44: 2021-09-21 | O44: 2021-09-21 | P44: 2010-21-0066-1 | Q44: 300 | R44: 14110 | S44: 1291.06 | T44: 14116 | U44: 107.59 | V44: 1183.47 | W44: 107.59 | X44: 70260 | Y44: 35.86 | Z44: P | AB44: L038074 | AD44: Internal | AE44: A | AF44: SL | AH44: WCNX | AI44: 0 | AJ44: 0 | AL44: =VLOOKUP(C44,'[8]12.2021 FAR'!C$14:AL$87,36,FALSE) -> Shared Office Equipment | AM44: Shared Office Equipment | AN44: 9 | AO44: 2021 | AP44: 2024 | AQ44: 2024.75 | AR44: 35.86277778 | AS44: 430.3533333 | AT44: 430.3533333 | AU44: 0 | AV44: 430.3533333 | AW44: 860.7066667 | AX44: No
B45: 2010 | C45: 261035 | D45: P | E45: Recycle Plus Bins(14x14) - White Metal Bins | F45: 540 | J45: 0 | K45: McShane Welding & Metal P | M45: Non-Container Audit | N45: 2021-08-16 | O45: 2021-08-16 | P45: 2010-21-0063-1 | Q45: 700 | R45: 14050 | S45: 34962.25 | T45: 14056 | U45: 1664.87 | V45: 33297.38 | W45: 1664.87 | X45: 54260 | Y45: 416.22 | Z45: P | AB45: 133550 | AD45: Internal | AE45: A | AF45: SL | AH45: WCNX | AI45: 0 | AJ45: 0 | AL45: =VLOOKUP(C45,'[8]12.2021 FAR'!C$14:AL$87,36,FALSE) -> Recycle Carts (non-reg) | AM45: Recycle Carts (non-reg) | AN45: 8 | AO45: 2021 | AP45: 2028 | AQ45: 2028.666667 | AR45: 416.2172619 | AS45: 4994.607143 | AT45: 4994.607143 | AU45: 0 | AV45: 4994.607143 | AW45: 29967.64286 | AX45: No
B46: 2010 | C46: 260995 | D46: P | E46: 20yd RO drop boxes | F46: 4 | J46: 0 | K46: WASTEQUIP MAYFAB | M46: 20 YD RO Box | N46: 2021-09-17 | O46: 2021-09-17 | P46: 2010-21-0060-1 | Q46: 1200 | R46: 14050 | S46: 24960 | T46: 14056 | U46: 520 | V46: 24440 | W46: 520 | X46: 54260 | Y46: 173.33 | Z46: P | AB46: 20inv000025082 | AD46: Internal | AE46: A | AF46: SL | AH46: WCNX | AI46: 0 | AJ46: 0 | AL46: =VLOOKUP(C46,'[8]12.2021 FAR'!C$14:AL$87,36,FALSE) -> Drop Boxes (shared) | AM46: Drop Boxes (shared) | AN46: 9 | AO46: 2021 | AP46: =$AO46+($Q46/100) -> 2033 | AQ46: 2033.75 | AR46: 173.3333333 | AS46: 2080 | AT46: 2080 | AU46: 0 | AV46: 2080 | AW46: =$S46-$AV46 -> 22880 | AX46: No
B47: 2010 | C47: 260954 | D47: 260783 | E47: signage for new automated truck 835 | J47: 0 | K47: NORTH AMERICAN DECAL INC. | M47: Non-Rolling Stock | N47: 2021-09-07 | O47: 2021-09-07 | P47: 2010-21-0013-1 | Q47: 800 | R47: 14040 | S47: 1027.19 | T47: 14046 | U47: 42.8 | V47: 984.39 | W47: 42.8 | X47: 51260 | Y47: 10.7 | Z47: P | AB47: 429539 | AD47: Internal | AE47: A | AF47: SL | AH47: WCNX | AI47: 0 | AJ47: 0 | AK47: 835 | AL47: =VLOOKUP(C47,'[8]12.2021 FAR'!C$14:AL$87,36,FALSE) -> MSW in Contract Cities | AM47: Garbage Non-Regulated Only | AN47: 9 | AO47: 2021 | AP47: 2029 | AQ47: 2029.75 | AR47: 10.69989583 | AS47: 128.39875 | AT47: 128.39875 | AU47: 0 | AV47: 128.39875 | AW47: 898.79125 | AX47: No
B48: 2010 | C48: 260783 | D48: P | E48: 2020 Peterbilt ASL Truck | H48: 3BPDLK0X5LF109660 | J48: 2020 | M48: Automated Sideload | N48: 2021-09-07 | O48: 2021-09-07 | P48: 2010-21-0013 | Q48: 800 | R48: 14040 | S48: 367579.28 | T48: 14046 | U48: 15315.8 | V48: 352263.48 | W48: 15315.8 | X48: 51260 | Y48: 3828.95 | Z48: P | AD48: Internal | AE48: A | AF48: SL | AH48: WCNX | AI48: 0 | AJ48: 0 | AK48: 835 | AL48: =VLOOKUP(C48,'[8]12.2021 FAR'!C$14:AL$87,36,FALSE) -> MSW in Contract Cities | AM48: Garbage Non-Regulated Only | AN48: 9 | AO48: 2021 | AP48: 2029 | AQ48: 2029.75 | AR48: 3828.950833 | AS48: 45947.41 | AT48: 45947.41 | AU48: 0 | AV48: 45947.41 | AW48: 321631.87 | AX48: No
B49: 2010 | C49: 260596 | D49: P | E49: Electric Truck Charging Station - ABB Terra DC Wallbox 3PH | F49: 1 | J49: 0 | K49: THE LION ELECTRIC CO | N49: 2021-01-29 | O49: 2021-01-29 | P49: 2010-21-0062-1 | Q49: 500 | R49: 14070 | S49: 14960 | T49: 14076 | U49: 2742.67 | V49: 12217.33 | W49: 2742.67 | X49: 51260 | Y49: 249.33 | Z49: P | AB49: IN-008949 | AD49: Internal | AE49: A | AF49: SL | AH49: WCNX | AI49: 0 | AJ49: 0 | AL49: =VLOOKUP(C49,'[8]12.2021 FAR'!C$14:AL$87,36,FALSE) -> COV Garbage | AM49: Garbage Non-Regulated Only | AN49: 1 | AO49: 2021 | AP49: 2026 | AQ49: 2026.083333 | AR49: 249.3333333 | AS49: 2992 | AT49: 2992 | AU49: 0 | AV49: 2992 | AW49: 11968 | AX49: No
B50: 2010 | C50: 260197 | D50: 257713 | E50: body wrap for new recycle truck #742 | J50: 0 | M50: Non-Rolling Stock | N50: 2021-08-30 | O50: 2021-08-30 | P50: 2010-21-0023 | Q50: 1000 | R50: 14040 | S50: 1355 | T50: 14046 | U50: 45.17 | V50: 1309.83 | W50: 45.17 | X50: 51260 | Y50: 11.29 | Z50: P | AD50: Internal | AE50: A | AF50: SL | AH50: WCNX | AI50: 0 | AJ50: 0 | AK50: 742 | AL50: =VLOOKUP(C50,'[8]12.2021 FAR'!C$14:AL$87,36,FALSE) -> Recycle Trucks | AM50: Recycle Trucks | AN50: 8 | AO50: 2021 | AP50: 2031 | AQ50: 2031.666667 | AR50: 11.29166667 | AS50: 135.5 | AT50: 135.5 | AU50: 0 | AV50: 135.5 | AW50: 1219.5 | AX50: No
B51: 2010 | C51: 259582 | D51: P | E51: 95 Gallon EG Blue Recycle Carts | F51: 702 | J51: 0 | K51: Rehrig Pacific Company | M51: Non-Container Audit | N51: 2021-08-30 | O51: 2021-08-30 | P51: 2010-21-0058-1 | Q51: 700 | R51: 14050 | S51: 45688.52 | T51: 14056 | U51: 2175.64 | V51: 43512.88 | W51: 2175.64 | X51: 54260 | Y51: 543.91 | Z51: P | AB51: 50187461 | AD51: Internal | AE51: A | AF51: SL | AH51: WCNX | AI51: 0 | AJ51: 0 | AL51: =VLOOKUP(C51,'[8]12.2021 FAR'!C$14:AL$87,36,FALSE) -> Recycle Carts (non-reg) | AM51: Recycle Carts (non-reg) | AN51: 8 | AO51: 2021 | AP51: 2028 | AQ51: 2028.666667 | AR51: 543.9109524 | AS51: 6526.931429 | AT51: 6526.931429 | AU51: 0 | AV51: 6526.931429 | AW51: 39161.58857 | AX51: No
B52: 2010 | C52: 259581 | D52: P | E52: 40yd RO lidded drop boxes | F52: 1 | J52: 0 | K52: WASTEQUIP MAYFAB | M52: 40 YD RO Box | N52: 2021-08-03 | O52: 2021-08-03 | P52: 2010-21-0040-1 | Q52: 1200 | R52: 14050 | S52: 16406 | T52: 14056 | U52: 569.65 | V52: 15836.35 | W52: 569.65 | X52: 54260 | Y52: 113.93 | Z52: P | AB52: 20inv000021910 | AD52: Internal | AE52: A | AF52: SL | AH52: WCNX | AI52: 0 | AJ52: 0 | AL52: =VLOOKUP(C52,'[8]12.2021 FAR'!C$14:AL$87,36,FALSE) -> Drop Boxes (shared) | AM52: Drop Boxes (shared) | AN52: 8 | AO52: 2021 | AP52: 2033 | AQ52: 2033.666667 | AR52: 113.9305556 | AS52: 1367.166667 | AT52: 1367.166667 | AU52: 0 | AV52: 1367.166667 | AW52: 15038.83333 | AX52: No
B53: 2010 | C53: 259580 | D53: P | E53: 40yd RO lidded drop boxes | F53: 1 | J53: 0 | K53: WASTEQUIP MAYFAB | M53: 40 YD RO Box | N53: 2021-08-03 | O53: 2021-08-03 | P53: 2010-21-0040-1 | Q53: 1200 | R53: 14050 | S53: 3354 | T53: 14056 | U53: 116.45 | V53: 3237.55 | W53: 116.45 | X53: 54260 | Y53: 23.29 | Z53: P | AB53: 20inv000021910 | AD53: Internal | AE53: A | AF53: SL | AH53: WCNX | AI53: 0 | AJ53: 0 | AL53: =VLOOKUP(C53,'[8]12.2021 FAR'!C$14:AL$87,36,FALSE) -> Drop Boxes (shared) | AM53: Drop Boxes (shared) | AN53: 8 | AO53: 2021 | AP53: 2033 | AQ53: 2033.666667 | AR53: 23.29166667 | AS53: 279.5 | AT53: 279.5 | AU53: 0 | AV53: 279.5 | AW53: 3074.5 | AX53: No
B54: 2010 | C54: 259579 | D54: P | E54: 40yd RO lidded drop boxes | F54: 1 | J54: 0 | K54: WASTEQUIP MAYFAB | M54: 40 YD RO Box | N54: 2021-08-09 | O54: 2021-08-09 | P54: 2010-21-0040-1 | Q54: 1200 | R54: 14050 | S54: 15244 | T54: 14056 | U54: 529.31 | V54: 14714.69 | W54: 529.31 | X54: 54260 | Y54: 105.86 | Z54: P | AB54: 20inv000022302 | AD54: Internal | AE54: A | AF54: SL | AH54: WCNX | AI54: 0 | AJ54: 0 | AL54: =VLOOKUP(C54,'[8]12.2021 FAR'!C$14:AL$87,36,FALSE) -> Drop Boxes (shared) | AM54: Drop Boxes (shared) | AN54: 8 | AO54: 2021 | AP54: 2033 | AQ54: 2033.666667 | AR54: 105.8611111 | AS54: 1270.333333 | AT54: 1270.333333 | AU54: 0 | AV54: 1270.333333 | AW54: 13973.66667 | AX54: No
B55: 2010 | C55: 259578 | D55: P | E55: 40yd RO lidded drop boxes | F55: 1 | J55: 0 | K55: WASTEQUIP MAYFAB | M55: 40 YD RO Box | N55: 2021-08-09 | O55: 2021-08-09 | P55: 2010-21-0040-1 | Q55: 1200 | R55: 14050 | S55: 4516 | T55: 14056 | U55: 156.81 | V55: 4359.19 | W55: 156.81 | X55: 54260 | Y55: 31.36 | Z55: P | AB55: 20inv000022302 | AD55: Internal | AE55: A | AF55: SL | AH55: WCNX | AI55: 0 | AJ55: 0 | AL55: =VLOOKUP(C55,'[8]12.2021 FAR'!C$14:AL$87,36,FALSE) -> Drop Boxes (shared) | AM55: Drop Boxes (shared) | AN55: 8 | AO55: 2021 | AP55: 2033 | AQ55: 2033.666667 | AR55: 31.36111111 | AS55: 376.3333333 | AT55: 376.3333333 | AU55: 0 | AV55: 376.3333333 | AW55: 4139.666667 | AX55: No
B56: 2010 | C56: 259577 | D56: P | E56: 40yd lidded RO boxes | F56: 2 | J56: 0 | K56: WASTEQUIP MAYFAB | M56: 40 YD RO Box | N56: 2021-08-06 | O56: 2021-08-06 | P56: 2010-21-0040-1 | Q56: 1200 | R56: 14050 | S56: 19760 | T56: 14056 | U56: 686.11 | V56: 19073.89 | W56: 686.11 | X56: 54260 | Y56: 137.22 | Z56: P | AB56: 20inv000022304 | AD56: Internal | AE56: A | AF56: SL | AH56: WCNX | AI56: 0 | AJ56: 0 | AL56: =VLOOKUP(C56,'[8]12.2021 FAR'!C$14:AL$87,36,FALSE) -> Drop Boxes (shared) | AM56: Drop Boxes (shared) | AN56: 8 | AO56: 2021 | AP56: 2033 | AQ56: 2033.666667 | AR56: 137.2222222 | AS56: 1646.666667 | AT56: 1646.666667 | AU56: 0 | AV56: 1646.666667 | AW56: 18113.33333 | AX56: No
B57: 2010 | C57: 259576 | D57: P | E57: 4 yd FEL slant garbage containers | F57: 12 | J57: 0 | K57: WASTEQUIP MAYFAB | M57: 4 YD FEL Container | N57: 2021-08-23 | O57: 2021-08-23 | P57: 2010-21-0037-3 | Q57: 1200 | R57: 14050 | S57: 11384.17 | T57: 14056 | U57: 316.23 | V57: 11067.94 | W57: 316.23 | X57: 54260 | Y57: 79.06 | Z57: P | AB57: 20INV000021130 | AD57: Internal | AE57: A | AF57: SL | AH57: WCNX | AI57: 0 | AJ57: 0 | AL57: =VLOOKUP(C57,'[8]12.2021 FAR'!C$14:AL$87,36,FALSE) -> Garbage Container (shared) | AM57: Garbage Container (shared) | AN57: 8 | AO57: 2021 | AP57: 2033 | AQ57: 2033.666667 | AR57: 79.05673611 | AS57: 948.6808333 | AT57: 948.6808333 | AU57: 0 | AV57: 948.6808333 | AW57: 10435.48917 | AX57: No
B58: 2010 | C58: 259406 | D58: P | E58: 95gal county recycle carts | F58: 54 | J58: 0 | K58: REHRIG PACIFIC COMPANY | M58: Non-Container Audit | N58: 2021-07-06 | O58: 2021-07-06 | P58: 2010-21-0056-1 | Q58: 700 | R58: 14050 | S58: 4000 | T58: 14056 | U58: 285.72 | V58: 3714.28 | W58: 285.72 | X58: 54260 | Y58: 47.62 | Z58: P | AB58: 50179891 | AD58: Internal | AE58: A | AF58: SL | AH58: WCNX | AI58: 0 | AJ58: 0 | AL58: =VLOOKUP(C58,'[8]12.2021 FAR'!C$14:AL$87,36,FALSE) -> Recycle Carts (non-reg) | AM58: Recycle Carts (non-reg) | AN58: 7 | AO58: 2021 | AP58: 2028 | AQ58: 2028.583333 | AR58: 47.61904762 | AS58: 571.4285714 | AT58: 571.4285714 | AU58: 0 | AV58: 571.4285714 | AW58: 3428.571429 | AX58: No
B59: 2010 | C59: 259405 | D59: P | E59: 95gal county recycle carts | F59: 135 | J59: 0 | K59: REHRIG PACIFIC COMPANY | M59: Non-Container Audit | N59: 2021-07-06 | O59: 2021-07-06 | P59: 2010-21-0056-1 | Q59: 700 | R59: 14050 | S59: 8317 | T59: 14056 | U59: 594.07 | V59: 7722.93 | W59: 594.07 | X59: 54260 | Y59: 99.01 | Z59: P | AB59: 50179891 | AD59: Internal | AE59: A | AF59: SL | AH59: WCNX | AI59: 0 | AJ59: 0 | AL59: =VLOOKUP(C59,'[8]12.2021 FAR'!C$14:AL$87,36,FALSE) -> Recycle Carts (non-reg) | AM59: Recycle Carts (non-reg) | AN59: 7 | AO59: 2021 | AP59: 2028 | AQ59: 2028.583333 | AR59: 99.01190476 | AS59: 1188.142857 | AT59: 1188.142857 | AU59: 0 | AV59: 1188.142857 | AW59: 7128.857143 | AX59: No
B60: 2010 | C60: 259404 | D60: P | E60: 95gal county recycle carts | F60: 342 | J60: 0 | K60: REHRIG PACIFIC COMPANY | M60: Non-Container Audit | N60: 2021-07-06 | O60: 2021-07-06 | P60: 2010-21-0056-1 | Q60: 700 | R60: 14050 | S60: 20999.61 | T60: 14056 | U60: 1499.97 | V60: 19499.64 | W60: 1499.97 | X60: 54260 | Y60: 249.99 | Z60: P | AB60: 50179891 | AD60: Internal | AE60: A | AF60: SL | AH60: WCNX | AI60: 0 | AJ60: 0 | AL60: =VLOOKUP(C60,'[8]12.2021 FAR'!C$14:AL$87,36,FALSE) -> Recycle Carts (non-reg) | AM60: Recycle Carts (non-reg) | AN60: 7 | AO60: 2021 | AP60: 2028 | AQ60: 2028.583333 | AR60: 249.9953571 | AS60: 2999.944286 | AT60: 2999.944286 | AU60: 0 | AV60: 2999.944286 | AW60: 17999.66571 | AX60: No
B61: 2010 | C61: 259403 | D61: P | E61: 95gal county recycle carts | F61: 171 | J61: 0 | K61: REHRIG PACIFIC COMPANY | M61: Non-Container Audit | N61: 2021-07-06 | O61: 2021-07-06 | P61: 2010-21-0056-1 | Q61: 700 | R61: 14050 | S61: 10500 | T61: 14056 | U61: 750 | V61: 9750 | W61: 750 | X61: 54260 | Y61: 125 | Z61: P | AB61: 50179891 | AD61: Internal | AE61: A | AF61: SL | AH61: WCNX | AI61: 0 | AJ61: 0 | AL61: =VLOOKUP(C61,'[8]12.2021 FAR'!C$14:AL$87,36,FALSE) -> Recycle Carts (non-reg) | AM61: Recycle Carts (non-reg) | AN61: 7 | AO61: 2021 | AP61: 2028 | AQ61: 2028.583333 | AR61: 125 | AS61: 1500 | AT61: 1500 | AU61: 0 | AV61: 1500 | AW61: 9000 | AX61: No
B62: 2010 | C62: 259390 | D62: P | E62: 65gal county recycle carts | F62: 194 | J62: 0 | K62: REHRIG PACIFIC COMPANY | M62: Non-Container Audit | N62: 2021-07-06 | O62: 2021-07-06 | P62: 2010-21-0056-1 | Q62: 700 | R62: 14050 | S62: 10000 | T62: 14056 | U62: 714.29 | V62: 9285.71 | W62: 714.29 | X62: 54260 | Y62: 119.05 | Z62: P | AB62: 50179891 | AD62: Internal | AE62: A | AF62: SL | AH62: WCNX | AI62: 0 | AJ62: 0 | AL62: =VLOOKUP(C62,'[8]12.2021 FAR'!C$14:AL$87,36,FALSE) -> Recycle Carts (non-reg) | AM62: Recycle Carts (non-reg) | AN62: 7 | AO62: 2021 | AP62: 2028 | AQ62: 2028.583333 | AR62: 119.047619 | AS62: 1428.571429 | AT62: 1428.571429 | AU62: 0 | AV62: 1428.571429 | AW62: 8571.428571 | AX62: No
B63: 2010 | C63: 259389 | D63: P | E63: 65gal county recycle carts | F63: 371 | J63: 0 | K63: REHRIG PACIFIC COMPANY | M63: Non-Container Audit | N63: 2021-07-06 | O63: 2021-07-06 | P63: 2010-21-0056-1 | Q63: 700 | R63: 14050 | S63: 20500 | T63: 14056 | U63: 1464.29 | V63: 19035.71 | W63: 1464.29 | X63: 54260 | Y63: 244.05 | Z63: P | AB63: 50179891 | AD63: Internal | AE63: A | AF63: SL | AH63: WCNX | AI63: 0 | AJ63: 0 | AL63: =VLOOKUP(C63,'[8]12.2021 FAR'!C$14:AL$87,36,FALSE) -> Recycle Carts (non-reg) | AM63: Recycle Carts (non-reg) | AN63: 7 | AO63: 2021 | AP63: 2028 | AQ63: 2028.583333 | AR63: 244.047619 | AS63: 2928.571429 | AT63: 2928.571429 | AU63: 0 | AV63: 2928.571429 | AW63: 17571.42857 | AX63: No
B64: 2010 | C64: 259388 | D64: P | E64: 65gal county recycle carts | F64: 371 | J64: 0 | K64: REHRIG PACIFIC COMPANY | M64: Non-Container Audit | N64: 2021-07-06 | O64: 2021-07-06 | P64: 2010-21-0056-1 | Q64: 700 | R64: 14050 | S64: 20500 | T64: 14056 | U64: 1464.29 | V64: 19035.71 | W64: 1464.29 | X64: 54260 | Y64: 244.05 | Z64: P | AB64: 50179891 | AD64: Internal | AE64: A | AF64: SL | AH64: WCNX | AI64: 0 | AJ64: 0 | AL64: =VLOOKUP(C64,'[8]12.2021 FAR'!C$14:AL$87,36,FALSE) -> Recycle Carts (non-reg) | AM64: Recycle Carts (non-reg) | AN64: 7 | AO64: 2021 | AP64: 2028 | AQ64: 2028.583333 | AR64: 244.047619 | AS64: 2928.571429 | AT64: 2928.571429 | AU64: 0 | AV64: 2928.571429 | AW64: 17571.42857 | AX64: No
B65: 2010 | C65: 259381 | D65: P | E65: 40yd lidded RO boxes | F65: 2 | J65: 0 | K65: WASTEQUIP MAYFAB | M65: 40 YD RO Box | N65: 2021-08-02 | O65: 2021-08-02 | P65: 2010-21-0038-1 | Q65: 1200 | R65: 14050 | S65: 18316 | T65: 14056 | U65: 635.97 | V65: 17680.03 | W65: 635.97 | X65: 54260 | Y65: 127.19 | Z65: P | AB65: 20inv000021872 | AD65: Internal | AE65: A | AF65: SL | AH65: WCNX | AI65: 0 | AJ65: 0 | AL65: =VLOOKUP(C65,'[8]12.2021 FAR'!C$14:AL$87,36,FALSE) -> Drop Boxes (shared) | AM65: Drop Boxes (shared) | AN65: 8 | AO65: 2021 | AP65: 2033 | AQ65: 2033.666667 | AR65: 127.1944444 | AS65: 1526.333333 | AT65: 1526.333333 | AU65: 0 | AV65: 1526.333333 | AW65: 16789.66667 | AX65: No
B66: 2010 | C66: 259380 | D66: P | E66: 40yd lidded RO boxes | F66: 2 | J66: 0 | K66: WASTEQUIP MAYFAB | M66: 40 YD RO Box | N66: 2021-07-30 | O66: 2021-07-30 | P66: 2010-21-0038-1 | Q66: 1200 | R66: 14050 | S66: 18316 | T66: 14056 | U66: 635.97 | V66: 17680.03 | W66: 635.97 | X66: 54260 | Y66: 127.19 | Z66: P | AB66: 20inv000021608 | AD66: Internal | AE66: A | AF66: SL | AH66: WCNX | AI66: 0 | AJ66: 0 | AL66: =VLOOKUP(C66,'[8]12.2021 FAR'!C$14:AL$87,36,FALSE) -> Drop Boxes (shared) | AM66: Drop Boxes (shared) | AN66: 7 | AO66: 2021 | AP66: 2033 | AQ66: 2033.583333 | AR66: 127.1944444 | AS66: 1526.333333 | AT66: 1526.333333 | AU66: 0 | AV66: 1526.333333 | AW66: 16789.66667 | AX66: No
B67: 2010 | C67: 259379 | D67: P | E67: 40yd lidded RO box | F67: 2 | J67: 0 | K67: WASTEQUIP MAYFAB | M67: 40 YD RO Box | N67: 2021-07-31 | O67: 2021-07-31 | P67: 2010-21-0038-1 | Q67: 1200 | R67: 14050 | S67: 18316 | T67: 14056 | U67: 635.97 | V67: 17680.03 | W67: 635.97 | X67: 54260 | Y67: 127.19 | Z67: P | AB67: 20inv000021798 | AD67: Internal | AE67: A | AF67: SL | AH67: WCNX | AI67: 0 | AJ67: 0 | AL67: =VLOOKUP(C67,'[8]12.2021 FAR'!C$14:AL$87,36,FALSE) -> Drop Boxes (shared) | AM67: Drop Boxes (shared) | AN67: 7 | AO67: 2021 | AP67: 2033 | AQ67: 2033.583333 | AR67: 127.1944444 | AS67: 1526.333333 | AT67: 1526.333333 | AU67: 0 | AV67: 1526.333333 | AW67: 16789.66667 | AX67: No
B68: 2010 | C68: 259372 | D68: P | E68: 30yd lidded RO boxes | F68: 2 | J68: 0 | K68: WASTEQUIP MAYFAB | M68: 30 YD RO Box | N68: 2021-07-29 | O68: 2021-07-29 | P68: 2010-21-0040-1 | Q68: 1200 | R68: 14050 | S68: 17930 | T68: 14056 | U68: 622.57 | V68: 17307.43 | W68: 622.57 | X68: 54260 | Y68: 124.51 | Z68: P | AB68: 20inv000021484 | AD68: Internal | AE68: A | AF68: SL | AH68: WCNX | AI68: 0 | AJ68: 0 | AL68: =VLOOKUP(C68,'[8]12.2021 FAR'!C$14:AL$87,36,FALSE) -> Drop Boxes (shared) | AM68: Drop Boxes (shared) | AN68: 7 | AO68: 2021 | AP68: 2033 | AQ68: 2033.583333 | AR68: 124.5138889 | AS68: 1494.166667 | AT68: 1494.166667 | AU68: 0 | AV68: 1494.166667 | AW68: 16435.83333 | AX68: No
B69: 2010 | C69: 259371 | D69: P | E69: 30yd lidded RO boxes | F69: 2 | J69: 0 | K69: WASTEQUIP MAYFAB | M69: 30 YD RO Box | N69: 2021-07-28 | O69: 2021-07-28 | P69: 2010-21-0040-1 | Q69: 1200 | R69: 14050 | S69: 17930 | T69: 14056 | U69: 622.57 | V69: 17307.43 | W69: 622.57 | X69: 54260 | Y69: 124.51 | Z69: P | AB69: 20inv000021412 | AD69: Internal | AE69: A | AF69: SL | AH69: WCNX | AI69: 0 | AJ69: 0 | AL69: =VLOOKUP(C69,'[8]12.2021 FAR'!C$14:AL$87,36,FALSE) -> Drop Boxes (shared) | AM69: Drop Boxes (shared) | AN69: 7 | AO69: 2021 | AP69: 2033 | AQ69: 2033.583333 | AR69: 124.5138889 | AS69: 1494.166667 | AT69: 1494.166667 | AU69: 0 | AV69: 1494.166667 | AW69: 16435.83333 | AX69: No
B70: 2010 | C70: 259370 | D70: P | E70: 30yd lidded RO boxes | F70: 2 | J70: 0 | K70: WASTEQUIP MAYFAB | M70: 30 YD RO Box | N70: 2021-07-29 | O70: 2021-07-29 | P70: 2010-21-0040-1 | Q70: 1200 | R70: 14050 | S70: 17930 | T70: 14056 | U70: 622.57 | V70: 17307.43 | W70: 622.57 | X70: 54260 | Y70: 124.51 | Z70: P | AB70: 20inv000021502 | AD70: Internal | AE70: A | AF70: SL | AH70: WCNX | AI70: 0 | AJ70: 0 | AL70: =VLOOKUP(C70,'[8]12.2021 FAR'!C$14:AL$87,36,FALSE) -> Drop Boxes (shared) | AM70: Drop Boxes (shared) | AN70: 7 | AO70: 2021 | AP70: 2033 | AQ70: 2033.583333 | AR70: 124.5138889 | AS70: 1494.166667 | AT70: 1494.166667 | AU70: 0 | AV70: 1494.166667 | AW70: 16435.83333 | AX70: No
B71: 2010 | C71: 259367 | D71: P | E71: 20yd RO boxes | F71: 2 | J71: 0 | K71: WASTEQUIP MAYFAB | M71: 20 YD RO Box | N71: 2021-07-27 | O71: 2021-07-27 | P71: 2010-21-0040-1 | Q71: 1200 | R71: 14050 | S71: 11410 | T71: 14056 | U71: 396.18 | V71: 11013.82 | W71: 396.18 | X71: 54260 | Y71: 79.24 | Z71: P | AB71: 20inv000021262 | AD71: Internal | AE71: A | AF71: SL | AH71: WCNX | AI71: 0 | AJ71: 0 | AL71: =VLOOKUP(C71,'[8]12.2021 FAR'!C$14:AL$87,36,FALSE) -> Drop Boxes (shared) | AM71: Drop Boxes (shared) | AN71: 7 | AO71: 2021 | AP71: 2033 | AQ71: 2033.583333 | AR71: 79.23611111 | AS71: 950.8333333 | AT71: 950.8333333 | AU71: 0 | AV71: 950.8333333 | AW71: 10459.16667 | AX71: No
B72: 2010 | C72: 259366 | D72: P | E72: 20yd RO boxes | F72: 2 | J72: 0 | K72: WASTEQUIP MAYFAB | M72: 20 YD RO Box | N72: 2021-07-27 | O72: 2021-07-27 | P72: 2010-21-0040-1 | Q72: 1200 | R72: 14050 | S72: 11410 | T72: 14056 | U72: 396.18 | V72: 11013.82 | W72: 396.18 | X72: 54260 | Y72: 79.24 | Z72: P | AB72: 20inv000021252 | AD72: Internal | AE72: A | AF72: SL | AH72: WCNX | AI72: 0 | AJ72: 0 | AL72: =VLOOKUP(C72,'[8]12.2021 FAR'!C$14:AL$87,36,FALSE) -> Drop Boxes (shared) | AM72: Drop Boxes (shared) | AN72: 7 | AO72: 2021 | AP72: 2033 | AQ72: 2033.583333 | AR72: 79.23611111 | AS72: 950.8333333 | AT72: 950.8333333 | AU72: 0 | AV72: 950.8333333 | AW72: 10459.16667 | AX72: No
B73: 2010 | C73: 259365 | D73: P | E73: 20yd RO boxes | F73: 2 | J73: 0 | K73: WASTEQUIP MAYFAB | M73: 20 YD RO Box | N73: 2021-07-26 | O73: 2021-07-26 | P73: 2010-21-0040-1 | Q73: 1200 | R73: 14050 | S73: 11410 | T73: 14056 | U73: 396.18 | V73: 11013.82 | W73: 396.18 | X73: 54260 | Y73: 79.24 | Z73: P | AB73: 20inv000021154 | AD73: Internal | AE73: A | AF73: SL | AH73: WCNX | AI73: 0 | AJ73: 0 | AL73: =VLOOKUP(C73,'[8]12.2021 FAR'!C$14:AL$87,36,FALSE) -> Drop Boxes (shared) | AM73: Drop Boxes (shared) | AN73: 7 | AO73: 2021 | AP73: 2033 | AQ73: 2033.583333 | AR73: 79.23611111 | AS73: 950.8333333 | AT73: 950.8333333 | AU73: 0 | AV73: 950.8333333 | AW73: 10459.16667 | AX73: No
B74: 2010 | C74: 259364 | D74: P | E74: 20yd lidded RO boxes | F74: 2 | J74: 0 | K74: WASTEQUIP MAYFAB | M74: 20 YD RO Box | N74: 2021-07-22 | O74: 2021-07-22 | P74: 2010-21-0038-1 | Q74: 1200 | R74: 14050 | S74: 15104 | T74: 14056 | U74: 524.45 | V74: 14579.55 | W74: 524.45 | X74: 54260 | Y74: 104.89 | Z74: P | AB74: 20inv000020936 | AD74: Internal | AE74: A | AF74: SL | AH74: WCNX | AI74: 0 | AJ74: 0 | AL74: =VLOOKUP(C74,'[8]12.2021 FAR'!C$14:AL$87,36,FALSE) -> Drop Boxes (shared) | AM74: Drop Boxes (shared) | AN74: 7 | AO74: 2021 | AP74: 2033 | AQ74: 2033.583333 | AR74: 104.8888889 | AS74: 1258.666667 | AT74: 1258.666667 | AU74: 0 | AV74: 1258.666667 | AW74: 13845.33333 | AX74: No
B75: 2010 | C75: 259361 | D75: P | E75: 14gal Glass Recycle bins | F75: 6000 | J75: 0 | K75: REHRIG PACIFIC COMPANY | M75: Non-Container Audit | N75: 2021-08-13 | O75: 2021-08-13 | P75: 2010-21-0059-1 | Q75: 500 | R75: 14050 | S75: 57907.28 | T75: 14056 | U75: 4825.6 | V75: 53081.68 | W75: 4825.6 | X75: 54260 | Y75: 965.12 | Z75: P | AB75: 50187459 | AD75: Internal | AE75: A | AF75: SL | AH75: WCNX | AI75: 0 | AJ75: 0 | AL75: =VLOOKUP(C75,'[8]12.2021 FAR'!C$14:AL$87,36,FALSE) -> Recycle Carts (non-reg) | AM75: Recycle Carts (non-reg) | AN75: 8 | AO75: 2021 | AP75: 2026 | AQ75: 2026.666667 | AR75: 965.1213333 | AS75: 11581.456 | AT75: 11581.456 | AU75: 0 | AV75: 11581.456 | AW75: 46325.824 | AX75: No
B76: 2010 | C76: 259354 | D76: 256080 | E76: signage for new recycle truck #741 | J76: 2021 | K76: NORTH AMERICAN DECAL INC. | M76: Non-Rolling Stock | N76: 2021-07-06 | O76: 2021-07-06 | P76: 2010-21-0006-1 | Q76: 1000 | R76: 14040 | S76: 526.05 | T76: 14046 | U76: 26.3 | V76: 499.75 | W76: 26.3 | X76: 51260 | Y76: 4.38 | Z76: P | AB76: 429143 | AD76: Internal | AE76: A | AF76: SL | AH76: WCNX | AI76: 0 | AJ76: 0 | AK76: 741 | AL76: =VLOOKUP(C76,'[8]12.2021 FAR'!C$14:AL$87,36,FALSE) -> Recycle Trucks | AM76: Recycle Trucks | AN76: 7 | AO76: 2021 | AP76: 2031 | AQ76: 2031.583333 | AR76: 4.38375 | AS76: 52.605 | AT76: 52.605 | AU76: 0 | AV76: 52.605 | AW76: 473.445 | AX76: No
B77: 2010 | C77: 259057 | D77: 256080 | E77: Fire Suppresion | J77: 0 | M77: Non-Rolling Stock | N77: 2021-07-16 | O77: 2021-07-16 | P77: 2010-21-0006 | Q77: 300 | R77: 14040 | S77: 629.82 | T77: 14046 | U77: 87.48 | V77: 542.34 | W77: 87.48 | X77: 51260 | Y77: 17.5 | Z77: P | AD77: Internal | AE77: A | AF77: SL | AH77: WCNX | AI77: 0 | AJ77: 0 | AK77: 741 | AL77: =VLOOKUP(C77,'[8]12.2021 FAR'!C$14:AL$87,36,FALSE) -> Recycle Trucks | AM77: Recycle Trucks | AN77: 7 | AO77: 2021 | AP77: 2024 | AQ77: 2024.583333 | AR77: 17.495 | AS77: 209.94 | AT77: 209.94 | AU77: 0 | AV77: 209.94 | AW77: 419.88 | AX77: No
B78: 2010 | C78: 259056 | D78: 256080 | E78: Body Wrap | J78: 0 | M78: Non-Rolling Stock | N78: 2021-07-16 | O78: 2021-07-16 | P78: 2010-21-0006 | Q78: 1000 | R78: 14040 | S78: 1355 | T78: 14046 | U78: 56.46 | V78: =S78-U78 -> 1298.54 | W78: 56.46 | X78: 51260 | Y78: 11.29 | Z78: P | AD78: Internal | AE78: A | AF78: SL | AH78: WCNX | AI78: 0 | AJ78: 0 | AK78: 741 | AL78: =VLOOKUP(C78,'[8]12.2021 FAR'!C$14:AL$87,36,FALSE) -> Recycle Trucks | AM78: Recycle Trucks | AN78: =MONTH($N78) -> 7 | AO78: =YEAR($N78) -> 2021 | AP78: =$AO78+($Q78/100) -> 2031 | AQ78: =$AP78+($AN78/12) -> 2031.583333 | AR78: =IFERROR($S78/($Q78/100)/12,0) -> 11.29166667 | AS78: =$AR78*12 -> 135.5 | AT78: 135.5 | AU78: 0 | AV78: =IF($AU78=0,$AT78,($AU78+$AT78)) -> 135.5 | AW78: =$S78-$AV78 -> 1219.5 | AX78: No
B79: 2010 | C79: 258608 | D79: 241638 | E79: Deposit for truck ID 8473 | J79: 2020 | M79: Non-Rolling Stock | N79: 2020-10-26 | O79: 2020-10-26 | P79: 2010-20-0039 | Q79: 1000 | R79: 14040 | S79: 47500 | T79: 14046 | U79: 5541.67 | V79: 41958.33 | W79: 1979.17 | X79: 51260 | Y79: 395.83 | Z79: P | AD79: Internal | AE79: A | AF79: SL | AG79: 2021-07-31 | AH79: WCNX | AI79: 0 | AJ79: 3562.5 | AK79: 742 | AL79: =VLOOKUP(C79,'[8]12.2021 FAR'!C$14:AL$87,36,FALSE) -> Recycle Trucks | AM79: Recycle Trucks | AN79: 10 | AO79: 2020 | AP79: 2030 | AQ79: 2030.833333 | AR79: 395.8333333 | AS79: 4750 | AT79: 4750 | AU79: 4750 | AV79: 9500 | AW79: 38000 | AX79: No
B80: 2010 | C80: 258543 | D80: 256078 | E80: Fire Suppresion | J80: 0 | M80: Non-Rolling Stock | N80: 2021-07-06 | O80: 2021-07-06 | P80: 2010-21-0005 | Q80: 300 | R80: 14040 | S80: 629.82 | T80: 14046 | U80: 104.97 | V80: 524.85 | W80: 104.97 | X80: 51260 | Y80: 17.49 | Z80: P | AD80: Internal | AE80: A | AF80: SL | AH80: WCNX | AI80: 0 | AJ80: 0 | AK80: 740 | AL80: =VLOOKUP(C80,'[8]12.2021 FAR'!C$14:AL$87,36,FALSE) -> Recycle Trucks | AM80: Recycle Trucks | AN80: 7 | AO80: 2021 | AP80: 2024 | AQ80: 2024.583333 | AR80: 17.495 | AS80: 209.94 | AT80: 209.94 | AU80: 0 | AV80: 209.94 | AW80: 419.88 | AX80: No
B81: 2010 | C81: 258542 | D81: 256078 | E81: Body Wrap | J81: 0 | M81: Non-Rolling Stock | N81: 2021-07-06 | O81: 2021-07-06 | P81: 2010-21-0005 | Q81: 1000 | R81: 14040 | S81: 1355 | T81: 14046 | U81: 67.75 | V81: 1287.25 | W81: 67.75 | X81: 51260 | Y81: 11.29 | Z81: P | AD81: Internal | AE81: A | AF81: SL | AH81: WCNX | AI81: 0 | AJ81: 0 | AK81: 740 | AL81: =VLOOKUP(C81,'[8]12.2021 FAR'!C$14:AL$87,36,FALSE) -> Recycle Trucks | AM81: Recycle Trucks | AN81: 7 | AO81: 2021 | AP81: 2031 | AQ81: 2031.583333 | AR81: 11.29166667 | AS81: 135.5 | AT81: 135.5 | AU81: 0 | AV81: 135.5 | AW81: 1219.5 | AX81: No
B82: 2010 | C82: 258541 | D82: 256079 | E82: fire suppression system for new recycle truck | J82: 0 | M82: Non-Rolling Stock | N82: 2021-07-06 | O82: 2021-07-06 | P82: 2010-21-0004 | Q82: 300 | R82: 14040 | S82: 629.82 | T82: 14046 | U82: 104.97 | V82: 524.85 | W82: 104.97 | X82: 51260 | Y82: 17.49 | Z82: P | AD82: Internal | AE82: A | AF82: SL | AH82: WCNX | AI82: 0 | AJ82: 0 | AK82: 739 | AL82: =VLOOKUP(C82,'[8]12.2021 FAR'!C$14:AL$87,36,FALSE) -> Recycle Trucks | AM82: Recycle Trucks | AN82: 7 | AO82: 2021 | AP82: 2024 | AQ82: 2024.583333 | AR82: 17.495 | AS82: 209.94 | AT82: 209.94 | AU82: 0 | AV82: 209.94 | AW82: 419.88 | AX82: No
B83: 2010 | C83: 257713 | D83: P | E83: 2021 Peterbilt Recycle Truck | H83: 3BPDLK0X7MF111332 | J83: 2021 | M83: Recycle Truck | N83: 2021-08-30 | O83: 2021-08-30 | P83: 2010-21-0023 | Q83: 1000 | R83: 14040 | S83: 416483.63 | T83: 14046 | U83: 13882.79 | V83: 402600.84 | W83: 13882.79 | X83: 51260 | Y83: 3470.7 | Z83: P | AD83: Internal | AE83: A | AF83: SL | AH83: WCNX | AI83: 0 | AJ83: 0 | AK83: 742 | AL83: =VLOOKUP(C83,'[8]12.2021 FAR'!C$14:AL$87,36,FALSE) -> Recycle Trucks | AM83: Recycle Trucks | AN83: 8 | AO83: 2021 | AP83: 2031 | AQ83: 2031.666667 | AR83: 3470.696917 | AS83: 41648.363 | AT83: 41648.363 | AU83: 0 | AV83: 41648.363 | AW83: 374835.267 | AX83: No
B84: 2010 | C84: 257538 | D84: 253993 | E84: Security Cameras-Replacing cameras | F84: 0 | J84: 0 | K84: NW SECURITY AND CONSTRUCT | N84: 2021-06-01 | O84: 2021-06-01 | P84: 2010-21-0034-1 | Q84: 500 | R84: 14070 | S84: 7371.2 | T84: 14076 | U84: 859.97 | V84: 6511.23 | W84: 859.97 | X84: 51260 | Y84: 122.85 | Z84: P | AB84: 4698 | AD84: Internal | AE84: A | AF84: SL | AH84: WCNX | AI84: 0 | AJ84: 0 | AL84: =VLOOKUP(C84,'[8]12.2021 FAR'!C$14:AL$87,36,FALSE) -> Shared Leasehold/Property Imprv | AM84: Shared Leasehold/Property Imprv | AN84: 6 | AO84: 2021 | AP84: 2026 | AQ84: 2026.5 | AR84: 122.8533333 | AS84: 1474.24 | AT84: 1474.24 | AU84: 0 | AV84: 1474.24 | AW84: 5896.96 | AX84: No
B85: 2010 | C85: 256570 | D85: P | E85: 30yd Rolloff Containers & 2 Lids WV | F85: 4 | H85: 0 | J85: 0 | K85: WASTEQUIP WASHINGTON | M85: 30 YD RO Box | N85: 2007-10-02 | O85: 2007-10-02 | P85: 07-2051-417 | Q85: 1200 | R85: 14050 | S85: 24416.42 | T85: 14056 | U85: 24416.42 | V85: 0 | W85: 0 | X85: 54260 | Y85: 0 | Z85: P | AB85: 37110887 | AD85: Internal | AE85: A | AF85: SL | AG85: 2021-07-31 | AH85: WCNX | AI85: 0 | AJ85: 24416.42 | AL85: =VLOOKUP(C85,'[8]12.2021 FAR'!C$14:AL$87,36,FALSE) -> Drop Boxes (shared) | AM85: Drop Boxes (shared) | AN85: 10 | AO85: 2007 | AP85: 2019 | AQ85: 2019.833333 | AR85: 169.5584722 | AS85: 2034.701667 | AT85: 0 | AU85: 24416.42 | AV85: 24416.42 | AW85: 0 | AX85: No
B86: 2010 | C86: 256569 | D86: P | E86: 30 Yd Drop Boxes w/ Lids (WV) | F86: 1 | J86: 0 | K86: Cascade Container | M86: 30 YD RO Box | N86: 2003-12-31 | O86: 2003-12-31 | P86: 03-2051-021 | Q86: 1200 | R86: 14050 | S86: 4819.46 | T86: 14056 | U86: 4819.46 | V86: 0 | W86: 0 | X86: 54260 | Y86: 0 | Z86: P | AB86: 2301189 | AD86: Internal | AE86: A | AF86: SL | AG86: 2021-07-31 | AH86: WCNX | AI86: 0 | AJ86: 4819.46 | AL86: =VLOOKUP(C86,'[8]12.2021 FAR'!C$14:AL$87,36,FALSE) -> Drop Boxes (shared) | AM86: Drop Boxes (shared) | AN86: 12 | AO86: 2003 | AP86: 2015 | AQ86: 2016 | AR86: 33.46847222 | AS86: 401.6216667 | AT86: 0 | AU86: 4819.46 | AV86: 4819.46 | AW86: 0 | AX86: No
B87: 2010 | C87: 256568 | D87: P | E87: 30 YD Roll Off Containers | F87: 1 | J87: 0 | M87: 30 YD RO Box | N87: 1999-03-01 | O87: 1999-03-01 | Q87: 1200 | R87: 14050 | S87: 1381.7 | T87: 14056 | U87: 1381.7 | V87: 0 | W87: 0 | X87: 54260 | Y87: 0 | Z87: A | AA87: CRC | AD87: Internal | AE87: A | AF87: SL | AG87: 2021-07-31 | AH87: WCNX | AI87: 0 | AJ87: 1381.7 | AL87: =VLOOKUP(C87,'[8]12.2021 FAR'!C$14:AL$87,36,FALSE) -> Drop Boxes (shared) | AM87: Drop Boxes (shared) | AN87: 3 | AO87: 1999 | AP87: 2011 | AQ87: 2011.25 | AR87: 9.595138889 | AS87: 115.1416667 | AT87: 0 | AU87: 1381.7 | AV87: 1381.7 | AW87: 0 | AX87: No
B88: 2010 | C88: 256337 | D88: P | E88: 30yd RO lidded drop boxes | F88: 2 | J88: 0 | K88: WASTEQUIP MAYFAB | M88: 30 YD RO Box | N88: 2021-04-10 | O88: 2021-04-10 | P88: 2010-21-0031-1 | Q88: 1200 | R88: 14050 | S88: 14837.55 | T88: 14056 | U88: 927.35 | V88: 13910.2 | W88: 927.35 | X88: 54260 | Y88: 103.04 | Z88: P | AB88: 20inv000010598 | AD88: Internal | AE88: A | AF88: SL | AH88: WCNX | AI88: 0 | AJ88: 0 | AX88: Yes
B89: 2010 | C89: 256336 | D89: P | E89: 30yd RO Containers | F89: 2 | J89: 0 | K89: WASTEQUIP MAYFAB | M89: 30 YD RO Box | N89: 2021-07-16 | O89: 2021-07-16 | P89: 2010-21-0038-1 | Q89: 1200 | R89: 14050 | S89: 16708 | T89: 14056 | U89: 580.14 | V89: 16127.86 | W89: 580.14 | X89: 54260 | Y89: 116.03 | Z89: P | AB89: 20inv000020564 | AD89: Internal | AE89: A | AF89: SL | AH89: WCNX | AI89: 0 | AJ89: 0 | AX89: Yes
B90: 2010 | C90: 256335 | D90: P | E90: 30yd RO | F90: 2 | J90: 0 | K90: WASTEQUIP MAYFAB | M90: 30 YD RO Box | N90: 2021-07-15 | O90: 2021-07-15 | P90: 2010-21-0038-1 | Q90: 1200 | R90: 14050 | S90: 16708 | T90: 14056 | U90: 696.17 | V90: 16011.83 | W90: 696.17 | X90: 54260 | Y90: 116.03 | Z90: P | AB90: 20inv000020436 | AD90: Internal | AE90: A | AF90: SL | AH90: WCNX | AI90: 0 | AJ90: 0 | AX90: Yes
B91: 2010 | C91: 256332 | D91: P | E91: 20yd RO lidded drop boxes | F91: 2 | J91: 0 | K91: WASTEQUIP MAYFAB | M91: 20 YD RO Box | N91: 2021-07-19 | O91: 2021-07-19 | P91: 2010-21-0038-1 | Q91: 1200 | R91: 14050 | S91: 15104 | T91: 14056 | U91: 524.45 | V91: 14579.55 | W91: 524.45 | X91: 54260 | Y91: 104.89 | Z91: P | AB91: 20inv000020666 | AD91: Internal | AE91: A | AF91: SL | AH91: WCNX | AI91: 0 | AJ91: 0 | AX91: Yes
B92: 2010 | C92: 256331 | D92: P | E92: 20yd RO drop boxes | F92: 2 | J92: 0 | K92: WASTEQUIP MAYFAB | M92: 20 YD RO Box | N92: 2021-07-13 | O92: 2021-07-13 | P92: 2010-21-0038-1 | Q92: 1200 | R92: 14050 | S92: 10354 | T92: 14056 | U92: 431.42 | V92: 9922.58 | W92: 431.42 | X92: 54260 | Y92: 71.9 | Z92: P | AB92: 20inv000020258 | AD92: Internal | AE92: A | AF92: SL | AH92: WCNX | AI92: 0 | AJ92: 0 | AX92: Yes
B93: 2010 | C93: 256330 | D93: P | E93: 20yd RO Containers | F93: 2 | J93: 0 | K93: WASTEQUIP MAYFAB | M93: 20 YD RO Box | N93: 2021-07-16 | O93: 2021-07-16 | P93: 2010-21-0038-1 | Q93: 1200 | R93: 14050 | S93: 10354 | T93: 14056 | U93: 359.51 | V93: 9994.49 | W93: 359.51 | X93: 54260 | Y93: 71.9 | Z93: P | AB93: 20inv000020556 | AD93: Internal | AE93: A | AF93: SL | AH93: WCNX | AI93: 0 | AJ93: 0 | AX93: Yes
B94: 2010 | C94: 256329 | D94: P | E94: 20yd RO | F94: 2 | J94: 0 | K94: WASTEQUIP MAYFAB | M94: 20 YD RO Box | N94: 2021-07-13 | O94: 2021-07-13 | P94: 2010-21-0038-1 | Q94: 1200 | R94: 14050 | S94: 15104 | T94: 14056 | U94: 629.33 | V94: 14474.67 | W94: 629.33 | X94: 54260 | Y94: 104.89 | Z94: P | AB94: 20inv000020286 | AD94: Internal | AE94: A | AF94: SL | AH94: WCNX | AI94: 0 | AJ94: 0 | AX94: Yes
B95: 2010 | C95: 256328 | D95: P | E95: 20yd RO | F95: 2 | J95: 0 | K95: WASTEQUIP MAYFAB | M95: 20 YD RO Box | N95: 2021-07-14 | O95: 2021-07-14 | P95: 2010-21-0038-1 | Q95: 1200 | R95: 14050 | S95: 10354 | T95: 14056 | U95: 431.42 | V95: 9922.58 | W95: 431.42 | X95: 54260 | Y95: 71.9 | Z95: P | AB95: 20inv000020356 | AD95: Internal | AE95: A | AF95: SL | AH95: WCNX | AI95: 0 | AJ95: 0 | AX95: Yes
B96: 2010 | C96: 256327 | D96: P | E96: 2yd metal gray REL garbage containers | F96: 80 | J96: 0 | K96: WASTEQUIP MAYFAB | M96: 2 YD REL Container | N96: 2021-06-30 | O96: 2021-06-30 | P96: 2010-21-0037-2 | Q96: 1200 | R96: 14050 | S96: 60111.2 | T96: 14056 | U96: 2504.63 | V96: 57606.57 | W96: 2504.63 | X96: 54260 | Y96: 417.44 | Z96: P | AB96: 20inv000019458 | AD96: Internal | AE96: A | AF96: SL | AH96: WCNX | AI96: 0 | AJ96: 0 | AX96: Yes
B97: 2010 | C97: 256324 | D97: P | E97: 1yd gray metal REL garbage containers | F97: 24 | J97: 0 | K97: WASTEQUIP MAYFAB | M97: 1 YD REL Container | N97: 2021-06-25 | O97: 2021-06-25 | P97: 2010-21-0037-1 | Q97: 1200 | R97: 14050 | S97: 15736.94 | T97: 14056 | U97: 655.71 | V97: 15081.23 | W97: 655.71 | X97: 54260 | Y97: 109.28 | Z97: P | AB97: 20inv000019070 | AD97: Internal | AE97: A | AF97: SL | AH97: WCNX | AI97: 0 | AJ97: 0 | AX97: Yes
B98: 2010 | C98: 256080 | D98: P | E98: 2021 Peterbilt Recycle Truck | H98: 3BPDLK0X3MF111330 | J98: 2021 | M98: Recycle Truck | N98: 2021-07-16 | O98: 2021-07-16 | P98: 2010-21-0006 | Q98: 1000 | R98: 14040 | S98: 416975.18 | T98: 14046 | U98: 17373.97 | V98: 399601.21 | W98: 17373.97 | X98: 51260 | Y98: 3474.79 | Z98: P | AD98: Internal | AE98: A | AF98: SL | AH98: WCNX | AI98: 0 | AJ98: 0 | AX98: Yes
B99: 2010 | C99: 256079 | D99: P | E99: 2021 Peterbilt Recycle Truck | H99: 3BPDLK0X7MF111329 | J99: 2021 | M99: Recycle Truck | N99: 2021-06-28 | O99: 2021-06-28 | P99: 2010-21-0004 | Q99: 1000 | R99: 14040 | S99: 417718.75 | T99: 14046 | U99: 20885.94 | V99: 396832.81 | W99: 20885.94 | X99: 51260 | Y99: 3480.99 | Z99: P | AD99: Internal | AE99: A | AF99: SL | AH99: WCNX | AI99: 0 | AJ99: 0 | AX99: Yes
B100: 2010 | C100: 256078 | D100: P | E100: 2021 Peterbilt Recycle Truck | H100: 3BPDLK0X5MF111331 | J100: 2021 | M100: Recycle Truck | N100: 2021-07-06 | O100: 2021-07-06 | P100: 2010-21-0005 | Q100: 1000 | R100: 14040 | S100: 417718.75 | T100: 14046 | U100: 20885.94 | V100: 396832.81 | W100: 20885.94 | X100: 51260 | Y100: 3480.99 | Z100: P | AD100: Internal | AE100: A | AF100: SL | AH100: WCNX | AI100: 0 | AJ100: 0 | AX100: Yes
B101: 2010 | C101: 256012 | D101: 255398 | E101: Licensing Truck#834 VIN#3BPDLK0XMF1096 | J101: 0 | K101: STATE OF WASHINGTON | M101: Non-Rolling Stock | N101: 2021-07-31 | O101: 2021-07-31 | P101: 2010-21-0010-1 | Q101: 1000 | R101: 14040 | S101: 491.5 | T101: 14046 | U101: 20.48 | V101: 471.02 | W101: 20.48 | X101: 51260 | Y101: 4.1 | Z101: P | AB101: WA DOT 07222021 | AD101: Internal | AE101: A | AF101: SL | AH101: WCNX | AI101: 0 | AJ101: 0 | AX101: Yes
B102: 2010 | C102: 256011 | D102: 251921 | E102: 2021 Peterbilt FEL Truck- Body | H102: 3BPDXKEX9MF110177 | J102: 2021 | K102: GENERAL EQUIPMENT COMPANY | M102: Non-Rolling Stock | N102: 2021-04-26 | O102: 2021-04-26 | P102: 2010-21-0002-1 | Q102: 1000 | R102: 14040 | S102: 170290.81 | T102: 14046 | U102: 11352.72 | V102: 158938.09 | W102: 11352.72 | X102: 51260 | Y102: 1419.09 | Z102: P | AB102: 4708 | AD102: Internal | AE102: A | AF102: SL | AH102: WCNX | AI102: 0 | AJ102: 0 | AX102: Yes
B103: 2010 | C103: 255680 | D103: P | E103: Drive Cams | F103: 6 | J103: 0 | N103: 2021-07-01 | O103: 2021-07-01 | P103: 1010-21-0038 | Q103: 500 | R103: 14070 | S103: 3234.3 | T103: 14076 | U103: 323.43 | V103: 2910.87 | W103: 323.43 | X103: 51260 | Y103: 53.9 | Z103: P | AD103: Internal | AE103: A | AF103: SL | AH103: WCNX | AI103: 0 | AJ103: 0 | AX103: Yes
B104: 2010 | C104: 255399 | D104: P | E104: 2021 Peterbilt FEL Truck- Chassis | H104: 3BPDXKEX7MF110176 | J104: 2021 | M104: FEL Truck | N104: 2021-07-31 | O104: 2021-07-31 | P104: 2010-20-0037 | Q104: 1000 | R104: 14040 | S104: 187063.1 | T104: 14046 | U104: 7794.3 | V104: 179268.8 | W104: 7794.3 | X104: 51260 | Y104: 1558.86 | Z104: P | AD104: Internal | AE104: A | AF104: SL | AH104: WCNX | AI104: 0 | AJ104: 0 | AX104: Yes
B105: 2010 | C105: 255398 | D105: P | E105: 2021 Peterbilt ASL Truck- Chassis | H105: 3BPDLK0X5MF109661 | J105: 2021 | M105: Automated Sideload | N105: 2021-07-31 | O105: 2021-07-31 | P105: 2010-20-0040 | Q105: 1000 | R105: 14040 | S105: 175854 | T105: 14046 | U105: 7327.25 | V105: 168526.75 | W105: 7327.25 | X105: 51260 | Y105: 1465.45 | Z105: P | AD105: Internal | AE105: A | AF105: SL | AH105: WCNX | AI105: 0 | AJ105: 0 | AX105: Yes
B106: 2010 | C106: 255397 | D106: 255399 | E106: 2021 Peterbilt FEL Truck-Covid-2010-20-0037- Body | H106: 3BPDXKEX7MF110176 | J106: 2021 | M106: Non-Rolling Stock | N106: 2021-07-31 | O106: 2021-07-31 | P106: 2010-21-0001 | Q106: 1000 | R106: 14040 | S106: 177229.89 | T106: 14046 | U106: 7384.58 | V106: 169845.31 | W106: 7384.58 | X106: 51260 | Y106: 1476.92 | Z106: P | AD106: Internal | AE106: A | AF106: SL | AH106: WCNX | AI106: 0 | AJ106: 0 | AX106: Yes
B107: 2010 | C107: 255396 | D107: 255398 | E107: 2021 Peterbilt ASL Truck-Covid-2010-20-0040- Body | H107: 3BPDLK0X5MF109661 | J107: 2021 | M107: Non-Rolling Stock | N107: 2021-07-31 | O107: 2021-07-31 | P107: 2010-21-0010 | Q107: 1000 | R107: 14040 | S107: 190695.37 | T107: 14046 | U107: 7945.64 | V107: 182749.73 | W107: 7945.64 | X107: 51260 | Y107: 1589.13 | Z107: P | AD107: Internal | AE107: A | AF107: SL | AH107: WCNX | AI107: 0 | AJ107: 0 | AX107: Yes
B108: 2010 | C108: 254899 | D108: 253993 | E108: Instant 802.3af Adapter-Fab Truck Shop Camera System | F108: 7 | J108: 0 | N108: 2021-06-01 | O108: 2021-06-01 | P108: 2010-21-0034-1 | Q108: 500 | R108: 14070 | S108: 144.18 | T108: 14076 | U108: 16.82 | V108: 127.36 | W108: 16.82 | X108: 51260 | Y108: 2.4 | Z108: P | AB108: U667861 | AD108: Internal | AE108: A | AF108: SL | AH108: WCNX | AI108: 0 | AJ108: 0 | AX108: Yes
B109: 2010 | C109: 254887 | D109: P | E109: 95gal yard debris carts | F109: 702 | J109: 0 | K109: REHRIG PACIFIC COMPANY | M109: Non-Container Audit | N109: 2021-06-02 | O109: 2021-06-02 | P109: 2010-21-0039-1 | Q109: 700 | R109: 14050 | S109: 39920.38 | T109: 14056 | U109: 3326.7 | V109: 36593.68 | W109: 3326.7 | X109: 54260 | Y109: 475.24 | Z109: P | AB109: 50173182 | AD109: Internal | AE109: A | AF109: SL | AH109: WCNX | AI109: 0 | AJ109: 0 | AX109: Yes
B110: 2010 | C110: 254886 | D110: P | E110: 95gal organics carts | F110: 255 | J110: 0 | K110: REHRIG PACIFIC COMPANY | M110: Non-Container Audit | N110: 2021-06-03 | O110: 2021-06-03 | P110: 2010-21-0041-1 | Q110: 700 | R110: 14050 | S110: 16084 | T110: 14056 | U110: 1340.33 | V110: 14743.67 | W110: 1340.33 | X110: 54260 | Y110: 191.48 | Z110: P | AB110: 50173383 | AD110: Internal | AE110: A | AF110: SL | AH110: WCNX | AI110: 0 | AJ110: 0 | AX110: Yes
B111: 2010 | C111: 254885 | D111: P | E111: 95gal organics carts | F111: 96 | J111: 0 | K111: REHRIG PACIFIC COMPANY | M111: Non-Container Audit | N111: 2021-06-03 | O111: 2021-06-03 | P111: 2010-21-0041-1 | Q111: 700 | R111: 14050 | S111: 5466.61 | T111: 14056 | U111: 455.55 | V111: 5011.06 | W111: 455.55 | X111: 54260 | Y111: 65.08 | Z111: P | AB111: 50173383 | AD111: Internal | AE111: A | AF111: SL | AH111: WCNX | AI111: 0 | AJ111: 0 | AX111: Yes
B112: 2010 | C112: 254884 | D112: P | E112: 95gal county recycle carts | F112: 424 | J112: 0 | K112: REHRIG PACIFIC COMPANY | M112: Non-Container Audit | N112: 2021-06-02 | O112: 2021-06-02 | P112: 2010-21-0039-1 | Q112: 700 | R112: 14050 | S112: 24915.12 | T112: 14056 | U112: 2076.26 | V112: 22838.86 | W112: 2076.26 | X112: 54260 | Y112: 296.61 | Z112: P | AB112: 50173182 | AD112: Internal | AE112: A | AF112: SL | AH112: WCNX | AI112: 0 | AJ112: 0 | AX112: Yes
B113: 2010 | C113: 254883 | D113: P | E113: 95gal county recycle carts | F113: 278 | J113: 0 | K113: REHRIG PACIFIC COMPANY | M113: Non-Container Audit | N113: 2021-06-02 | O113: 2021-06-02 | P113: 2010-21-0039-1 | Q113: 700 | R113: 14050 | S113: 16375 | T113: 14056 | U113: 1364.58 | V113: 15010.42 | W113: 1364.58 | X113: 54260 | Y113: 194.94 | Z113: P | AB113: 50173182 | AD113: Internal | AE113: A | AF113: SL | AH113: WCNX | AI113: 0 | AJ113: 0 | AX113: Yes
B114: 2010 | C114: 254872 | D114: P | E114: 65gal organics carts | F114: 454 | J114: 0 | K114: REHRIG PACIFIC COMPANY | M114: Non-Container Audit | N114: 2021-06-03 | O114: 2021-06-03 | P114: 2010-21-0041-1 | Q114: 700 | R114: 14050 | S114: 25113 | T114: 14056 | U114: 2092.74 | V114: 23020.26 | W114: 2092.74 | X114: 54260 | Y114: 298.96 | Z114: P | AB114: 50173383 | AD114: Internal | AE114: A | AF114: SL | AH114: WCNX | AI114: 0 | AJ114: 0 | AX114: Yes
B115: 2010 | C115: 254871 | D115: P | E115: 65gal organics carts | F115: 14 | J115: 0 | K115: REHRIG PACIFIC COMPANY | M115: Non-Container Audit | N115: 2021-06-03 | O115: 2021-06-03 | P115: 2010-21-0041-1 | Q115: 700 | R115: 14050 | S115: 744.69 | T115: 14056 | U115: 62.06 | V115: 682.63 | W115: 62.06 | X115: 54260 | Y115: 8.87 | Z115: P | AB115: 50173383 | AD115: Internal | AE115: A | AF115: SL | AH115: WCNX | AI115: 0 | AJ115: 0 | AX115: Yes
B116: 2010 | C116: 253993 | D116: P | E116: Security Cameras - Truck Shop | J116: 0 | N116: 2021-06-30 | O116: 2021-06-30 | P116: 2010-21-0034 | Q116: 500 | R116: 14070 | S116: 11486.32 | T116: 14076 | U116: 1148.63 | V116: 10337.69 | W116: 1148.63 | X116: 51260 | Y116: 191.44 | Z116: P | AD116: Internal | AE116: A | AF116: SL | AH116: WCNX | AI116: 0 | AJ116: 0 | AX116: Yes
B117: 2010 | C117: 252726 | D117: P | E117: 4yd blue FEL grey garbage containers | F117: 28 | J117: 0 | K117: WASTEQUIP MAYFAB | M117: 4 YD FEL Container | N117: 2021-05-19 | O117: 2021-05-19 | P117: 2010-21-0035-2 | Q117: 1200 | R117: 14050 | S117: 20304.51 | T117: 14056 | U117: 987.03 | V117: 19317.48 | W117: 987.03 | X117: 54260 | Y117: 141 | Z117: P | AB117: 20inv000016442 | AD117: Internal | AE117: A | AF117: SL | AH117: WCNX | AI117: 0 | AJ117: 0 | AX117: Yes
B118: 2010 | C118: 252725 | D118: P | E118: 4yd blue FEL metal recycle containers | F118: 28 | J118: 0 | K118: WASTEQUIP MAYFAB | M118: 4 YD FEL Container | N118: 2021-05-18 | O118: 2021-05-18 | P118: 2010-21-0035-2 | Q118: 1200 | R118: 14050 | S118: 20903.86 | T118: 14056 | U118: 1016.16 | V118: 19887.7 | W118: 1016.16 | X118: 54260 | Y118: 145.17 | Z118: P | AB118: 20inv000016332 | AD118: Internal | AE118: A | AF118: SL | AH118: WCNX | AI118: 0 | AJ118: 0 | AX118: Yes
B119: 2010 | C119: 252724 | D119: P | E119: 40 YD Metal RO Boxes | F119: 2 | J119: 0 | K119: WASTEQUIP MAYFAB | M119: 40 YD RO Box | N119: 2021-04-28 | O119: 2021-04-28 | P119: 2010-21-0035-1 | Q119: 1200 | R119: 14050 | S119: 16924 | T119: 14056 | U119: 940.22 | V119: 15983.78 | W119: 940.22 | X119: 54260 | Y119: 117.53 | Z119: P | AB119: 20inv000014992 | AD119: Internal | AE119: A | AF119: SL | AH119: WCNX | AI119: 0 | AJ119: 0 | AX119: Yes
B120: 2010 | C120: 252723 | D120: P | E120: 40 YD Metal RO Boxes | F120: 2 | J120: 0 | K120: WASTEQUIP MAYFAB | M120: 40 YD RO Box | N120: 2021-04-28 | O120: 2021-04-28 | P120: 2010-21-0035-1 | Q120: 1200 | R120: 14050 | S120: 16924 | T120: 14056 | U120: 940.22 | V120: 15983.78 | W120: 940.22 | X120: 54260 | Y120: 117.53 | Z120: P | AB120: 20inv000015122 | AD120: Internal | AE120: A | AF120: SL | AH120: WCNX | AI120: 0 | AJ120: 0 | AX120: Yes
B121: 2010 | C121: 252722 | D121: P | E121: 40 YD Metal RO Boxes | F121: 2 | J121: 0 | K121: WASTEQUIP MAYFAB | M121: 40 YD RO Box | N121: 2021-04-28 | O121: 2021-04-28 | P121: 2010-21-0035-1 | Q121: 1200 | R121: 14050 | S121: 16924 | T121: 14056 | U121: 940.22 | V121: 15983.78 | W121: 940.22 | X121: 54260 | Y121: 117.53 | Z121: P | AB121: 20inv000015286 | AD121: Internal | AE121: A | AF121: SL | AH121: WCNX | AI121: 0 | AJ121: 0 | AX121: Yes
B122: 2010 | C122: 252721 | D122: P | E122: 40 YD Metal RO Boxes | F122: 2 | J122: 0 | K122: WASTEQUIP MAYFAB | M122: 40 YD RO Box | N122: 2021-04-28 | O122: 2021-04-28 | P122: 2010-21-0035-1 | Q122: 1200 | R122: 14050 | S122: 16924 | T122: 14056 | U122: 940.22 | V122: 15983.78 | W122: 940.22 | X122: 54260 | Y122: 117.53 | Z122: P | AB122: 20inv000015256 | AD122: Internal | AE122: A | AF122: SL | AH122: WCNX | AI122: 0 | AJ122: 0 | AX122: Yes
B123: 2010 | C123: 252720 | D123: P | E123: 30 YD Metal RO Boxes | F123: 2 | J123: 0 | K123: WASTEQUIP MAYFAB | M123: 30 YD RO Box | N123: 2021-04-26 | O123: 2021-04-26 | P123: 2010-21-0035-1 | Q123: 1200 | R123: 14050 | S123: 15406 | T123: 14056 | U123: 855.89 | V123: 14550.11 | W123: 855.89 | X123: 54260 | Y123: 106.99 | Z123: P | AB123: 20inv000014402 | AD123: Internal | AE123: A | AF123: SL | AH123: WCNX | AI123: 0 | AJ123: 0 | AX123: Yes
B124: 2010 | C124: 252719 | D124: P | E124: 30 YD Metal RO Boxes | F124: 2 | J124: 0 | K124: WASTEQUIP MAYFAB | M124: 30 YD RO Box | N124: 2021-04-28 | O124: 2021-04-28 | P124: 2010-21-0035-1 | Q124: 1200 | R124: 14050 | S124: 15406 | T124: 14056 | U124: 855.89 | V124: 14550.11 | W124: 855.89 | X124: 54260 | Y124: 106.99 | Z124: P | AB124: 20inv000014404 | AD124: Internal | AE124: A | AF124: SL | AH124: WCNX | AI124: 0 | AJ124: 0 | AX124: Yes
B125: 2010 | C125: 252718 | D125: P | E125: 30 YD Metal RO Boxes | F125: 2 | J125: 0 | K125: WASTEQUIP MAYFAB | M125: 30 YD RO Box | N125: 2021-04-21 | O125: 2021-04-21 | P125: 2010-21-0035-1 | Q125: 1200 | R125: 14050 | S125: 15406 | T125: 14056 | U125: 855.89 | V125: 14550.11 | W125: 855.89 | X125: 54260 | Y125: 106.99 | Z125: P | AB125: 20inv000013850 | AD125: Internal | AE125: A | AF125: SL | AH125: WCNX | AI125: 0 | AJ125: 0 | AX125: Yes
B126: 2010 | C126: 252717 | D126: P | E126: 30 YD RO Boxes | F126: 2 | J126: 0 | K126: WASTEQUIP MAYFAB | M126: 30 YD RO Box | N126: 2021-04-19 | O126: 2021-04-19 | P126: 2010-21-0035-1 | Q126: 1200 | R126: 14050 | S126: 15406 | T126: 14056 | U126: 855.89 | V126: 14550.11 | W126: 855.89 | X126: 54260 | Y126: 106.99 | Z126: P | AB126: 20inv000014148 | AD126: Internal | AE126: A | AF126: SL | AH126: WCNX | AI126: 0 | AJ126: 0 | AX126: Yes
B127: 2010 | C127: 252716 | D127: P | E127: 96gal COV sparkle garbage carts | F127: 636 | J127: 0 | K127: WASTEQUIP TOTER | M127: Non-Container Audit | N127: 2021-04-19 | O127: 2021-04-19 | P127: 2010-21-0027-1 | Q127: 700 | R127: 14050 | S127: 40834.84 | T127: 14056 | U127: 3889.03 | V127: 36945.81 | W127: 3889.03 | X127: 54260 | Y127: 486.13 | Z127: P | AB127: 65738187 | AD127: Internal | AE127: A | AF127: SL | AH127: WCNX | AI127: 0 | AJ127: 0 | AX127: Yes
B128: 2010 | C128: 252715 | D128: P | E128: 96gal COV sparkle garbage carts | F128: 636 | J128: 0 | K128: WASTEQUIP TOTER | M128: Non-Container Audit | N128: 2021-04-16 | O128: 2021-04-16 | P128: 2010-21-0024-1 | Q128: 700 | R128: 14050 | S128: 38928.77 | T128: 14056 | U128: 3707.5 | V128: 35221.27 | W128: 3707.5 | X128: 54260 | Y128: 463.44 | Z128: P | AB128: 65737314 | AD128: Internal | AE128: A | AF128: SL | AH128: WCNX | AI128: 0 | AJ128: 0 | AX128: Yes
B129: 2010 | C129: 251921 | D129: P | E129: 2021 Peterbilt FEL Truck- Chassis | H129: 3BPDXKEX9MF110177 | J129: 2021 | M129: FELTruck | N129: 2021-04-26 | O129: 2021-04-26 | P129: 2010-21-0002 | Q129: 1000 | R129: 14040 | S129: 196974.14 | T129: 14046 | U129: 13131.61 | V129: 183842.53 | W129: 13131.61 | X129: 51260 | Y129: 1641.45 | Z129: P | AD129: Internal | AE129: A | AF129: SL | AH129: WCNX | AI129: 0 | AJ129: 0 | AX129: Yes
B130: 2010 | C130: 251860 | D130: P | E130: 2015 Toyota Sienna Van | H130: 5TDKK3DC8FS618942 | J130: 2015 | K130: REX MOTORS INC | M130: Van | N130: 2021-05-20 | O130: 2021-05-20 | P130: 2010-21-0020-1 | Q130: 400 | R130: 14040 | S130: 15721.68 | T130: 14046 | U130: 2292.75 | V130: 13428.93 | W130: 2292.75 | X130: 51260 | Y130: 327.54 | Z130: P | AB130: 0507Used2015ToyotaSienna | AD130: Internal | AE130: A | AF130: SL | AH130: WCNX | AI130: 0 | AJ130: 0 | AX130: Yes
B131: 2010 | C131: 251523 | D131: P | E131: 95gal yard debris carts | F131: 702 | J131: 0 | K131: REHRIG PACIFIC COMPANY | M131: Non-Container Audit | N131: 2021-04-02 | O131: 2021-04-02 | P131: 2010-21-0033-1 | Q131: 700 | R131: 14050 | S131: 33140.16 | T131: 14056 | U131: 3550.73 | V131: 29589.43 | W131: 3550.73 | X131: 54260 | Y131: 394.53 | Z131: P | AB131: 50160574 | AD131: Internal | AE131: A | AF131: SL | AH131: WCNX | AI131: 0 | AJ131: 0 | AX131: Yes
B132: 2010 | C132: 251522 | D132: P | E132: 20yd RO sludge box | F132: 1 | J132: 0 | K132: WASTEQUIP MAYFAB | M132: 20 YD RO Box | N132: 2021-04-10 | O132: 2021-04-10 | P132: 2010-21-0031-1 | Q132: 1200 | R132: 14050 | S132: 6319.55 | T132: 14056 | U132: 394.97 | V132: 5924.58 | W132: 394.97 | X132: 54260 | Y132: 43.89 | Z132: P | AB132: 20inv000012808 | AD132: Internal | AE132: A | AF132: SL | AH132: WCNX | AI132: 0 | AJ132: 0 | AX132: Yes
B133: 2010 | C133: 251521 | D133: P | E133: 4yd plastic FEL garbage containers | F133: 20 | J133: 0 | K133: REHRIG PACIFIC COMPANY | M133: 4 YD FEL/REL/SL Plastic | N133: 2021-03-25 | O133: 2021-03-25 | P133: 2010-21-0030-1 | Q133: 700 | R133: 14050 | S133: 16990.13 | T133: 14056 | U133: 1820.37 | V133: 15169.76 | W133: 1820.37 | X133: 54260 | Y133: 202.26 | Z133: P | AB133: 50159379 | AD133: Internal | AE133: A | AF133: SL | AH133: WCNX | AI133: 0 | AJ133: 0 | AX133: Yes
B134: 2010 | C134: 251520 | D134: P | E134: 65gal county recycle carts | F134: 936 | J134: 0 | K134: REHRIG PACIFIC COMPANY | M134: Non-Container Audit | N134: 2021-02-19 | O134: 2021-02-19 | P134: 2010-21-0029-1 | Q134: 700 | R134: 14050 | S134: 40940.08 | T134: 14056 | U134: 4873.82 | V134: 36066.26 | W134: 4873.82 | X134: 54260 | Y134: 487.38 | Z134: P | AB134: 50151389 | AD134: Internal | AE134: A | AF134: SL | AH134: WCNX | AI134: 0 | AJ134: 0 | AX134: Yes
B135: 2010 | C135: 251519 | D135: P | E135: 20gal organic cart inserts | F135: 640 | J135: 0 | K135: WASTEQUIP TOTER | M135: Non-Container Audit | N135: 2021-04-02 | O135: 2021-04-02 | P135: 2010-21-0025-1 | Q135: 700 | R135: 14050 | S135: 20786.46 | T135: 14056 | U135: 2227.12 | V135: 18559.34 | W135: 2227.12 | X135: 54260 | Y135: 247.46 | Z135: P | AB135: 65734977 | AD135: Internal | AE135: A | AF135: SL | AH135: WCNX | AI135: 0 | AJ135: 0 | AX135: Yes
B136: 2010 | C136: 251518 | D136: P | E136: 32gal organics carts | F136: 200 | J136: 0 | K136: WASTEQUIP TOTER | M136: Non-Container Audit | N136: 2021-04-02 | O136: 2021-04-02 | P136: 2010-21-0025-1 | Q136: 700 | R136: 14050 | S136: 9701.49 | T136: 14056 | U136: 1039.45 | V136: 8662.04 | W136: 1039.45 | X136: 54260 | Y136: 115.49 | Z136: P | AB136: 65734977 | AD136: Internal | AE136: A | AF136: SL | AH136: WCNX | AI136: 0 | AJ136: 0 | AX136: Yes
B137: 2010 | C137: 251517 | D137: P | E137: 96gal organics carts | F137: 312 | J137: 0 | K137: WASTEQUIP TOTER | M137: Non-Container Audit | N137: 2021-04-02 | O137: 2021-04-02 | P137: 2010-21-0025-1 | Q137: 700 | R137: 14050 | S137: 19103.42 | T137: 14056 | U137: 2046.8 | V137: 17056.62 | W137: 2046.8 | X137: 54260 | Y137: 227.42 | Z137: P | AB137: 65734977 | AD137: Internal | AE137: A | AF137: SL | AH137: WCNX | AI137: 0 | AJ137: 0 | AX137: Yes
B138: 2010 | C138: 250365 | D138: P | E138: New 2009 International REL (Package Purchase) | F138: 0 | H138: 1HTWCAAN69J141652 | I138: C98841N | J138: 2009 | K138: International 7400 | L138: Heil | M138: REL Truck | N138: 2009-11-01 | O138: 2009-11-01 | P138: 2149-9-0038-1 | Q138: 1000 | R138: 14040 | S138: 143203.55 | T138: 14046 | U138: 143203.55 | V138: 0 | W138: 0 | X138: 51260 | Y138: 0 | Z138: P | AB138: 24044427 | AC138: 33 | AD138: Internal | AE138: A | AF138: SL | AG138: 2021-03-31 | AH138: WCNX | AI138: 0 | AJ138: 143203.55 | AX138: Yes
B139: 2010 | C139: 249929 | D139: P | E139: 2021 Peterbilt ASL Truck - Chassis | H139: 3BPDLK0X0MF109664 | J139: 2021 | M139: Automated Sideload | N139: 2021-03-08 | O139: 2021-03-08 | P139: 2010-20-0033 | Q139: 1000 | R139: 14040 | S139: 183244 | T139: 14046 | U139: 15270.33 | V139: 167973.67 | W139: 15270.33 | X139: 51260 | Y139: 1527.03 | Z139: P | AD139: Internal | AE139: A | AF139: SL | AH139: WCNX | AI139: 0 | AJ139: 0 | AX139: Yes
B140: 2010 | C140: 249928 | D140: 249929 | E140: 2021 Peterbilt ASL Truck - Body | H140: 3BPDLK0X0MF109664 | J140: 2021 | M140: Non-Rolling Stock | N140: 2021-03-08 | O140: 2021-03-08 | P140: 2010-21-0003 | Q140: 1000 | R140: 14040 | S140: 237087.84 | T140: 14046 | U140: 19757.31 | V140: 217330.53 | W140: 19757.31 | X140: 51260 | Y140: 1975.73 | Z140: P | AD140: Internal | AE140: A | AF140: SL | AH140: WCNX | AI140: 0 | AJ140: 0 | AX140: Yes
B141: 2010 | C141: 249541 | D141: P | E141: 64gal COV sparkle garbage carts | F141: 648 | I141: 94-3283464 | J141: 0 | K141: WASTEQUIP TOTER | M141: Non-Container Audit | N141: 2021-03-11 | O141: 2021-03-11 | P141: 2010-21-0027-1 | Q141: 700 | R141: 14050 | S141: 36947.93 | T141: 14056 | U141: 4398.56 | V141: 32549.37 | W141: 4398.56 | X141: 54260 | Y141: 439.86 | Z141: P | AB141: 65731324 | AD141: Internal | AE141: A | AF141: SL | AH141: WCNX | AI141: 0 | AJ141: 0 | AX141: Yes
B142: 2010 | C142: 249540 | D142: P | E142: 40YD LIDDED DROP BOXES | F142: 2 | I142: 94-3283464 | J142: 0 | K142: WASTEQUIP MAYFAB | M142: 40 YD RO Box | N142: 2021-03-06 | O142: 2021-03-06 | P142: 2010-21-0031-1 | Q142: 1200 | R142: 14050 | S142: 16241.55 | T142: 14056 | U142: 1127.89 | V142: =S142-U142 -> 15113.66 | W142: 1127.89 | X142: 54260 | Y142: 112.79 | Z142: P | AB142: 20INV000011122 | AD142: Internal | AE142: A | AF142: SL | AH142: WCNX | AI142: 0 | AJ142: 0 | AX142: Yes
B143: 2010 | C143: 249539 | D143: P | E143: 30YD LIDDED DROP BOXES | F143: 2 | I143: 94-3283464 | J143: 0 | K143: WASTEQUIP MAYFAB | M143: 30 YD RO Box | N143: 2021-03-06 | O143: 2021-03-06 | P143: 2010-21-0031-1 | Q143: 1200 | R143: 14050 | S143: 14837.55 | T143: 14056 | U143: 1030.39 | V143: 13807.16 | W143: 1030.39 | X143: 54260 | Y143: 103.04 | Z143: P | AB143: 20INV000010812 | AD143: Internal | AE143: A | AF143: SL | AH143: WCNX | AI143: 0 | AJ143: 0 | AX143: Yes
B144: 2010 | C144: 249538 | D144: P | E144: 20yd metal drop boxes | F144: 4 | I144: 94-3283464 | J144: 0 | K144: WASTEQUIP MAYFAB | M144: 20 YD RO Box | N144: 2021-03-04 | O144: 2021-03-04 | P144: 2010-21-0031-1 | Q144: 1200 | R144: 14050 | S144: 18035.1 | T144: 14056 | U144: 1252.44 | V144: 16782.66 | W144: 1252.44 | X144: 54260 | Y144: 125.24 | Z144: P | AB144: 20inv000010476 | AD144: Internal | AE144: A | AF144: SL | AH144: WCNX | AI144: 0 | AJ144: 0 | AX144: Yes
B145: 2010 | C145: 249537 | D145: P | E145: 95gal organic carts | F145: 351 | I145: 94-3283464 | J145: 0 | K145: REHRIG PACIFIC COMPANY | M145: Non-Container Audit | N145: 2021-03-09 | O145: 2021-03-09 | P145: 2010-21-0028-1 | Q145: 700 | R145: 14050 | S145: 17254.95 | T145: 14056 | U145: 2054.16 | V145: 15200.79 | W145: 2054.16 | X145: 54260 | Y145: 205.42 | Z145: P | AB145: 50154875 | AD145: Internal | AE145: A | AF145: SL | AH145: WCNX | AI145: 0 | AJ145: 0 | AX145: Yes
B146: 2010 | C146: 249536 | D146: P | E146: 35gal organic carts | F146: 540 | I146: 94-3283464 | J146: 0 | K146: REHRIG PACIFIC COMPANY | M146: Non-Container Audit | N146: 2021-03-09 | O146: 2021-03-09 | P146: 2010-21-0028-1 | Q146: 700 | R146: 14050 | S146: 20692.48 | T146: 14056 | U146: 2463.39 | V146: 18229.09 | W146: 2463.39 | X146: 54260 | Y146: 246.34 | Z146: P | AB146: 50155448 | AD146: Internal | AE146: A | AF146: SL | AH146: WCNX | AI146: 0 | AJ146: 0 | AX146: Yes
B147: 2010 | C147: 249535 | D147: P | E147: 95gal yard debris carts | F147: 702 | I147: 94-3283464 | J147: 0 | K147: REHRIG PACIFIC COMPANY | M147: Non-Container Audit | N147: 2021-02-19 | O147: 2021-02-19 | P147: 2010-21-0029-1 | Q147: 700 | R147: 14050 | S147: 33140.16 | T147: 14056 | U147: 3945.26 | V147: 29194.9 | W147: 3945.26 | X147: 54260 | Y147: 394.53 | Z147: P | AB147: 50152617 | AD147: Internal | AE147: A | AF147: SL | AH147: WCNX | AI147: 0 | AJ147: 0 | AX147: Yes
B148: 2010 | C148: 249416 | D148: P | E148: 6 YD RO Box | F148: 9 | I148: 94-3283464 | J148: 0 | K148: WASTEQUIP MAYFAB | M148: 6 YD FEL/REL/SL Metal | N148: 2021-03-10 | O148: 2021-03-10 | P148: 2010-21-0031-1 | Q148: 1200 | R148: 14050 | S148: 11983.13 | T148: 14056 | U148: 832.16 | V148: 11150.97 | W148: 832.16 | X148: 54260 | Y148: 83.22 | Z148: P | AB148: 20inv000011524 | AD148: Internal | AE148: A | AF148: SL | AH148: WCNX | AI148: 0 | AJ148: 0 | AX148: Yes
B149: 2010 | C149: 249415 | D149: P | E149: 40yd drop boxes | F149: 2 | I149: 94-3283464 | J149: 0 | K149: WASTEQUIP MAYFAB | M149: 40 YD RO Box | N149: 2021-03-06 | O149: 2021-03-06 | P149: 2010-21-0031-1 | Q149: 1200 | R149: 14050 | S149: 16487.1 | T149: 14056 | U149: 1144.94 | V149: 15342.16 | W149: 1144.94 | X149: 54260 | Y149: 114.49 | Z149: P | AB149: 20inv000011460 | AD149: Internal | AE149: A | AF149: SL | AH149: WCNX | AI149: 0 | AJ149: 0 | AX149: Yes
B150: 2010 | C150: 249414 | D150: P | E150: 4 YD RO Box | F150: 11 | I150: 94-3283464 | J150: 0 | K150: WASTEQUIP MAYFAB | M150: 4 YD FEL/REL/SL Metal | N150: 2021-03-08 | O150: 2021-03-08 | P150: 2010-21-0031-1 | Q150: 1200 | R150: 14050 | S150: 11804.76 | T150: 14056 | U150: 819.78 | V150: 10984.98 | W150: 819.78 | X150: 54260 | Y150: 81.98 | Z150: P | AB150: 20inv000011460 | AD150: Internal | AE150: A | AF150: SL | AH150: WCNX | AI150: 0 | AJ150: 0 | AX150: Yes
B151: 2010 | C151: 249413 | D151: P | E151: 4 YD FEL Plastic Containers | F151: 20 | I151: 94-3283464 | J151: 0 | K151: REHRIG PACIFIC COMPANY | M151: 4 YD FEL/REL/SL Plastic | N151: 2021-03-18 | O151: 2021-03-18 | P151: 2010-21-0030-1 | Q151: 700 | R151: 14050 | S151: 17489.47 | T151: 14056 | U151: 1873.87 | V151: 15615.6 | W151: 1873.87 | X151: 54260 | Y151: 208.21 | Z151: P | AB151: 50157622 | AD151: Internal | AE151: A | AF151: SL | AH151: WCNX | AI151: 0 | AJ151: 0 | AX151: Yes
B152: 2010 | C152: 248105 | D152: P | E152: Electric Service for E-Truck | I152: 94-3283464 | J152: 0 | K152: PRAIRIE ELECTRIC INC | N152: 2021-03-24 | O152: 2021-03-24 | P152: 2010-21-0032-1 | Q152: 1000 | R152: 14010 | S152: 76313.6 | T152: 14016 | U152: 5723.52 | V152: 70590.08 | W152: 5723.52 | X152: 57260 | Y152: 635.95 | Z152: P | AB152: 360273 | AD152: Internal | AE152: A | AF152: SL | AH152: WCNX | AI152: 0 | AJ152: 0 | AX152: Yes
B153: 2010 | C153: 248104 | D153: 248105 | E153: System development-Charging station service for electric truck | I153: 94-3283464 | J153: 0 | K153: CLARK PUBLIC UTILITIES | N153: 2021-03-24 | O153: 2021-03-24 | P153: 2010-21-0032-1 | Q153: 1000 | R153: 14010 | S153: 8422.03 | T153: 14016 | U153: 631.65 | V153: 7790.38 | W153: 631.65 | X153: 57260 | Y153: 70.18 | Z153: P | AB153: 559999-2 | AD153: Internal | AE153: A | AF153: SL | AH153: WCNX | AI153: 0 | AJ153: 0 | AX153: Yes
B154: 2010 | C154: 248084 | D154: P | E154: 95 gal COV & County recycle & yard debris carts | F154: 1404 | J154: 0 | M154: Non-Container Audit | N154: 2021-02-18 | O154: 2021-02-18 | P154: 2010-21-0029 | Q154: 700 | R154: 14050 | S154: 34509.9 | T154: 14056 | U154: 4108.32 | V154: 30401.58 | W154: 4108.32 | X154: 54260 | Y154: 410.83 | Z154: P | AD154: Internal | AE154: A | AF154: SL | AH154: WCNX | AI154: 0 | AJ154: 0 | AX154: Yes
B155: 2010 | C155: 248083 | D155: P | E155: 64gal COV sparkle garbage carts | F155: 648 | J155: 0 | M155: Non-Container Audit | N155: 2021-02-28 | O155: 2021-02-28 | P155: 2010-21-0024 | Q155: 700 | R155: 14050 | S155: 36089.77 | T155: 14056 | U155: 4296.4 | V155: 31793.37 | W155: 4296.4 | X155: 54260 | Y155: 429.64 | Z155: P | AD155: Internal | AE155: A | AF155: SL | AH155: WCNX | AI155: 0 | AJ155: 0 | AX155: Yes
B156: 2010 | C156: 247645 | D156: P | E156: 95GAL COV RECYCLE CARTS | F156: 702 | J156: 0 | K156: REHRIG PACIFIC COMPANY | M156: Non-Container Audit | N156: 2021-02-18 | O156: 2021-02-18 | P156: 2010-21-0029-1 | Q156: 500 | R156: 14050 | S156: 34509.9 | T156: 14056 | U156: 5751.65 | V156: 28758.25 | W156: 5751.65 | X156: 54260 | Y156: 575.16 | Z156: P | AB156: 50152320 | AD156: Internal | AE156: A | AF156: SL | AH156: WCNX | AI156: 0 | AJ156: 0 | AX156: Yes
B157: 2010 | C157: 247168 | D157: 247167 | E157: Carb Retrofit -Trk 304 Vin M575023 | F157: 0 | H157: N0N R0LL1NG ST0CK | J157: 0 | N157: 2009-12-17 | P157: 4020-9-0049-1 | Q157: 300 | R157: 14040 | S157: 9484.37 | T157: 14046 | U157: 9484.37 | V157: 0 | W157: 0 | X157: 51260 | Y157: 0 | Z157: P | AB157: 1221897 | AD157: Internal | AE157: A | AF157: SL | AG157: 2021-01-31 | AH157: WCNX | AI157: 0 | AJ157: 9484.37 | AX157: Yes
B158: 2010 | C158: 247167 | D158: P | E158: 2002 Peterbilt 340 flat bed | F158: 0 | H158: 2NPNHD7X32M575023 | J158: 2002 | K158: Peterbilt | L158: Other | M158: Boom Truck | N158: 2003-09-17 | O158: 2003-09-17 | Q158: 800 | R158: 14040 | S158: 30000 | T158: 14046 | U158: 30000 | V158: 0 | W158: 0 | X158: 51260 | Y158: 0 | Z158: A | AA158: GreenTeam of San Jose | AC158: 304 | AD158: Internal | AE158: A | AF158: SL | AG158: 2021-01-31 | AH158: WCNX | AI158: 0 | AJ158: 30000 | AX158: Yes
B159: 2010 | C159: 246945 | D159: 243660 | E159: signage for new truck 626 | J159: 2020 | M159: Non-Rolling Stock | N159: 2021-01-01 | O159: 2021-01-01 | P159: 2010-20-0087 | Q159: 1000 | R159: 14040 | S159: 569 | T159: 14046 | U159: 56.89 | V159: 512.11 | W159: 56.89 | X159: 51260 | Y159: 4.74 | Z159: P | AD159: Internal | AE159: A | AF159: SL | AH159: WCNX | AI159: 0 | AJ159: 0 | AX159: Yes
B160: 2010 | C160: 246477 | D160: P | E160: 95gal county recycle carts | F160: 702 | J160: 0 | K160: REHRIG PACIFIC COMPANY | M160: Non-Container Audit | N160: 2021-01-07 | O160: 2021-01-07 | P160: 2010-21-0026-1 | Q160: 700 | R160: 14050 | S160: 33741.32 | T160: 14056 | U160: 4820.19 | V160: 28921.13 | W160: 4820.19 | X160: 54260 | Y160: 401.68 | Z160: P | AB160: 50143994 | AD160: Internal | AE160: A | AF160: SL | AH160: WCNX | AI160: 0 | AJ160: 0 | AX160: Yes
B161: 2010 | C161: 246426 | D161: 243657 | E161: signage for new truck 168 | J161: 0 | K161: NORTH AMERICAN DECAL INC. | M161: Non-Rolling Stock | N161: 2021-01-01 | O161: 2021-01-01 | P161: 2010-20-0030-1 | Q161: 1000 | R161: 14040 | S161: 325.66 | T161: 14046 | U161: 32.57 | V161: 293.09 | W161: 32.57 | X161: 51260 | Y161: 2.71 | Z161: P | AB161: 424235 | AD161: Internal | AE161: A | AF161: SL | AH161: WCNX | AI161: 0 | AJ161: 0 | AX161: Yes
B162: 2010 | C162: 245502 | D162: 243657 | E162: licensing for new truck #168 | J162: 0 | K162: WA DOL LIC & REG 78155 | M162: Non-Rolling Stock | N162: 2020-12-20 | O162: 2020-12-20 | P162: 2010-20-0030-1 | Q162: 1000 | R162: 14040 | S162: 313.83 | T162: 14046 | U162: 31.38 | V162: 282.45 | W162: 31.38 | X162: 51260 | Y162: 2.61 | Z162: P | AB162: 118497547 | AD162: Internal | AE162: A | AF162: SL | AH162: WCNX | AI162: 0 | AJ162: 0 | AX162: Yes
B163: 2010 | C163: 245501 | D163: 243657 | E163: credit for voided licensing check | J163: 0 | K163: WA DOL LIC & REG 78155 | M163: Non-Rolling Stock | N163: 2020-12-20 | O163: 2020-12-20 | P163: 2010-20-0030-1 | Q163: 1000 | R163: 14040 | S163: -304.69 | T163: 14046 | U163: -30.47 | V163: -274.22 | W163: -30.47 | X163: 51260 | Y163: -2.54 | Z163: P | AB163: 118497547 | AD163: Internal | AE163: A | AF163: SL | AH163: WCNX | AI163: 0 | AJ163: 0 | AX163: Yes
B164: 2010 | C164: 244749 | D164: P | E164: New Laptop for ADM Serial # : 2TK018ZRY0 | J164: 0 | K164: CDW | N164: 2020-12-03 | O164: 2020-12-03 | P164: 2010-20-0089-1 | Q164: 300 | R164: 14110 | S164: 1725.9 | T164: 14116 | U164: 623.24 | V164: 1102.66 | W164: 575.3 | X164: 70260 | Y164: 47.94 | Z164: P | AB164: 4979538 | AD164: Internal | AE164: A | AF164: SL | AH164: WCNX | AI164: 0 | AJ164: 0 | AX164: Yes
B165: 2010 | C165: 244696 | D165: P | E165: 65gal county recycle carts | F165: 468 | J165: 0 | K165: REHRIG PACIFIC COMPANY | M165: Non-Container Audit | N165: 2020-12-04 | O165: 2020-12-04 | P165: 2010-20-0088-1 | Q165: 700 | R165: 14050 | S165: 19450.34 | T165: 14056 | U165: 3010.17 | V165: 16440.17 | W165: 2778.62 | X165: 54260 | Y165: 231.55 | Z165: P | AB165: 50137880 | AD165: Internal | AE165: A | AF165: SL | AH165: WCNX | AI165: 0 | AJ165: 0 | AX165: Yes
B166: 2010 | C166: 244695 | D166: P | E166: 95gal COV recycle carts | F166: 351 | J166: 0 | K166: REHRIG PACIFIC COMPANY | M166: Non-Container Audit | N166: 2020-12-04 | O166: 2020-12-04 | P166: 2010-20-0088-1 | Q166: 700 | R166: 14050 | S166: 16490.18 | T166: 14056 | U166: 2552.04 | V166: 13938.14 | W166: 2355.73 | X166: 54260 | Y166: 196.31 | Z166: P | AB166: 50137880 | AD166: Internal | AE166: A | AF166: SL | AH166: WCNX | AI166: 0 | AJ166: 0 | AX166: Yes
B167: 2010 | C167: 243660 | D167: P | E167: 2020 Peterbilt REL Truck | H167: 2NP3LJ0X4LM672540 | J167: 2020 | M167: REL Truck | N167: 2020-12-28 | O167: 2020-12-28 | P167: 2010-20-0087 | Q167: 1000 | R167: 14040 | S167: 238456.8 | T167: 14046 | U167: 23845.68 | V167: 214611.12 | W167: 23845.68 | X167: 51260 | Y167: 1987.14 | Z167: P | AC167: 626 | AD167: Internal | AE167: A | AF167: SL | AH167: WCNX | AI167: 0 | AJ167: 0 | AX167: Yes
B168: 2010 | C168: 243658 | D168: 241231 | E168: License Fees | J168: 2020 | M168: Non-Rolling Stock | N168: 2020-10-23 | O168: 2020-10-23 | P168: 2010-20-0038 | Q168: 1000 | R168: 14040 | S168: 1006.83 | T168: 14046 | U168: 117.46 | V168: 889.37 | W168: 100.68 | X168: 51260 | Y168: 8.39 | Z168: P | AD168: Internal | AE168: A | AF168: SL | AH168: WCNX | AI168: 0 | AJ168: 0 | AX168: Yes
B169: 2010 | C169: 243657 | D169: P | E169: 2020 Isuzu Retriever Truck | H169: JALE5W16XL7305223 | J169: 2020 | M169: Retriever Truck | N169: 2020-12-31 | O169: 2020-12-31 | P169: 2010-20-0030 | Q169: 1000 | R169: 14040 | S169: 143587.41 | T169: 14046 | U169: 14358.74 | V169: 129228.67 | W169: 14358.74 | X169: 51260 | Y169: 1196.56 | Z169: P | AC169: 168 | AD169: Internal | AE169: A | AF169: SL | AH169: WCNX | AI169: 0 | AJ169: 0 | AX169: Yes
B170: 2010 | C170: 242306 | D170: P | E170: HP SB PRODESK 600 G5 DESKTOP UNSPS: 43211508 | J170: 0 | K170: CDW | N170: 2020-11-30 | O170: 2020-11-30 | P170: 2010-20-0086-1 | Q170: 300 | R170: 14110 | S170: 1142.02 | T170: 14116 | U170: 412.39 | V170: 729.63 | W170: 380.67 | X170: 70260 | Y170: 31.72 | Z170: P | AB170: 3852069 | AD170: Internal | AE170: A | AF170: SL | AH170: WCNX | AI170: 0 | AJ170: 0 | AX170: Yes
B171: 2010 | C171: 241231 | D171: P | E171: 2020 Peterbilt ASL Truck | H171: 3BPDLK0X8LF108972 | J171: 2020 | M171: Automated Sideload | N171: 2020-10-23 | O171: 2020-10-23 | P171: 2010-20-0038 | Q171: 1000 | R171: 14040 | S171: 365347.28 | T171: 14046 | U171: 42623.85 | V171: 322723.43 | W171: 36534.73 | X171: 51260 | Y171: 3044.56 | Z171: P | AC171: 833 | AD171: Internal | AE171: A | AF171: SL | AH171: WCNX | AI171: 0 | AJ171: 0 | AX171: Yes
B172: 2010 | C172: 240634 | D172: P | E172: Drive Cam Upgrades (135 Qty) | F172: 135 | J172: 0 | K172: Lytx, Inc | N172: 2020-10-10 | O172: 2020-10-10 | P172: 2010-20-0085-1 | Q172: 500 | R172: 14070 | S172: 136140.65 | T172: 14076 | U172: 34035.12 | V172: 102105.53 | W172: 27228.09 | X172: 51260 | Y172: 2269.01 | Z172: P | AB172: 5307730 | AD172: Internal | AE172: A | AF172: SL | AH172: WCNX | AI172: 0 | AJ172: 0 | AX172: Yes
B173: 2010 | C173: 240633 | D173: P | E173: HP SB Probook 650-SN:5CG039D3SL- For Controller | J173: 0 | K173: CDW | N173: 2020-10-15 | O173: 2020-10-15 | P173: 2010-20-0084-1 | Q173: 300 | R173: 14110 | S173: 1321.96 | T173: 14116 | U173: 550.81 | V173: 771.15 | W173: 440.65 | X173: 70260 | Y173: 36.72 | Z173: P | AB173: 2881015 | AD173: Internal | AE173: A | AF173: SL | AH173: WCNX | AI173: 0 | AJ173: 0 | AX173: Yes
B174: 2010 | C174: 240601 | D174: P | E174: 65gal county recycle carts | F174: 324 | J174: 0 | K174: REHRIG PACIFIC COMPANY | M174: Non-Container Audit | N174: 2020-10-08 | O174: 2020-10-08 | P174: 2010-20-0083-1 | Q174: 700 | R174: 14050 | S174: 13044.16 | T174: 14056 | U174: 2329.31 | V174: 10714.85 | W174: 1863.45 | X174: 54260 | Y174: 155.29 | Z174: P | AB174: 50125105 | AD174: Internal | AE174: A | AF174: SL | AH174: WCNX | AI174: 0 | AJ174: 0 | AX174: Yes
B175: 2010 | C175: 240600 | D175: P | E175: 65gal city of camas recycle carts | F175: 324 | J175: 0 | K175: REHRIG PACIFIC COMPANY | M175: Non-Container Audit | N175: 2020-10-08 | O175: 2020-10-08 | P175: 2010-20-0083-1 | Q175: 700 | R175: 14050 | S175: 13044.16 | T175: 14056 | U175: 2329.31 | V175: 10714.85 | W175: 1863.45 | X175: 54260 | Y175: 155.29 | Z175: P | AB175: 50125105 | AD175: Internal | AE175: A | AF175: SL | AH175: WCNX | AI175: 0 | AJ175: 0 | AX175: Yes
B176: 2010 | C176: 240599 | D176: P | E176: 64gal COV Sparkle garbage carts | F176: 648 | J176: 0 | K176: WASTEQUIP TOTER | M176: Non-Container Audit | N176: 2020-10-26 | O176: 2020-10-26 | P176: 2010-20-0082-1 | Q176: 700 | R176: 14050 | S176: 33772.04 | T176: 14056 | U176: 5628.68 | V176: 28143.36 | W176: 4824.58 | X176: 54260 | Y176: 402.05 | Z176: P | AB176: 65708082 | AD176: Internal | AE176: A | AF176: SL | AH176: WCNX | AI176: 0 | AJ176: 0 | AX176: Yes
B177: 2010 | C177: 240598 | D177: P | E177: 95gal county recycle carts | F177: 702 | J177: 0 | K177: REHRIG PACIFIC COMPANY | M177: Non-Container Audit | N177: 2020-10-12 | O177: 2020-10-12 | P177: 2010-20-0081-1 | Q177: 700 | R177: 14050 | S177: 32219.39 | T177: 14056 | U177: 5753.46 | V177: 26465.93 | W177: 4602.77 | X177: 54260 | Y177: 383.56 | Z177: P | AB177: 50126711 | AD177: Internal | AE177: A | AF177: SL | AH177: WCNX | AI177: 0 | AJ177: 0 | AX177: Yes
B178: 2010 | C178: 240597 | D178: P | E178: 14gal glass bins | F178: 6000 | J178: 0 | K178: REHRIG PACIFIC COMPANY | M178: Non-Container Audit | N178: 2020-10-16 | O178: 2020-10-16 | P178: 2010-20-0080-1 | Q178: 500 | R178: 14050 | S178: 45885.72 | T178: 14056 | U178: 10706.66 | V178: 35179.06 | W178: 9177.14 | X178: 54260 | Y178: 764.76 | Z178: P | AB178: 50127966 | AD178: Internal | AE178: A | AF178: SL | AH178: WCNX | AI178: 0 | AJ178: 0 | AX178: Yes
B179: 2010 | C179: 240596 | D179: P | E179: 96gal Washougal garbage carts | F179: 318 | J179: 0 | K179: WASTEQUIP TOTER | M179: Non-Container Audit | N179: 2020-10-05 | O179: 2020-10-05 | P179: 2010-20-0075-1 | Q179: 700 | R179: 14050 | S179: 15708.8 | T179: 14056 | U179: 2805.15 | V179: 12903.65 | W179: 2244.12 | X179: 54260 | Y179: 187.01 | Z179: P | AB179: 65704263 | AD179: Internal | AE179: A | AF179: SL | AH179: WCNX | AI179: 0 | AJ179: 0 | AX179: Yes
B180: 2010 | C180: 240595 | D180: P | E180: 96gal organic carts | F180: 318 | J180: 0 | K180: WASTEQUIP TOTER | M180: Non-Container Audit | N180: 2020-10-05 | O180: 2020-10-05 | P180: 2010-20-0075-1 | Q180: 700 | R180: 14050 | S180: 13199.02 | T180: 14056 | U180: 2356.97 | V180: 10842.05 | W180: 1885.58 | X180: 54260 | Y180: 157.13 | Z180: P | AB180: 65704263 | AD180: Internal | AE180: A | AF180: SL | AH180: WCNX | AI180: 0 | AJ180: 0 | AX180: Yes
B181: 2010 | C181: 240546 | D181: P | E181: 30yd Blue RO Metal Containers | F181: 4 | J181: 0 | K181: ENVIRONMENTAL METAL WORKS | M181: 30 YD RO Box | N181: 2020-10-14 | O181: 2020-10-14 | P181: 2010-20-0072-1 | Q181: 1200 | R181: 14050 | S181: 20276.28 | T181: 14056 | U181: 2112.11 | V181: 18164.17 | W181: 1689.69 | X181: 54260 | Y181: 140.81 | Z181: P | AB181: IN009084 | AD181: Internal | AE181: A | AF181: SL | AH181: WCNX | AI181: 0 | AJ181: 0 | AX181: Yes
B182: 2010 | C182: 240223 | D182: P | E182: 96 g COV Spark Carts | F182: 318 | J182: 0 | M182: Non-Rolling Stock | N182: 2020-06-09 | O182: 2020-06-09 | P182: 2010-20-0063 | Q182: 700 | R182: 14050 | S182: 14922.58 | T182: 14056 | U182: 3375.35 | V182: 11547.23 | W182: 2131.8 | X182: 54260 | Y182: 177.65 | Z182: P | AD182: Internal | AE182: A | AF182: SL | AH182: WCNX | AI182: 0 | AJ182: 0 | AX182: Yes
B183: 2010 | C183: 240222 | D183: P | E183: 64g COV Spark Carts | F183: 324 | J183: 0 | M183: Non-Rolling Stock | N183: 2020-06-09 | O183: 2020-06-09 | P183: 2010-20-0063 | Q183: 700 | R183: 14050 | S183: 13960.84 | T183: 14056 | U183: 3157.81 | V183: 10803.03 | W183: 1994.41 | X183: 54260 | Y183: 166.2 | Z183: P | AD183: Internal | AE183: A | AF183: SL | AH183: WCNX | AI183: 0 | AJ183: 0 | AX183: Yes
B184: 2010 | C184: 240175 | D184: P | E184: 2020 Peterbilt FEL Truck | H184: 3BPDXKEX0LF109031 | J184: 2020 | M184: FEL Truck | N184: 2020-08-31 | O184: 2020-08-31 | P184: 2010-20-0036 | Q184: 1000 | R184: 14040 | S184: 360872.45 | T184: 14046 | U184: 48116.33 | V184: 312756.12 | W184: 36087.25 | X184: 51260 | Y184: 3007.27 | Z184: P | AC184: 903 | AD184: Internal | AE184: A | AF184: SL | AH184: WCNX | AI184: 0 | AJ184: 0 | AX184: Yes
B185: 2010 | C185: 239582 | D185: P | E185: Shop Laptop-Panasonic Toughbook #0HTTA57245 | J185: 0 | K185: CDW paid by P-Card | N185: 2020-09-25 | O185: 2020-09-25 | P185: 2010-20-0078-1 | Q185: 200 | R185: 14110 | S185: 2166 | T185: 14116 | U185: 1353.75 | V185: 812.25 | W185: 1083 | X185: 70260 | Y185: 90.25 | Z185: P | AB185: ZXV0424 | AD185: Internal | AE185: A | AF185: SL | AH185: WCNX | AI185: 0 | AJ185: 0 | AX185: Yes
B186: 2010 | C186: 239474 | D186: P | E186: 4yd FEL recycle cages | F186: 11 | J186: 0 | K186: WASTEQUIP WC | M186: 4 YD FEL/REL/SL Metal | N186: 2020-08-06 | O186: 2020-08-06 | P186: 2010-20-0070-4 | Q186: 1200 | R186: 14050 | S186: 10636.21 | T186: 14056 | U186: 1255.66 | V186: 9380.55 | W186: 886.35 | X186: 54260 | Y186: 73.86 | Z186: P | AB186: 37221399 | AD186: Internal | AE186: A | AF186: SL | AH186: WCNX | AI186: 0 | AJ186: 0 | AX186: Yes
B187: 2010 | C187: 239473 | D187: P | E187: 3yd FEL gray garbage containers | F187: 13 | J187: 0 | K187: WASTEQUIP WC | M187: 3 YD FEL/REL/SL Metal | N187: 2020-08-06 | O187: 2020-08-06 | P187: 2010-20-0070-3 | Q187: 1200 | R187: 14050 | S187: 6255.63 | T187: 14056 | U187: 738.51 | V187: 5517.12 | W187: 521.3 | X187: 54260 | Y187: 43.44 | Z187: P | AB187: 37221424 | AD187: Internal | AE187: A | AF187: SL | AH187: WCNX | AI187: 0 | AJ187: 0 | AX187: Yes
B188: 2010 | C188: 239472 | D188: P | E188: 4yd FEL blue recycle containers | F188: 2 | J188: 0 | K188: WASTEQUIP WC | M188: 4 YD FEL/REL/SL Metal | N188: 2020-08-06 | O188: 2020-08-06 | P188: 2010-20-0070-2 | Q188: 1200 | R188: 14050 | S188: 1058.36 | T188: 14056 | U188: 124.95 | V188: 933.41 | W188: 88.2 | X188: 54260 | Y188: 7.35 | Z188: P | AB188: 37221424 | AD188: Internal | AE188: A | AF188: SL | AH188: WCNX | AI188: 0 | AJ188: 0 | AX188: Yes
B189: 2010 | C189: 239471 | D189: P | E189: 3yd FEL blue recycle containers | F189: 13 | J189: 0 | K189: WASTEQUIP WC | M189: 3 YD FEL/REL/SL Metal | N189: 2020-08-06 | O189: 2020-08-06 | P189: 2010-20-0070-2 | Q189: 1200 | R189: 14050 | S189: 6488.1 | T189: 14056 | U189: 765.96 | V189: 5722.14 | W189: 540.68 | X189: 54260 | Y189: 45.06 | Z189: P | AB189: 37221424 | AD189: Internal | AE189: A | AF189: SL | AH189: WCNX | AI189: 0 | AJ189: 0 | AX189: Yes
B190: 2010 | C190: 239470 | D190: P | E190: 2yd FEL blue recycle containers | F190: 48 | J190: 0 | K190: WASTEQUIP WC | M190: 2 YD FEL/REL/SL Metal | N190: 2020-08-06 | O190: 2020-08-06 | P190: 2010-20-0070-2 | Q190: 1200 | R190: 14050 | S190: 23192.54 | T190: 14056 | U190: 2738.01 | V190: 20454.53 | W190: 1932.71 | X190: 54260 | Y190: 161.06 | Z190: P | AB190: 37221424 | AD190: Internal | AE190: A | AF190: SL | AH190: WCNX | AI190: 0 | AJ190: 0 | AX190: Yes
B191: 2010 | C191: 239469 | D191: P | E191: 4yd FEL recycle containers | F191: 28 | J191: 0 | K191: WASTEQUIP WC | M191: 4 YD FEL/REL/SL Metal | N191: 2020-08-06 | O191: 2020-08-06 | P191: 2010-20-0070-2 | Q191: 1200 | R191: 14050 | S191: 15960.81 | T191: 14056 | U191: 1884.27 | V191: 14076.54 | W191: 1330.07 | X191: 54260 | Y191: 110.84 | Z191: P | AB191: 37221399 | AD191: Internal | AE191: A | AF191: SL | AH191: WCNX | AI191: 0 | AJ191: 0 | AX191: Yes
B192: 2010 | C192: 239468 | D192: P | E192: 2yd RL gray garbage containers | F192: 30 | J192: 0 | K192: WASTEQUIP WC | M192: 2 YD FEL/REL/SL Metal | N192: 2020-08-19 | O192: 2020-08-19 | P192: 2010-20-0070-1 | Q192: 1200 | R192: 14050 | S192: 18644.48 | T192: 14056 | U192: 2071.61 | V192: 16572.87 | W192: 1553.71 | X192: 54260 | Y192: 129.48 | Z192: P | AB192: 37221424 | AD192: Internal | AE192: A | AF192: SL | AH192: WCNX | AI192: 0 | AJ192: 0 | AX192: Yes
B193: 2010 | C193: 239467 | D193: P | E193: 65gal Ridgefield garbage carts | F193: 468 | J193: 0 | K193: REHRIG PACIFIC COMPANY | M193: Non-Container Audit | N193: 2020-07-08 | O193: 2020-07-08 | P193: 2010-20-0068-1 | Q193: 700 | R193: 14050 | S193: 17071.05 | T193: 14056 | U193: 3658.08 | V193: 13412.97 | W193: 2438.72 | X193: 54260 | Y193: 203.23 | Z193: P | AB193: 50108190 | AD193: Internal | AE193: A | AF193: SL | AH193: WCNX | AI193: 0 | AJ193: 0 | AX193: Yes
B194: 2010 | C194: 239466 | D194: P | E194: 95gal Ridgefield garbage carts | F194: 351 | J194: 0 | K194: REHRIG PACIFIC COMPANY | M194: Non-Container Audit | N194: 2020-07-08 | O194: 2020-07-08 | P194: 2010-20-0068-1 | Q194: 700 | R194: 14050 | S194: 14435.56 | T194: 14056 | U194: 3093.33 | V194: 11342.23 | W194: 2062.22 | X194: 54260 | Y194: 171.85 | Z194: P | AB194: 50108190 | AD194: Internal | AE194: A | AF194: SL | AH194: WCNX | AI194: 0 | AJ194: 0 | AX194: Yes
B195: 2010 | C195: 239465 | D195: P | E195: 64gal organics carts | F195: 648 | J195: 0 | K195: WASTEQUIP WC | M195: Non-Container Audit | N195: 2020-07-31 | O195: 2020-07-31 | P195: 2010-20-0067-1 | Q195: 700 | R195: 14050 | S195: 31158.99 | T195: 14056 | U195: 6305.99 | V195: 24853 | W195: 4451.29 | X195: 54260 | Y195: 370.94 | Z195: P | AB195: 65690424 | AD195: Internal | AE195: A | AF195: SL | AH195: WCNX | AI195: 0 | AJ195: 0 | AX195: Yes
B196: 2010 | C196: 238265 | D196: 235324 | E196: signage for new delivery truck C-19 | J196: 0 | M196: Non-Rolling Stock | N196: 2020-07-31 | O196: 2020-07-31 | P196: 2010-20-0011 | Q196: 1000 | R196: 14040 | S196: 255.82 | T196: 14046 | U196: 36.24 | V196: 219.58 | W196: 25.58 | X196: 51260 | Y196: 2.13 | Z196: P | AD196: Internal | AE196: A | AF196: SL | AH196: WCNX | AI196: 0 | AJ196: 0 | AX196: Yes
B197: 2010 | C197: 238193 | D197: P | E197: 95gal yard debris carts | F197: 676 | I197: 94-3283464 | J197: 0 | K197: SIERRA CONTAINER GROUP LL | M197: Non-Container Audit | N197: 2020-08-20 | O197: 2020-08-20 | P197: 2010-20-0074-1 | Q197: 700 | R197: 14050 | S197: 30960.12 | T197: 14056 | U197: 5897.17 | V197: 25062.95 | W197: 4422.88 | X197: 54260 | Y197: 368.57 | Z197: P | AB197: 2984 | AD197: Internal | AE197: A | AF197: SL | AH197: WCNX | AI197: 0 | AJ197: 0 | AX197: Yes
B198: 2010 | C198: 238192 | D198: P | E198: 95gal washougal yard deris carts | F198: 348 | I198: 94-3283464 | J198: 0 | K198: SIERRA CONTAINER GROUP LL | M198: Non-Container Audit | N198: 2020-08-20 | O198: 2020-08-20 | P198: 2010-20-0073-1 | Q198: 700 | R198: 14050 | S198: 15938.05 | T198: 14056 | U198: 3035.83 | V198: 12902.22 | W198: 2276.87 | X198: 54260 | Y198: 189.74 | Z198: P | AB198: 3022 | AD198: Internal | AE198: A | AF198: SL | AH198: WCNX | AI198: 0 | AJ198: 0 | AX198: Yes
B199: 2010 | C199: 238191 | D199: P | E199: 65gal county recycle carts | F199: 348 | I199: 94-3283464 | J199: 0 | K199: SIERRA CONTAINER GROUP LL | M199: Non-Container Audit | N199: 2020-08-20 | O199: 2020-08-20 | P199: 2010-20-0073-1 | Q199: 700 | R199: 14050 | S199: 15259.03 | T199: 14056 | U199: 2906.48 | V199: 12352.55 | W199: 2179.86 | X199: 54260 | Y199: 181.65 | Z199: P | AB199: 3022 | AD199: Internal | AE199: A | AF199: SL | AH199: WCNX | AI199: 0 | AJ199: 0 | AX199: Yes
B200: 2010 | C200: 238190 | D200: P | E200: 95gal county recycle carts | F200: 648 | I200: 94-3283464 | J200: 0 | K200: SIERRA CONTAINER GROUP LL | M200: Non-Container Audit | N200: 2020-08-20 | O200: 2020-08-20 | P200: 2010-20-0073-1 | Q200: 700 | R200: 14050 | S200: 31082.62 | T200: 14056 | U200: 5920.51 | V200: 25162.11 | W200: 4440.38 | X200: 54260 | Y200: 370.03 | Z200: P | AB200: 3022 | AD200: Internal | AE200: A | AF200: SL | AH200: WCNX | AI200: 0 | AJ200: 0 | AX200: Yes
... 925 more rows

Sheet FAR Dep Summary
A1: Live Pivot
A2: Pre 8/1/21 Add? | B2: No
A4: Row Labels | B4: Sum of Cost | C4: Sum of Test Year Dep | D4: Sum of BOY Accum | E4: Sum of EOY Accum | F4: Sum of EOY Average Investment
A5: Drop Boxes (shared) | B5: 812953.6 | C5: 65194.66833 | D5: 30617.58 | E5: 95812.24833 | F5: 717141.3517
A6: Garbage Container (shared) | B6: 61472.93 | C6: 5388.749524 | D6: 0 | E6: 5388.749524 | F6: 56084.18048
A7: Land | B7: 100000 | C7: 0 | D7: 0 | E7: 0 | F7: 100000
A8: Non-Regulated Office Equipment | B8: 1427.98 | C8: 475.9933333 | D8: 0 | E8: 475.9933333 | F8: 951.9866667
A9: Organics Carts (non-reg) | B9: 24252.05 | C9: 3464.578571 | D9: 0 | E9: 3464.578571 | F9: 20787.47143
A10: Recycle Carts (non-reg) | B10: 728371.81 | C10: 112922.8991 | D10: 0 | E10: 112922.8991 | F10: 615448.9109
A11: Recycle Container (non-reg) | B11: 21072.96 | C11: 1756.08 | D11: 0 | E11: 1756.08 | F11: 19316.88
A12: Recycle Trucks | B12: 470917.74 | C12: 47532.648 | D12: 4750 | E12: 52282.648 | F12: 418635.092
A13: Shared Leasehold/Property Imprv | B13: 7371.2 | C13: 1474.24 | D13: 0 | E13: 1474.24 | F13: 5896.96
A14: Shared Office Equipment | B14: 37869.16 | C14: 12623.05333 | D14: 8759.136667 | E14: 21382.19 | F14: 16486.97
A15: Shared Service Equipment | B15: 66581.27 | C15: 5138.470333 | D15: 55599.78333 | E15: 60738.25367 | F15: 5843.016333
A16: Shared Shop Equipment | B16: -40234.13 | C16: -3525.554333 | D16: 0 | E16: -3525.554333 | F16: -36708.57567
A17: Yard Debris Carts (non-reg) | B17: 213621.95 | C17: 30517.42143 | D17: 0 | E17: 30517.42143 | F17: 183104.5286
A18: Garbage Carts (non-reg) | B18: 151646.42 | C18: 21663.77429 | D18: 0 | E18: 21663.77429 | F18: 129982.6457
A19: Roll-off Trucks | B19: 27548.84 | C19: 9182.946667 | D19: 0 | E19: 9182.946667 | F19: 18365.89333
A20: Garbage Trucks - Non-Regulated Only | B20: 383566.47 | C20: 49067.80875 | D20: 0 | E20: 49067.80875 | F20: 334498.6613
A21: Garbage Trucks - Regulated Only | B21: 19128.33 | C21: 6376.11 | D21: 0 | E21: 6376.11 | F21: 12752.22
A22: Grand Total | B22: 3087568.58 | C22: 369253.8874 | D22: 99726.5 | E22: 468980.3874 | F22: 2618588.193
A25: Pasted Values
A26: Row Labels | B26: Sum of Cost | C26: Sum of Test Year Dep | D26: Sum of BOY Accum | E26: Sum of EOY Accum | F26: Sum of EOY Average Investment
A27: Drop Boxes (shared) | B27: 812953.6 | C27: 65194.66833 | D27: 30617.58 | E27: 95812.24833 | F27: 717141.3517
A28: Garbage Container (shared) | B28: 61472.93 | C28: 5388.749524 | D28: 0 | E28: 5388.749524 | F28: 56084.18048
A29: Land | B29: 100000 | C29: 0 | D29: 0 | E29: 0 | F29: 100000
A30: Non-Regulated Office Equipment | B30: 1427.98 | C30: 475.9933333 | D30: 0 | E30: 475.9933333 | F30: 951.9866667
A31: Organics Carts (non-reg) | B31: 24252.05 | C31: 3464.578571 | D31: 0 | E31: 3464.578571 | F31: 20787.47143
A32: Recycle Carts (non-reg) | B32: 728371.81 | C32: 112922.8991 | D32: 0 | E32: 112922.8991 | F32: 615448.9109
A33: Recycle Container (non-reg) | B33: 21072.96 | C33: 1756.08 | D33: 0 | E33: 1756.08 | F33: 19316.88
A34: Recycle Trucks | B34: 470917.74 | C34: 47532.648 | D34: 4750 | E34: 52282.648 | F34: 418635.092
A35: Shared Leasehold/Property Imprv | B35: 7371.2 | C35: 1474.24 | D35: 0 | E35: 1474.24 | F35: 5896.96
A36: Shared Office Equipment | B36: 37869.16 | C36: 12623.05333 | D36: 8759.136667 | E36: 21382.19 | F36: 16486.97
A37: Shared Service Equipment | B37: 66581.27 | C37: 5138.470333 | D37: 55599.78333 | E37: 60738.25367 | F37: 5843.016333
A38: Shared Shop Equipment | B38: -40234.13 | C38: -3525.554333 | D38: 0 | E38: -3525.554333 | F38: -36708.57567
A39: Yard Debris Carts (non-reg) | B39: 213621.95 | C39: 30517.42143 | D39: 0 | E39: 30517.42143 | F39: 183104.5286
A40: Garbage Carts (non-reg) | B40: 151646.42 | C40: 21663.77429 | D40: 0 | E40: 21663.77429 | F40: 129982.6457
A41: Roll-off Trucks | B41: 27548.84 | C41: 9182.946667 | D41: 0 | E41: 9182.946667 | F41: 18365.89333
A42: Garbage Trucks - Non-Regulated Only | B42: 383566.47 | C42: 49067.80875 | D42: 0 | E42: 49067.80875 | F42: 334498.6613
A43: Garbage Trucks - Regulated Only | B43: 19128.33 | C43: 6376.11 | D43: 0 | E43: 6376.11 | F43: 12752.22
A44: Grand Total | B44: 3087568.58 | C44: 369253.8874 | D44: 99726.5 | E44: 468980.3874 | F44: 2618588.193
A45: Check | B45: =B44-'4.2022 FAR'!N8 -> 0

Sheet 2022 Budgeted Capital
A1: CER Number | B1: Budgeted Cost | C1: Description | D1: LOB per Controller | E1: New LOB
A2: 2010-22-0002 | B2: 290091 | C2: Recycle Manual Sideloader (body only) for Clark County Recycling contract extension (Glass) approved | D2: Resi Recycle | E2: Recycle Trucks
A3: 2010-22-0003 | B3: 290091 | C3: Recycle Manual Side Loader (body only) for Clark County Recycling contract extension (Glass) approve | D3: Resi Recycle | E3: Recycle Trucks
A4: 2010-22-0004 | B4: 290091 | C4: Recycle Manual Side Loader (body only) for Clark County Recycling contract extension (Glass) aproved | D4: Resi Recycle | E4: Recycle Trucks
A5: 2010-22-0005 | B5: 220177 | C5: Automated Resi Sideloader (body only) for Clark County Recycling contract extension approved by Darr | D5: Resi Recycle | E5: Recycle Trucks
A6: 2010-22-0006 | B6: 216650 | C6: Automated Resi Sideloader (body only) for Clark County Recycling contract extension approved by Darr | D6: Resi Recycle | E6: Recycle Trucks
A7: 2010-22-0007 | B7: 220177 | C7: Automated Resi Sideloader (body only) for Clark County Recycling contract extension approved by Darr | D7: Resi Recycle | E7: Recycle Trucks
A8: 2010-22-0008 | B8: 216650 | C8: Automated Resi Sideloader (body only) for Clark County Recycling contract extension approved by Darr | D8: Resi Recycle | E8: Recycle Trucks
A9: 2010-22-0009 | B9: 216650 | C9: Automated Resi Sideloader (body only) for Clark County Recycling contract extension approved by Darr | D9: Resi Recycle | E9: Recycle Trucks
A10: 2010-22-0010 | B10: 216650 | C10: Automated Resi Sideloader (body only) for Clark County Recycling contract extension approved by Darr | D10: Resi Recycle | E10: Recycle Trucks | R10: Phone call 5.9.22 with Jen confirmed that it's just the 3 - AML
A11: 2010-22-0011 | B11: 216650 | C11: Automated Resi Sideloader (body only) for Clark County Recycling contract extension approved by Darr | D11: Resi Recycle | E11: Recycle Trucks
A12: 2010-22-0012 | B12: 407843 | C12: Automated Resi Sideloader (body only) for UTC MSW automation, approved by Darrell. Expected delivery | D12: Resi MSW | E12: Garbage Trucks - Regulated Only
A13: 2010-22-0013 | B13: 407843 | C13: Automated Resi Sideloader (body only) for UTC MSW automation, approved by Darrell. Expected delivery | D13: Resi MSW | E13: Garbage Trucks - Regulated Only
A14: 2010-22-0014 | B14: 407843 | C14: Automated Resi Sideloader (body only) for UTC MSW automation, approved by Darrell. Expected delivery | D14: Resi MSW | E14: Garbage Trucks - Regulated Only
A15: 2010-22-0015 | B15: 407843 | C15: Automated Resi Sideloader (body only) for UTC MSW automation, approved by Darrell. Expected delivery | D15: Resi MSW | E15: Garbage Trucks - Regulated Only
A16: 2010-22-0016 | B16: 45352 | C16: Sprinter Van for Recycle Plus Program | D16: Resi Recycle - Recycle Plus | E16: Recycle Trucks
A17: 2010-22-0017 | B17: 45352 | C17: Sprinter Van for Recycle Plus Program | D17: Resi Recycle - Recycle Plus | E17: Recycle Trucks
A18: 2010-22-0018 | B18: 423744 | C18: New FEL Peterbilt/Labrie | D18: Commercial MSW | E18: Garbage Trucks - Shared
A19: 2010-22-0019 | B19: 312467 | C19: New Roll Off Peterbilt | D19: RO | E19: Roll-off Trucks
A20: 2010-22-0020 | B20: 432640 | C20: New ASL Peterbilt/Labrie 30yd | D20: Resi MSW | E20: Garbage Trucks - Non-Regulated Only
A21: 2010-22-0021 | B21: 432640 | C21: New ASL Peterbilt/Labrie 30yd | D21: Resi MSW | E21: Garbage Trucks - Non-Regulated Only
A22: 2010-22-0022 | B22: 312467 | C22: New Roll Off Peterbilt | D22: RO | E22: Roll-off Trucks
A23: 2010-22-0023 | B23: 182953 | C23: New Mini Packer Isuzu/Curbtender | D23: Container Delivery | E23: Container Delivery Trucks
A24: 2010-22-0024 | B24: 45693 | C24: New Ford F150 Pickup | D24: Ops Vehicle | E24: Shared Service Equipment
A25: 2010-22-0025 | B25: 47039 | C25: New Ford F150 Pickup | D25: Ops Vehicle | E25: Shared Service Equipment
